{"text_format":"1","workbook":"xlsx","n_sheets":1,"sheets":["Feuil1"],"not_rendered":{"charts":0,"images":1,"macros":1,"external_links":1,"defined_names":11,"comments":0,"pivot_tables":0},"unopened":[],"bounds":{"document_bytes":16777216,"sheet_cells":100000,"rows_first":2000,"rows_last":500,"rows_between":2000,"halvings":0,"cell_chars":16384,"cell_head_chars":4096},"cells_cut":0,"cells_raw":0,"read":"whole","date_system":"1900"}

{"sheet":"Feuil1","index":0,"n_rows":135,"n_cols":13,"rows_kept":135,"cut":false,"hidden":false,"merged":[[0,3,0,5],[2,1,12,1],[14,1,14,3]]}
[null,null,"Répertoire","C:\\Users\\jvdo\\Documents\\forum\\test",null,null,null,null,"Liste","Années","Animaux","Max_Animaux",{"$f":"INDEX(Animaux,Max_Animaux)","v":"4-HIPPOCAMPE"}]
[null,null,null,null,null,null,null,null,"JEMA",2006,"1-CHIEN","Nb_Animaux",{"$f":"COUNTA(Animaux)","v":4}]
[null,"Tableau des noms","Animaux","=DECALER(Feuil1!$K$2,,,NBVAL(Feuil1!$K$2:$K$16000),1)",null,null,null,null,"NOEM",2007,"2-CHAT","Min_Années",{"$f":"MIN(Années)","v":2006}]
[null,null,"Années","=DECALER(Feuil1!$J$2,,,NBVAL(Feuil1!$J$2:$J$16000),1)",null,null,null,null,"ESCH",2008,"3-POULPE","Max_Années",{"$f":"MAX(Années)","v":2012}]
[null,null,"Commandes_DOS","=Feuil1!$E$15",null,null,null,null,"IENS",2009,"4-HIPPOCAMPE","Nb_Années",{"$f":"COUNTA(Années)","v":7}]
[null,null,"Liste","=DECALER(Feuil1!$I$2,,,NBVAL(Feuil1!$I$2:$I$16000),1)",null,null,null,null,null,2010,null,"Nb_Liste",{"$f":"COUNTA(Liste)","v":4}]
[null,null,"MaBD","=DECALER(BD!$A$2,,,NBVAL(BD!$A:$A)-1,NBVAL(BD!$1:$1))",null,null,null,null,null,2011]
[null,null,"Max_Animaux","=Feuil1!$M$1",null,null,null,null,null,2012]
[null,null,"Max_Années","=Feuil1!$M$4"]
[null,null,"Min_Années","=Feuil1!$M$3"]
[null,null,"Nb_Animaux","=Feuil1!$M$2"]
[null,null,"Nb_Années","=Feuil1!$M$5"]
[null,null,"Nb_Liste","=Feuil1!$M$6"]
[]
[null,"Liste des commandes DOS à coller dans le fichier construire_arborescence.bat",null,null,{"$f":"OFFSET(Commandes_DOS,Nb_Liste*Nb_Années*Nb_Animaux+1,0)","v":"CD C:\\Users\\jvdo\\Documents\\forum\\test\nMD JEMA\\2006\\1-CHIEN-JEMA-06\nMD JEMA\\2006\\2-CHAT-JEMA-06\nMD JEMA\\2006\\3-POULPE-JEMA-06\nMD JEMA\\2006\\4-HIPPOCAMPE-JEMA-06\nMD JEMA\\2007\\1-CHIEN-JEMA-07\nMD JEMA\\2007\\2-CHAT-JEMA-07\nMD JEMA\\2007\\3-POULPE-JEMA-07\nMD JEMA\\2007\\4-HIPPOCAMPE-JEMA-07\nMD JEMA\\2008\\1-CHIEN-JEMA-08\nMD JEMA\\2008\\2-CHAT-JEMA-08\nMD JEMA\\2008\\3-POULPE-JEMA-08\nMD JEMA\\2008\\4-HIPPOCAMPE-JEMA-08\nMD JEMA\\2009\\1-CHIEN-JEMA-09\nMD JEMA\\2009\\2-CHAT-JEMA-09\nMD JEMA\\2009\\3-POULPE-JEMA-09\nMD JEMA\\2009\\4-HIPPOCAMPE-JEMA-09\nMD JEMA\\2010\\1-CHIEN-JEMA-10\nMD JEMA\\2010\\2-CHAT-JEMA-10\nMD JEMA\\2010\\3-POULPE-JEMA-10\nMD JEMA\\2010\\4-HIPPOCAMPE-JEMA-10\nMD JEMA\\2011\\1-CHIEN-JEMA-11\nMD JEMA\\2011\\2-CHAT-JEMA-11\nMD JEMA\\2011\\3-POULPE-JEMA-11\nMD JEMA\\2011\\4-HIPPOCAMPE-JEMA-11\nMD JEMA\\2012\\1-CHIEN-JEMA-12\nMD JEMA\\2012\\2-CHAT-JEMA-12\nMD JEMA\\2012\\3-POULPE-JEMA-12\nMD JEMA\\2012\\4-HIPPOCAMPE-JEMA-12\nMD NOEM\\2006\\1-CHIEN-NOEM-06\nMD NOEM\\2006\\2-CHAT-NOEM-06\nMD NOEM\\2006\\3-POULPE-NOEM-06\nMD NOEM\\2006\\4-HIPPOCAMPE-NOEM-06\nMD NOEM\\2007\\1-CHIEN-NOEM-07\nMD NOEM\\2007\\2-CHAT-NOEM-07\nMD NOEM\\2007\\3-POULPE-NOEM-07\nMD NOEM\\2007\\4-HIPPOCAMPE-NOEM-07\nMD NOEM\\2008\\1-CHIEN-NOEM-08\nMD NOEM\\2008\\2-CHAT-NOEM-08\nMD NOEM\\2008\\3-POULPE-NOEM-08\nMD NOEM\\2008\\4-HIPPOCAMPE-NOEM-08\nMD NOEM\\2009\\1-CHIEN-NOEM-09\nMD NOEM\\2009\\2-CHAT-NOEM-09\nMD NOEM\\2009\\3-POULPE-NOEM-09\nMD NOEM\\2009\\4-HIPPOCAMPE-NOEM-09\nMD NOEM\\2010\\1-CHIEN-NOEM-10\nMD NOEM\\2010\\2-CHAT-NOEM-10\nMD NOEM\\2010\\3-POULPE-NOEM-10\nMD NOEM\\2010\\4-HIPPOCAMPE-NOEM-10\nMD NOEM\\2011\\1-CHIEN-NOEM-11\nMD NOEM\\2011\\2-CHAT-NOEM-11\nMD NOEM\\2011\\3-POULPE-NOEM-11\nMD NOEM\\2011\\4-HIPPOCAMPE-NOEM-11\nMD NOEM\\2012\\1-CHIEN-NOEM-12\nMD NOEM\\2012\\2-CHAT-NOEM-12\nMD NOEM\\2012\\3-POULPE-NOEM-12\nMD NOEM\\2012\\4-HIPPOCAMPE-NOEM-12\nMD ESCH\\2006\\1-CHIEN-ESCH-06\nMD ESCH\\2006\\2-CHAT-ESCH-06\nMD ESCH\\2006\\3-POULPE-ESCH-06\nMD ESCH\\2006\\4-HIPPOCAMPE-ESCH-06\nMD ESCH\\2007\\1-CHIEN-ESCH-07\nMD ESCH\\2007\\2-CHAT-ESCH-07\nMD ESCH\\2007\\3-POULPE-ESCH-07\nMD ESCH\\2007\\4-HIPPOCAMPE-ESCH-07\nMD ESCH\\2008\\1-CHIEN-ESCH-08\nMD ESCH\\2008\\2-CHAT-ESCH-08\nMD ESCH\\2008\\3-POULPE-ESCH-08\nMD ESCH\\2008\\4-HIPPOCAMPE-ESCH-08\nMD ESCH\\2009\\1-CHIEN-ESCH-09\nMD ESCH\\2009\\2-CHAT-ESCH-09\nMD ESCH\\2009\\3-POULPE-ESCH-09\nMD ESCH\\2009\\4-HIPPOCAMPE-ESCH-09\nMD ESCH\\2010\\1-CHIEN-ESCH-10\nMD ESCH\\2010\\2-CHAT-ESCH-10\nMD ESCH\\2010\\3-POULPE-ESCH-10\nMD ESCH\\2010\\4-HIPPOCAMPE-ESCH-10\nMD ESCH\\2011\\1-CHIEN-ESCH-11\nMD ESCH\\2011\\2-CHAT-ESCH-11\nMD ESCH\\2011\\3-POULPE-ESCH-11\nMD ESCH\\2011\\4-HIPPOCAMPE-ESCH-11\nMD ESCH\\2012\\1-CHIEN-ESCH-12\nMD ESCH\\2012\\2-CHAT-ESCH-12\nMD ESCH\\2012\\3-POULPE-ESCH-12\nMD ESCH\\2012\\4-HIPPOCAMPE-ESCH-12\nMD IENS\\2006\\1-CHIEN-IENS-06\nMD IENS\\2006\\2-CHAT-IENS-06\nMD IENS\\2006\\3-POULPE-IENS-06\nMD IENS\\2006\\4-HIPPOCAMPE-IENS-06\nMD IENS\\2007\\1-CHIEN-IENS-07\nMD IENS\\2007\\2-CHAT-IENS-07\nMD IENS\\2007\\3-POULPE-IENS-07\nMD IENS\\2007\\4-HIPPOCAMPE-IENS-07\nMD IENS\\2008\\1-CHIEN-IENS-08\nMD IENS\\2008\\2-CHAT-IENS-08\nMD IENS\\2008\\3-POULPE-IENS-08\nMD IENS\\2008\\4-HIPPOCAMPE-IENS-08\nMD IENS\\2009\\1-CHIEN-IENS-09\nMD IENS\\2009\\2-CHAT-IENS-09\nMD IENS\\2009\\3-POULPE-IENS-09\nMD IENS\\2009\\4-HIPPOCAMPE-IENS-09\nMD IENS\\2010\\1-CHIEN-IENS-10\nMD IENS\\2010\\2-CHAT-IENS-10\nMD IENS\\2010\\3-POULPE-IENS-10\nMD IENS\\2010\\4-HIPPOCAMPE-IENS-10\nMD IENS\\2011\\1-CHIEN-IENS-11\nMD IENS\\2011\\2-CHAT-IENS-11\nMD IENS\\2011\\3-POULPE-IENS-11\nMD IENS\\2011\\4-HIPPOCAMPE-IENS-11\nMD IENS\\2012\\1-CHIEN-IENS-12\nMD IENS\\2012\\2-CHAT-IENS-12\nMD IENS\\2012\\3-POULPE-IENS-12\nMD IENS\\2012\\4-HIPPOCAMPE-IENS-12"}]
[]
[]
[null,null,null,null,"Commandes DOS"]
[null,null,null,null,{"$f":"\"CD \"&D1","v":"CD C:\\Users\\jvdo\\Documents\\forum\\test"}]
[{"$f":"I2","v":"JEMA"},{"$f":"J2","v":2006},{"$f":"K2","v":"1-CHIEN"},null,{"$f":"E19&CHAR(10)&\"MD \"&A20&\"\\\"&B20&\"\\\"&C20&\"-\"&A20&\"-\"&RIGHT(TEXT(B20,\"0000\"),2)","v":"CD C:\\Users\\jvdo\\Documents\\forum\\test\nMD JEMA\\2006\\1-CHIEN-JEMA-06"}]
[{"$f":"IF(ROWS($C$20:C20)<Nb_Liste*Nb_Années*Nb_Animaux,IF(B21>=B20,A20,INDEX(Liste,MATCH(A20,Liste,0)+1)),\"\")","v":"JEMA"},{"$f":"IF(ROWS($C$20:C20)<Nb_Liste*Nb_Années*Nb_Animaux,(C21=INDEX(Animaux,1))*(1-Nb_Années*(B20=Max_Années))+B20,\"\")","v":2006},{"$f":"IF(ROWS($C$20:C20)<Nb_Liste*Nb_Années*Nb_Animaux,INDEX(Animaux,MOD(MATCH(C20,Animaux,0),Nb_Animaux)+1),\"\")","v":"2-CHAT"},null,{"$f":"IF(ROWS($C$20:C20)<Nb_Liste*Nb_Années*Nb_Animaux,E20&CHAR(10)&\"MD \"&A21&\"\\\"&B21&\"\\\"&C21&\"-\"&A21&\"-\"&RIGHT(TEXT(B21,\"0000\"),2),\"\")","v":"CD C:\\Users\\jvdo\\Documents\\forum\\test\nMD JEMA\\2006\\1-CHIEN-JEMA-06\nMD JEMA\\2006\\2-CHAT-JEMA-06"}]
[{"$f":"IF(ROWS($C$20:C21)<Nb_Liste*Nb_Années*Nb_Animaux,IF(B22>=B21,A21,INDEX(Liste,MATCH(A21,Liste,0)+1)),\"\")","v":"JEMA"},{"$f":"IF(ROWS($C$20:C21)<Nb_Liste*Nb_Années*Nb_Animaux,(C22=INDEX(Animaux,1))*(1-Nb_Années*(B21=Max_Années))+B21,\"\")","v":2006},{"$f":"IF(ROWS($C$20:C21)<Nb_Liste*Nb_Années*Nb_Animaux,INDEX(Animaux,MOD(MATCH(C21,Animaux,0),Nb_Animaux)+1),\"\")","v":"3-POULPE"},null,{"$f":"IF(ROWS($C$20:C21)<Nb_Liste*Nb_Années*Nb_Animaux,E21&CHAR(10)&\"MD \"&A22&\"\\\"&B22&\"\\\"&C22&\"-\"&A22&\"-\"&RIGHT(TEXT(B22,\"0000\"),2),\"\")","v":"CD C:\\Users\\jvdo\\Documents\\forum\\test\nMD JEMA\\2006\\1-CHIEN-JEMA-06\nMD JEMA\\2006\\2-CHAT-JEMA-06\nMD JEMA\\2006\\3-POULPE-JEMA-06"}]
[{"$f":"IF(ROWS($C$20:C22)<Nb_Liste*Nb_Années*Nb_Animaux,IF(B23>=B22,A22,INDEX(Liste,MATCH(A22,Liste,0)+1)),\"\")","v":"JEMA"},{"$f":"IF(ROWS($C$20:C22)<Nb_Liste*Nb_Années*Nb_Animaux,(C23=INDEX(Animaux,1))*(1-Nb_Années*(B22=Max_Années))+B22,\"\")","v":2006},{"$f":"IF(ROWS($C$20:C22)<Nb_Liste*Nb_Années*Nb_Animaux,INDEX(Animaux,MOD(MATCH(C22,Animaux,0),Nb_Animaux)+1),\"\")","v":"4-HIPPOCAMPE"},null,{"$f":"IF(ROWS($C$20:C22)<Nb_Liste*Nb_Années*Nb_Animaux,E22&CHAR(10)&\"MD \"&A23&\"\\\"&B23&\"\\\"&C23&\"-\"&A23&\"-\"&RIGHT(TEXT(B23,\"0000\"),2),\"\")","v":"CD C:\\Users\\jvdo\\Documents\\forum\\test\nMD JEMA\\2006\\1-CHIEN-JEMA-06\nMD JEMA\\2006\\2-CHAT-JEMA-06\nMD JEMA\\2006\\3-POULPE-JEMA-06\nMD JEMA\\2006\\4-HIPPOCAMPE-JEMA-06"}]
[{"$f":"IF(ROWS($C$20:C23)<Nb_Liste*Nb_Années*Nb_Animaux,IF(B24>=B23,A23,INDEX(Liste,MATCH(A23,Liste,0)+1)),\"\")","v":"JEMA"},{"$f":"IF(ROWS($C$20:C23)<Nb_Liste*Nb_Années*Nb_Animaux,(C24=INDEX(Animaux,1))*(1-Nb_Années*(B23=Max_Années))+B23,\"\")","v":2007},{"$f":"IF(ROWS($C$20:C23)<Nb_Liste*Nb_Années*Nb_Animaux,INDEX(Animaux,MOD(MATCH(C23,Animaux,0),Nb_Animaux)+1),\"\")","v":"1-CHIEN"},null,{"$f":"IF(ROWS($C$20:C23)<Nb_Liste*Nb_Années*Nb_Animaux,E23&CHAR(10)&\"MD \"&A24&\"\\\"&B24&\"\\\"&C24&\"-\"&A24&\"-\"&RIGHT(TEXT(B24,\"0000\"),2),\"\")","v":"CD C:\\Users\\jvdo\\Documents\\forum\\test\nMD JEMA\\2006\\1-CHIEN-JEMA-06\nMD JEMA\\2006\\2-CHAT-JEMA-06\nMD JEMA\\2006\\3-POULPE-JEMA-06\nMD JEMA\\2006\\4-HIPPOCAMPE-JEMA-06\nMD JEMA\\2007\\1-CHIEN-JEMA-07"}]
[{"$f":"IF(ROWS($C$20:C24)<Nb_Liste*Nb_Années*Nb_Animaux,IF(B25>=B24,A24,INDEX(Liste,MATCH(A24,Liste,0)+1)),\"\")","v":"JEMA"},{"$f":"IF(ROWS($C$20:C24)<Nb_Liste*Nb_Années*Nb_Animaux,(C25=INDEX(Animaux,1))*(1-Nb_Années*(B24=Max_Années))+B24,\"\")","v":2007},{"$f":"IF(ROWS($C$20:C24)<Nb_Liste*Nb_Années*Nb_Animaux,INDEX(Animaux,MOD(MATCH(C24,Animaux,0),Nb_Animaux)+1),\"\")","v":"2-CHAT"},null,{"$f":"IF(ROWS($C$20:C24)<Nb_Liste*Nb_Années*Nb_Animaux,E24&CHAR(10)&\"MD \"&A25&\"\\\"&B25&\"\\\"&C25&\"-\"&A25&\"-\"&RIGHT(TEXT(B25,\"0000\"),2),\"\")","v":"CD C:\\Users\\jvdo\\Documents\\forum\\test\nMD JEMA\\2006\\1-CHIEN-JEMA-06\nMD JEMA\\2006\\2-CHAT-JEMA-06\nMD JEMA\\2006\\3-POULPE-JEMA-06\nMD JEMA\\2006\\4-HIPPOCAMPE-JEMA-06\nMD JEMA\\2007\\1-CHIEN-JEMA-07\nMD JEMA\\2007\\2-CHAT-JEMA-07"}]
[{"$f":"IF(ROWS($C$20:C25)<Nb_Liste*Nb_Années*Nb_Animaux,IF(B26>=B25,A25,INDEX(Liste,MATCH(A25,Liste,0)+1)),\"\")","v":"JEMA"},{"$f":"IF(ROWS($C$20:C25)<Nb_Liste*Nb_Années*Nb_Animaux,(C26=INDEX(Animaux,1))*(1-Nb_Années*(B25=Max_Années))+B25,\"\")","v":2007},{"$f":"IF(ROWS($C$20:C25)<Nb_Liste*Nb_Années*Nb_Animaux,INDEX(Animaux,MOD(MATCH(C25,Animaux,0),Nb_Animaux)+1),\"\")","v":"3-POULPE"},null,{"$f":"IF(ROWS($C$20:C25)<Nb_Liste*Nb_Années*Nb_Animaux,E25&CHAR(10)&\"MD \"&A26&\"\\\"&B26&\"\\\"&C26&\"-\"&A26&\"-\"&RIGHT(TEXT(B26,\"0000\"),2),\"\")","v":"CD C:\\Users\\jvdo\\Documents\\forum\\test\nMD JEMA\\2006\\1-CHIEN-JEMA-06\nMD JEMA\\2006\\2-CHAT-JEMA-06\nMD JEMA\\2006\\3-POULPE-JEMA-06\nMD JEMA\\2006\\4-HIPPOCAMPE-JEMA-06\nMD JEMA\\2007\\1-CHIEN-JEMA-07\nMD JEMA\\2007\\2-CHAT-JEMA-07\nMD JEMA\\2007\\3-POULPE-JEMA-07"}]
[{"$f":"IF(ROWS($C$20:C26)<Nb_Liste*Nb_Années*Nb_Animaux,IF(B27>=B26,A26,INDEX(Liste,MATCH(A26,Liste,0)+1)),\"\")","v":"JEMA"},{"$f":"IF(ROWS($C$20:C26)<Nb_Liste*Nb_Années*Nb_Animaux,(C27=INDEX(Animaux,1))*(1-Nb_Années*(B26=Max_Années))+B26,\"\")","v":2007},{"$f":"IF(ROWS($C$20:C26)<Nb_Liste*Nb_Années*Nb_Animaux,INDEX(Animaux,MOD(MATCH(C26,Animaux,0),Nb_Animaux)+1),\"\")","v":"4-HIPPOCAMPE"},null,{"$f":"IF(ROWS($C$20:C26)<Nb_Liste*Nb_Années*Nb_Animaux,E26&CHAR(10)&\"MD \"&A27&\"\\\"&B27&\"\\\"&C27&\"-\"&A27&\"-\"&RIGHT(TEXT(B27,\"0000\"),2),\"\")","v":"CD C:\\Users\\jvdo\\Documents\\forum\\test\nMD JEMA\\2006\\1-CHIEN-JEMA-06\nMD JEMA\\2006\\2-CHAT-JEMA-06\nMD JEMA\\2006\\3-POULPE-JEMA-06\nMD JEMA\\2006\\4-HIPPOCAMPE-JEMA-06\nMD JEMA\\2007\\1-CHIEN-JEMA-07\nMD JEMA\\2007\\2-CHAT-JEMA-07\nMD JEMA\\2007\\3-POULPE-JEMA-07\nMD JEMA\\2007\\4-HIPPOCAMPE-JEMA-07"}]
[{"$f":"IF(ROWS($C$20:C27)<Nb_Liste*Nb_Années*Nb_Animaux,IF(B28>=B27,A27,INDEX(Liste,MATCH(A27,Liste,0)+1)),\"\")","v":"JEMA"},{"$f":"IF(ROWS($C$20:C27)<Nb_Liste*Nb_Années*Nb_Animaux,(C28=INDEX(Animaux,1))*(1-Nb_Années*(B27=Max_Années))+B27,\"\")","v":2008},{"$f":"IF(ROWS($C$20:C27)<Nb_Liste*Nb_Années*Nb_Animaux,INDEX(Animaux,MOD(MATCH(C27,Animaux,0),Nb_Animaux)+1),\"\")","v":"1-CHIEN"},null,{"$f":"IF(ROWS($C$20:C27)<Nb_Liste*Nb_Années*Nb_Animaux,E27&CHAR(10)&\"MD \"&A28&\"\\\"&B28&\"\\\"&C28&\"-\"&A28&\"-\"&RIGHT(TEXT(B28,\"0000\"),2),\"\")","v":"CD C:\\Users\\jvdo\\Documents\\forum\\test\nMD JEMA\\2006\\1-CHIEN-JEMA-06\nMD JEMA\\2006\\2-CHAT-JEMA-06\nMD JEMA\\2006\\3-POULPE-JEMA-06\nMD JEMA\\2006\\4-HIPPOCAMPE-JEMA-06\nMD JEMA\\2007\\1-CHIEN-JEMA-07\nMD JEMA\\2007\\2-CHAT-JEMA-07\nMD JEMA\\2007\\3-POULPE-JEMA-07\nMD JEMA\\2007\\4-HIPPOCAMPE-JEMA-07\nMD JEMA\\2008\\1-CHIEN-JEMA-08"}]
[{"$f":"IF(ROWS($C$20:C28)<Nb_Liste*Nb_Années*Nb_Animaux,IF(B29>=B28,A28,INDEX(Liste,MATCH(A28,Liste,0)+1)),\"\")","v":"JEMA"},{"$f":"IF(ROWS($C$20:C28)<Nb_Liste*Nb_Années*Nb_Animaux,(C29=INDEX(Animaux,1))*(1-Nb_Années*(B28=Max_Années))+B28,\"\")","v":2008},{"$f":"IF(ROWS($C$20:C28)<Nb_Liste*Nb_Années*Nb_Animaux,INDEX(Animaux,MOD(MATCH(C28,Animaux,0),Nb_Animaux)+1),\"\")","v":"2-CHAT"},null,{"$f":"IF(ROWS($C$20:C28)<Nb_Liste*Nb_Années*Nb_Animaux,E28&CHAR(10)&\"MD \"&A29&\"\\\"&B29&\"\\\"&C29&\"-\"&A29&\"-\"&RIGHT(TEXT(B29,\"0000\"),2),\"\")","v":"CD C:\\Users\\jvdo\\Documents\\forum\\test\nMD JEMA\\2006\\1-CHIEN-JEMA-06\nMD JEMA\\2006\\2-CHAT-JEMA-06\nMD JEMA\\2006\\3-POULPE-JEMA-06\nMD JEMA\\2006\\4-HIPPOCAMPE-JEMA-06\nMD JEMA\\2007\\1-CHIEN-JEMA-07\nMD JEMA\\2007\\2-CHAT-JEMA-07\nMD JEMA\\2007\\3-POULPE-JEMA-07\nMD JEMA\\2007\\4-HIPPOCAMPE-JEMA-07\nMD JEMA\\2008\\1-CHIEN-JEMA-08\nMD JEMA\\2008\\2-CHAT-JEMA-08"}]
[{"$f":"IF(ROWS($C$20:C29)<Nb_Liste*Nb_Années*Nb_Animaux,IF(B30>=B29,A29,INDEX(Liste,MATCH(A29,Liste,0)+1)),\"\")","v":"JEMA"},{"$f":"IF(ROWS($C$20:C29)<Nb_Liste*Nb_Années*Nb_Animaux,(C30=INDEX(Animaux,1))*(1-Nb_Années*(B29=Max_Années))+B29,\"\")","v":2008},{"$f":"IF(ROWS($C$20:C29)<Nb_Liste*Nb_Années*Nb_Animaux,INDEX(Animaux,MOD(MATCH(C29,Animaux,0),Nb_Animaux)+1),\"\")","v":"3-POULPE"},null,{"$f":"IF(ROWS($C$20:C29)<Nb_Liste*Nb_Années*Nb_Animaux,E29&CHAR(10)&\"MD \"&A30&\"\\\"&B30&\"\\\"&C30&\"-\"&A30&\"-\"&RIGHT(TEXT(B30,\"0000\"),2),\"\")","v":"CD C:\\Users\\jvdo\\Documents\\forum\\test\nMD JEMA\\2006\\1-CHIEN-JEMA-06\nMD JEMA\\2006\\2-CHAT-JEMA-06\nMD JEMA\\2006\\3-POULPE-JEMA-06\nMD JEMA\\2006\\4-HIPPOCAMPE-JEMA-06\nMD JEMA\\2007\\1-CHIEN-JEMA-07\nMD JEMA\\2007\\2-CHAT-JEMA-07\nMD JEMA\\2007\\3-POULPE-JEMA-07\nMD JEMA\\2007\\4-HIPPOCAMPE-JEMA-07\nMD JEMA\\2008\\1-CHIEN-JEMA-08\nMD JEMA\\2008\\2-CHAT-JEMA-08\nMD JEMA\\2008\\3-POULPE-JEMA-08"}]
[{"$f":"IF(ROWS($C$20:C30)<Nb_Liste*Nb_Années*Nb_Animaux,IF(B31>=B30,A30,INDEX(Liste,MATCH(A30,Liste,0)+1)),\"\")","v":"JEMA"},{"$f":"IF(ROWS($C$20:C30)<Nb_Liste*Nb_Années*Nb_Animaux,(C31=INDEX(Animaux,1))*(1-Nb_Années*(B30=Max_Années))+B30,\"\")","v":2008},{"$f":"IF(ROWS($C$20:C30)<Nb_Liste*Nb_Années*Nb_Animaux,INDEX(Animaux,MOD(MATCH(C30,Animaux,0),Nb_Animaux)+1),\"\")","v":"4-HIPPOCAMPE"},null,{"$f":"IF(ROWS($C$20:C30)<Nb_Liste*Nb_Années*Nb_Animaux,E30&CHAR(10)&\"MD \"&A31&\"\\\"&B31&\"\\\"&C31&\"-\"&A31&\"-\"&RIGHT(TEXT(B31,\"0000\"),2),\"\")","v":"CD C:\\Users\\jvdo\\Documents\\forum\\test\nMD JEMA\\2006\\1-CHIEN-JEMA-06\nMD JEMA\\2006\\2-CHAT-JEMA-06\nMD JEMA\\2006\\3-POULPE-JEMA-06\nMD JEMA\\2006\\4-HIPPOCAMPE-JEMA-06\nMD JEMA\\2007\\1-CHIEN-JEMA-07\nMD JEMA\\2007\\2-CHAT-JEMA-07\nMD JEMA\\2007\\3-POULPE-JEMA-07\nMD JEMA\\2007\\4-HIPPOCAMPE-JEMA-07\nMD JEMA\\2008\\1-CHIEN-JEMA-08\nMD JEMA\\2008\\2-CHAT-JEMA-08\nMD JEMA\\2008\\3-POULPE-JEMA-08\nMD JEMA\\2008\\4-HIPPOCAMPE-JEMA-08"}]
[{"$f":"IF(ROWS($C$20:C31)<Nb_Liste*Nb_Années*Nb_Animaux,IF(B32>=B31,A31,INDEX(Liste,MATCH(A31,Liste,0)+1)),\"\")","v":"JEMA"},{"$f":"IF(ROWS($C$20:C31)<Nb_Liste*Nb_Années*Nb_Animaux,(C32=INDEX(Animaux,1))*(1-Nb_Années*(B31=Max_Années))+B31,\"\")","v":2009},{"$f":"IF(ROWS($C$20:C31)<Nb_Liste*Nb_Années*Nb_Animaux,INDEX(Animaux,MOD(MATCH(C31,Animaux,0),Nb_Animaux)+1),\"\")","v":"1-CHIEN"},null,{"$f":"IF(ROWS($C$20:C31)<Nb_Liste*Nb_Années*Nb_Animaux,E31&CHAR(10)&\"MD \"&A32&\"\\\"&B32&\"\\\"&C32&\"-\"&A32&\"-\"&RIGHT(TEXT(B32,\"0000\"),2),\"\")","v":"CD C:\\Users\\jvdo\\Documents\\forum\\test\nMD JEMA\\2006\\1-CHIEN-JEMA-06\nMD JEMA\\2006\\2-CHAT-JEMA-06\nMD JEMA\\2006\\3-POULPE-JEMA-06\nMD JEMA\\2006\\4-HIPPOCAMPE-JEMA-06\nMD JEMA\\2007\\1-CHIEN-JEMA-07\nMD JEMA\\2007\\2-CHAT-JEMA-07\nMD JEMA\\2007\\3-POULPE-JEMA-07\nMD JEMA\\2007\\4-HIPPOCAMPE-JEMA-07\nMD JEMA\\2008\\1-CHIEN-JEMA-08\nMD JEMA\\2008\\2-CHAT-JEMA-08\nMD JEMA\\2008\\3-POULPE-JEMA-08\nMD JEMA\\2008\\4-HIPPOCAMPE-JEMA-08\nMD JEMA\\2009\\1-CHIEN-JEMA-09"}]
[{"$f":"IF(ROWS($C$20:C32)<Nb_Liste*Nb_Années*Nb_Animaux,IF(B33>=B32,A32,INDEX(Liste,MATCH(A32,Liste,0)+1)),\"\")","v":"JEMA"},{"$f":"IF(ROWS($C$20:C32)<Nb_Liste*Nb_Années*Nb_Animaux,(C33=INDEX(Animaux,1))*(1-Nb_Années*(B32=Max_Années))+B32,\"\")","v":2009},{"$f":"IF(ROWS($C$20:C32)<Nb_Liste*Nb_Années*Nb_Animaux,INDEX(Animaux,MOD(MATCH(C32,Animaux,0),Nb_Animaux)+1),\"\")","v":"2-CHAT"},null,{"$f":"IF(ROWS($C$20:C32)<Nb_Liste*Nb_Années*Nb_Animaux,E32&CHAR(10)&\"MD \"&A33&\"\\\"&B33&\"\\\"&C33&\"-\"&A33&\"-\"&RIGHT(TEXT(B33,\"0000\"),2),\"\")","v":"CD C:\\Users\\jvdo\\Documents\\forum\\test\nMD JEMA\\2006\\1-CHIEN-JEMA-06\nMD JEMA\\2006\\2-CHAT-JEMA-06\nMD JEMA\\2006\\3-POULPE-JEMA-06\nMD JEMA\\2006\\4-HIPPOCAMPE-JEMA-06\nMD JEMA\\2007\\1-CHIEN-JEMA-07\nMD JEMA\\2007\\2-CHAT-JEMA-07\nMD JEMA\\2007\\3-POULPE-JEMA-07\nMD JEMA\\2007\\4-HIPPOCAMPE-JEMA-07\nMD JEMA\\2008\\1-CHIEN-JEMA-08\nMD JEMA\\2008\\2-CHAT-JEMA-08\nMD JEMA\\2008\\3-POULPE-JEMA-08\nMD JEMA\\2008\\4-HIPPOCAMPE-JEMA-08\nMD JEMA\\2009\\1-CHIEN-JEMA-09\nMD JEMA\\2009\\2-CHAT-JEMA-09"}]
[{"$f":"IF(ROWS($C$20:C33)<Nb_Liste*Nb_Années*Nb_Animaux,IF(B34>=B33,A33,INDEX(Liste,MATCH(A33,Liste,0)+1)),\"\")","v":"JEMA"},{"$f":"IF(ROWS($C$20:C33)<Nb_Liste*Nb_Années*Nb_Animaux,(C34=INDEX(Animaux,1))*(1-Nb_Années*(B33=Max_Années))+B33,\"\")","v":2009},{"$f":"IF(ROWS($C$20:C33)<Nb_Liste*Nb_Années*Nb_Animaux,INDEX(Animaux,MOD(MATCH(C33,Animaux,0),Nb_Animaux)+1),\"\")","v":"3-POULPE"},null,{"$f":"IF(ROWS($C$20:C33)<Nb_Liste*Nb_Années*Nb_Animaux,E33&CHAR(10)&\"MD \"&A34&\"\\\"&B34&\"\\\"&C34&\"-\"&A34&\"-\"&RIGHT(TEXT(B34,\"0000\"),2),\"\")","v":"CD C:\\Users\\jvdo\\Documents\\forum\\test\nMD JEMA\\2006\\1-CHIEN-JEMA-06\nMD JEMA\\2006\\2-CHAT-JEMA-06\nMD JEMA\\2006\\3-POULPE-JEMA-06\nMD JEMA\\2006\\4-HIPPOCAMPE-JEMA-06\nMD JEMA\\2007\\1-CHIEN-JEMA-07\nMD JEMA\\2007\\2-CHAT-JEMA-07\nMD JEMA\\2007\\3-POULPE-JEMA-07\nMD JEMA\\2007\\4-HIPPOCAMPE-JEMA-07\nMD JEMA\\2008\\1-CHIEN-JEMA-08\nMD JEMA\\2008\\2-CHAT-JEMA-08\nMD JEMA\\2008\\3-POULPE-JEMA-08\nMD JEMA\\2008\\4-HIPPOCAMPE-JEMA-08\nMD JEMA\\2009\\1-CHIEN-JEMA-09\nMD JEMA\\2009\\2-CHAT-JEMA-09\nMD JEMA\\2009\\3-POULPE-JEMA-09"}]
[{"$f":"IF(ROWS($C$20:C34)<Nb_Liste*Nb_Années*Nb_Animaux,IF(B35>=B34,A34,INDEX(Liste,MATCH(A34,Liste,0)+1)),\"\")","v":"JEMA"},{"$f":"IF(ROWS($C$20:C34)<Nb_Liste*Nb_Années*Nb_Animaux,(C35=INDEX(Animaux,1))*(1-Nb_Années*(B34=Max_Années))+B34,\"\")","v":2009},{"$f":"IF(ROWS($C$20:C34)<Nb_Liste*Nb_Années*Nb_Animaux,INDEX(Animaux,MOD(MATCH(C34,Animaux,0),Nb_Animaux)+1),\"\")","v":"4-HIPPOCAMPE"},null,{"$f":"IF(ROWS($C$20:C34)<Nb_Liste*Nb_Années*Nb_Animaux,E34&CHAR(10)&\"MD \"&A35&\"\\\"&B35&\"\\\"&C35&\"-\"&A35&\"-\"&RIGHT(TEXT(B35,\"0000\"),2),\"\")","v":"CD C:\\Users\\jvdo\\Documents\\forum\\test\nMD JEMA\\2006\\1-CHIEN-JEMA-06\nMD JEMA\\2006\\2-CHAT-JEMA-06\nMD JEMA\\2006\\3-POULPE-JEMA-06\nMD JEMA\\2006\\4-HIPPOCAMPE-JEMA-06\nMD JEMA\\2007\\1-CHIEN-JEMA-07\nMD JEMA\\2007\\2-CHAT-JEMA-07\nMD JEMA\\2007\\3-POULPE-JEMA-07\nMD JEMA\\2007\\4-HIPPOCAMPE-JEMA-07\nMD JEMA\\2008\\1-CHIEN-JEMA-08\nMD JEMA\\2008\\2-CHAT-JEMA-08\nMD JEMA\\2008\\3-POULPE-JEMA-08\nMD JEMA\\2008\\4-HIPPOCAMPE-JEMA-08\nMD JEMA\\2009\\1-CHIEN-JEMA-09\nMD JEMA\\2009\\2-CHAT-JEMA-09\nMD JEMA\\2009\\3-POULPE-JEMA-09\nMD JEMA\\2009\\4-HIPPOCAMPE-JEMA-09"}]
[{"$f":"IF(ROWS($C$20:C35)<Nb_Liste*Nb_Années*Nb_Animaux,IF(B36>=B35,A35,INDEX(Liste,MATCH(A35,Liste,0)+1)),\"\")","v":"JEMA"},{"$f":"IF(ROWS($C$20:C35)<Nb_Liste*Nb_Années*Nb_Animaux,(C36=INDEX(Animaux,1))*(1-Nb_Années*(B35=Max_Années))+B35,\"\")","v":2010},{"$f":"IF(ROWS($C$20:C35)<Nb_Liste*Nb_Années*Nb_Animaux,INDEX(Animaux,MOD(MATCH(C35,Animaux,0),Nb_Animaux)+1),\"\")","v":"1-CHIEN"},null,{"$f":"IF(ROWS($C$20:C35)<Nb_Liste*Nb_Années*Nb_Animaux,E35&CHAR(10)&\"MD \"&A36&\"\\\"&B36&\"\\\"&C36&\"-\"&A36&\"-\"&RIGHT(TEXT(B36,\"0000\"),2),\"\")","v":"CD C:\\Users\\jvdo\\Documents\\forum\\test\nMD JEMA\\2006\\1-CHIEN-JEMA-06\nMD JEMA\\2006\\2-CHAT-JEMA-06\nMD JEMA\\2006\\3-POULPE-JEMA-06\nMD JEMA\\2006\\4-HIPPOCAMPE-JEMA-06\nMD JEMA\\2007\\1-CHIEN-JEMA-07\nMD JEMA\\2007\\2-CHAT-JEMA-07\nMD JEMA\\2007\\3-POULPE-JEMA-07\nMD JEMA\\2007\\4-HIPPOCAMPE-JEMA-07\nMD JEMA\\2008\\1-CHIEN-JEMA-08\nMD JEMA\\2008\\2-CHAT-JEMA-08\nMD JEMA\\2008\\3-POULPE-JEMA-08\nMD JEMA\\2008\\4-HIPPOCAMPE-JEMA-08\nMD JEMA\\2009\\1-CHIEN-JEMA-09\nMD JEMA\\2009\\2-CHAT-JEMA-09\nMD JEMA\\2009\\3-POULPE-JEMA-09\nMD JEMA\\2009\\4-HIPPOCAMPE-JEMA-09\nMD JEMA\\2010\\1-CHIEN-JEMA-10"}]
[{"$f":"IF(ROWS($C$20:C36)<Nb_Liste*Nb_Années*Nb_Animaux,IF(B37>=B36,A36,INDEX(Liste,MATCH(A36,Liste,0)+1)),\"\")","v":"JEMA"},{"$f":"IF(ROWS($C$20:C36)<Nb_Liste*Nb_Années*Nb_Animaux,(C37=INDEX(Animaux,1))*(1-Nb_Années*(B36=Max_Années))+B36,\"\")","v":2010},{"$f":"IF(ROWS($C$20:C36)<Nb_Liste*Nb_Années*Nb_Animaux,INDEX(Animaux,MOD(MATCH(C36,Animaux,0),Nb_Animaux)+1),\"\")","v":"2-CHAT"},null,{"$f":"IF(ROWS($C$20:C36)<Nb_Liste*Nb_Années*Nb_Animaux,E36&CHAR(10)&\"MD \"&A37&\"\\\"&B37&\"\\\"&C37&\"-\"&A37&\"-\"&RIGHT(TEXT(B37,\"0000\"),2),\"\")","v":"CD C:\\Users\\jvdo\\Documents\\forum\\test\nMD JEMA\\2006\\1-CHIEN-JEMA-06\nMD JEMA\\2006\\2-CHAT-JEMA-06\nMD JEMA\\2006\\3-POULPE-JEMA-06\nMD JEMA\\2006\\4-HIPPOCAMPE-JEMA-06\nMD JEMA\\2007\\1-CHIEN-JEMA-07\nMD JEMA\\2007\\2-CHAT-JEMA-07\nMD JEMA\\2007\\3-POULPE-JEMA-07\nMD JEMA\\2007\\4-HIPPOCAMPE-JEMA-07\nMD JEMA\\2008\\1-CHIEN-JEMA-08\nMD JEMA\\2008\\2-CHAT-JEMA-08\nMD JEMA\\2008\\3-POULPE-JEMA-08\nMD JEMA\\2008\\4-HIPPOCAMPE-JEMA-08\nMD JEMA\\2009\\1-CHIEN-JEMA-09\nMD JEMA\\2009\\2-CHAT-JEMA-09\nMD JEMA\\2009\\3-POULPE-JEMA-09\nMD JEMA\\2009\\4-HIPPOCAMPE-JEMA-09\nMD JEMA\\2010\\1-CHIEN-JEMA-10\nMD JEMA\\2010\\2-CHAT-JEMA-10"}]
[{"$f":"IF(ROWS($C$20:C37)<Nb_Liste*Nb_Années*Nb_Animaux,IF(B38>=B37,A37,INDEX(Liste,MATCH(A37,Liste,0)+1)),\"\")","v":"JEMA"},{"$f":"IF(ROWS($C$20:C37)<Nb_Liste*Nb_Années*Nb_Animaux,(C38=INDEX(Animaux,1))*(1-Nb_Années*(B37=Max_Années))+B37,\"\")","v":2010},{"$f":"IF(ROWS($C$20:C37)<Nb_Liste*Nb_Années*Nb_Animaux,INDEX(Animaux,MOD(MATCH(C37,Animaux,0),Nb_Animaux)+1),\"\")","v":"3-POULPE"},null,{"$f":"IF(ROWS($C$20:C37)<Nb_Liste*Nb_Années*Nb_Animaux,E37&CHAR(10)&\"MD \"&A38&\"\\\"&B38&\"\\\"&C38&\"-\"&A38&\"-\"&RIGHT(TEXT(B38,\"0000\"),2),\"\")","v":"CD C:\\Users\\jvdo\\Documents\\forum\\test\nMD JEMA\\2006\\1-CHIEN-JEMA-06\nMD JEMA\\2006\\2-CHAT-JEMA-06\nMD JEMA\\2006\\3-POULPE-JEMA-06\nMD JEMA\\2006\\4-HIPPOCAMPE-JEMA-06\nMD JEMA\\2007\\1-CHIEN-JEMA-07\nMD JEMA\\2007\\2-CHAT-JEMA-07\nMD JEMA\\2007\\3-POULPE-JEMA-07\nMD JEMA\\2007\\4-HIPPOCAMPE-JEMA-07\nMD JEMA\\2008\\1-CHIEN-JEMA-08\nMD JEMA\\2008\\2-CHAT-JEMA-08\nMD JEMA\\2008\\3-POULPE-JEMA-08\nMD JEMA\\2008\\4-HIPPOCAMPE-JEMA-08\nMD JEMA\\2009\\1-CHIEN-JEMA-09\nMD JEMA\\2009\\2-CHAT-JEMA-09\nMD JEMA\\2009\\3-POULPE-JEMA-09\nMD JEMA\\2009\\4-HIPPOCAMPE-JEMA-09\nMD JEMA\\2010\\1-CHIEN-JEMA-10\nMD JEMA\\2010\\2-CHAT-JEMA-10\nMD JEMA\\2010\\3-POULPE-JEMA-10"}]
[{"$f":"IF(ROWS($C$20:C38)<Nb_Liste*Nb_Années*Nb_Animaux,IF(B39>=B38,A38,INDEX(Liste,MATCH(A38,Liste,0)+1)),\"\")","v":"JEMA"},{"$f":"IF(ROWS($C$20:C38)<Nb_Liste*Nb_Années*Nb_Animaux,(C39=INDEX(Animaux,1))*(1-Nb_Années*(B38=Max_Années))+B38,\"\")","v":2010},{"$f":"IF(ROWS($C$20:C38)<Nb_Liste*Nb_Années*Nb_Animaux,INDEX(Animaux,MOD(MATCH(C38,Animaux,0),Nb_Animaux)+1),\"\")","v":"4-HIPPOCAMPE"},null,{"$f":"IF(ROWS($C$20:C38)<Nb_Liste*Nb_Années*Nb_Animaux,E38&CHAR(10)&\"MD \"&A39&\"\\\"&B39&\"\\\"&C39&\"-\"&A39&\"-\"&RIGHT(TEXT(B39,\"0000\"),2),\"\")","v":"CD C:\\Users\\jvdo\\Documents\\forum\\test\nMD JEMA\\2006\\1-CHIEN-JEMA-06\nMD JEMA\\2006\\2-CHAT-JEMA-06\nMD JEMA\\2006\\3-POULPE-JEMA-06\nMD JEMA\\2006\\4-HIPPOCAMPE-JEMA-06\nMD JEMA\\2007\\1-CHIEN-JEMA-07\nMD JEMA\\2007\\2-CHAT-JEMA-07\nMD JEMA\\2007\\3-POULPE-JEMA-07\nMD JEMA\\2007\\4-HIPPOCAMPE-JEMA-07\nMD JEMA\\2008\\1-CHIEN-JEMA-08\nMD JEMA\\2008\\2-CHAT-JEMA-08\nMD JEMA\\2008\\3-POULPE-JEMA-08\nMD JEMA\\2008\\4-HIPPOCAMPE-JEMA-08\nMD JEMA\\2009\\1-CHIEN-JEMA-09\nMD JEMA\\2009\\2-CHAT-JEMA-09\nMD JEMA\\2009\\3-POULPE-JEMA-09\nMD JEMA\\2009\\4-HIPPOCAMPE-JEMA-09\nMD JEMA\\2010\\1-CHIEN-JEMA-10\nMD JEMA\\2010\\2-CHAT-JEMA-10\nMD JEMA\\2010\\3-POULPE-JEMA-10\nMD JEMA\\2010\\4-HIPPOCAMPE-JEMA-10"}]
[{"$f":"IF(ROWS($C$20:C39)<Nb_Liste*Nb_Années*Nb_Animaux,IF(B40>=B39,A39,INDEX(Liste,MATCH(A39,Liste,0)+1)),\"\")","v":"JEMA"},{"$f":"IF(ROWS($C$20:C39)<Nb_Liste*Nb_Années*Nb_Animaux,(C40=INDEX(Animaux,1))*(1-Nb_Années*(B39=Max_Années))+B39,\"\")","v":2011},{"$f":"IF(ROWS($C$20:C39)<Nb_Liste*Nb_Années*Nb_Animaux,INDEX(Animaux,MOD(MATCH(C39,Animaux,0),Nb_Animaux)+1),\"\")","v":"1-CHIEN"},null,{"$f":"IF(ROWS($C$20:C39)<Nb_Liste*Nb_Années*Nb_Animaux,E39&CHAR(10)&\"MD \"&A40&\"\\\"&B40&\"\\\"&C40&\"-\"&A40&\"-\"&RIGHT(TEXT(B40,\"0000\"),2),\"\")","v":"CD C:\\Users\\jvdo\\Documents\\forum\\test\nMD JEMA\\2006\\1-CHIEN-JEMA-06\nMD JEMA\\2006\\2-CHAT-JEMA-06\nMD JEMA\\2006\\3-POULPE-JEMA-06\nMD JEMA\\2006\\4-HIPPOCAMPE-JEMA-06\nMD JEMA\\2007\\1-CHIEN-JEMA-07\nMD JEMA\\2007\\2-CHAT-JEMA-07\nMD JEMA\\2007\\3-POULPE-JEMA-07\nMD JEMA\\2007\\4-HIPPOCAMPE-JEMA-07\nMD JEMA\\2008\\1-CHIEN-JEMA-08\nMD JEMA\\2008\\2-CHAT-JEMA-08\nMD JEMA\\2008\\3-POULPE-JEMA-08\nMD JEMA\\2008\\4-HIPPOCAMPE-JEMA-08\nMD JEMA\\2009\\1-CHIEN-JEMA-09\nMD JEMA\\2009\\2-CHAT-JEMA-09\nMD JEMA\\2009\\3-POULPE-JEMA-09\nMD JEMA\\2009\\4-HIPPOCAMPE-JEMA-09\nMD JEMA\\2010\\1-CHIEN-JEMA-10\nMD JEMA\\2010\\2-CHAT-JEMA-10\nMD JEMA\\2010\\3-POULPE-JEMA-10\nMD JEMA\\2010\\4-HIPPOCAMPE-JEMA-10\nMD JEMA\\2011\\1-CHIEN-JEMA-11"}]
[{"$f":"IF(ROWS($C$20:C40)<Nb_Liste*Nb_Années*Nb_Animaux,IF(B41>=B40,A40,INDEX(Liste,MATCH(A40,Liste,0)+1)),\"\")","v":"JEMA"},{"$f":"IF(ROWS($C$20:C40)<Nb_Liste*Nb_Années*Nb_Animaux,(C41=INDEX(Animaux,1))*(1-Nb_Années*(B40=Max_Années))+B40,\"\")","v":2011},{"$f":"IF(ROWS($C$20:C40)<Nb_Liste*Nb_Années*Nb_Animaux,INDEX(Animaux,MOD(MATCH(C40,Animaux,0),Nb_Animaux)+1),\"\")","v":"2-CHAT"},null,{"$f":"IF(ROWS($C$20:C40)<Nb_Liste*Nb_Années*Nb_Animaux,E40&CHAR(10)&\"MD \"&A41&\"\\\"&B41&\"\\\"&C41&\"-\"&A41&\"-\"&RIGHT(TEXT(B41,\"0000\"),2),\"\")","v":"CD C:\\Users\\jvdo\\Documents\\forum\\test\nMD JEMA\\2006\\1-CHIEN-JEMA-06\nMD JEMA\\2006\\2-CHAT-JEMA-06\nMD JEMA\\2006\\3-POULPE-JEMA-06\nMD JEMA\\2006\\4-HIPPOCAMPE-JEMA-06\nMD JEMA\\2007\\1-CHIEN-JEMA-07\nMD JEMA\\2007\\2-CHAT-JEMA-07\nMD JEMA\\2007\\3-POULPE-JEMA-07\nMD JEMA\\2007\\4-HIPPOCAMPE-JEMA-07\nMD JEMA\\2008\\1-CHIEN-JEMA-08\nMD JEMA\\2008\\2-CHAT-JEMA-08\nMD JEMA\\2008\\3-POULPE-JEMA-08\nMD JEMA\\2008\\4-HIPPOCAMPE-JEMA-08\nMD JEMA\\2009\\1-CHIEN-JEMA-09\nMD JEMA\\2009\\2-CHAT-JEMA-09\nMD JEMA\\2009\\3-POULPE-JEMA-09\nMD JEMA\\2009\\4-HIPPOCAMPE-JEMA-09\nMD JEMA\\2010\\1-CHIEN-JEMA-10\nMD JEMA\\2010\\2-CHAT-JEMA-10\nMD JEMA\\2010\\3-POULPE-JEMA-10\nMD JEMA\\2010\\4-HIPPOCAMPE-JEMA-10\nMD JEMA\\2011\\1-CHIEN-JEMA-11\nMD JEMA\\2011\\2-CHAT-JEMA-11"}]
[{"$f":"IF(ROWS($C$20:C41)<Nb_Liste*Nb_Années*Nb_Animaux,IF(B42>=B41,A41,INDEX(Liste,MATCH(A41,Liste,0)+1)),\"\")","v":"JEMA"},{"$f":"IF(ROWS($C$20:C41)<Nb_Liste*Nb_Années*Nb_Animaux,(C42=INDEX(Animaux,1))*(1-Nb_Années*(B41=Max_Années))+B41,\"\")","v":2011},{"$f":"IF(ROWS($C$20:C41)<Nb_Liste*Nb_Années*Nb_Animaux,INDEX(Animaux,MOD(MATCH(C41,Animaux,0),Nb_Animaux)+1),\"\")","v":"3-POULPE"},null,{"$f":"IF(ROWS($C$20:C41)<Nb_Liste*Nb_Années*Nb_Animaux,E41&CHAR(10)&\"MD \"&A42&\"\\\"&B42&\"\\\"&C42&\"-\"&A42&\"-\"&RIGHT(TEXT(B42,\"0000\"),2),\"\")","v":"CD C:\\Users\\jvdo\\Documents\\forum\\test\nMD JEMA\\2006\\1-CHIEN-JEMA-06\nMD JEMA\\2006\\2-CHAT-JEMA-06\nMD JEMA\\2006\\3-POULPE-JEMA-06\nMD JEMA\\2006\\4-HIPPOCAMPE-JEMA-06\nMD JEMA\\2007\\1-CHIEN-JEMA-07\nMD JEMA\\2007\\2-CHAT-JEMA-07\nMD JEMA\\2007\\3-POULPE-JEMA-07\nMD JEMA\\2007\\4-HIPPOCAMPE-JEMA-07\nMD JEMA\\2008\\1-CHIEN-JEMA-08\nMD JEMA\\2008\\2-CHAT-JEMA-08\nMD JEMA\\2008\\3-POULPE-JEMA-08\nMD JEMA\\2008\\4-HIPPOCAMPE-JEMA-08\nMD JEMA\\2009\\1-CHIEN-JEMA-09\nMD JEMA\\2009\\2-CHAT-JEMA-09\nMD JEMA\\2009\\3-POULPE-JEMA-09\nMD JEMA\\2009\\4-HIPPOCAMPE-JEMA-09\nMD JEMA\\2010\\1-CHIEN-JEMA-10\nMD JEMA\\2010\\2-CHAT-JEMA-10\nMD JEMA\\2010\\3-POULPE-JEMA-10\nMD JEMA\\2010\\4-HIPPOCAMPE-JEMA-10\nMD JEMA\\2011\\1-CHIEN-JEMA-11\nMD JEMA\\2011\\2-CHAT-JEMA-11\nMD JEMA\\2011\\3-POULPE-JEMA-11"}]
[{"$f":"IF(ROWS($C$20:C42)<Nb_Liste*Nb_Années*Nb_Animaux,IF(B43>=B42,A42,INDEX(Liste,MATCH(A42,Liste,0)+1)),\"\")","v":"JEMA"},{"$f":"IF(ROWS($C$20:C42)<Nb_Liste*Nb_Années*Nb_Animaux,(C43=INDEX(Animaux,1))*(1-Nb_Années*(B42=Max_Années))+B42,\"\")","v":2011},{"$f":"IF(ROWS($C$20:C42)<Nb_Liste*Nb_Années*Nb_Animaux,INDEX(Animaux,MOD(MATCH(C42,Animaux,0),Nb_Animaux)+1),\"\")","v":"4-HIPPOCAMPE"},null,{"$f":"IF(ROWS($C$20:C42)<Nb_Liste*Nb_Années*Nb_Animaux,E42&CHAR(10)&\"MD \"&A43&\"\\\"&B43&\"\\\"&C43&\"-\"&A43&\"-\"&RIGHT(TEXT(B43,\"0000\"),2),\"\")","v":"CD C:\\Users\\jvdo\\Documents\\forum\\test\nMD JEMA\\2006\\1-CHIEN-JEMA-06\nMD JEMA\\2006\\2-CHAT-JEMA-06\nMD JEMA\\2006\\3-POULPE-JEMA-06\nMD JEMA\\2006\\4-HIPPOCAMPE-JEMA-06\nMD JEMA\\2007\\1-CHIEN-JEMA-07\nMD JEMA\\2007\\2-CHAT-JEMA-07\nMD JEMA\\2007\\3-POULPE-JEMA-07\nMD JEMA\\2007\\4-HIPPOCAMPE-JEMA-07\nMD JEMA\\2008\\1-CHIEN-JEMA-08\nMD JEMA\\2008\\2-CHAT-JEMA-08\nMD JEMA\\2008\\3-POULPE-JEMA-08\nMD JEMA\\2008\\4-HIPPOCAMPE-JEMA-08\nMD JEMA\\2009\\1-CHIEN-JEMA-09\nMD JEMA\\2009\\2-CHAT-JEMA-09\nMD JEMA\\2009\\3-POULPE-JEMA-09\nMD JEMA\\2009\\4-HIPPOCAMPE-JEMA-09\nMD JEMA\\2010\\1-CHIEN-JEMA-10\nMD JEMA\\2010\\2-CHAT-JEMA-10\nMD JEMA\\2010\\3-POULPE-JEMA-10\nMD JEMA\\2010\\4-HIPPOCAMPE-JEMA-10\nMD JEMA\\2011\\1-CHIEN-JEMA-11\nMD JEMA\\2011\\2-CHAT-JEMA-11\nMD JEMA\\2011\\3-POULPE-JEMA-11\nMD JEMA\\2011\\4-HIPPOCAMPE-JEMA-11"}]
[{"$f":"IF(ROWS($C$20:C43)<Nb_Liste*Nb_Années*Nb_Animaux,IF(B44>=B43,A43,INDEX(Liste,MATCH(A43,Liste,0)+1)),\"\")","v":"JEMA"},{"$f":"IF(ROWS($C$20:C43)<Nb_Liste*Nb_Années*Nb_Animaux,(C44=INDEX(Animaux,1))*(1-Nb_Années*(B43=Max_Années))+B43,\"\")","v":2012},{"$f":"IF(ROWS($C$20:C43)<Nb_Liste*Nb_Années*Nb_Animaux,INDEX(Animaux,MOD(MATCH(C43,Animaux,0),Nb_Animaux)+1),\"\")","v":"1-CHIEN"},null,{"$f":"IF(ROWS($C$20:C43)<Nb_Liste*Nb_Années*Nb_Animaux,E43&CHAR(10)&\"MD \"&A44&\"\\\"&B44&\"\\\"&C44&\"-\"&A44&\"-\"&RIGHT(TEXT(B44,\"0000\"),2),\"\")","v":"CD C:\\Users\\jvdo\\Documents\\forum\\test\nMD JEMA\\2006\\1-CHIEN-JEMA-06\nMD JEMA\\2006\\2-CHAT-JEMA-06\nMD JEMA\\2006\\3-POULPE-JEMA-06\nMD JEMA\\2006\\4-HIPPOCAMPE-JEMA-06\nMD JEMA\\2007\\1-CHIEN-JEMA-07\nMD JEMA\\2007\\2-CHAT-JEMA-07\nMD JEMA\\2007\\3-POULPE-JEMA-07\nMD JEMA\\2007\\4-HIPPOCAMPE-JEMA-07\nMD JEMA\\2008\\1-CHIEN-JEMA-08\nMD JEMA\\2008\\2-CHAT-JEMA-08\nMD JEMA\\2008\\3-POULPE-JEMA-08\nMD JEMA\\2008\\4-HIPPOCAMPE-JEMA-08\nMD JEMA\\2009\\1-CHIEN-JEMA-09\nMD JEMA\\2009\\2-CHAT-JEMA-09\nMD JEMA\\2009\\3-POULPE-JEMA-09\nMD JEMA\\2009\\4-HIPPOCAMPE-JEMA-09\nMD JEMA\\2010\\1-CHIEN-JEMA-10\nMD JEMA\\2010\\2-CHAT-JEMA-10\nMD JEMA\\2010\\3-POULPE-JEMA-10\nMD JEMA\\2010\\4-HIPPOCAMPE-JEMA-10\nMD JEMA\\2011\\1-CHIEN-JEMA-11\nMD JEMA\\2011\\2-CHAT-JEMA-11\nMD JEMA\\2011\\3-POULPE-JEMA-11\nMD JEMA\\2011\\4-HIPPOCAMPE-JEMA-11\nMD JEMA\\2012\\1-CHIEN-JEMA-12"}]
[{"$f":"IF(ROWS($C$20:C44)<Nb_Liste*Nb_Années*Nb_Animaux,IF(B45>=B44,A44,INDEX(Liste,MATCH(A44,Liste,0)+1)),\"\")","v":"JEMA"},{"$f":"IF(ROWS($C$20:C44)<Nb_Liste*Nb_Années*Nb_Animaux,(C45=INDEX(Animaux,1))*(1-Nb_Années*(B44=Max_Années))+B44,\"\")","v":2012},{"$f":"IF(ROWS($C$20:C44)<Nb_Liste*Nb_Années*Nb_Animaux,INDEX(Animaux,MOD(MATCH(C44,Animaux,0),Nb_Animaux)+1),\"\")","v":"2-CHAT"},null,{"$f":"IF(ROWS($C$20:C44)<Nb_Liste*Nb_Années*Nb_Animaux,E44&CHAR(10)&\"MD \"&A45&\"\\\"&B45&\"\\\"&C45&\"-\"&A45&\"-\"&RIGHT(TEXT(B45,\"0000\"),2),\"\")","v":"CD C:\\Users\\jvdo\\Documents\\forum\\test\nMD JEMA\\2006\\1-CHIEN-JEMA-06\nMD JEMA\\2006\\2-CHAT-JEMA-06\nMD JEMA\\2006\\3-POULPE-JEMA-06\nMD JEMA\\2006\\4-HIPPOCAMPE-JEMA-06\nMD JEMA\\2007\\1-CHIEN-JEMA-07\nMD JEMA\\2007\\2-CHAT-JEMA-07\nMD JEMA\\2007\\3-POULPE-JEMA-07\nMD JEMA\\2007\\4-HIPPOCAMPE-JEMA-07\nMD JEMA\\2008\\1-CHIEN-JEMA-08\nMD JEMA\\2008\\2-CHAT-JEMA-08\nMD JEMA\\2008\\3-POULPE-JEMA-08\nMD JEMA\\2008\\4-HIPPOCAMPE-JEMA-08\nMD JEMA\\2009\\1-CHIEN-JEMA-09\nMD JEMA\\2009\\2-CHAT-JEMA-09\nMD JEMA\\2009\\3-POULPE-JEMA-09\nMD JEMA\\2009\\4-HIPPOCAMPE-JEMA-09\nMD JEMA\\2010\\1-CHIEN-JEMA-10\nMD JEMA\\2010\\2-CHAT-JEMA-10\nMD JEMA\\2010\\3-POULPE-JEMA-10\nMD JEMA\\2010\\4-HIPPOCAMPE-JEMA-10\nMD JEMA\\2011\\1-CHIEN-JEMA-11\nMD JEMA\\2011\\2-CHAT-JEMA-11\nMD JEMA\\2011\\3-POULPE-JEMA-11\nMD JEMA\\2011\\4-HIPPOCAMPE-JEMA-11\nMD JEMA\\2012\\1-CHIEN-JEMA-12\nMD JEMA\\2012\\2-CHAT-JEMA-12"}]
[{"$f":"IF(ROWS($C$20:C45)<Nb_Liste*Nb_Années*Nb_Animaux,IF(B46>=B45,A45,INDEX(Liste,MATCH(A45,Liste,0)+1)),\"\")","v":"JEMA"},{"$f":"IF(ROWS($C$20:C45)<Nb_Liste*Nb_Années*Nb_Animaux,(C46=INDEX(Animaux,1))*(1-Nb_Années*(B45=Max_Années))+B45,\"\")","v":2012},{"$f":"IF(ROWS($C$20:C45)<Nb_Liste*Nb_Années*Nb_Animaux,INDEX(Animaux,MOD(MATCH(C45,Animaux,0),Nb_Animaux)+1),\"\")","v":"3-POULPE"},null,{"$f":"IF(ROWS($C$20:C45)<Nb_Liste*Nb_Années*Nb_Animaux,E45&CHAR(10)&\"MD \"&A46&\"\\\"&B46&\"\\\"&C46&\"-\"&A46&\"-\"&RIGHT(TEXT(B46,\"0000\"),2),\"\")","v":"CD C:\\Users\\jvdo\\Documents\\forum\\test\nMD JEMA\\2006\\1-CHIEN-JEMA-06\nMD JEMA\\2006\\2-CHAT-JEMA-06\nMD JEMA\\2006\\3-POULPE-JEMA-06\nMD JEMA\\2006\\4-HIPPOCAMPE-JEMA-06\nMD JEMA\\2007\\1-CHIEN-JEMA-07\nMD JEMA\\2007\\2-CHAT-JEMA-07\nMD JEMA\\2007\\3-POULPE-JEMA-07\nMD JEMA\\2007\\4-HIPPOCAMPE-JEMA-07\nMD JEMA\\2008\\1-CHIEN-JEMA-08\nMD JEMA\\2008\\2-CHAT-JEMA-08\nMD JEMA\\2008\\3-POULPE-JEMA-08\nMD JEMA\\2008\\4-HIPPOCAMPE-JEMA-08\nMD JEMA\\2009\\1-CHIEN-JEMA-09\nMD JEMA\\2009\\2-CHAT-JEMA-09\nMD JEMA\\2009\\3-POULPE-JEMA-09\nMD JEMA\\2009\\4-HIPPOCAMPE-JEMA-09\nMD JEMA\\2010\\1-CHIEN-JEMA-10\nMD JEMA\\2010\\2-CHAT-JEMA-10\nMD JEMA\\2010\\3-POULPE-JEMA-10\nMD JEMA\\2010\\4-HIPPOCAMPE-JEMA-10\nMD JEMA\\2011\\1-CHIEN-JEMA-11\nMD JEMA\\2011\\2-CHAT-JEMA-11\nMD JEMA\\2011\\3-POULPE-JEMA-11\nMD JEMA\\2011\\4-HIPPOCAMPE-JEMA-11\nMD JEMA\\2012\\1-CHIEN-JEMA-12\nMD JEMA\\2012\\2-CHAT-JEMA-12\nMD JEMA\\2012\\3-POULPE-JEMA-12"}]
[{"$f":"IF(ROWS($C$20:C46)<Nb_Liste*Nb_Années*Nb_Animaux,IF(B47>=B46,A46,INDEX(Liste,MATCH(A46,Liste,0)+1)),\"\")","v":"JEMA"},{"$f":"IF(ROWS($C$20:C46)<Nb_Liste*Nb_Années*Nb_Animaux,(C47=INDEX(Animaux,1))*(1-Nb_Années*(B46=Max_Années))+B46,\"\")","v":2012},{"$f":"IF(ROWS($C$20:C46)<Nb_Liste*Nb_Années*Nb_Animaux,INDEX(Animaux,MOD(MATCH(C46,Animaux,0),Nb_Animaux)+1),\"\")","v":"4-HIPPOCAMPE"},null,{"$f":"IF(ROWS($C$20:C46)<Nb_Liste*Nb_Années*Nb_Animaux,E46&CHAR(10)&\"MD \"&A47&\"\\\"&B47&\"\\\"&C47&\"-\"&A47&\"-\"&RIGHT(TEXT(B47,\"0000\"),2),\"\")","v":"CD C:\\Users\\jvdo\\Documents\\forum\\test\nMD JEMA\\2006\\1-CHIEN-JEMA-06\nMD JEMA\\2006\\2-CHAT-JEMA-06\nMD JEMA\\2006\\3-POULPE-JEMA-06\nMD JEMA\\2006\\4-HIPPOCAMPE-JEMA-06\nMD JEMA\\2007\\1-CHIEN-JEMA-07\nMD JEMA\\2007\\2-CHAT-JEMA-07\nMD JEMA\\2007\\3-POULPE-JEMA-07\nMD JEMA\\2007\\4-HIPPOCAMPE-JEMA-07\nMD JEMA\\2008\\1-CHIEN-JEMA-08\nMD JEMA\\2008\\2-CHAT-JEMA-08\nMD JEMA\\2008\\3-POULPE-JEMA-08\nMD JEMA\\2008\\4-HIPPOCAMPE-JEMA-08\nMD JEMA\\2009\\1-CHIEN-JEMA-09\nMD JEMA\\2009\\2-CHAT-JEMA-09\nMD JEMA\\2009\\3-POULPE-JEMA-09\nMD JEMA\\2009\\4-HIPPOCAMPE-JEMA-09\nMD JEMA\\2010\\1-CHIEN-JEMA-10\nMD JEMA\\2010\\2-CHAT-JEMA-10\nMD JEMA\\2010\\3-POULPE-JEMA-10\nMD JEMA\\2010\\4-HIPPOCAMPE-JEMA-10\nMD JEMA\\2011\\1-CHIEN-JEMA-11\nMD JEMA\\2011\\2-CHAT-JEMA-11\nMD JEMA\\2011\\3-POULPE-JEMA-11\nMD JEMA\\2011\\4-HIPPOCAMPE-JEMA-11\nMD JEMA\\2012\\1-CHIEN-JEMA-12\nMD JEMA\\2012\\2-CHAT-JEMA-12\nMD JEMA\\2012\\3-POULPE-JEMA-12\nMD JEMA\\2012\\4-HIPPOCAMPE-JEMA-12"}]
[{"$f":"IF(ROWS($C$20:C47)<Nb_Liste*Nb_Années*Nb_Animaux,IF(B48>=B47,A47,INDEX(Liste,MATCH(A47,Liste,0)+1)),\"\")","v":"NOEM"},{"$f":"IF(ROWS($C$20:C47)<Nb_Liste*Nb_Années*Nb_Animaux,(C48=INDEX(Animaux,1))*(1-Nb_Années*(B47=Max_Années))+B47,\"\")","v":2006},{"$f":"IF(ROWS($C$20:C47)<Nb_Liste*Nb_Années*Nb_Animaux,INDEX(Animaux,MOD(MATCH(C47,Animaux,0),Nb_Animaux)+1),\"\")","v":"1-CHIEN"},null,{"$f":"IF(ROWS($C$20:C47)<Nb_Liste*Nb_Années*Nb_Animaux,E47&CHAR(10)&\"MD \"&A48&\"\\\"&B48&\"\\\"&C48&\"-\"&A48&\"-\"&RIGHT(TEXT(B48,\"0000\"),2),\"\")","v":"CD C:\\Users\\jvdo\\Documents\\forum\\test\nMD JEMA\\2006\\1-CHIEN-JEMA-06\nMD JEMA\\2006\\2-CHAT-JEMA-06\nMD JEMA\\2006\\3-POULPE-JEMA-06\nMD JEMA\\2006\\4-HIPPOCAMPE-JEMA-06\nMD JEMA\\2007\\1-CHIEN-JEMA-07\nMD JEMA\\2007\\2-CHAT-JEMA-07\nMD JEMA\\2007\\3-POULPE-JEMA-07\nMD JEMA\\2007\\4-HIPPOCAMPE-JEMA-07\nMD JEMA\\2008\\1-CHIEN-JEMA-08\nMD JEMA\\2008\\2-CHAT-JEMA-08\nMD JEMA\\2008\\3-POULPE-JEMA-08\nMD JEMA\\2008\\4-HIPPOCAMPE-JEMA-08\nMD JEMA\\2009\\1-CHIEN-JEMA-09\nMD JEMA\\2009\\2-CHAT-JEMA-09\nMD JEMA\\2009\\3-POULPE-JEMA-09\nMD JEMA\\2009\\4-HIPPOCAMPE-JEMA-09\nMD JEMA\\2010\\1-CHIEN-JEMA-10\nMD JEMA\\2010\\2-CHAT-JEMA-10\nMD JEMA\\2010\\3-POULPE-JEMA-10\nMD JEMA\\2010\\4-HIPPOCAMPE-JEMA-10\nMD JEMA\\2011\\1-CHIEN-JEMA-11\nMD JEMA\\2011\\2-CHAT-JEMA-11\nMD JEMA\\2011\\3-POULPE-JEMA-11\nMD JEMA\\2011\\4-HIPPOCAMPE-JEMA-11\nMD JEMA\\2012\\1-CHIEN-JEMA-12\nMD JEMA\\2012\\2-CHAT-JEMA-12\nMD JEMA\\2012\\3-POULPE-JEMA-12\nMD JEMA\\2012\\4-HIPPOCAMPE-JEMA-12\nMD NOEM\\2006\\1-CHIEN-NOEM-06"}]
[{"$f":"IF(ROWS($C$20:C48)<Nb_Liste*Nb_Années*Nb_Animaux,IF(B49>=B48,A48,INDEX(Liste,MATCH(A48,Liste,0)+1)),\"\")","v":"NOEM"},{"$f":"IF(ROWS($C$20:C48)<Nb_Liste*Nb_Années*Nb_Animaux,(C49=INDEX(Animaux,1))*(1-Nb_Années*(B48=Max_Années))+B48,\"\")","v":2006},{"$f":"IF(ROWS($C$20:C48)<Nb_Liste*Nb_Années*Nb_Animaux,INDEX(Animaux,MOD(MATCH(C48,Animaux,0),Nb_Animaux)+1),\"\")","v":"2-CHAT"},null,{"$f":"IF(ROWS($C$20:C48)<Nb_Liste*Nb_Années*Nb_Animaux,E48&CHAR(10)&\"MD \"&A49&\"\\\"&B49&\"\\\"&C49&\"-\"&A49&\"-\"&RIGHT(TEXT(B49,\"0000\"),2),\"\")","v":"CD C:\\Users\\jvdo\\Documents\\forum\\test\nMD JEMA\\2006\\1-CHIEN-JEMA-06\nMD JEMA\\2006\\2-CHAT-JEMA-06\nMD JEMA\\2006\\3-POULPE-JEMA-06\nMD JEMA\\2006\\4-HIPPOCAMPE-JEMA-06\nMD JEMA\\2007\\1-CHIEN-JEMA-07\nMD JEMA\\2007\\2-CHAT-JEMA-07\nMD JEMA\\2007\\3-POULPE-JEMA-07\nMD JEMA\\2007\\4-HIPPOCAMPE-JEMA-07\nMD JEMA\\2008\\1-CHIEN-JEMA-08\nMD JEMA\\2008\\2-CHAT-JEMA-08\nMD JEMA\\2008\\3-POULPE-JEMA-08\nMD JEMA\\2008\\4-HIPPOCAMPE-JEMA-08\nMD JEMA\\2009\\1-CHIEN-JEMA-09\nMD JEMA\\2009\\2-CHAT-JEMA-09\nMD JEMA\\2009\\3-POULPE-JEMA-09\nMD JEMA\\2009\\4-HIPPOCAMPE-JEMA-09\nMD JEMA\\2010\\1-CHIEN-JEMA-10\nMD JEMA\\2010\\2-CHAT-JEMA-10\nMD JEMA\\2010\\3-POULPE-JEMA-10\nMD JEMA\\2010\\4-HIPPOCAMPE-JEMA-10\nMD JEMA\\2011\\1-CHIEN-JEMA-11\nMD JEMA\\2011\\2-CHAT-JEMA-11\nMD JEMA\\2011\\3-POULPE-JEMA-11\nMD JEMA\\2011\\4-HIPPOCAMPE-JEMA-11\nMD JEMA\\2012\\1-CHIEN-JEMA-12\nMD JEMA\\2012\\2-CHAT-JEMA-12\nMD JEMA\\2012\\3-POULPE-JEMA-12\nMD JEMA\\2012\\4-HIPPOCAMPE-JEMA-12\nMD NOEM\\2006\\1-CHIEN-NOEM-06\nMD NOEM\\2006\\2-CHAT-NOEM-06"}]
[{"$f":"IF(ROWS($C$20:C49)<Nb_Liste*Nb_Années*Nb_Animaux,IF(B50>=B49,A49,INDEX(Liste,MATCH(A49,Liste,0)+1)),\"\")","v":"NOEM"},{"$f":"IF(ROWS($C$20:C49)<Nb_Liste*Nb_Années*Nb_Animaux,(C50=INDEX(Animaux,1))*(1-Nb_Années*(B49=Max_Années))+B49,\"\")","v":2006},{"$f":"IF(ROWS($C$20:C49)<Nb_Liste*Nb_Années*Nb_Animaux,INDEX(Animaux,MOD(MATCH(C49,Animaux,0),Nb_Animaux)+1),\"\")","v":"3-POULPE"},null,{"$f":"IF(ROWS($C$20:C49)<Nb_Liste*Nb_Années*Nb_Animaux,E49&CHAR(10)&\"MD \"&A50&\"\\\"&B50&\"\\\"&C50&\"-\"&A50&\"-\"&RIGHT(TEXT(B50,\"0000\"),2),\"\")","v":"CD C:\\Users\\jvdo\\Documents\\forum\\test\nMD JEMA\\2006\\1-CHIEN-JEMA-06\nMD JEMA\\2006\\2-CHAT-JEMA-06\nMD JEMA\\2006\\3-POULPE-JEMA-06\nMD JEMA\\2006\\4-HIPPOCAMPE-JEMA-06\nMD JEMA\\2007\\1-CHIEN-JEMA-07\nMD JEMA\\2007\\2-CHAT-JEMA-07\nMD JEMA\\2007\\3-POULPE-JEMA-07\nMD JEMA\\2007\\4-HIPPOCAMPE-JEMA-07\nMD JEMA\\2008\\1-CHIEN-JEMA-08\nMD JEMA\\2008\\2-CHAT-JEMA-08\nMD JEMA\\2008\\3-POULPE-JEMA-08\nMD JEMA\\2008\\4-HIPPOCAMPE-JEMA-08\nMD JEMA\\2009\\1-CHIEN-JEMA-09\nMD JEMA\\2009\\2-CHAT-JEMA-09\nMD JEMA\\2009\\3-POULPE-JEMA-09\nMD JEMA\\2009\\4-HIPPOCAMPE-JEMA-09\nMD JEMA\\2010\\1-CHIEN-JEMA-10\nMD JEMA\\2010\\2-CHAT-JEMA-10\nMD JEMA\\2010\\3-POULPE-JEMA-10\nMD JEMA\\2010\\4-HIPPOCAMPE-JEMA-10\nMD JEMA\\2011\\1-CHIEN-JEMA-11\nMD JEMA\\2011\\2-CHAT-JEMA-11\nMD JEMA\\2011\\3-POULPE-JEMA-11\nMD JEMA\\2011\\4-HIPPOCAMPE-JEMA-11\nMD JEMA\\2012\\1-CHIEN-JEMA-12\nMD JEMA\\2012\\2-CHAT-JEMA-12\nMD JEMA\\2012\\3-POULPE-JEMA-12\nMD JEMA\\2012\\4-HIPPOCAMPE-JEMA-12\nMD NOEM\\2006\\1-CHIEN-NOEM-06\nMD NOEM\\2006\\2-CHAT-NOEM-06\nMD NOEM\\2006\\3-POULPE-NOEM-06"}]
[{"$f":"IF(ROWS($C$20:C50)<Nb_Liste*Nb_Années*Nb_Animaux,IF(B51>=B50,A50,INDEX(Liste,MATCH(A50,Liste,0)+1)),\"\")","v":"NOEM"},{"$f":"IF(ROWS($C$20:C50)<Nb_Liste*Nb_Années*Nb_Animaux,(C51=INDEX(Animaux,1))*(1-Nb_Années*(B50=Max_Années))+B50,\"\")","v":2006},{"$f":"IF(ROWS($C$20:C50)<Nb_Liste*Nb_Années*Nb_Animaux,INDEX(Animaux,MOD(MATCH(C50,Animaux,0),Nb_Animaux)+1),\"\")","v":"4-HIPPOCAMPE"},null,{"$f":"IF(ROWS($C$20:C50)<Nb_Liste*Nb_Années*Nb_Animaux,E50&CHAR(10)&\"MD \"&A51&\"\\\"&B51&\"\\\"&C51&\"-\"&A51&\"-\"&RIGHT(TEXT(B51,\"0000\"),2),\"\")","v":"CD C:\\Users\\jvdo\\Documents\\forum\\test\nMD JEMA\\2006\\1-CHIEN-JEMA-06\nMD JEMA\\2006\\2-CHAT-JEMA-06\nMD JEMA\\2006\\3-POULPE-JEMA-06\nMD JEMA\\2006\\4-HIPPOCAMPE-JEMA-06\nMD JEMA\\2007\\1-CHIEN-JEMA-07\nMD JEMA\\2007\\2-CHAT-JEMA-07\nMD JEMA\\2007\\3-POULPE-JEMA-07\nMD JEMA\\2007\\4-HIPPOCAMPE-JEMA-07\nMD JEMA\\2008\\1-CHIEN-JEMA-08\nMD JEMA\\2008\\2-CHAT-JEMA-08\nMD JEMA\\2008\\3-POULPE-JEMA-08\nMD JEMA\\2008\\4-HIPPOCAMPE-JEMA-08\nMD JEMA\\2009\\1-CHIEN-JEMA-09\nMD JEMA\\2009\\2-CHAT-JEMA-09\nMD JEMA\\2009\\3-POULPE-JEMA-09\nMD JEMA\\2009\\4-HIPPOCAMPE-JEMA-09\nMD JEMA\\2010\\1-CHIEN-JEMA-10\nMD JEMA\\2010\\2-CHAT-JEMA-10\nMD JEMA\\2010\\3-POULPE-JEMA-10\nMD JEMA\\2010\\4-HIPPOCAMPE-JEMA-10\nMD JEMA\\2011\\1-CHIEN-JEMA-11\nMD JEMA\\2011\\2-CHAT-JEMA-11\nMD JEMA\\2011\\3-POULPE-JEMA-11\nMD JEMA\\2011\\4-HIPPOCAMPE-JEMA-11\nMD JEMA\\2012\\1-CHIEN-JEMA-12\nMD JEMA\\2012\\2-CHAT-JEMA-12\nMD JEMA\\2012\\3-POULPE-JEMA-12\nMD JEMA\\2012\\4-HIPPOCAMPE-JEMA-12\nMD NOEM\\2006\\1-CHIEN-NOEM-06\nMD NOEM\\2006\\2-CHAT-NOEM-06\nMD NOEM\\2006\\3-POULPE-NOEM-06\nMD NOEM\\2006\\4-HIPPOCAMPE-NOEM-06"}]
[{"$f":"IF(ROWS($C$20:C51)<Nb_Liste*Nb_Années*Nb_Animaux,IF(B52>=B51,A51,INDEX(Liste,MATCH(A51,Liste,0)+1)),\"\")","v":"NOEM"},{"$f":"IF(ROWS($C$20:C51)<Nb_Liste*Nb_Années*Nb_Animaux,(C52=INDEX(Animaux,1))*(1-Nb_Années*(B51=Max_Années))+B51,\"\")","v":2007},{"$f":"IF(ROWS($C$20:C51)<Nb_Liste*Nb_Années*Nb_Animaux,INDEX(Animaux,MOD(MATCH(C51,Animaux,0),Nb_Animaux)+1),\"\")","v":"1-CHIEN"},null,{"$f":"IF(ROWS($C$20:C51)<Nb_Liste*Nb_Années*Nb_Animaux,E51&CHAR(10)&\"MD \"&A52&\"\\\"&B52&\"\\\"&C52&\"-\"&A52&\"-\"&RIGHT(TEXT(B52,\"0000\"),2),\"\")","v":"CD C:\\Users\\jvdo\\Documents\\forum\\test\nMD JEMA\\2006\\1-CHIEN-JEMA-06\nMD JEMA\\2006\\2-CHAT-JEMA-06\nMD JEMA\\2006\\3-POULPE-JEMA-06\nMD JEMA\\2006\\4-HIPPOCAMPE-JEMA-06\nMD JEMA\\2007\\1-CHIEN-JEMA-07\nMD JEMA\\2007\\2-CHAT-JEMA-07\nMD JEMA\\2007\\3-POULPE-JEMA-07\nMD JEMA\\2007\\4-HIPPOCAMPE-JEMA-07\nMD JEMA\\2008\\1-CHIEN-JEMA-08\nMD JEMA\\2008\\2-CHAT-JEMA-08\nMD JEMA\\2008\\3-POULPE-JEMA-08\nMD JEMA\\2008\\4-HIPPOCAMPE-JEMA-08\nMD JEMA\\2009\\1-CHIEN-JEMA-09\nMD JEMA\\2009\\2-CHAT-JEMA-09\nMD JEMA\\2009\\3-POULPE-JEMA-09\nMD JEMA\\2009\\4-HIPPOCAMPE-JEMA-09\nMD JEMA\\2010\\1-CHIEN-JEMA-10\nMD JEMA\\2010\\2-CHAT-JEMA-10\nMD JEMA\\2010\\3-POULPE-JEMA-10\nMD JEMA\\2010\\4-HIPPOCAMPE-JEMA-10\nMD JEMA\\2011\\1-CHIEN-JEMA-11\nMD JEMA\\2011\\2-CHAT-JEMA-11\nMD JEMA\\2011\\3-POULPE-JEMA-11\nMD JEMA\\2011\\4-HIPPOCAMPE-JEMA-11\nMD JEMA\\2012\\1-CHIEN-JEMA-12\nMD JEMA\\2012\\2-CHAT-JEMA-12\nMD JEMA\\2012\\3-POULPE-JEMA-12\nMD JEMA\\2012\\4-HIPPOCAMPE-JEMA-12\nMD NOEM\\2006\\1-CHIEN-NOEM-06\nMD NOEM\\2006\\2-CHAT-NOEM-06\nMD NOEM\\2006\\3-POULPE-NOEM-06\nMD NOEM\\2006\\4-HIPPOCAMPE-NOEM-06\nMD NOEM\\2007\\1-CHIEN-NOEM-07"}]
[{"$f":"IF(ROWS($C$20:C52)<Nb_Liste*Nb_Années*Nb_Animaux,IF(B53>=B52,A52,INDEX(Liste,MATCH(A52,Liste,0)+1)),\"\")","v":"NOEM"},{"$f":"IF(ROWS($C$20:C52)<Nb_Liste*Nb_Années*Nb_Animaux,(C53=INDEX(Animaux,1))*(1-Nb_Années*(B52=Max_Années))+B52,\"\")","v":2007},{"$f":"IF(ROWS($C$20:C52)<Nb_Liste*Nb_Années*Nb_Animaux,INDEX(Animaux,MOD(MATCH(C52,Animaux,0),Nb_Animaux)+1),\"\")","v":"2-CHAT"},null,{"$f":"IF(ROWS($C$20:C52)<Nb_Liste*Nb_Années*Nb_Animaux,E52&CHAR(10)&\"MD \"&A53&\"\\\"&B53&\"\\\"&C53&\"-\"&A53&\"-\"&RIGHT(TEXT(B53,\"0000\"),2),\"\")","v":"CD C:\\Users\\jvdo\\Documents\\forum\\test\nMD JEMA\\2006\\1-CHIEN-JEMA-06\nMD JEMA\\2006\\2-CHAT-JEMA-06\nMD JEMA\\2006\\3-POULPE-JEMA-06\nMD JEMA\\2006\\4-HIPPOCAMPE-JEMA-06\nMD JEMA\\2007\\1-CHIEN-JEMA-07\nMD JEMA\\2007\\2-CHAT-JEMA-07\nMD JEMA\\2007\\3-POULPE-JEMA-07\nMD JEMA\\2007\\4-HIPPOCAMPE-JEMA-07\nMD JEMA\\2008\\1-CHIEN-JEMA-08\nMD JEMA\\2008\\2-CHAT-JEMA-08\nMD JEMA\\2008\\3-POULPE-JEMA-08\nMD JEMA\\2008\\4-HIPPOCAMPE-JEMA-08\nMD JEMA\\2009\\1-CHIEN-JEMA-09\nMD JEMA\\2009\\2-CHAT-JEMA-09\nMD JEMA\\2009\\3-POULPE-JEMA-09\nMD JEMA\\2009\\4-HIPPOCAMPE-JEMA-09\nMD JEMA\\2010\\1-CHIEN-JEMA-10\nMD JEMA\\2010\\2-CHAT-JEMA-10\nMD JEMA\\2010\\3-POULPE-JEMA-10\nMD JEMA\\2010\\4-HIPPOCAMPE-JEMA-10\nMD JEMA\\2011\\1-CHIEN-JEMA-11\nMD JEMA\\2011\\2-CHAT-JEMA-11\nMD JEMA\\2011\\3-POULPE-JEMA-11\nMD JEMA\\2011\\4-HIPPOCAMPE-JEMA-11\nMD JEMA\\2012\\1-CHIEN-JEMA-12\nMD JEMA\\2012\\2-CHAT-JEMA-12\nMD JEMA\\2012\\3-POULPE-JEMA-12\nMD JEMA\\2012\\4-HIPPOCAMPE-JEMA-12\nMD NOEM\\2006\\1-CHIEN-NOEM-06\nMD NOEM\\2006\\2-CHAT-NOEM-06\nMD NOEM\\2006\\3-POULPE-NOEM-06\nMD NOEM\\2006\\4-HIPPOCAMPE-NOEM-06\nMD NOEM\\2007\\1-CHIEN-NOEM-07\nMD NOEM\\2007\\2-CHAT-NOEM-07"}]
[{"$f":"IF(ROWS($C$20:C53)<Nb_Liste*Nb_Années*Nb_Animaux,IF(B54>=B53,A53,INDEX(Liste,MATCH(A53,Liste,0)+1)),\"\")","v":"NOEM"},{"$f":"IF(ROWS($C$20:C53)<Nb_Liste*Nb_Années*Nb_Animaux,(C54=INDEX(Animaux,1))*(1-Nb_Années*(B53=Max_Années))+B53,\"\")","v":2007},{"$f":"IF(ROWS($C$20:C53)<Nb_Liste*Nb_Années*Nb_Animaux,INDEX(Animaux,MOD(MATCH(C53,Animaux,0),Nb_Animaux)+1),\"\")","v":"3-POULPE"},null,{"$f":"IF(ROWS($C$20:C53)<Nb_Liste*Nb_Années*Nb_Animaux,E53&CHAR(10)&\"MD \"&A54&\"\\\"&B54&\"\\\"&C54&\"-\"&A54&\"-\"&RIGHT(TEXT(B54,\"0000\"),2),\"\")","v":"CD C:\\Users\\jvdo\\Documents\\forum\\test\nMD JEMA\\2006\\1-CHIEN-JEMA-06\nMD JEMA\\2006\\2-CHAT-JEMA-06\nMD JEMA\\2006\\3-POULPE-JEMA-06\nMD JEMA\\2006\\4-HIPPOCAMPE-JEMA-06\nMD JEMA\\2007\\1-CHIEN-JEMA-07\nMD JEMA\\2007\\2-CHAT-JEMA-07\nMD JEMA\\2007\\3-POULPE-JEMA-07\nMD JEMA\\2007\\4-HIPPOCAMPE-JEMA-07\nMD JEMA\\2008\\1-CHIEN-JEMA-08\nMD JEMA\\2008\\2-CHAT-JEMA-08\nMD JEMA\\2008\\3-POULPE-JEMA-08\nMD JEMA\\2008\\4-HIPPOCAMPE-JEMA-08\nMD JEMA\\2009\\1-CHIEN-JEMA-09\nMD JEMA\\2009\\2-CHAT-JEMA-09\nMD JEMA\\2009\\3-POULPE-JEMA-09\nMD JEMA\\2009\\4-HIPPOCAMPE-JEMA-09\nMD JEMA\\2010\\1-CHIEN-JEMA-10\nMD JEMA\\2010\\2-CHAT-JEMA-10\nMD JEMA\\2010\\3-POULPE-JEMA-10\nMD JEMA\\2010\\4-HIPPOCAMPE-JEMA-10\nMD JEMA\\2011\\1-CHIEN-JEMA-11\nMD JEMA\\2011\\2-CHAT-JEMA-11\nMD JEMA\\2011\\3-POULPE-JEMA-11\nMD JEMA\\2011\\4-HIPPOCAMPE-JEMA-11\nMD JEMA\\2012\\1-CHIEN-JEMA-12\nMD JEMA\\2012\\2-CHAT-JEMA-12\nMD JEMA\\2012\\3-POULPE-JEMA-12\nMD JEMA\\2012\\4-HIPPOCAMPE-JEMA-12\nMD NOEM\\2006\\1-CHIEN-NOEM-06\nMD NOEM\\2006\\2-CHAT-NOEM-06\nMD NOEM\\2006\\3-POULPE-NOEM-06\nMD NOEM\\2006\\4-HIPPOCAMPE-NOEM-06\nMD NOEM\\2007\\1-CHIEN-NOEM-07\nMD NOEM\\2007\\2-CHAT-NOEM-07\nMD NOEM\\2007\\3-POULPE-NOEM-07"}]
[{"$f":"IF(ROWS($C$20:C54)<Nb_Liste*Nb_Années*Nb_Animaux,IF(B55>=B54,A54,INDEX(Liste,MATCH(A54,Liste,0)+1)),\"\")","v":"NOEM"},{"$f":"IF(ROWS($C$20:C54)<Nb_Liste*Nb_Années*Nb_Animaux,(C55=INDEX(Animaux,1))*(1-Nb_Années*(B54=Max_Années))+B54,\"\")","v":2007},{"$f":"IF(ROWS($C$20:C54)<Nb_Liste*Nb_Années*Nb_Animaux,INDEX(Animaux,MOD(MATCH(C54,Animaux,0),Nb_Animaux)+1),\"\")","v":"4-HIPPOCAMPE"},null,{"$f":"IF(ROWS($C$20:C54)<Nb_Liste*Nb_Années*Nb_Animaux,E54&CHAR(10)&\"MD \"&A55&\"\\\"&B55&\"\\\"&C55&\"-\"&A55&\"-\"&RIGHT(TEXT(B55,\"0000\"),2),\"\")","v":"CD C:\\Users\\jvdo\\Documents\\forum\\test\nMD JEMA\\2006\\1-CHIEN-JEMA-06\nMD JEMA\\2006\\2-CHAT-JEMA-06\nMD JEMA\\2006\\3-POULPE-JEMA-06\nMD JEMA\\2006\\4-HIPPOCAMPE-JEMA-06\nMD JEMA\\2007\\1-CHIEN-JEMA-07\nMD JEMA\\2007\\2-CHAT-JEMA-07\nMD JEMA\\2007\\3-POULPE-JEMA-07\nMD JEMA\\2007\\4-HIPPOCAMPE-JEMA-07\nMD JEMA\\2008\\1-CHIEN-JEMA-08\nMD JEMA\\2008\\2-CHAT-JEMA-08\nMD JEMA\\2008\\3-POULPE-JEMA-08\nMD JEMA\\2008\\4-HIPPOCAMPE-JEMA-08\nMD JEMA\\2009\\1-CHIEN-JEMA-09\nMD JEMA\\2009\\2-CHAT-JEMA-09\nMD JEMA\\2009\\3-POULPE-JEMA-09\nMD JEMA\\2009\\4-HIPPOCAMPE-JEMA-09\nMD JEMA\\2010\\1-CHIEN-JEMA-10\nMD JEMA\\2010\\2-CHAT-JEMA-10\nMD JEMA\\2010\\3-POULPE-JEMA-10\nMD JEMA\\2010\\4-HIPPOCAMPE-JEMA-10\nMD JEMA\\2011\\1-CHIEN-JEMA-11\nMD JEMA\\2011\\2-CHAT-JEMA-11\nMD JEMA\\2011\\3-POULPE-JEMA-11\nMD JEMA\\2011\\4-HIPPOCAMPE-JEMA-11\nMD JEMA\\2012\\1-CHIEN-JEMA-12\nMD JEMA\\2012\\2-CHAT-JEMA-12\nMD JEMA\\2012\\3-POULPE-JEMA-12\nMD JEMA\\2012\\4-HIPPOCAMPE-JEMA-12\nMD NOEM\\2006\\1-CHIEN-NOEM-06\nMD NOEM\\2006\\2-CHAT-NOEM-06\nMD NOEM\\2006\\3-POULPE-NOEM-06\nMD NOEM\\2006\\4-HIPPOCAMPE-NOEM-06\nMD NOEM\\2007\\1-CHIEN-NOEM-07\nMD NOEM\\2007\\2-CHAT-NOEM-07\nMD NOEM\\2007\\3-POULPE-NOEM-07\nMD NOEM\\2007\\4-HIPPOCAMPE-NOEM-07"}]
[{"$f":"IF(ROWS($C$20:C55)<Nb_Liste*Nb_Années*Nb_Animaux,IF(B56>=B55,A55,INDEX(Liste,MATCH(A55,Liste,0)+1)),\"\")","v":"NOEM"},{"$f":"IF(ROWS($C$20:C55)<Nb_Liste*Nb_Années*Nb_Animaux,(C56=INDEX(Animaux,1))*(1-Nb_Années*(B55=Max_Années))+B55,\"\")","v":2008},{"$f":"IF(ROWS($C$20:C55)<Nb_Liste*Nb_Années*Nb_Animaux,INDEX(Animaux,MOD(MATCH(C55,Animaux,0),Nb_Animaux)+1),\"\")","v":"1-CHIEN"},null,{"$f":"IF(ROWS($C$20:C55)<Nb_Liste*Nb_Années*Nb_Animaux,E55&CHAR(10)&\"MD \"&A56&\"\\\"&B56&\"\\\"&C56&\"-\"&A56&\"-\"&RIGHT(TEXT(B56,\"0000\"),2),\"\")","v":"CD C:\\Users\\jvdo\\Documents\\forum\\test\nMD JEMA\\2006\\1-CHIEN-JEMA-06\nMD JEMA\\2006\\2-CHAT-JEMA-06\nMD JEMA\\2006\\3-POULPE-JEMA-06\nMD JEMA\\2006\\4-HIPPOCAMPE-JEMA-06\nMD JEMA\\2007\\1-CHIEN-JEMA-07\nMD JEMA\\2007\\2-CHAT-JEMA-07\nMD JEMA\\2007\\3-POULPE-JEMA-07\nMD JEMA\\2007\\4-HIPPOCAMPE-JEMA-07\nMD JEMA\\2008\\1-CHIEN-JEMA-08\nMD JEMA\\2008\\2-CHAT-JEMA-08\nMD JEMA\\2008\\3-POULPE-JEMA-08\nMD JEMA\\2008\\4-HIPPOCAMPE-JEMA-08\nMD JEMA\\2009\\1-CHIEN-JEMA-09\nMD JEMA\\2009\\2-CHAT-JEMA-09\nMD JEMA\\2009\\3-POULPE-JEMA-09\nMD JEMA\\2009\\4-HIPPOCAMPE-JEMA-09\nMD JEMA\\2010\\1-CHIEN-JEMA-10\nMD JEMA\\2010\\2-CHAT-JEMA-10\nMD JEMA\\2010\\3-POULPE-JEMA-10\nMD JEMA\\2010\\4-HIPPOCAMPE-JEMA-10\nMD JEMA\\2011\\1-CHIEN-JEMA-11\nMD JEMA\\2011\\2-CHAT-JEMA-11\nMD JEMA\\2011\\3-POULPE-JEMA-11\nMD JEMA\\2011\\4-HIPPOCAMPE-JEMA-11\nMD JEMA\\2012\\1-CHIEN-JEMA-12\nMD JEMA\\2012\\2-CHAT-JEMA-12\nMD JEMA\\2012\\3-POULPE-JEMA-12\nMD JEMA\\2012\\4-HIPPOCAMPE-JEMA-12\nMD NOEM\\2006\\1-CHIEN-NOEM-06\nMD NOEM\\2006\\2-CHAT-NOEM-06\nMD NOEM\\2006\\3-POULPE-NOEM-06\nMD NOEM\\2006\\4-HIPPOCAMPE-NOEM-06\nMD NOEM\\2007\\1-CHIEN-NOEM-07\nMD NOEM\\2007\\2-CHAT-NOEM-07\nMD NOEM\\2007\\3-POULPE-NOEM-07\nMD NOEM\\2007\\4-HIPPOCAMPE-NOEM-07\nMD NOEM\\2008\\1-CHIEN-NOEM-08"}]
[{"$f":"IF(ROWS($C$20:C56)<Nb_Liste*Nb_Années*Nb_Animaux,IF(B57>=B56,A56,INDEX(Liste,MATCH(A56,Liste,0)+1)),\"\")","v":"NOEM"},{"$f":"IF(ROWS($C$20:C56)<Nb_Liste*Nb_Années*Nb_Animaux,(C57=INDEX(Animaux,1))*(1-Nb_Années*(B56=Max_Années))+B56,\"\")","v":2008},{"$f":"IF(ROWS($C$20:C56)<Nb_Liste*Nb_Années*Nb_Animaux,INDEX(Animaux,MOD(MATCH(C56,Animaux,0),Nb_Animaux)+1),\"\")","v":"2-CHAT"},null,{"$f":"IF(ROWS($C$20:C56)<Nb_Liste*Nb_Années*Nb_Animaux,E56&CHAR(10)&\"MD \"&A57&\"\\\"&B57&\"\\\"&C57&\"-\"&A57&\"-\"&RIGHT(TEXT(B57,\"0000\"),2),\"\")","v":"CD C:\\Users\\jvdo\\Documents\\forum\\test\nMD JEMA\\2006\\1-CHIEN-JEMA-06\nMD JEMA\\2006\\2-CHAT-JEMA-06\nMD JEMA\\2006\\3-POULPE-JEMA-06\nMD JEMA\\2006\\4-HIPPOCAMPE-JEMA-06\nMD JEMA\\2007\\1-CHIEN-JEMA-07\nMD JEMA\\2007\\2-CHAT-JEMA-07\nMD JEMA\\2007\\3-POULPE-JEMA-07\nMD JEMA\\2007\\4-HIPPOCAMPE-JEMA-07\nMD JEMA\\2008\\1-CHIEN-JEMA-08\nMD JEMA\\2008\\2-CHAT-JEMA-08\nMD JEMA\\2008\\3-POULPE-JEMA-08\nMD JEMA\\2008\\4-HIPPOCAMPE-JEMA-08\nMD JEMA\\2009\\1-CHIEN-JEMA-09\nMD JEMA\\2009\\2-CHAT-JEMA-09\nMD JEMA\\2009\\3-POULPE-JEMA-09\nMD JEMA\\2009\\4-HIPPOCAMPE-JEMA-09\nMD JEMA\\2010\\1-CHIEN-JEMA-10\nMD JEMA\\2010\\2-CHAT-JEMA-10\nMD JEMA\\2010\\3-POULPE-JEMA-10\nMD JEMA\\2010\\4-HIPPOCAMPE-JEMA-10\nMD JEMA\\2011\\1-CHIEN-JEMA-11\nMD JEMA\\2011\\2-CHAT-JEMA-11\nMD JEMA\\2011\\3-POULPE-JEMA-11\nMD JEMA\\2011\\4-HIPPOCAMPE-JEMA-11\nMD JEMA\\2012\\1-CHIEN-JEMA-12\nMD JEMA\\2012\\2-CHAT-JEMA-12\nMD JEMA\\2012\\3-POULPE-JEMA-12\nMD JEMA\\2012\\4-HIPPOCAMPE-JEMA-12\nMD NOEM\\2006\\1-CHIEN-NOEM-06\nMD NOEM\\2006\\2-CHAT-NOEM-06\nMD NOEM\\2006\\3-POULPE-NOEM-06\nMD NOEM\\2006\\4-HIPPOCAMPE-NOEM-06\nMD NOEM\\2007\\1-CHIEN-NOEM-07\nMD NOEM\\2007\\2-CHAT-NOEM-07\nMD NOEM\\2007\\3-POULPE-NOEM-07\nMD NOEM\\2007\\4-HIPPOCAMPE-NOEM-07\nMD NOEM\\2008\\1-CHIEN-NOEM-08\nMD NOEM\\2008\\2-CHAT-NOEM-08"}]
[{"$f":"IF(ROWS($C$20:C57)<Nb_Liste*Nb_Années*Nb_Animaux,IF(B58>=B57,A57,INDEX(Liste,MATCH(A57,Liste,0)+1)),\"\")","v":"NOEM"},{"$f":"IF(ROWS($C$20:C57)<Nb_Liste*Nb_Années*Nb_Animaux,(C58=INDEX(Animaux,1))*(1-Nb_Années*(B57=Max_Années))+B57,\"\")","v":2008},{"$f":"IF(ROWS($C$20:C57)<Nb_Liste*Nb_Années*Nb_Animaux,INDEX(Animaux,MOD(MATCH(C57,Animaux,0),Nb_Animaux)+1),\"\")","v":"3-POULPE"},null,{"$f":"IF(ROWS($C$20:C57)<Nb_Liste*Nb_Années*Nb_Animaux,E57&CHAR(10)&\"MD \"&A58&\"\\\"&B58&\"\\\"&C58&\"-\"&A58&\"-\"&RIGHT(TEXT(B58,\"0000\"),2),\"\")","v":"CD C:\\Users\\jvdo\\Documents\\forum\\test\nMD JEMA\\2006\\1-CHIEN-JEMA-06\nMD JEMA\\2006\\2-CHAT-JEMA-06\nMD JEMA\\2006\\3-POULPE-JEMA-06\nMD JEMA\\2006\\4-HIPPOCAMPE-JEMA-06\nMD JEMA\\2007\\1-CHIEN-JEMA-07\nMD JEMA\\2007\\2-CHAT-JEMA-07\nMD JEMA\\2007\\3-POULPE-JEMA-07\nMD JEMA\\2007\\4-HIPPOCAMPE-JEMA-07\nMD JEMA\\2008\\1-CHIEN-JEMA-08\nMD JEMA\\2008\\2-CHAT-JEMA-08\nMD JEMA\\2008\\3-POULPE-JEMA-08\nMD JEMA\\2008\\4-HIPPOCAMPE-JEMA-08\nMD JEMA\\2009\\1-CHIEN-JEMA-09\nMD JEMA\\2009\\2-CHAT-JEMA-09\nMD JEMA\\2009\\3-POULPE-JEMA-09\nMD JEMA\\2009\\4-HIPPOCAMPE-JEMA-09\nMD JEMA\\2010\\1-CHIEN-JEMA-10\nMD JEMA\\2010\\2-CHAT-JEMA-10\nMD JEMA\\2010\\3-POULPE-JEMA-10\nMD JEMA\\2010\\4-HIPPOCAMPE-JEMA-10\nMD JEMA\\2011\\1-CHIEN-JEMA-11\nMD JEMA\\2011\\2-CHAT-JEMA-11\nMD JEMA\\2011\\3-POULPE-JEMA-11\nMD JEMA\\2011\\4-HIPPOCAMPE-JEMA-11\nMD JEMA\\2012\\1-CHIEN-JEMA-12\nMD JEMA\\2012\\2-CHAT-JEMA-12\nMD JEMA\\2012\\3-POULPE-JEMA-12\nMD JEMA\\2012\\4-HIPPOCAMPE-JEMA-12\nMD NOEM\\2006\\1-CHIEN-NOEM-06\nMD NOEM\\2006\\2-CHAT-NOEM-06\nMD NOEM\\2006\\3-POULPE-NOEM-06\nMD NOEM\\2006\\4-HIPPOCAMPE-NOEM-06\nMD NOEM\\2007\\1-CHIEN-NOEM-07\nMD NOEM\\2007\\2-CHAT-NOEM-07\nMD NOEM\\2007\\3-POULPE-NOEM-07\nMD NOEM\\2007\\4-HIPPOCAMPE-NOEM-07\nMD NOEM\\2008\\1-CHIEN-NOEM-08\nMD NOEM\\2008\\2-CHAT-NOEM-08\nMD NOEM\\2008\\3-POULPE-NOEM-08"}]
[{"$f":"IF(ROWS($C$20:C58)<Nb_Liste*Nb_Années*Nb_Animaux,IF(B59>=B58,A58,INDEX(Liste,MATCH(A58,Liste,0)+1)),\"\")","v":"NOEM"},{"$f":"IF(ROWS($C$20:C58)<Nb_Liste*Nb_Années*Nb_Animaux,(C59=INDEX(Animaux,1))*(1-Nb_Années*(B58=Max_Années))+B58,\"\")","v":2008},{"$f":"IF(ROWS($C$20:C58)<Nb_Liste*Nb_Années*Nb_Animaux,INDEX(Animaux,MOD(MATCH(C58,Animaux,0),Nb_Animaux)+1),\"\")","v":"4-HIPPOCAMPE"},null,{"$f":"IF(ROWS($C$20:C58)<Nb_Liste*Nb_Années*Nb_Animaux,E58&CHAR(10)&\"MD \"&A59&\"\\\"&B59&\"\\\"&C59&\"-\"&A59&\"-\"&RIGHT(TEXT(B59,\"0000\"),2),\"\")","v":"CD C:\\Users\\jvdo\\Documents\\forum\\test\nMD JEMA\\2006\\1-CHIEN-JEMA-06\nMD JEMA\\2006\\2-CHAT-JEMA-06\nMD JEMA\\2006\\3-POULPE-JEMA-06\nMD JEMA\\2006\\4-HIPPOCAMPE-JEMA-06\nMD JEMA\\2007\\1-CHIEN-JEMA-07\nMD JEMA\\2007\\2-CHAT-JEMA-07\nMD JEMA\\2007\\3-POULPE-JEMA-07\nMD JEMA\\2007\\4-HIPPOCAMPE-JEMA-07\nMD JEMA\\2008\\1-CHIEN-JEMA-08\nMD JEMA\\2008\\2-CHAT-JEMA-08\nMD JEMA\\2008\\3-POULPE-JEMA-08\nMD JEMA\\2008\\4-HIPPOCAMPE-JEMA-08\nMD JEMA\\2009\\1-CHIEN-JEMA-09\nMD JEMA\\2009\\2-CHAT-JEMA-09\nMD JEMA\\2009\\3-POULPE-JEMA-09\nMD JEMA\\2009\\4-HIPPOCAMPE-JEMA-09\nMD JEMA\\2010\\1-CHIEN-JEMA-10\nMD JEMA\\2010\\2-CHAT-JEMA-10\nMD JEMA\\2010\\3-POULPE-JEMA-10\nMD JEMA\\2010\\4-HIPPOCAMPE-JEMA-10\nMD JEMA\\2011\\1-CHIEN-JEMA-11\nMD JEMA\\2011\\2-CHAT-JEMA-11\nMD JEMA\\2011\\3-POULPE-JEMA-11\nMD JEMA\\2011\\4-HIPPOCAMPE-JEMA-11\nMD JEMA\\2012\\1-CHIEN-JEMA-12\nMD JEMA\\2012\\2-CHAT-JEMA-12\nMD JEMA\\2012\\3-POULPE-JEMA-12\nMD JEMA\\2012\\4-HIPPOCAMPE-JEMA-12\nMD NOEM\\2006\\1-CHIEN-NOEM-06\nMD NOEM\\2006\\2-CHAT-NOEM-06\nMD NOEM\\2006\\3-POULPE-NOEM-06\nMD NOEM\\2006\\4-HIPPOCAMPE-NOEM-06\nMD NOEM\\2007\\1-CHIEN-NOEM-07\nMD NOEM\\2007\\2-CHAT-NOEM-07\nMD NOEM\\2007\\3-POULPE-NOEM-07\nMD NOEM\\2007\\4-HIPPOCAMPE-NOEM-07\nMD NOEM\\2008\\1-CHIEN-NOEM-08\nMD NOEM\\2008\\2-CHAT-NOEM-08\nMD NOEM\\2008\\3-POULPE-NOEM-08\nMD NOEM\\2008\\4-HIPPOCAMPE-NOEM-08"}]
[{"$f":"IF(ROWS($C$20:C59)<Nb_Liste*Nb_Années*Nb_Animaux,IF(B60>=B59,A59,INDEX(Liste,MATCH(A59,Liste,0)+1)),\"\")","v":"NOEM"},{"$f":"IF(ROWS($C$20:C59)<Nb_Liste*Nb_Années*Nb_Animaux,(C60=INDEX(Animaux,1))*(1-Nb_Années*(B59=Max_Années))+B59,\"\")","v":2009},{"$f":"IF(ROWS($C$20:C59)<Nb_Liste*Nb_Années*Nb_Animaux,INDEX(Animaux,MOD(MATCH(C59,Animaux,0),Nb_Animaux)+1),\"\")","v":"1-CHIEN"},null,{"$f":"IF(ROWS($C$20:C59)<Nb_Liste*Nb_Années*Nb_Animaux,E59&CHAR(10)&\"MD \"&A60&\"\\\"&B60&\"\\\"&C60&\"-\"&A60&\"-\"&RIGHT(TEXT(B60,\"0000\"),2),\"\")","v":"CD C:\\Users\\jvdo\\Documents\\forum\\test\nMD JEMA\\2006\\1-CHIEN-JEMA-06\nMD JEMA\\2006\\2-CHAT-JEMA-06\nMD JEMA\\2006\\3-POULPE-JEMA-06\nMD JEMA\\2006\\4-HIPPOCAMPE-JEMA-06\nMD JEMA\\2007\\1-CHIEN-JEMA-07\nMD JEMA\\2007\\2-CHAT-JEMA-07\nMD JEMA\\2007\\3-POULPE-JEMA-07\nMD JEMA\\2007\\4-HIPPOCAMPE-JEMA-07\nMD JEMA\\2008\\1-CHIEN-JEMA-08\nMD JEMA\\2008\\2-CHAT-JEMA-08\nMD JEMA\\2008\\3-POULPE-JEMA-08\nMD JEMA\\2008\\4-HIPPOCAMPE-JEMA-08\nMD JEMA\\2009\\1-CHIEN-JEMA-09\nMD JEMA\\2009\\2-CHAT-JEMA-09\nMD JEMA\\2009\\3-POULPE-JEMA-09\nMD JEMA\\2009\\4-HIPPOCAMPE-JEMA-09\nMD JEMA\\2010\\1-CHIEN-JEMA-10\nMD JEMA\\2010\\2-CHAT-JEMA-10\nMD JEMA\\2010\\3-POULPE-JEMA-10\nMD JEMA\\2010\\4-HIPPOCAMPE-JEMA-10\nMD JEMA\\2011\\1-CHIEN-JEMA-11\nMD JEMA\\2011\\2-CHAT-JEMA-11\nMD JEMA\\2011\\3-POULPE-JEMA-11\nMD JEMA\\2011\\4-HIPPOCAMPE-JEMA-11\nMD JEMA\\2012\\1-CHIEN-JEMA-12\nMD JEMA\\2012\\2-CHAT-JEMA-12\nMD JEMA\\2012\\3-POULPE-JEMA-12\nMD JEMA\\2012\\4-HIPPOCAMPE-JEMA-12\nMD NOEM\\2006\\1-CHIEN-NOEM-06\nMD NOEM\\2006\\2-CHAT-NOEM-06\nMD NOEM\\2006\\3-POULPE-NOEM-06\nMD NOEM\\2006\\4-HIPPOCAMPE-NOEM-06\nMD NOEM\\2007\\1-CHIEN-NOEM-07\nMD NOEM\\2007\\2-CHAT-NOEM-07\nMD NOEM\\2007\\3-POULPE-NOEM-07\nMD NOEM\\2007\\4-HIPPOCAMPE-NOEM-07\nMD NOEM\\2008\\1-CHIEN-NOEM-08\nMD NOEM\\2008\\2-CHAT-NOEM-08\nMD NOEM\\2008\\3-POULPE-NOEM-08\nMD NOEM\\2008\\4-HIPPOCAMPE-NOEM-08\nMD NOEM\\2009\\1-CHIEN-NOEM-09"}]
[{"$f":"IF(ROWS($C$20:C60)<Nb_Liste*Nb_Années*Nb_Animaux,IF(B61>=B60,A60,INDEX(Liste,MATCH(A60,Liste,0)+1)),\"\")","v":"NOEM"},{"$f":"IF(ROWS($C$20:C60)<Nb_Liste*Nb_Années*Nb_Animaux,(C61=INDEX(Animaux,1))*(1-Nb_Années*(B60=Max_Années))+B60,\"\")","v":2009},{"$f":"IF(ROWS($C$20:C60)<Nb_Liste*Nb_Années*Nb_Animaux,INDEX(Animaux,MOD(MATCH(C60,Animaux,0),Nb_Animaux)+1),\"\")","v":"2-CHAT"},null,{"$f":"IF(ROWS($C$20:C60)<Nb_Liste*Nb_Années*Nb_Animaux,E60&CHAR(10)&\"MD \"&A61&\"\\\"&B61&\"\\\"&C61&\"-\"&A61&\"-\"&RIGHT(TEXT(B61,\"0000\"),2),\"\")","v":"CD C:\\Users\\jvdo\\Documents\\forum\\test\nMD JEMA\\2006\\1-CHIEN-JEMA-06\nMD JEMA\\2006\\2-CHAT-JEMA-06\nMD JEMA\\2006\\3-POULPE-JEMA-06\nMD JEMA\\2006\\4-HIPPOCAMPE-JEMA-06\nMD JEMA\\2007\\1-CHIEN-JEMA-07\nMD JEMA\\2007\\2-CHAT-JEMA-07\nMD JEMA\\2007\\3-POULPE-JEMA-07\nMD JEMA\\2007\\4-HIPPOCAMPE-JEMA-07\nMD JEMA\\2008\\1-CHIEN-JEMA-08\nMD JEMA\\2008\\2-CHAT-JEMA-08\nMD JEMA\\2008\\3-POULPE-JEMA-08\nMD JEMA\\2008\\4-HIPPOCAMPE-JEMA-08\nMD JEMA\\2009\\1-CHIEN-JEMA-09\nMD JEMA\\2009\\2-CHAT-JEMA-09\nMD JEMA\\2009\\3-POULPE-JEMA-09\nMD JEMA\\2009\\4-HIPPOCAMPE-JEMA-09\nMD JEMA\\2010\\1-CHIEN-JEMA-10\nMD JEMA\\2010\\2-CHAT-JEMA-10\nMD JEMA\\2010\\3-POULPE-JEMA-10\nMD JEMA\\2010\\4-HIPPOCAMPE-JEMA-10\nMD JEMA\\2011\\1-CHIEN-JEMA-11\nMD JEMA\\2011\\2-CHAT-JEMA-11\nMD JEMA\\2011\\3-POULPE-JEMA-11\nMD JEMA\\2011\\4-HIPPOCAMPE-JEMA-11\nMD JEMA\\2012\\1-CHIEN-JEMA-12\nMD JEMA\\2012\\2-CHAT-JEMA-12\nMD JEMA\\2012\\3-POULPE-JEMA-12\nMD JEMA\\2012\\4-HIPPOCAMPE-JEMA-12\nMD NOEM\\2006\\1-CHIEN-NOEM-06\nMD NOEM\\2006\\2-CHAT-NOEM-06\nMD NOEM\\2006\\3-POULPE-NOEM-06\nMD NOEM\\2006\\4-HIPPOCAMPE-NOEM-06\nMD NOEM\\2007\\1-CHIEN-NOEM-07\nMD NOEM\\2007\\2-CHAT-NOEM-07\nMD NOEM\\2007\\3-POULPE-NOEM-07\nMD NOEM\\2007\\4-HIPPOCAMPE-NOEM-07\nMD NOEM\\2008\\1-CHIEN-NOEM-08\nMD NOEM\\2008\\2-CHAT-NOEM-08\nMD NOEM\\2008\\3-POULPE-NOEM-08\nMD NOEM\\2008\\4-HIPPOCAMPE-NOEM-08\nMD NOEM\\2009\\1-CHIEN-NOEM-09\nMD NOEM\\2009\\2-CHAT-NOEM-09"}]
[{"$f":"IF(ROWS($C$20:C61)<Nb_Liste*Nb_Années*Nb_Animaux,IF(B62>=B61,A61,INDEX(Liste,MATCH(A61,Liste,0)+1)),\"\")","v":"NOEM"},{"$f":"IF(ROWS($C$20:C61)<Nb_Liste*Nb_Années*Nb_Animaux,(C62=INDEX(Animaux,1))*(1-Nb_Années*(B61=Max_Années))+B61,\"\")","v":2009},{"$f":"IF(ROWS($C$20:C61)<Nb_Liste*Nb_Années*Nb_Animaux,INDEX(Animaux,MOD(MATCH(C61,Animaux,0),Nb_Animaux)+1),\"\")","v":"3-POULPE"},null,{"$f":"IF(ROWS($C$20:C61)<Nb_Liste*Nb_Années*Nb_Animaux,E61&CHAR(10)&\"MD \"&A62&\"\\\"&B62&\"\\\"&C62&\"-\"&A62&\"-\"&RIGHT(TEXT(B62,\"0000\"),2),\"\")","v":"CD C:\\Users\\jvdo\\Documents\\forum\\test\nMD JEMA\\2006\\1-CHIEN-JEMA-06\nMD JEMA\\2006\\2-CHAT-JEMA-06\nMD JEMA\\2006\\3-POULPE-JEMA-06\nMD JEMA\\2006\\4-HIPPOCAMPE-JEMA-06\nMD JEMA\\2007\\1-CHIEN-JEMA-07\nMD JEMA\\2007\\2-CHAT-JEMA-07\nMD JEMA\\2007\\3-POULPE-JEMA-07\nMD JEMA\\2007\\4-HIPPOCAMPE-JEMA-07\nMD JEMA\\2008\\1-CHIEN-JEMA-08\nMD JEMA\\2008\\2-CHAT-JEMA-08\nMD JEMA\\2008\\3-POULPE-JEMA-08\nMD JEMA\\2008\\4-HIPPOCAMPE-JEMA-08\nMD JEMA\\2009\\1-CHIEN-JEMA-09\nMD JEMA\\2009\\2-CHAT-JEMA-09\nMD JEMA\\2009\\3-POULPE-JEMA-09\nMD JEMA\\2009\\4-HIPPOCAMPE-JEMA-09\nMD JEMA\\2010\\1-CHIEN-JEMA-10\nMD JEMA\\2010\\2-CHAT-JEMA-10\nMD JEMA\\2010\\3-POULPE-JEMA-10\nMD JEMA\\2010\\4-HIPPOCAMPE-JEMA-10\nMD JEMA\\2011\\1-CHIEN-JEMA-11\nMD JEMA\\2011\\2-CHAT-JEMA-11\nMD JEMA\\2011\\3-POULPE-JEMA-11\nMD JEMA\\2011\\4-HIPPOCAMPE-JEMA-11\nMD JEMA\\2012\\1-CHIEN-JEMA-12\nMD JEMA\\2012\\2-CHAT-JEMA-12\nMD JEMA\\2012\\3-POULPE-JEMA-12\nMD JEMA\\2012\\4-HIPPOCAMPE-JEMA-12\nMD NOEM\\2006\\1-CHIEN-NOEM-06\nMD NOEM\\2006\\2-CHAT-NOEM-06\nMD NOEM\\2006\\3-POULPE-NOEM-06\nMD NOEM\\2006\\4-HIPPOCAMPE-NOEM-06\nMD NOEM\\2007\\1-CHIEN-NOEM-07\nMD NOEM\\2007\\2-CHAT-NOEM-07\nMD NOEM\\2007\\3-POULPE-NOEM-07\nMD NOEM\\2007\\4-HIPPOCAMPE-NOEM-07\nMD NOEM\\2008\\1-CHIEN-NOEM-08\nMD NOEM\\2008\\2-CHAT-NOEM-08\nMD NOEM\\2008\\3-POULPE-NOEM-08\nMD NOEM\\2008\\4-HIPPOCAMPE-NOEM-08\nMD NOEM\\2009\\1-CHIEN-NOEM-09\nMD NOEM\\2009\\2-CHAT-NOEM-09\nMD NOEM\\2009\\3-POULPE-NOEM-09"}]
[{"$f":"IF(ROWS($C$20:C62)<Nb_Liste*Nb_Années*Nb_Animaux,IF(B63>=B62,A62,INDEX(Liste,MATCH(A62,Liste,0)+1)),\"\")","v":"NOEM"},{"$f":"IF(ROWS($C$20:C62)<Nb_Liste*Nb_Années*Nb_Animaux,(C63=INDEX(Animaux,1))*(1-Nb_Années*(B62=Max_Années))+B62,\"\")","v":2009},{"$f":"IF(ROWS($C$20:C62)<Nb_Liste*Nb_Années*Nb_Animaux,INDEX(Animaux,MOD(MATCH(C62,Animaux,0),Nb_Animaux)+1),\"\")","v":"4-HIPPOCAMPE"},null,{"$f":"IF(ROWS($C$20:C62)<Nb_Liste*Nb_Années*Nb_Animaux,E62&CHAR(10)&\"MD \"&A63&\"\\\"&B63&\"\\\"&C63&\"-\"&A63&\"-\"&RIGHT(TEXT(B63,\"0000\"),2),\"\")","v":"CD C:\\Users\\jvdo\\Documents\\forum\\test\nMD JEMA\\2006\\1-CHIEN-JEMA-06\nMD JEMA\\2006\\2-CHAT-JEMA-06\nMD JEMA\\2006\\3-POULPE-JEMA-06\nMD JEMA\\2006\\4-HIPPOCAMPE-JEMA-06\nMD JEMA\\2007\\1-CHIEN-JEMA-07\nMD JEMA\\2007\\2-CHAT-JEMA-07\nMD JEMA\\2007\\3-POULPE-JEMA-07\nMD JEMA\\2007\\4-HIPPOCAMPE-JEMA-07\nMD JEMA\\2008\\1-CHIEN-JEMA-08\nMD JEMA\\2008\\2-CHAT-JEMA-08\nMD JEMA\\2008\\3-POULPE-JEMA-08\nMD JEMA\\2008\\4-HIPPOCAMPE-JEMA-08\nMD JEMA\\2009\\1-CHIEN-JEMA-09\nMD JEMA\\2009\\2-CHAT-JEMA-09\nMD JEMA\\2009\\3-POULPE-JEMA-09\nMD JEMA\\2009\\4-HIPPOCAMPE-JEMA-09\nMD JEMA\\2010\\1-CHIEN-JEMA-10\nMD JEMA\\2010\\2-CHAT-JEMA-10\nMD JEMA\\2010\\3-POULPE-JEMA-10\nMD JEMA\\2010\\4-HIPPOCAMPE-JEMA-10\nMD JEMA\\2011\\1-CHIEN-JEMA-11\nMD JEMA\\2011\\2-CHAT-JEMA-11\nMD JEMA\\2011\\3-POULPE-JEMA-11\nMD JEMA\\2011\\4-HIPPOCAMPE-JEMA-11\nMD JEMA\\2012\\1-CHIEN-JEMA-12\nMD JEMA\\2012\\2-CHAT-JEMA-12\nMD JEMA\\2012\\3-POULPE-JEMA-12\nMD JEMA\\2012\\4-HIPPOCAMPE-JEMA-12\nMD NOEM\\2006\\1-CHIEN-NOEM-06\nMD NOEM\\2006\\2-CHAT-NOEM-06\nMD NOEM\\2006\\3-POULPE-NOEM-06\nMD NOEM\\2006\\4-HIPPOCAMPE-NOEM-06\nMD NOEM\\2007\\1-CHIEN-NOEM-07\nMD NOEM\\2007\\2-CHAT-NOEM-07\nMD NOEM\\2007\\3-POULPE-NOEM-07\nMD NOEM\\2007\\4-HIPPOCAMPE-NOEM-07\nMD NOEM\\2008\\1-CHIEN-NOEM-08\nMD NOEM\\2008\\2-CHAT-NOEM-08\nMD NOEM\\2008\\3-POULPE-NOEM-08\nMD NOEM\\2008\\4-HIPPOCAMPE-NOEM-08\nMD NOEM\\2009\\1-CHIEN-NOEM-09\nMD NOEM\\2009\\2-CHAT-NOEM-09\nMD NOEM\\2009\\3-POULPE-NOEM-09\nMD NOEM\\2009\\4-HIPPOCAMPE-NOEM-09"}]
[{"$f":"IF(ROWS($C$20:C63)<Nb_Liste*Nb_Années*Nb_Animaux,IF(B64>=B63,A63,INDEX(Liste,MATCH(A63,Liste,0)+1)),\"\")","v":"NOEM"},{"$f":"IF(ROWS($C$20:C63)<Nb_Liste*Nb_Années*Nb_Animaux,(C64=INDEX(Animaux,1))*(1-Nb_Années*(B63=Max_Années))+B63,\"\")","v":2010},{"$f":"IF(ROWS($C$20:C63)<Nb_Liste*Nb_Années*Nb_Animaux,INDEX(Animaux,MOD(MATCH(C63,Animaux,0),Nb_Animaux)+1),\"\")","v":"1-CHIEN"},null,{"$f":"IF(ROWS($C$20:C63)<Nb_Liste*Nb_Années*Nb_Animaux,E63&CHAR(10)&\"MD \"&A64&\"\\\"&B64&\"\\\"&C64&\"-\"&A64&\"-\"&RIGHT(TEXT(B64,\"0000\"),2),\"\")","v":"CD C:\\Users\\jvdo\\Documents\\forum\\test\nMD JEMA\\2006\\1-CHIEN-JEMA-06\nMD JEMA\\2006\\2-CHAT-JEMA-06\nMD JEMA\\2006\\3-POULPE-JEMA-06\nMD JEMA\\2006\\4-HIPPOCAMPE-JEMA-06\nMD JEMA\\2007\\1-CHIEN-JEMA-07\nMD JEMA\\2007\\2-CHAT-JEMA-07\nMD JEMA\\2007\\3-POULPE-JEMA-07\nMD JEMA\\2007\\4-HIPPOCAMPE-JEMA-07\nMD JEMA\\2008\\1-CHIEN-JEMA-08\nMD JEMA\\2008\\2-CHAT-JEMA-08\nMD JEMA\\2008\\3-POULPE-JEMA-08\nMD JEMA\\2008\\4-HIPPOCAMPE-JEMA-08\nMD JEMA\\2009\\1-CHIEN-JEMA-09\nMD JEMA\\2009\\2-CHAT-JEMA-09\nMD JEMA\\2009\\3-POULPE-JEMA-09\nMD JEMA\\2009\\4-HIPPOCAMPE-JEMA-09\nMD JEMA\\2010\\1-CHIEN-JEMA-10\nMD JEMA\\2010\\2-CHAT-JEMA-10\nMD JEMA\\2010\\3-POULPE-JEMA-10\nMD JEMA\\2010\\4-HIPPOCAMPE-JEMA-10\nMD JEMA\\2011\\1-CHIEN-JEMA-11\nMD JEMA\\2011\\2-CHAT-JEMA-11\nMD JEMA\\2011\\3-POULPE-JEMA-11\nMD JEMA\\2011\\4-HIPPOCAMPE-JEMA-11\nMD JEMA\\2012\\1-CHIEN-JEMA-12\nMD JEMA\\2012\\2-CHAT-JEMA-12\nMD JEMA\\2012\\3-POULPE-JEMA-12\nMD JEMA\\2012\\4-HIPPOCAMPE-JEMA-12\nMD NOEM\\2006\\1-CHIEN-NOEM-06\nMD NOEM\\2006\\2-CHAT-NOEM-06\nMD NOEM\\2006\\3-POULPE-NOEM-06\nMD NOEM\\2006\\4-HIPPOCAMPE-NOEM-06\nMD NOEM\\2007\\1-CHIEN-NOEM-07\nMD NOEM\\2007\\2-CHAT-NOEM-07\nMD NOEM\\2007\\3-POULPE-NOEM-07\nMD NOEM\\2007\\4-HIPPOCAMPE-NOEM-07\nMD NOEM\\2008\\1-CHIEN-NOEM-08\nMD NOEM\\2008\\2-CHAT-NOEM-08\nMD NOEM\\2008\\3-POULPE-NOEM-08\nMD NOEM\\2008\\4-HIPPOCAMPE-NOEM-08\nMD NOEM\\2009\\1-CHIEN-NOEM-09\nMD NOEM\\2009\\2-CHAT-NOEM-09\nMD NOEM\\2009\\3-POULPE-NOEM-09\nMD NOEM\\2009\\4-HIPPOCAMPE-NOEM-09\nMD NOEM\\2010\\1-CHIEN-NOEM-10"}]
[{"$f":"IF(ROWS($C$20:C64)<Nb_Liste*Nb_Années*Nb_Animaux,IF(B65>=B64,A64,INDEX(Liste,MATCH(A64,Liste,0)+1)),\"\")","v":"NOEM"},{"$f":"IF(ROWS($C$20:C64)<Nb_Liste*Nb_Années*Nb_Animaux,(C65=INDEX(Animaux,1))*(1-Nb_Années*(B64=Max_Années))+B64,\"\")","v":2010},{"$f":"IF(ROWS($C$20:C64)<Nb_Liste*Nb_Années*Nb_Animaux,INDEX(Animaux,MOD(MATCH(C64,Animaux,0),Nb_Animaux)+1),\"\")","v":"2-CHAT"},null,{"$f":"IF(ROWS($C$20:C64)<Nb_Liste*Nb_Années*Nb_Animaux,E64&CHAR(10)&\"MD \"&A65&\"\\\"&B65&\"\\\"&C65&\"-\"&A65&\"-\"&RIGHT(TEXT(B65,\"0000\"),2),\"\")","v":"CD C:\\Users\\jvdo\\Documents\\forum\\test\nMD JEMA\\2006\\1-CHIEN-JEMA-06\nMD JEMA\\2006\\2-CHAT-JEMA-06\nMD JEMA\\2006\\3-POULPE-JEMA-06\nMD JEMA\\2006\\4-HIPPOCAMPE-JEMA-06\nMD JEMA\\2007\\1-CHIEN-JEMA-07\nMD JEMA\\2007\\2-CHAT-JEMA-07\nMD JEMA\\2007\\3-POULPE-JEMA-07\nMD JEMA\\2007\\4-HIPPOCAMPE-JEMA-07\nMD JEMA\\2008\\1-CHIEN-JEMA-08\nMD JEMA\\2008\\2-CHAT-JEMA-08\nMD JEMA\\2008\\3-POULPE-JEMA-08\nMD JEMA\\2008\\4-HIPPOCAMPE-JEMA-08\nMD JEMA\\2009\\1-CHIEN-JEMA-09\nMD JEMA\\2009\\2-CHAT-JEMA-09\nMD JEMA\\2009\\3-POULPE-JEMA-09\nMD JEMA\\2009\\4-HIPPOCAMPE-JEMA-09\nMD JEMA\\2010\\1-CHIEN-JEMA-10\nMD JEMA\\2010\\2-CHAT-JEMA-10\nMD JEMA\\2010\\3-POULPE-JEMA-10\nMD JEMA\\2010\\4-HIPPOCAMPE-JEMA-10\nMD JEMA\\2011\\1-CHIEN-JEMA-11\nMD JEMA\\2011\\2-CHAT-JEMA-11\nMD JEMA\\2011\\3-POULPE-JEMA-11\nMD JEMA\\2011\\4-HIPPOCAMPE-JEMA-11\nMD JEMA\\2012\\1-CHIEN-JEMA-12\nMD JEMA\\2012\\2-CHAT-JEMA-12\nMD JEMA\\2012\\3-POULPE-JEMA-12\nMD JEMA\\2012\\4-HIPPOCAMPE-JEMA-12\nMD NOEM\\2006\\1-CHIEN-NOEM-06\nMD NOEM\\2006\\2-CHAT-NOEM-06\nMD NOEM\\2006\\3-POULPE-NOEM-06\nMD NOEM\\2006\\4-HIPPOCAMPE-NOEM-06\nMD NOEM\\2007\\1-CHIEN-NOEM-07\nMD NOEM\\2007\\2-CHAT-NOEM-07\nMD NOEM\\2007\\3-POULPE-NOEM-07\nMD NOEM\\2007\\4-HIPPOCAMPE-NOEM-07\nMD NOEM\\2008\\1-CHIEN-NOEM-08\nMD NOEM\\2008\\2-CHAT-NOEM-08\nMD NOEM\\2008\\3-POULPE-NOEM-08\nMD NOEM\\2008\\4-HIPPOCAMPE-NOEM-08\nMD NOEM\\2009\\1-CHIEN-NOEM-09\nMD NOEM\\2009\\2-CHAT-NOEM-09\nMD NOEM\\2009\\3-POULPE-NOEM-09\nMD NOEM\\2009\\4-HIPPOCAMPE-NOEM-09\nMD NOEM\\2010\\1-CHIEN-NOEM-10\nMD NOEM\\2010\\2-CHAT-NOEM-10"}]
[{"$f":"IF(ROWS($C$20:C65)<Nb_Liste*Nb_Années*Nb_Animaux,IF(B66>=B65,A65,INDEX(Liste,MATCH(A65,Liste,0)+1)),\"\")","v":"NOEM"},{"$f":"IF(ROWS($C$20:C65)<Nb_Liste*Nb_Années*Nb_Animaux,(C66=INDEX(Animaux,1))*(1-Nb_Années*(B65=Max_Années))+B65,\"\")","v":2010},{"$f":"IF(ROWS($C$20:C65)<Nb_Liste*Nb_Années*Nb_Animaux,INDEX(Animaux,MOD(MATCH(C65,Animaux,0),Nb_Animaux)+1),\"\")","v":"3-POULPE"},null,{"$f":"IF(ROWS($C$20:C65)<Nb_Liste*Nb_Années*Nb_Animaux,E65&CHAR(10)&\"MD \"&A66&\"\\\"&B66&\"\\\"&C66&\"-\"&A66&\"-\"&RIGHT(TEXT(B66,\"0000\"),2),\"\")","v":"CD C:\\Users\\jvdo\\Documents\\forum\\test\nMD JEMA\\2006\\1-CHIEN-JEMA-06\nMD JEMA\\2006\\2-CHAT-JEMA-06\nMD JEMA\\2006\\3-POULPE-JEMA-06\nMD JEMA\\2006\\4-HIPPOCAMPE-JEMA-06\nMD JEMA\\2007\\1-CHIEN-JEMA-07\nMD JEMA\\2007\\2-CHAT-JEMA-07\nMD JEMA\\2007\\3-POULPE-JEMA-07\nMD JEMA\\2007\\4-HIPPOCAMPE-JEMA-07\nMD JEMA\\2008\\1-CHIEN-JEMA-08\nMD JEMA\\2008\\2-CHAT-JEMA-08\nMD JEMA\\2008\\3-POULPE-JEMA-08\nMD JEMA\\2008\\4-HIPPOCAMPE-JEMA-08\nMD JEMA\\2009\\1-CHIEN-JEMA-09\nMD JEMA\\2009\\2-CHAT-JEMA-09\nMD JEMA\\2009\\3-POULPE-JEMA-09\nMD JEMA\\2009\\4-HIPPOCAMPE-JEMA-09\nMD JEMA\\2010\\1-CHIEN-JEMA-10\nMD JEMA\\2010\\2-CHAT-JEMA-10\nMD JEMA\\2010\\3-POULPE-JEMA-10\nMD JEMA\\2010\\4-HIPPOCAMPE-JEMA-10\nMD JEMA\\2011\\1-CHIEN-JEMA-11\nMD JEMA\\2011\\2-CHAT-JEMA-11\nMD JEMA\\2011\\3-POULPE-JEMA-11\nMD JEMA\\2011\\4-HIPPOCAMPE-JEMA-11\nMD JEMA\\2012\\1-CHIEN-JEMA-12\nMD JEMA\\2012\\2-CHAT-JEMA-12\nMD JEMA\\2012\\3-POULPE-JEMA-12\nMD JEMA\\2012\\4-HIPPOCAMPE-JEMA-12\nMD NOEM\\2006\\1-CHIEN-NOEM-06\nMD NOEM\\2006\\2-CHAT-NOEM-06\nMD NOEM\\2006\\3-POULPE-NOEM-06\nMD NOEM\\2006\\4-HIPPOCAMPE-NOEM-06\nMD NOEM\\2007\\1-CHIEN-NOEM-07\nMD NOEM\\2007\\2-CHAT-NOEM-07\nMD NOEM\\2007\\3-POULPE-NOEM-07\nMD NOEM\\2007\\4-HIPPOCAMPE-NOEM-07\nMD NOEM\\2008\\1-CHIEN-NOEM-08\nMD NOEM\\2008\\2-CHAT-NOEM-08\nMD NOEM\\2008\\3-POULPE-NOEM-08\nMD NOEM\\2008\\4-HIPPOCAMPE-NOEM-08\nMD NOEM\\2009\\1-CHIEN-NOEM-09\nMD NOEM\\2009\\2-CHAT-NOEM-09\nMD NOEM\\2009\\3-POULPE-NOEM-09\nMD NOEM\\2009\\4-HIPPOCAMPE-NOEM-09\nMD NOEM\\2010\\1-CHIEN-NOEM-10\nMD NOEM\\2010\\2-CHAT-NOEM-10\nMD NOEM\\2010\\3-POULPE-NOEM-10"}]
[{"$f":"IF(ROWS($C$20:C66)<Nb_Liste*Nb_Années*Nb_Animaux,IF(B67>=B66,A66,INDEX(Liste,MATCH(A66,Liste,0)+1)),\"\")","v":"NOEM"},{"$f":"IF(ROWS($C$20:C66)<Nb_Liste*Nb_Années*Nb_Animaux,(C67=INDEX(Animaux,1))*(1-Nb_Années*(B66=Max_Années))+B66,\"\")","v":2010},{"$f":"IF(ROWS($C$20:C66)<Nb_Liste*Nb_Années*Nb_Animaux,INDEX(Animaux,MOD(MATCH(C66,Animaux,0),Nb_Animaux)+1),\"\")","v":"4-HIPPOCAMPE"},null,{"$f":"IF(ROWS($C$20:C66)<Nb_Liste*Nb_Années*Nb_Animaux,E66&CHAR(10)&\"MD \"&A67&\"\\\"&B67&\"\\\"&C67&\"-\"&A67&\"-\"&RIGHT(TEXT(B67,\"0000\"),2),\"\")","v":"CD C:\\Users\\jvdo\\Documents\\forum\\test\nMD JEMA\\2006\\1-CHIEN-JEMA-06\nMD JEMA\\2006\\2-CHAT-JEMA-06\nMD JEMA\\2006\\3-POULPE-JEMA-06\nMD JEMA\\2006\\4-HIPPOCAMPE-JEMA-06\nMD JEMA\\2007\\1-CHIEN-JEMA-07\nMD JEMA\\2007\\2-CHAT-JEMA-07\nMD JEMA\\2007\\3-POULPE-JEMA-07\nMD JEMA\\2007\\4-HIPPOCAMPE-JEMA-07\nMD JEMA\\2008\\1-CHIEN-JEMA-08\nMD JEMA\\2008\\2-CHAT-JEMA-08\nMD JEMA\\2008\\3-POULPE-JEMA-08\nMD JEMA\\2008\\4-HIPPOCAMPE-JEMA-08\nMD JEMA\\2009\\1-CHIEN-JEMA-09\nMD JEMA\\2009\\2-CHAT-JEMA-09\nMD JEMA\\2009\\3-POULPE-JEMA-09\nMD JEMA\\2009\\4-HIPPOCAMPE-JEMA-09\nMD JEMA\\2010\\1-CHIEN-JEMA-10\nMD JEMA\\2010\\2-CHAT-JEMA-10\nMD JEMA\\2010\\3-POULPE-JEMA-10\nMD JEMA\\2010\\4-HIPPOCAMPE-JEMA-10\nMD JEMA\\2011\\1-CHIEN-JEMA-11\nMD JEMA\\2011\\2-CHAT-JEMA-11\nMD JEMA\\2011\\3-POULPE-JEMA-11\nMD JEMA\\2011\\4-HIPPOCAMPE-JEMA-11\nMD JEMA\\2012\\1-CHIEN-JEMA-12\nMD JEMA\\2012\\2-CHAT-JEMA-12\nMD JEMA\\2012\\3-POULPE-JEMA-12\nMD JEMA\\2012\\4-HIPPOCAMPE-JEMA-12\nMD NOEM\\2006\\1-CHIEN-NOEM-06\nMD NOEM\\2006\\2-CHAT-NOEM-06\nMD NOEM\\2006\\3-POULPE-NOEM-06\nMD NOEM\\2006\\4-HIPPOCAMPE-NOEM-06\nMD NOEM\\2007\\1-CHIEN-NOEM-07\nMD NOEM\\2007\\2-CHAT-NOEM-07\nMD NOEM\\2007\\3-POULPE-NOEM-07\nMD NOEM\\2007\\4-HIPPOCAMPE-NOEM-07\nMD NOEM\\2008\\1-CHIEN-NOEM-08\nMD NOEM\\2008\\2-CHAT-NOEM-08\nMD NOEM\\2008\\3-POULPE-NOEM-08\nMD NOEM\\2008\\4-HIPPOCAMPE-NOEM-08\nMD NOEM\\2009\\1-CHIEN-NOEM-09\nMD NOEM\\2009\\2-CHAT-NOEM-09\nMD NOEM\\2009\\3-POULPE-NOEM-09\nMD NOEM\\2009\\4-HIPPOCAMPE-NOEM-09\nMD NOEM\\2010\\1-CHIEN-NOEM-10\nMD NOEM\\2010\\2-CHAT-NOEM-10\nMD NOEM\\2010\\3-POULPE-NOEM-10\nMD NOEM\\2010\\4-HIPPOCAMPE-NOEM-10"}]
[{"$f":"IF(ROWS($C$20:C67)<Nb_Liste*Nb_Années*Nb_Animaux,IF(B68>=B67,A67,INDEX(Liste,MATCH(A67,Liste,0)+1)),\"\")","v":"NOEM"},{"$f":"IF(ROWS($C$20:C67)<Nb_Liste*Nb_Années*Nb_Animaux,(C68=INDEX(Animaux,1))*(1-Nb_Années*(B67=Max_Années))+B67,\"\")","v":2011},{"$f":"IF(ROWS($C$20:C67)<Nb_Liste*Nb_Années*Nb_Animaux,INDEX(Animaux,MOD(MATCH(C67,Animaux,0),Nb_Animaux)+1),\"\")","v":"1-CHIEN"},null,{"$f":"IF(ROWS($C$20:C67)<Nb_Liste*Nb_Années*Nb_Animaux,E67&CHAR(10)&\"MD \"&A68&\"\\\"&B68&\"\\\"&C68&\"-\"&A68&\"-\"&RIGHT(TEXT(B68,\"0000\"),2),\"\")","v":"CD C:\\Users\\jvdo\\Documents\\forum\\test\nMD JEMA\\2006\\1-CHIEN-JEMA-06\nMD JEMA\\2006\\2-CHAT-JEMA-06\nMD JEMA\\2006\\3-POULPE-JEMA-06\nMD JEMA\\2006\\4-HIPPOCAMPE-JEMA-06\nMD JEMA\\2007\\1-CHIEN-JEMA-07\nMD JEMA\\2007\\2-CHAT-JEMA-07\nMD JEMA\\2007\\3-POULPE-JEMA-07\nMD JEMA\\2007\\4-HIPPOCAMPE-JEMA-07\nMD JEMA\\2008\\1-CHIEN-JEMA-08\nMD JEMA\\2008\\2-CHAT-JEMA-08\nMD JEMA\\2008\\3-POULPE-JEMA-08\nMD JEMA\\2008\\4-HIPPOCAMPE-JEMA-08\nMD JEMA\\2009\\1-CHIEN-JEMA-09\nMD JEMA\\2009\\2-CHAT-JEMA-09\nMD JEMA\\2009\\3-POULPE-JEMA-09\nMD JEMA\\2009\\4-HIPPOCAMPE-JEMA-09\nMD JEMA\\2010\\1-CHIEN-JEMA-10\nMD JEMA\\2010\\2-CHAT-JEMA-10\nMD JEMA\\2010\\3-POULPE-JEMA-10\nMD JEMA\\2010\\4-HIPPOCAMPE-JEMA-10\nMD JEMA\\2011\\1-CHIEN-JEMA-11\nMD JEMA\\2011\\2-CHAT-JEMA-11\nMD JEMA\\2011\\3-POULPE-JEMA-11\nMD JEMA\\2011\\4-HIPPOCAMPE-JEMA-11\nMD JEMA\\2012\\1-CHIEN-JEMA-12\nMD JEMA\\2012\\2-CHAT-JEMA-12\nMD JEMA\\2012\\3-POULPE-JEMA-12\nMD JEMA\\2012\\4-HIPPOCAMPE-JEMA-12\nMD NOEM\\2006\\1-CHIEN-NOEM-06\nMD NOEM\\2006\\2-CHAT-NOEM-06\nMD NOEM\\2006\\3-POULPE-NOEM-06\nMD NOEM\\2006\\4-HIPPOCAMPE-NOEM-06\nMD NOEM\\2007\\1-CHIEN-NOEM-07\nMD NOEM\\2007\\2-CHAT-NOEM-07\nMD NOEM\\2007\\3-POULPE-NOEM-07\nMD NOEM\\2007\\4-HIPPOCAMPE-NOEM-07\nMD NOEM\\2008\\1-CHIEN-NOEM-08\nMD NOEM\\2008\\2-CHAT-NOEM-08\nMD NOEM\\2008\\3-POULPE-NOEM-08\nMD NOEM\\2008\\4-HIPPOCAMPE-NOEM-08\nMD NOEM\\2009\\1-CHIEN-NOEM-09\nMD NOEM\\2009\\2-CHAT-NOEM-09\nMD NOEM\\2009\\3-POULPE-NOEM-09\nMD NOEM\\2009\\4-HIPPOCAMPE-NOEM-09\nMD NOEM\\2010\\1-CHIEN-NOEM-10\nMD NOEM\\2010\\2-CHAT-NOEM-10\nMD NOEM\\2010\\3-POULPE-NOEM-10\nMD NOEM\\2010\\4-HIPPOCAMPE-NOEM-10\nMD NOEM\\2011\\1-CHIEN-NOEM-11"}]
[{"$f":"IF(ROWS($C$20:C68)<Nb_Liste*Nb_Années*Nb_Animaux,IF(B69>=B68,A68,INDEX(Liste,MATCH(A68,Liste,0)+1)),\"\")","v":"NOEM"},{"$f":"IF(ROWS($C$20:C68)<Nb_Liste*Nb_Années*Nb_Animaux,(C69=INDEX(Animaux,1))*(1-Nb_Années*(B68=Max_Années))+B68,\"\")","v":2011},{"$f":"IF(ROWS($C$20:C68)<Nb_Liste*Nb_Années*Nb_Animaux,INDEX(Animaux,MOD(MATCH(C68,Animaux,0),Nb_Animaux)+1),\"\")","v":"2-CHAT"},null,{"$f":"IF(ROWS($C$20:C68)<Nb_Liste*Nb_Années*Nb_Animaux,E68&CHAR(10)&\"MD \"&A69&\"\\\"&B69&\"\\\"&C69&\"-\"&A69&\"-\"&RIGHT(TEXT(B69,\"0000\"),2),\"\")","v":"CD C:\\Users\\jvdo\\Documents\\forum\\test\nMD JEMA\\2006\\1-CHIEN-JEMA-06\nMD JEMA\\2006\\2-CHAT-JEMA-06\nMD JEMA\\2006\\3-POULPE-JEMA-06\nMD JEMA\\2006\\4-HIPPOCAMPE-JEMA-06\nMD JEMA\\2007\\1-CHIEN-JEMA-07\nMD JEMA\\2007\\2-CHAT-JEMA-07\nMD JEMA\\2007\\3-POULPE-JEMA-07\nMD JEMA\\2007\\4-HIPPOCAMPE-JEMA-07\nMD JEMA\\2008\\1-CHIEN-JEMA-08\nMD JEMA\\2008\\2-CHAT-JEMA-08\nMD JEMA\\2008\\3-POULPE-JEMA-08\nMD JEMA\\2008\\4-HIPPOCAMPE-JEMA-08\nMD JEMA\\2009\\1-CHIEN-JEMA-09\nMD JEMA\\2009\\2-CHAT-JEMA-09\nMD JEMA\\2009\\3-POULPE-JEMA-09\nMD JEMA\\2009\\4-HIPPOCAMPE-JEMA-09\nMD JEMA\\2010\\1-CHIEN-JEMA-10\nMD JEMA\\2010\\2-CHAT-JEMA-10\nMD JEMA\\2010\\3-POULPE-JEMA-10\nMD JEMA\\2010\\4-HIPPOCAMPE-JEMA-10\nMD JEMA\\2011\\1-CHIEN-JEMA-11\nMD JEMA\\2011\\2-CHAT-JEMA-11\nMD JEMA\\2011\\3-POULPE-JEMA-11\nMD JEMA\\2011\\4-HIPPOCAMPE-JEMA-11\nMD JEMA\\2012\\1-CHIEN-JEMA-12\nMD JEMA\\2012\\2-CHAT-JEMA-12\nMD JEMA\\2012\\3-POULPE-JEMA-12\nMD JEMA\\2012\\4-HIPPOCAMPE-JEMA-12\nMD NOEM\\2006\\1-CHIEN-NOEM-06\nMD NOEM\\2006\\2-CHAT-NOEM-06\nMD NOEM\\2006\\3-POULPE-NOEM-06\nMD NOEM\\2006\\4-HIPPOCAMPE-NOEM-06\nMD NOEM\\2007\\1-CHIEN-NOEM-07\nMD NOEM\\2007\\2-CHAT-NOEM-07\nMD NOEM\\2007\\3-POULPE-NOEM-07\nMD NOEM\\2007\\4-HIPPOCAMPE-NOEM-07\nMD NOEM\\2008\\1-CHIEN-NOEM-08\nMD NOEM\\2008\\2-CHAT-NOEM-08\nMD NOEM\\2008\\3-POULPE-NOEM-08\nMD NOEM\\2008\\4-HIPPOCAMPE-NOEM-08\nMD NOEM\\2009\\1-CHIEN-NOEM-09\nMD NOEM\\2009\\2-CHAT-NOEM-09\nMD NOEM\\2009\\3-POULPE-NOEM-09\nMD NOEM\\2009\\4-HIPPOCAMPE-NOEM-09\nMD NOEM\\2010\\1-CHIEN-NOEM-10\nMD NOEM\\2010\\2-CHAT-NOEM-10\nMD NOEM\\2010\\3-POULPE-NOEM-10\nMD NOEM\\2010\\4-HIPPOCAMPE-NOEM-10\nMD NOEM\\2011\\1-CHIEN-NOEM-11\nMD NOEM\\2011\\2-CHAT-NOEM-11"}]
[{"$f":"IF(ROWS($C$20:C69)<Nb_Liste*Nb_Années*Nb_Animaux,IF(B70>=B69,A69,INDEX(Liste,MATCH(A69,Liste,0)+1)),\"\")","v":"NOEM"},{"$f":"IF(ROWS($C$20:C69)<Nb_Liste*Nb_Années*Nb_Animaux,(C70=INDEX(Animaux,1))*(1-Nb_Années*(B69=Max_Années))+B69,\"\")","v":2011},{"$f":"IF(ROWS($C$20:C69)<Nb_Liste*Nb_Années*Nb_Animaux,INDEX(Animaux,MOD(MATCH(C69,Animaux,0),Nb_Animaux)+1),\"\")","v":"3-POULPE"},null,{"$f":"IF(ROWS($C$20:C69)<Nb_Liste*Nb_Années*Nb_Animaux,E69&CHAR(10)&\"MD \"&A70&\"\\\"&B70&\"\\\"&C70&\"-\"&A70&\"-\"&RIGHT(TEXT(B70,\"0000\"),2),\"\")","v":"CD C:\\Users\\jvdo\\Documents\\forum\\test\nMD JEMA\\2006\\1-CHIEN-JEMA-06\nMD JEMA\\2006\\2-CHAT-JEMA-06\nMD JEMA\\2006\\3-POULPE-JEMA-06\nMD JEMA\\2006\\4-HIPPOCAMPE-JEMA-06\nMD JEMA\\2007\\1-CHIEN-JEMA-07\nMD JEMA\\2007\\2-CHAT-JEMA-07\nMD JEMA\\2007\\3-POULPE-JEMA-07\nMD JEMA\\2007\\4-HIPPOCAMPE-JEMA-07\nMD JEMA\\2008\\1-CHIEN-JEMA-08\nMD JEMA\\2008\\2-CHAT-JEMA-08\nMD JEMA\\2008\\3-POULPE-JEMA-08\nMD JEMA\\2008\\4-HIPPOCAMPE-JEMA-08\nMD JEMA\\2009\\1-CHIEN-JEMA-09\nMD JEMA\\2009\\2-CHAT-JEMA-09\nMD JEMA\\2009\\3-POULPE-JEMA-09\nMD JEMA\\2009\\4-HIPPOCAMPE-JEMA-09\nMD JEMA\\2010\\1-CHIEN-JEMA-10\nMD JEMA\\2010\\2-CHAT-JEMA-10\nMD JEMA\\2010\\3-POULPE-JEMA-10\nMD JEMA\\2010\\4-HIPPOCAMPE-JEMA-10\nMD JEMA\\2011\\1-CHIEN-JEMA-11\nMD JEMA\\2011\\2-CHAT-JEMA-11\nMD JEMA\\2011\\3-POULPE-JEMA-11\nMD JEMA\\2011\\4-HIPPOCAMPE-JEMA-11\nMD JEMA\\2012\\1-CHIEN-JEMA-12\nMD JEMA\\2012\\2-CHAT-JEMA-12\nMD JEMA\\2012\\3-POULPE-JEMA-12\nMD JEMA\\2012\\4-HIPPOCAMPE-JEMA-12\nMD NOEM\\2006\\1-CHIEN-NOEM-06\nMD NOEM\\2006\\2-CHAT-NOEM-06\nMD NOEM\\2006\\3-POULPE-NOEM-06\nMD NOEM\\2006\\4-HIPPOCAMPE-NOEM-06\nMD NOEM\\2007\\1-CHIEN-NOEM-07\nMD NOEM\\2007\\2-CHAT-NOEM-07\nMD NOEM\\2007\\3-POULPE-NOEM-07\nMD NOEM\\2007\\4-HIPPOCAMPE-NOEM-07\nMD NOEM\\2008\\1-CHIEN-NOEM-08\nMD NOEM\\2008\\2-CHAT-NOEM-08\nMD NOEM\\2008\\3-POULPE-NOEM-08\nMD NOEM\\2008\\4-HIPPOCAMPE-NOEM-08\nMD NOEM\\2009\\1-CHIEN-NOEM-09\nMD NOEM\\2009\\2-CHAT-NOEM-09\nMD NOEM\\2009\\3-POULPE-NOEM-09\nMD NOEM\\2009\\4-HIPPOCAMPE-NOEM-09\nMD NOEM\\2010\\1-CHIEN-NOEM-10\nMD NOEM\\2010\\2-CHAT-NOEM-10\nMD NOEM\\2010\\3-POULPE-NOEM-10\nMD NOEM\\2010\\4-HIPPOCAMPE-NOEM-10\nMD NOEM\\2011\\1-CHIEN-NOEM-11\nMD NOEM\\2011\\2-CHAT-NOEM-11\nMD NOEM\\2011\\3-POULPE-NOEM-11"}]
[{"$f":"IF(ROWS($C$20:C70)<Nb_Liste*Nb_Années*Nb_Animaux,IF(B71>=B70,A70,INDEX(Liste,MATCH(A70,Liste,0)+1)),\"\")","v":"NOEM"},{"$f":"IF(ROWS($C$20:C70)<Nb_Liste*Nb_Années*Nb_Animaux,(C71=INDEX(Animaux,1))*(1-Nb_Années*(B70=Max_Années))+B70,\"\")","v":2011},{"$f":"IF(ROWS($C$20:C70)<Nb_Liste*Nb_Années*Nb_Animaux,INDEX(Animaux,MOD(MATCH(C70,Animaux,0),Nb_Animaux)+1),\"\")","v":"4-HIPPOCAMPE"},null,{"$f":"IF(ROWS($C$20:C70)<Nb_Liste*Nb_Années*Nb_Animaux,E70&CHAR(10)&\"MD \"&A71&\"\\\"&B71&\"\\\"&C71&\"-\"&A71&\"-\"&RIGHT(TEXT(B71,\"0000\"),2),\"\")","v":"CD C:\\Users\\jvdo\\Documents\\forum\\test\nMD JEMA\\2006\\1-CHIEN-JEMA-06\nMD JEMA\\2006\\2-CHAT-JEMA-06\nMD JEMA\\2006\\3-POULPE-JEMA-06\nMD JEMA\\2006\\4-HIPPOCAMPE-JEMA-06\nMD JEMA\\2007\\1-CHIEN-JEMA-07\nMD JEMA\\2007\\2-CHAT-JEMA-07\nMD JEMA\\2007\\3-POULPE-JEMA-07\nMD JEMA\\2007\\4-HIPPOCAMPE-JEMA-07\nMD JEMA\\2008\\1-CHIEN-JEMA-08\nMD JEMA\\2008\\2-CHAT-JEMA-08\nMD JEMA\\2008\\3-POULPE-JEMA-08\nMD JEMA\\2008\\4-HIPPOCAMPE-JEMA-08\nMD JEMA\\2009\\1-CHIEN-JEMA-09\nMD JEMA\\2009\\2-CHAT-JEMA-09\nMD JEMA\\2009\\3-POULPE-JEMA-09\nMD JEMA\\2009\\4-HIPPOCAMPE-JEMA-09\nMD JEMA\\2010\\1-CHIEN-JEMA-10\nMD JEMA\\2010\\2-CHAT-JEMA-10\nMD JEMA\\2010\\3-POULPE-JEMA-10\nMD JEMA\\2010\\4-HIPPOCAMPE-JEMA-10\nMD JEMA\\2011\\1-CHIEN-JEMA-11\nMD JEMA\\2011\\2-CHAT-JEMA-11\nMD JEMA\\2011\\3-POULPE-JEMA-11\nMD JEMA\\2011\\4-HIPPOCAMPE-JEMA-11\nMD JEMA\\2012\\1-CHIEN-JEMA-12\nMD JEMA\\2012\\2-CHAT-JEMA-12\nMD JEMA\\2012\\3-POULPE-JEMA-12\nMD JEMA\\2012\\4-HIPPOCAMPE-JEMA-12\nMD NOEM\\2006\\1-CHIEN-NOEM-06\nMD NOEM\\2006\\2-CHAT-NOEM-06\nMD NOEM\\2006\\3-POULPE-NOEM-06\nMD NOEM\\2006\\4-HIPPOCAMPE-NOEM-06\nMD NOEM\\2007\\1-CHIEN-NOEM-07\nMD NOEM\\2007\\2-CHAT-NOEM-07\nMD NOEM\\2007\\3-POULPE-NOEM-07\nMD NOEM\\2007\\4-HIPPOCAMPE-NOEM-07\nMD NOEM\\2008\\1-CHIEN-NOEM-08\nMD NOEM\\2008\\2-CHAT-NOEM-08\nMD NOEM\\2008\\3-POULPE-NOEM-08\nMD NOEM\\2008\\4-HIPPOCAMPE-NOEM-08\nMD NOEM\\2009\\1-CHIEN-NOEM-09\nMD NOEM\\2009\\2-CHAT-NOEM-09\nMD NOEM\\2009\\3-POULPE-NOEM-09\nMD NOEM\\2009\\4-HIPPOCAMPE-NOEM-09\nMD NOEM\\2010\\1-CHIEN-NOEM-10\nMD NOEM\\2010\\2-CHAT-NOEM-10\nMD NOEM\\2010\\3-POULPE-NOEM-10\nMD NOEM\\2010\\4-HIPPOCAMPE-NOEM-10\nMD NOEM\\2011\\1-CHIEN-NOEM-11\nMD NOEM\\2011\\2-CHAT-NOEM-11\nMD NOEM\\2011\\3-POULPE-NOEM-11\nMD NOEM\\2011\\4-HIPPOCAMPE-NOEM-11"}]
[{"$f":"IF(ROWS($C$20:C71)<Nb_Liste*Nb_Années*Nb_Animaux,IF(B72>=B71,A71,INDEX(Liste,MATCH(A71,Liste,0)+1)),\"\")","v":"NOEM"},{"$f":"IF(ROWS($C$20:C71)<Nb_Liste*Nb_Années*Nb_Animaux,(C72=INDEX(Animaux,1))*(1-Nb_Années*(B71=Max_Années))+B71,\"\")","v":2012},{"$f":"IF(ROWS($C$20:C71)<Nb_Liste*Nb_Années*Nb_Animaux,INDEX(Animaux,MOD(MATCH(C71,Animaux,0),Nb_Animaux)+1),\"\")","v":"1-CHIEN"},null,{"$f":"IF(ROWS($C$20:C71)<Nb_Liste*Nb_Années*Nb_Animaux,E71&CHAR(10)&\"MD \"&A72&\"\\\"&B72&\"\\\"&C72&\"-\"&A72&\"-\"&RIGHT(TEXT(B72,\"0000\"),2),\"\")","v":"CD C:\\Users\\jvdo\\Documents\\forum\\test\nMD JEMA\\2006\\1-CHIEN-JEMA-06\nMD JEMA\\2006\\2-CHAT-JEMA-06\nMD JEMA\\2006\\3-POULPE-JEMA-06\nMD JEMA\\2006\\4-HIPPOCAMPE-JEMA-06\nMD JEMA\\2007\\1-CHIEN-JEMA-07\nMD JEMA\\2007\\2-CHAT-JEMA-07\nMD JEMA\\2007\\3-POULPE-JEMA-07\nMD JEMA\\2007\\4-HIPPOCAMPE-JEMA-07\nMD JEMA\\2008\\1-CHIEN-JEMA-08\nMD JEMA\\2008\\2-CHAT-JEMA-08\nMD JEMA\\2008\\3-POULPE-JEMA-08\nMD JEMA\\2008\\4-HIPPOCAMPE-JEMA-08\nMD JEMA\\2009\\1-CHIEN-JEMA-09\nMD JEMA\\2009\\2-CHAT-JEMA-09\nMD JEMA\\2009\\3-POULPE-JEMA-09\nMD JEMA\\2009\\4-HIPPOCAMPE-JEMA-09\nMD JEMA\\2010\\1-CHIEN-JEMA-10\nMD JEMA\\2010\\2-CHAT-JEMA-10\nMD JEMA\\2010\\3-POULPE-JEMA-10\nMD JEMA\\2010\\4-HIPPOCAMPE-JEMA-10\nMD JEMA\\2011\\1-CHIEN-JEMA-11\nMD JEMA\\2011\\2-CHAT-JEMA-11\nMD JEMA\\2011\\3-POULPE-JEMA-11\nMD JEMA\\2011\\4-HIPPOCAMPE-JEMA-11\nMD JEMA\\2012\\1-CHIEN-JEMA-12\nMD JEMA\\2012\\2-CHAT-JEMA-12\nMD JEMA\\2012\\3-POULPE-JEMA-12\nMD JEMA\\2012\\4-HIPPOCAMPE-JEMA-12\nMD NOEM\\2006\\1-CHIEN-NOEM-06\nMD NOEM\\2006\\2-CHAT-NOEM-06\nMD NOEM\\2006\\3-POULPE-NOEM-06\nMD NOEM\\2006\\4-HIPPOCAMPE-NOEM-06\nMD NOEM\\2007\\1-CHIEN-NOEM-07\nMD NOEM\\2007\\2-CHAT-NOEM-07\nMD NOEM\\2007\\3-POULPE-NOEM-07\nMD NOEM\\2007\\4-HIPPOCAMPE-NOEM-07\nMD NOEM\\2008\\1-CHIEN-NOEM-08\nMD NOEM\\2008\\2-CHAT-NOEM-08\nMD NOEM\\2008\\3-POULPE-NOEM-08\nMD NOEM\\2008\\4-HIPPOCAMPE-NOEM-08\nMD NOEM\\2009\\1-CHIEN-NOEM-09\nMD NOEM\\2009\\2-CHAT-NOEM-09\nMD NOEM\\2009\\3-POULPE-NOEM-09\nMD NOEM\\2009\\4-HIPPOCAMPE-NOEM-09\nMD NOEM\\2010\\1-CHIEN-NOEM-10\nMD NOEM\\2010\\2-CHAT-NOEM-10\nMD NOEM\\2010\\3-POULPE-NOEM-10\nMD NOEM\\2010\\4-HIPPOCAMPE-NOEM-10\nMD NOEM\\2011\\1-CHIEN-NOEM-11\nMD NOEM\\2011\\2-CHAT-NOEM-11\nMD NOEM\\2011\\3-POULPE-NOEM-11\nMD NOEM\\2011\\4-HIPPOCAMPE-NOEM-11\nMD NOEM\\2012\\1-CHIEN-NOEM-12"}]
[{"$f":"IF(ROWS($C$20:C72)<Nb_Liste*Nb_Années*Nb_Animaux,IF(B73>=B72,A72,INDEX(Liste,MATCH(A72,Liste,0)+1)),\"\")","v":"NOEM"},{"$f":"IF(ROWS($C$20:C72)<Nb_Liste*Nb_Années*Nb_Animaux,(C73=INDEX(Animaux,1))*(1-Nb_Années*(B72=Max_Années))+B72,\"\")","v":2012},{"$f":"IF(ROWS($C$20:C72)<Nb_Liste*Nb_Années*Nb_Animaux,INDEX(Animaux,MOD(MATCH(C72,Animaux,0),Nb_Animaux)+1),\"\")","v":"2-CHAT"},null,{"$f":"IF(ROWS($C$20:C72)<Nb_Liste*Nb_Années*Nb_Animaux,E72&CHAR(10)&\"MD \"&A73&\"\\\"&B73&\"\\\"&C73&\"-\"&A73&\"-\"&RIGHT(TEXT(B73,\"0000\"),2),\"\")","v":"CD C:\\Users\\jvdo\\Documents\\forum\\test\nMD JEMA\\2006\\1-CHIEN-JEMA-06\nMD JEMA\\2006\\2-CHAT-JEMA-06\nMD JEMA\\2006\\3-POULPE-JEMA-06\nMD JEMA\\2006\\4-HIPPOCAMPE-JEMA-06\nMD JEMA\\2007\\1-CHIEN-JEMA-07\nMD JEMA\\2007\\2-CHAT-JEMA-07\nMD JEMA\\2007\\3-POULPE-JEMA-07\nMD JEMA\\2007\\4-HIPPOCAMPE-JEMA-07\nMD JEMA\\2008\\1-CHIEN-JEMA-08\nMD JEMA\\2008\\2-CHAT-JEMA-08\nMD JEMA\\2008\\3-POULPE-JEMA-08\nMD JEMA\\2008\\4-HIPPOCAMPE-JEMA-08\nMD JEMA\\2009\\1-CHIEN-JEMA-09\nMD JEMA\\2009\\2-CHAT-JEMA-09\nMD JEMA\\2009\\3-POULPE-JEMA-09\nMD JEMA\\2009\\4-HIPPOCAMPE-JEMA-09\nMD JEMA\\2010\\1-CHIEN-JEMA-10\nMD JEMA\\2010\\2-CHAT-JEMA-10\nMD JEMA\\2010\\3-POULPE-JEMA-10\nMD JEMA\\2010\\4-HIPPOCAMPE-JEMA-10\nMD JEMA\\2011\\1-CHIEN-JEMA-11\nMD JEMA\\2011\\2-CHAT-JEMA-11\nMD JEMA\\2011\\3-POULPE-JEMA-11\nMD JEMA\\2011\\4-HIPPOCAMPE-JEMA-11\nMD JEMA\\2012\\1-CHIEN-JEMA-12\nMD JEMA\\2012\\2-CHAT-JEMA-12\nMD JEMA\\2012\\3-POULPE-JEMA-12\nMD JEMA\\2012\\4-HIPPOCAMPE-JEMA-12\nMD NOEM\\2006\\1-CHIEN-NOEM-06\nMD NOEM\\2006\\2-CHAT-NOEM-06\nMD NOEM\\2006\\3-POULPE-NOEM-06\nMD NOEM\\2006\\4-HIPPOCAMPE-NOEM-06\nMD NOEM\\2007\\1-CHIEN-NOEM-07\nMD NOEM\\2007\\2-CHAT-NOEM-07\nMD NOEM\\2007\\3-POULPE-NOEM-07\nMD NOEM\\2007\\4-HIPPOCAMPE-NOEM-07\nMD NOEM\\2008\\1-CHIEN-NOEM-08\nMD NOEM\\2008\\2-CHAT-NOEM-08\nMD NOEM\\2008\\3-POULPE-NOEM-08\nMD NOEM\\2008\\4-HIPPOCAMPE-NOEM-08\nMD NOEM\\2009\\1-CHIEN-NOEM-09\nMD NOEM\\2009\\2-CHAT-NOEM-09\nMD NOEM\\2009\\3-POULPE-NOEM-09\nMD NOEM\\2009\\4-HIPPOCAMPE-NOEM-09\nMD NOEM\\2010\\1-CHIEN-NOEM-10\nMD NOEM\\2010\\2-CHAT-NOEM-10\nMD NOEM\\2010\\3-POULPE-NOEM-10\nMD NOEM\\2010\\4-HIPPOCAMPE-NOEM-10\nMD NOEM\\2011\\1-CHIEN-NOEM-11\nMD NOEM\\2011\\2-CHAT-NOEM-11\nMD NOEM\\2011\\3-POULPE-NOEM-11\nMD NOEM\\2011\\4-HIPPOCAMPE-NOEM-11\nMD NOEM\\2012\\1-CHIEN-NOEM-12\nMD NOEM\\2012\\2-CHAT-NOEM-12"}]
[{"$f":"IF(ROWS($C$20:C73)<Nb_Liste*Nb_Années*Nb_Animaux,IF(B74>=B73,A73,INDEX(Liste,MATCH(A73,Liste,0)+1)),\"\")","v":"NOEM"},{"$f":"IF(ROWS($C$20:C73)<Nb_Liste*Nb_Années*Nb_Animaux,(C74=INDEX(Animaux,1))*(1-Nb_Années*(B73=Max_Années))+B73,\"\")","v":2012},{"$f":"IF(ROWS($C$20:C73)<Nb_Liste*Nb_Années*Nb_Animaux,INDEX(Animaux,MOD(MATCH(C73,Animaux,0),Nb_Animaux)+1),\"\")","v":"3-POULPE"},null,{"$f":"IF(ROWS($C$20:C73)<Nb_Liste*Nb_Années*Nb_Animaux,E73&CHAR(10)&\"MD \"&A74&\"\\\"&B74&\"\\\"&C74&\"-\"&A74&\"-\"&RIGHT(TEXT(B74,\"0000\"),2),\"\")","v":"CD C:\\Users\\jvdo\\Documents\\forum\\test\nMD JEMA\\2006\\1-CHIEN-JEMA-06\nMD JEMA\\2006\\2-CHAT-JEMA-06\nMD JEMA\\2006\\3-POULPE-JEMA-06\nMD JEMA\\2006\\4-HIPPOCAMPE-JEMA-06\nMD JEMA\\2007\\1-CHIEN-JEMA-07\nMD JEMA\\2007\\2-CHAT-JEMA-07\nMD JEMA\\2007\\3-POULPE-JEMA-07\nMD JEMA\\2007\\4-HIPPOCAMPE-JEMA-07\nMD JEMA\\2008\\1-CHIEN-JEMA-08\nMD JEMA\\2008\\2-CHAT-JEMA-08\nMD JEMA\\2008\\3-POULPE-JEMA-08\nMD JEMA\\2008\\4-HIPPOCAMPE-JEMA-08\nMD JEMA\\2009\\1-CHIEN-JEMA-09\nMD JEMA\\2009\\2-CHAT-JEMA-09\nMD JEMA\\2009\\3-POULPE-JEMA-09\nMD JEMA\\2009\\4-HIPPOCAMPE-JEMA-09\nMD JEMA\\2010\\1-CHIEN-JEMA-10\nMD JEMA\\2010\\2-CHAT-JEMA-10\nMD JEMA\\2010\\3-POULPE-JEMA-10\nMD JEMA\\2010\\4-HIPPOCAMPE-JEMA-10\nMD JEMA\\2011\\1-CHIEN-JEMA-11\nMD JEMA\\2011\\2-CHAT-JEMA-11\nMD JEMA\\2011\\3-POULPE-JEMA-11\nMD JEMA\\2011\\4-HIPPOCAMPE-JEMA-11\nMD JEMA\\2012\\1-CHIEN-JEMA-12\nMD JEMA\\2012\\2-CHAT-JEMA-12\nMD JEMA\\2012\\3-POULPE-JEMA-12\nMD JEMA\\2012\\4-HIPPOCAMPE-JEMA-12\nMD NOEM\\2006\\1-CHIEN-NOEM-06\nMD NOEM\\2006\\2-CHAT-NOEM-06\nMD NOEM\\2006\\3-POULPE-NOEM-06\nMD NOEM\\2006\\4-HIPPOCAMPE-NOEM-06\nMD NOEM\\2007\\1-CHIEN-NOEM-07\nMD NOEM\\2007\\2-CHAT-NOEM-07\nMD NOEM\\2007\\3-POULPE-NOEM-07\nMD NOEM\\2007\\4-HIPPOCAMPE-NOEM-07\nMD NOEM\\2008\\1-CHIEN-NOEM-08\nMD NOEM\\2008\\2-CHAT-NOEM-08\nMD NOEM\\2008\\3-POULPE-NOEM-08\nMD NOEM\\2008\\4-HIPPOCAMPE-NOEM-08\nMD NOEM\\2009\\1-CHIEN-NOEM-09\nMD NOEM\\2009\\2-CHAT-NOEM-09\nMD NOEM\\2009\\3-POULPE-NOEM-09\nMD NOEM\\2009\\4-HIPPOCAMPE-NOEM-09\nMD NOEM\\2010\\1-CHIEN-NOEM-10\nMD NOEM\\2010\\2-CHAT-NOEM-10\nMD NOEM\\2010\\3-POULPE-NOEM-10\nMD NOEM\\2010\\4-HIPPOCAMPE-NOEM-10\nMD NOEM\\2011\\1-CHIEN-NOEM-11\nMD NOEM\\2011\\2-CHAT-NOEM-11\nMD NOEM\\2011\\3-POULPE-NOEM-11\nMD NOEM\\2011\\4-HIPPOCAMPE-NOEM-11\nMD NOEM\\2012\\1-CHIEN-NOEM-12\nMD NOEM\\2012\\2-CHAT-NOEM-12\nMD NOEM\\2012\\3-POULPE-NOEM-12"}]
[{"$f":"IF(ROWS($C$20:C74)<Nb_Liste*Nb_Années*Nb_Animaux,IF(B75>=B74,A74,INDEX(Liste,MATCH(A74,Liste,0)+1)),\"\")","v":"NOEM"},{"$f":"IF(ROWS($C$20:C74)<Nb_Liste*Nb_Années*Nb_Animaux,(C75=INDEX(Animaux,1))*(1-Nb_Années*(B74=Max_Années))+B74,\"\")","v":2012},{"$f":"IF(ROWS($C$20:C74)<Nb_Liste*Nb_Années*Nb_Animaux,INDEX(Animaux,MOD(MATCH(C74,Animaux,0),Nb_Animaux)+1),\"\")","v":"4-HIPPOCAMPE"},null,{"$f":"IF(ROWS($C$20:C74)<Nb_Liste*Nb_Années*Nb_Animaux,E74&CHAR(10)&\"MD \"&A75&\"\\\"&B75&\"\\\"&C75&\"-\"&A75&\"-\"&RIGHT(TEXT(B75,\"0000\"),2),\"\")","v":"CD C:\\Users\\jvdo\\Documents\\forum\\test\nMD JEMA\\2006\\1-CHIEN-JEMA-06\nMD JEMA\\2006\\2-CHAT-JEMA-06\nMD JEMA\\2006\\3-POULPE-JEMA-06\nMD JEMA\\2006\\4-HIPPOCAMPE-JEMA-06\nMD JEMA\\2007\\1-CHIEN-JEMA-07\nMD JEMA\\2007\\2-CHAT-JEMA-07\nMD JEMA\\2007\\3-POULPE-JEMA-07\nMD JEMA\\2007\\4-HIPPOCAMPE-JEMA-07\nMD JEMA\\2008\\1-CHIEN-JEMA-08\nMD JEMA\\2008\\2-CHAT-JEMA-08\nMD JEMA\\2008\\3-POULPE-JEMA-08\nMD JEMA\\2008\\4-HIPPOCAMPE-JEMA-08\nMD JEMA\\2009\\1-CHIEN-JEMA-09\nMD JEMA\\2009\\2-CHAT-JEMA-09\nMD JEMA\\2009\\3-POULPE-JEMA-09\nMD JEMA\\2009\\4-HIPPOCAMPE-JEMA-09\nMD JEMA\\2010\\1-CHIEN-JEMA-10\nMD JEMA\\2010\\2-CHAT-JEMA-10\nMD JEMA\\2010\\3-POULPE-JEMA-10\nMD JEMA\\2010\\4-HIPPOCAMPE-JEMA-10\nMD JEMA\\2011\\1-CHIEN-JEMA-11\nMD JEMA\\2011\\2-CHAT-JEMA-11\nMD JEMA\\2011\\3-POULPE-JEMA-11\nMD JEMA\\2011\\4-HIPPOCAMPE-JEMA-11\nMD JEMA\\2012\\1-CHIEN-JEMA-12\nMD JEMA\\2012\\2-CHAT-JEMA-12\nMD JEMA\\2012\\3-POULPE-JEMA-12\nMD JEMA\\2012\\4-HIPPOCAMPE-JEMA-12\nMD NOEM\\2006\\1-CHIEN-NOEM-06\nMD NOEM\\2006\\2-CHAT-NOEM-06\nMD NOEM\\2006\\3-POULPE-NOEM-06\nMD NOEM\\2006\\4-HIPPOCAMPE-NOEM-06\nMD NOEM\\2007\\1-CHIEN-NOEM-07\nMD NOEM\\2007\\2-CHAT-NOEM-07\nMD NOEM\\2007\\3-POULPE-NOEM-07\nMD NOEM\\2007\\4-HIPPOCAMPE-NOEM-07\nMD NOEM\\2008\\1-CHIEN-NOEM-08\nMD NOEM\\2008\\2-CHAT-NOEM-08\nMD NOEM\\2008\\3-POULPE-NOEM-08\nMD NOEM\\2008\\4-HIPPOCAMPE-NOEM-08\nMD NOEM\\2009\\1-CHIEN-NOEM-09\nMD NOEM\\2009\\2-CHAT-NOEM-09\nMD NOEM\\2009\\3-POULPE-NOEM-09\nMD NOEM\\2009\\4-HIPPOCAMPE-NOEM-09\nMD NOEM\\2010\\1-CHIEN-NOEM-10\nMD NOEM\\2010\\2-CHAT-NOEM-10\nMD NOEM\\2010\\3-POULPE-NOEM-10\nMD NOEM\\2010\\4-HIPPOCAMPE-NOEM-10\nMD NOEM\\2011\\1-CHIEN-NOEM-11\nMD NOEM\\2011\\2-CHAT-NOEM-11\nMD NOEM\\2011\\3-POULPE-NOEM-11\nMD NOEM\\2011\\4-HIPPOCAMPE-NOEM-11\nMD NOEM\\2012\\1-CHIEN-NOEM-12\nMD NOEM\\2012\\2-CHAT-NOEM-12\nMD NOEM\\2012\\3-POULPE-NOEM-12\nMD NOEM\\2012\\4-HIPPOCAMPE-NOEM-12"}]
[{"$f":"IF(ROWS($C$20:C75)<Nb_Liste*Nb_Années*Nb_Animaux,IF(B76>=B75,A75,INDEX(Liste,MATCH(A75,Liste,0)+1)),\"\")","v":"ESCH"},{"$f":"IF(ROWS($C$20:C75)<Nb_Liste*Nb_Années*Nb_Animaux,(C76=INDEX(Animaux,1))*(1-Nb_Années*(B75=Max_Années))+B75,\"\")","v":2006},{"$f":"IF(ROWS($C$20:C75)<Nb_Liste*Nb_Années*Nb_Animaux,INDEX(Animaux,MOD(MATCH(C75,Animaux,0),Nb_Animaux)+1),\"\")","v":"1-CHIEN"},null,{"$f":"IF(ROWS($C$20:C75)<Nb_Liste*Nb_Années*Nb_Animaux,E75&CHAR(10)&\"MD \"&A76&\"\\\"&B76&\"\\\"&C76&\"-\"&A76&\"-\"&RIGHT(TEXT(B76,\"0000\"),2),\"\")","v":"CD C:\\Users\\jvdo\\Documents\\forum\\test\nMD JEMA\\2006\\1-CHIEN-JEMA-06\nMD JEMA\\2006\\2-CHAT-JEMA-06\nMD JEMA\\2006\\3-POULPE-JEMA-06\nMD JEMA\\2006\\4-HIPPOCAMPE-JEMA-06\nMD JEMA\\2007\\1-CHIEN-JEMA-07\nMD JEMA\\2007\\2-CHAT-JEMA-07\nMD JEMA\\2007\\3-POULPE-JEMA-07\nMD JEMA\\2007\\4-HIPPOCAMPE-JEMA-07\nMD JEMA\\2008\\1-CHIEN-JEMA-08\nMD JEMA\\2008\\2-CHAT-JEMA-08\nMD JEMA\\2008\\3-POULPE-JEMA-08\nMD JEMA\\2008\\4-HIPPOCAMPE-JEMA-08\nMD JEMA\\2009\\1-CHIEN-JEMA-09\nMD JEMA\\2009\\2-CHAT-JEMA-09\nMD JEMA\\2009\\3-POULPE-JEMA-09\nMD JEMA\\2009\\4-HIPPOCAMPE-JEMA-09\nMD JEMA\\2010\\1-CHIEN-JEMA-10\nMD JEMA\\2010\\2-CHAT-JEMA-10\nMD JEMA\\2010\\3-POULPE-JEMA-10\nMD JEMA\\2010\\4-HIPPOCAMPE-JEMA-10\nMD JEMA\\2011\\1-CHIEN-JEMA-11\nMD JEMA\\2011\\2-CHAT-JEMA-11\nMD JEMA\\2011\\3-POULPE-JEMA-11\nMD JEMA\\2011\\4-HIPPOCAMPE-JEMA-11\nMD JEMA\\2012\\1-CHIEN-JEMA-12\nMD JEMA\\2012\\2-CHAT-JEMA-12\nMD JEMA\\2012\\3-POULPE-JEMA-12\nMD JEMA\\2012\\4-HIPPOCAMPE-JEMA-12\nMD NOEM\\2006\\1-CHIEN-NOEM-06\nMD NOEM\\2006\\2-CHAT-NOEM-06\nMD NOEM\\2006\\3-POULPE-NOEM-06\nMD NOEM\\2006\\4-HIPPOCAMPE-NOEM-06\nMD NOEM\\2007\\1-CHIEN-NOEM-07\nMD NOEM\\2007\\2-CHAT-NOEM-07\nMD NOEM\\2007\\3-POULPE-NOEM-07\nMD NOEM\\2007\\4-HIPPOCAMPE-NOEM-07\nMD NOEM\\2008\\1-CHIEN-NOEM-08\nMD NOEM\\2008\\2-CHAT-NOEM-08\nMD NOEM\\2008\\3-POULPE-NOEM-08\nMD NOEM\\2008\\4-HIPPOCAMPE-NOEM-08\nMD NOEM\\2009\\1-CHIEN-NOEM-09\nMD NOEM\\2009\\2-CHAT-NOEM-09\nMD NOEM\\2009\\3-POULPE-NOEM-09\nMD NOEM\\2009\\4-HIPPOCAMPE-NOEM-09\nMD NOEM\\2010\\1-CHIEN-NOEM-10\nMD NOEM\\2010\\2-CHAT-NOEM-10\nMD NOEM\\2010\\3-POULPE-NOEM-10\nMD NOEM\\2010\\4-HIPPOCAMPE-NOEM-10\nMD NOEM\\2011\\1-CHIEN-NOEM-11\nMD NOEM\\2011\\2-CHAT-NOEM-11\nMD NOEM\\2011\\3-POULPE-NOEM-11\nMD NOEM\\2011\\4-HIPPOCAMPE-NOEM-11\nMD NOEM\\2012\\1-CHIEN-NOEM-12\nMD NOEM\\2012\\2-CHAT-NOEM-12\nMD NOEM\\2012\\3-POULPE-NOEM-12\nMD NOEM\\2012\\4-HIPPOCAMPE-NOEM-12\nMD ESCH\\2006\\1-CHIEN-ESCH-06"}]
[{"$f":"IF(ROWS($C$20:C76)<Nb_Liste*Nb_Années*Nb_Animaux,IF(B77>=B76,A76,INDEX(Liste,MATCH(A76,Liste,0)+1)),\"\")","v":"ESCH"},{"$f":"IF(ROWS($C$20:C76)<Nb_Liste*Nb_Années*Nb_Animaux,(C77=INDEX(Animaux,1))*(1-Nb_Années*(B76=Max_Années))+B76,\"\")","v":2006},{"$f":"IF(ROWS($C$20:C76)<Nb_Liste*Nb_Années*Nb_Animaux,INDEX(Animaux,MOD(MATCH(C76,Animaux,0),Nb_Animaux)+1),\"\")","v":"2-CHAT"},null,{"$f":"IF(ROWS($C$20:C76)<Nb_Liste*Nb_Années*Nb_Animaux,E76&CHAR(10)&\"MD \"&A77&\"\\\"&B77&\"\\\"&C77&\"-\"&A77&\"-\"&RIGHT(TEXT(B77,\"0000\"),2),\"\")","v":"CD C:\\Users\\jvdo\\Documents\\forum\\test\nMD JEMA\\2006\\1-CHIEN-JEMA-06\nMD JEMA\\2006\\2-CHAT-JEMA-06\nMD JEMA\\2006\\3-POULPE-JEMA-06\nMD JEMA\\2006\\4-HIPPOCAMPE-JEMA-06\nMD JEMA\\2007\\1-CHIEN-JEMA-07\nMD JEMA\\2007\\2-CHAT-JEMA-07\nMD JEMA\\2007\\3-POULPE-JEMA-07\nMD JEMA\\2007\\4-HIPPOCAMPE-JEMA-07\nMD JEMA\\2008\\1-CHIEN-JEMA-08\nMD JEMA\\2008\\2-CHAT-JEMA-08\nMD JEMA\\2008\\3-POULPE-JEMA-08\nMD JEMA\\2008\\4-HIPPOCAMPE-JEMA-08\nMD JEMA\\2009\\1-CHIEN-JEMA-09\nMD JEMA\\2009\\2-CHAT-JEMA-09\nMD JEMA\\2009\\3-POULPE-JEMA-09\nMD JEMA\\2009\\4-HIPPOCAMPE-JEMA-09\nMD JEMA\\2010\\1-CHIEN-JEMA-10\nMD JEMA\\2010\\2-CHAT-JEMA-10\nMD JEMA\\2010\\3-POULPE-JEMA-10\nMD JEMA\\2010\\4-HIPPOCAMPE-JEMA-10\nMD JEMA\\2011\\1-CHIEN-JEMA-11\nMD JEMA\\2011\\2-CHAT-JEMA-11\nMD JEMA\\2011\\3-POULPE-JEMA-11\nMD JEMA\\2011\\4-HIPPOCAMPE-JEMA-11\nMD JEMA\\2012\\1-CHIEN-JEMA-12\nMD JEMA\\2012\\2-CHAT-JEMA-12\nMD JEMA\\2012\\3-POULPE-JEMA-12\nMD JEMA\\2012\\4-HIPPOCAMPE-JEMA-12\nMD NOEM\\2006\\1-CHIEN-NOEM-06\nMD NOEM\\2006\\2-CHAT-NOEM-06\nMD NOEM\\2006\\3-POULPE-NOEM-06\nMD NOEM\\2006\\4-HIPPOCAMPE-NOEM-06\nMD NOEM\\2007\\1-CHIEN-NOEM-07\nMD NOEM\\2007\\2-CHAT-NOEM-07\nMD NOEM\\2007\\3-POULPE-NOEM-07\nMD NOEM\\2007\\4-HIPPOCAMPE-NOEM-07\nMD NOEM\\2008\\1-CHIEN-NOEM-08\nMD NOEM\\2008\\2-CHAT-NOEM-08\nMD NOEM\\2008\\3-POULPE-NOEM-08\nMD NOEM\\2008\\4-HIPPOCAMPE-NOEM-08\nMD NOEM\\2009\\1-CHIEN-NOEM-09\nMD NOEM\\2009\\2-CHAT-NOEM-09\nMD NOEM\\2009\\3-POULPE-NOEM-09\nMD NOEM\\2009\\4-HIPPOCAMPE-NOEM-09\nMD NOEM\\2010\\1-CHIEN-NOEM-10\nMD NOEM\\2010\\2-CHAT-NOEM-10\nMD NOEM\\2010\\3-POULPE-NOEM-10\nMD NOEM\\2010\\4-HIPPOCAMPE-NOEM-10\nMD NOEM\\2011\\1-CHIEN-NOEM-11\nMD NOEM\\2011\\2-CHAT-NOEM-11\nMD NOEM\\2011\\3-POULPE-NOEM-11\nMD NOEM\\2011\\4-HIPPOCAMPE-NOEM-11\nMD NOEM\\2012\\1-CHIEN-NOEM-12\nMD NOEM\\2012\\2-CHAT-NOEM-12\nMD NOEM\\2012\\3-POULPE-NOEM-12\nMD NOEM\\2012\\4-HIPPOCAMPE-NOEM-12\nMD ESCH\\2006\\1-CHIEN-ESCH-06\nMD ESCH\\2006\\2-CHAT-ESCH-06"}]
[{"$f":"IF(ROWS($C$20:C77)<Nb_Liste*Nb_Années*Nb_Animaux,IF(B78>=B77,A77,INDEX(Liste,MATCH(A77,Liste,0)+1)),\"\")","v":"ESCH"},{"$f":"IF(ROWS($C$20:C77)<Nb_Liste*Nb_Années*Nb_Animaux,(C78=INDEX(Animaux,1))*(1-Nb_Années*(B77=Max_Années))+B77,\"\")","v":2006},{"$f":"IF(ROWS($C$20:C77)<Nb_Liste*Nb_Années*Nb_Animaux,INDEX(Animaux,MOD(MATCH(C77,Animaux,0),Nb_Animaux)+1),\"\")","v":"3-POULPE"},null,{"$f":"IF(ROWS($C$20:C77)<Nb_Liste*Nb_Années*Nb_Animaux,E77&CHAR(10)&\"MD \"&A78&\"\\\"&B78&\"\\\"&C78&\"-\"&A78&\"-\"&RIGHT(TEXT(B78,\"0000\"),2),\"\")","v":"CD C:\\Users\\jvdo\\Documents\\forum\\test\nMD JEMA\\2006\\1-CHIEN-JEMA-06\nMD JEMA\\2006\\2-CHAT-JEMA-06\nMD JEMA\\2006\\3-POULPE-JEMA-06\nMD JEMA\\2006\\4-HIPPOCAMPE-JEMA-06\nMD JEMA\\2007\\1-CHIEN-JEMA-07\nMD JEMA\\2007\\2-CHAT-JEMA-07\nMD JEMA\\2007\\3-POULPE-JEMA-07\nMD JEMA\\2007\\4-HIPPOCAMPE-JEMA-07\nMD JEMA\\2008\\1-CHIEN-JEMA-08\nMD JEMA\\2008\\2-CHAT-JEMA-08\nMD JEMA\\2008\\3-POULPE-JEMA-08\nMD JEMA\\2008\\4-HIPPOCAMPE-JEMA-08\nMD JEMA\\2009\\1-CHIEN-JEMA-09\nMD JEMA\\2009\\2-CHAT-JEMA-09\nMD JEMA\\2009\\3-POULPE-JEMA-09\nMD JEMA\\2009\\4-HIPPOCAMPE-JEMA-09\nMD JEMA\\2010\\1-CHIEN-JEMA-10\nMD JEMA\\2010\\2-CHAT-JEMA-10\nMD JEMA\\2010\\3-POULPE-JEMA-10\nMD JEMA\\2010\\4-HIPPOCAMPE-JEMA-10\nMD JEMA\\2011\\1-CHIEN-JEMA-11\nMD JEMA\\2011\\2-CHAT-JEMA-11\nMD JEMA\\2011\\3-POULPE-JEMA-11\nMD JEMA\\2011\\4-HIPPOCAMPE-JEMA-11\nMD JEMA\\2012\\1-CHIEN-JEMA-12\nMD JEMA\\2012\\2-CHAT-JEMA-12\nMD JEMA\\2012\\3-POULPE-JEMA-12\nMD JEMA\\2012\\4-HIPPOCAMPE-JEMA-12\nMD NOEM\\2006\\1-CHIEN-NOEM-06\nMD NOEM\\2006\\2-CHAT-NOEM-06\nMD NOEM\\2006\\3-POULPE-NOEM-06\nMD NOEM\\2006\\4-HIPPOCAMPE-NOEM-06\nMD NOEM\\2007\\1-CHIEN-NOEM-07\nMD NOEM\\2007\\2-CHAT-NOEM-07\nMD NOEM\\2007\\3-POULPE-NOEM-07\nMD NOEM\\2007\\4-HIPPOCAMPE-NOEM-07\nMD NOEM\\2008\\1-CHIEN-NOEM-08\nMD NOEM\\2008\\2-CHAT-NOEM-08\nMD NOEM\\2008\\3-POULPE-NOEM-08\nMD NOEM\\2008\\4-HIPPOCAMPE-NOEM-08\nMD NOEM\\2009\\1-CHIEN-NOEM-09\nMD NOEM\\2009\\2-CHAT-NOEM-09\nMD NOEM\\2009\\3-POULPE-NOEM-09\nMD NOEM\\2009\\4-HIPPOCAMPE-NOEM-09\nMD NOEM\\2010\\1-CHIEN-NOEM-10\nMD NOEM\\2010\\2-CHAT-NOEM-10\nMD NOEM\\2010\\3-POULPE-NOEM-10\nMD NOEM\\2010\\4-HIPPOCAMPE-NOEM-10\nMD NOEM\\2011\\1-CHIEN-NOEM-11\nMD NOEM\\2011\\2-CHAT-NOEM-11\nMD NOEM\\2011\\3-POULPE-NOEM-11\nMD NOEM\\2011\\4-HIPPOCAMPE-NOEM-11\nMD NOEM\\2012\\1-CHIEN-NOEM-12\nMD NOEM\\2012\\2-CHAT-NOEM-12\nMD NOEM\\2012\\3-POULPE-NOEM-12\nMD NOEM\\2012\\4-HIPPOCAMPE-NOEM-12\nMD ESCH\\2006\\1-CHIEN-ESCH-06\nMD ESCH\\2006\\2-CHAT-ESCH-06\nMD ESCH\\2006\\3-POULPE-ESCH-06"}]
[{"$f":"IF(ROWS($C$20:C78)<Nb_Liste*Nb_Années*Nb_Animaux,IF(B79>=B78,A78,INDEX(Liste,MATCH(A78,Liste,0)+1)),\"\")","v":"ESCH"},{"$f":"IF(ROWS($C$20:C78)<Nb_Liste*Nb_Années*Nb_Animaux,(C79=INDEX(Animaux,1))*(1-Nb_Années*(B78=Max_Années))+B78,\"\")","v":2006},{"$f":"IF(ROWS($C$20:C78)<Nb_Liste*Nb_Années*Nb_Animaux,INDEX(Animaux,MOD(MATCH(C78,Animaux,0),Nb_Animaux)+1),\"\")","v":"4-HIPPOCAMPE"},null,{"$f":"IF(ROWS($C$20:C78)<Nb_Liste*Nb_Années*Nb_Animaux,E78&CHAR(10)&\"MD \"&A79&\"\\\"&B79&\"\\\"&C79&\"-\"&A79&\"-\"&RIGHT(TEXT(B79,\"0000\"),2),\"\")","v":"CD C:\\Users\\jvdo\\Documents\\forum\\test\nMD JEMA\\2006\\1-CHIEN-JEMA-06\nMD JEMA\\2006\\2-CHAT-JEMA-06\nMD JEMA\\2006\\3-POULPE-JEMA-06\nMD JEMA\\2006\\4-HIPPOCAMPE-JEMA-06\nMD JEMA\\2007\\1-CHIEN-JEMA-07\nMD JEMA\\2007\\2-CHAT-JEMA-07\nMD JEMA\\2007\\3-POULPE-JEMA-07\nMD JEMA\\2007\\4-HIPPOCAMPE-JEMA-07\nMD JEMA\\2008\\1-CHIEN-JEMA-08\nMD JEMA\\2008\\2-CHAT-JEMA-08\nMD JEMA\\2008\\3-POULPE-JEMA-08\nMD JEMA\\2008\\4-HIPPOCAMPE-JEMA-08\nMD JEMA\\2009\\1-CHIEN-JEMA-09\nMD JEMA\\2009\\2-CHAT-JEMA-09\nMD JEMA\\2009\\3-POULPE-JEMA-09\nMD JEMA\\2009\\4-HIPPOCAMPE-JEMA-09\nMD JEMA\\2010\\1-CHIEN-JEMA-10\nMD JEMA\\2010\\2-CHAT-JEMA-10\nMD JEMA\\2010\\3-POULPE-JEMA-10\nMD JEMA\\2010\\4-HIPPOCAMPE-JEMA-10\nMD JEMA\\2011\\1-CHIEN-JEMA-11\nMD JEMA\\2011\\2-CHAT-JEMA-11\nMD JEMA\\2011\\3-POULPE-JEMA-11\nMD JEMA\\2011\\4-HIPPOCAMPE-JEMA-11\nMD JEMA\\2012\\1-CHIEN-JEMA-12\nMD JEMA\\2012\\2-CHAT-JEMA-12\nMD JEMA\\2012\\3-POULPE-JEMA-12\nMD JEMA\\2012\\4-HIPPOCAMPE-JEMA-12\nMD NOEM\\2006\\1-CHIEN-NOEM-06\nMD NOEM\\2006\\2-CHAT-NOEM-06\nMD NOEM\\2006\\3-POULPE-NOEM-06\nMD NOEM\\2006\\4-HIPPOCAMPE-NOEM-06\nMD NOEM\\2007\\1-CHIEN-NOEM-07\nMD NOEM\\2007\\2-CHAT-NOEM-07\nMD NOEM\\2007\\3-POULPE-NOEM-07\nMD NOEM\\2007\\4-HIPPOCAMPE-NOEM-07\nMD NOEM\\2008\\1-CHIEN-NOEM-08\nMD NOEM\\2008\\2-CHAT-NOEM-08\nMD NOEM\\2008\\3-POULPE-NOEM-08\nMD NOEM\\2008\\4-HIPPOCAMPE-NOEM-08\nMD NOEM\\2009\\1-CHIEN-NOEM-09\nMD NOEM\\2009\\2-CHAT-NOEM-09\nMD NOEM\\2009\\3-POULPE-NOEM-09\nMD NOEM\\2009\\4-HIPPOCAMPE-NOEM-09\nMD NOEM\\2010\\1-CHIEN-NOEM-10\nMD NOEM\\2010\\2-CHAT-NOEM-10\nMD NOEM\\2010\\3-POULPE-NOEM-10\nMD NOEM\\2010\\4-HIPPOCAMPE-NOEM-10\nMD NOEM\\2011\\1-CHIEN-NOEM-11\nMD NOEM\\2011\\2-CHAT-NOEM-11\nMD NOEM\\2011\\3-POULPE-NOEM-11\nMD NOEM\\2011\\4-HIPPOCAMPE-NOEM-11\nMD NOEM\\2012\\1-CHIEN-NOEM-12\nMD NOEM\\2012\\2-CHAT-NOEM-12\nMD NOEM\\2012\\3-POULPE-NOEM-12\nMD NOEM\\2012\\4-HIPPOCAMPE-NOEM-12\nMD ESCH\\2006\\1-CHIEN-ESCH-06\nMD ESCH\\2006\\2-CHAT-ESCH-06\nMD ESCH\\2006\\3-POULPE-ESCH-06\nMD ESCH\\2006\\4-HIPPOCAMPE-ESCH-06"}]
[{"$f":"IF(ROWS($C$20:C79)<Nb_Liste*Nb_Années*Nb_Animaux,IF(B80>=B79,A79,INDEX(Liste,MATCH(A79,Liste,0)+1)),\"\")","v":"ESCH"},{"$f":"IF(ROWS($C$20:C79)<Nb_Liste*Nb_Années*Nb_Animaux,(C80=INDEX(Animaux,1))*(1-Nb_Années*(B79=Max_Années))+B79,\"\")","v":2007},{"$f":"IF(ROWS($C$20:C79)<Nb_Liste*Nb_Années*Nb_Animaux,INDEX(Animaux,MOD(MATCH(C79,Animaux,0),Nb_Animaux)+1),\"\")","v":"1-CHIEN"},null,{"$f":"IF(ROWS($C$20:C79)<Nb_Liste*Nb_Années*Nb_Animaux,E79&CHAR(10)&\"MD \"&A80&\"\\\"&B80&\"\\\"&C80&\"-\"&A80&\"-\"&RIGHT(TEXT(B80,\"0000\"),2),\"\")","v":"CD C:\\Users\\jvdo\\Documents\\forum\\test\nMD JEMA\\2006\\1-CHIEN-JEMA-06\nMD JEMA\\2006\\2-CHAT-JEMA-06\nMD JEMA\\2006\\3-POULPE-JEMA-06\nMD JEMA\\2006\\4-HIPPOCAMPE-JEMA-06\nMD JEMA\\2007\\1-CHIEN-JEMA-07\nMD JEMA\\2007\\2-CHAT-JEMA-07\nMD JEMA\\2007\\3-POULPE-JEMA-07\nMD JEMA\\2007\\4-HIPPOCAMPE-JEMA-07\nMD JEMA\\2008\\1-CHIEN-JEMA-08\nMD JEMA\\2008\\2-CHAT-JEMA-08\nMD JEMA\\2008\\3-POULPE-JEMA-08\nMD JEMA\\2008\\4-HIPPOCAMPE-JEMA-08\nMD JEMA\\2009\\1-CHIEN-JEMA-09\nMD JEMA\\2009\\2-CHAT-JEMA-09\nMD JEMA\\2009\\3-POULPE-JEMA-09\nMD JEMA\\2009\\4-HIPPOCAMPE-JEMA-09\nMD JEMA\\2010\\1-CHIEN-JEMA-10\nMD JEMA\\2010\\2-CHAT-JEMA-10\nMD JEMA\\2010\\3-POULPE-JEMA-10\nMD JEMA\\2010\\4-HIPPOCAMPE-JEMA-10\nMD JEMA\\2011\\1-CHIEN-JEMA-11\nMD JEMA\\2011\\2-CHAT-JEMA-11\nMD JEMA\\2011\\3-POULPE-JEMA-11\nMD JEMA\\2011\\4-HIPPOCAMPE-JEMA-11\nMD JEMA\\2012\\1-CHIEN-JEMA-12\nMD JEMA\\2012\\2-CHAT-JEMA-12\nMD JEMA\\2012\\3-POULPE-JEMA-12\nMD JEMA\\2012\\4-HIPPOCAMPE-JEMA-12\nMD NOEM\\2006\\1-CHIEN-NOEM-06\nMD NOEM\\2006\\2-CHAT-NOEM-06\nMD NOEM\\2006\\3-POULPE-NOEM-06\nMD NOEM\\2006\\4-HIPPOCAMPE-NOEM-06\nMD NOEM\\2007\\1-CHIEN-NOEM-07\nMD NOEM\\2007\\2-CHAT-NOEM-07\nMD NOEM\\2007\\3-POULPE-NOEM-07\nMD NOEM\\2007\\4-HIPPOCAMPE-NOEM-07\nMD NOEM\\2008\\1-CHIEN-NOEM-08\nMD NOEM\\2008\\2-CHAT-NOEM-08\nMD NOEM\\2008\\3-POULPE-NOEM-08\nMD NOEM\\2008\\4-HIPPOCAMPE-NOEM-08\nMD NOEM\\2009\\1-CHIEN-NOEM-09\nMD NOEM\\2009\\2-CHAT-NOEM-09\nMD NOEM\\2009\\3-POULPE-NOEM-09\nMD NOEM\\2009\\4-HIPPOCAMPE-NOEM-09\nMD NOEM\\2010\\1-CHIEN-NOEM-10\nMD NOEM\\2010\\2-CHAT-NOEM-10\nMD NOEM\\2010\\3-POULPE-NOEM-10\nMD NOEM\\2010\\4-HIPPOCAMPE-NOEM-10\nMD NOEM\\2011\\1-CHIEN-NOEM-11\nMD NOEM\\2011\\2-CHAT-NOEM-11\nMD NOEM\\2011\\3-POULPE-NOEM-11\nMD NOEM\\2011\\4-HIPPOCAMPE-NOEM-11\nMD NOEM\\2012\\1-CHIEN-NOEM-12\nMD NOEM\\2012\\2-CHAT-NOEM-12\nMD NOEM\\2012\\3-POULPE-NOEM-12\nMD NOEM\\2012\\4-HIPPOCAMPE-NOEM-12\nMD ESCH\\2006\\1-CHIEN-ESCH-06\nMD ESCH\\2006\\2-CHAT-ESCH-06\nMD ESCH\\2006\\3-POULPE-ESCH-06\nMD ESCH\\2006\\4-HIPPOCAMPE-ESCH-06\nMD ESCH\\2007\\1-CHIEN-ESCH-07"}]
[{"$f":"IF(ROWS($C$20:C80)<Nb_Liste*Nb_Années*Nb_Animaux,IF(B81>=B80,A80,INDEX(Liste,MATCH(A80,Liste,0)+1)),\"\")","v":"ESCH"},{"$f":"IF(ROWS($C$20:C80)<Nb_Liste*Nb_Années*Nb_Animaux,(C81=INDEX(Animaux,1))*(1-Nb_Années*(B80=Max_Années))+B80,\"\")","v":2007},{"$f":"IF(ROWS($C$20:C80)<Nb_Liste*Nb_Années*Nb_Animaux,INDEX(Animaux,MOD(MATCH(C80,Animaux,0),Nb_Animaux)+1),\"\")","v":"2-CHAT"},null,{"$f":"IF(ROWS($C$20:C80)<Nb_Liste*Nb_Années*Nb_Animaux,E80&CHAR(10)&\"MD \"&A81&\"\\\"&B81&\"\\\"&C81&\"-\"&A81&\"-\"&RIGHT(TEXT(B81,\"0000\"),2),\"\")","v":"CD C:\\Users\\jvdo\\Documents\\forum\\test\nMD JEMA\\2006\\1-CHIEN-JEMA-06\nMD JEMA\\2006\\2-CHAT-JEMA-06\nMD JEMA\\2006\\3-POULPE-JEMA-06\nMD JEMA\\2006\\4-HIPPOCAMPE-JEMA-06\nMD JEMA\\2007\\1-CHIEN-JEMA-07\nMD JEMA\\2007\\2-CHAT-JEMA-07\nMD JEMA\\2007\\3-POULPE-JEMA-07\nMD JEMA\\2007\\4-HIPPOCAMPE-JEMA-07\nMD JEMA\\2008\\1-CHIEN-JEMA-08\nMD JEMA\\2008\\2-CHAT-JEMA-08\nMD JEMA\\2008\\3-POULPE-JEMA-08\nMD JEMA\\2008\\4-HIPPOCAMPE-JEMA-08\nMD JEMA\\2009\\1-CHIEN-JEMA-09\nMD JEMA\\2009\\2-CHAT-JEMA-09\nMD JEMA\\2009\\3-POULPE-JEMA-09\nMD JEMA\\2009\\4-HIPPOCAMPE-JEMA-09\nMD JEMA\\2010\\1-CHIEN-JEMA-10\nMD JEMA\\2010\\2-CHAT-JEMA-10\nMD JEMA\\2010\\3-POULPE-JEMA-10\nMD JEMA\\2010\\4-HIPPOCAMPE-JEMA-10\nMD JEMA\\2011\\1-CHIEN-JEMA-11\nMD JEMA\\2011\\2-CHAT-JEMA-11\nMD JEMA\\2011\\3-POULPE-JEMA-11\nMD JEMA\\2011\\4-HIPPOCAMPE-JEMA-11\nMD JEMA\\2012\\1-CHIEN-JEMA-12\nMD JEMA\\2012\\2-CHAT-JEMA-12\nMD JEMA\\2012\\3-POULPE-JEMA-12\nMD JEMA\\2012\\4-HIPPOCAMPE-JEMA-12\nMD NOEM\\2006\\1-CHIEN-NOEM-06\nMD NOEM\\2006\\2-CHAT-NOEM-06\nMD NOEM\\2006\\3-POULPE-NOEM-06\nMD NOEM\\2006\\4-HIPPOCAMPE-NOEM-06\nMD NOEM\\2007\\1-CHIEN-NOEM-07\nMD NOEM\\2007\\2-CHAT-NOEM-07\nMD NOEM\\2007\\3-POULPE-NOEM-07\nMD NOEM\\2007\\4-HIPPOCAMPE-NOEM-07\nMD NOEM\\2008\\1-CHIEN-NOEM-08\nMD NOEM\\2008\\2-CHAT-NOEM-08\nMD NOEM\\2008\\3-POULPE-NOEM-08\nMD NOEM\\2008\\4-HIPPOCAMPE-NOEM-08\nMD NOEM\\2009\\1-CHIEN-NOEM-09\nMD NOEM\\2009\\2-CHAT-NOEM-09\nMD NOEM\\2009\\3-POULPE-NOEM-09\nMD NOEM\\2009\\4-HIPPOCAMPE-NOEM-09\nMD NOEM\\2010\\1-CHIEN-NOEM-10\nMD NOEM\\2010\\2-CHAT-NOEM-10\nMD NOEM\\2010\\3-POULPE-NOEM-10\nMD NOEM\\2010\\4-HIPPOCAMPE-NOEM-10\nMD NOEM\\2011\\1-CHIEN-NOEM-11\nMD NOEM\\2011\\2-CHAT-NOEM-11\nMD NOEM\\2011\\3-POULPE-NOEM-11\nMD NOEM\\2011\\4-HIPPOCAMPE-NOEM-11\nMD NOEM\\2012\\1-CHIEN-NOEM-12\nMD NOEM\\2012\\2-CHAT-NOEM-12\nMD NOEM\\2012\\3-POULPE-NOEM-12\nMD NOEM\\2012\\4-HIPPOCAMPE-NOEM-12\nMD ESCH\\2006\\1-CHIEN-ESCH-06\nMD ESCH\\2006\\2-CHAT-ESCH-06\nMD ESCH\\2006\\3-POULPE-ESCH-06\nMD ESCH\\2006\\4-HIPPOCAMPE-ESCH-06\nMD ESCH\\2007\\1-CHIEN-ESCH-07\nMD ESCH\\2007\\2-CHAT-ESCH-07"}]
[{"$f":"IF(ROWS($C$20:C81)<Nb_Liste*Nb_Années*Nb_Animaux,IF(B82>=B81,A81,INDEX(Liste,MATCH(A81,Liste,0)+1)),\"\")","v":"ESCH"},{"$f":"IF(ROWS($C$20:C81)<Nb_Liste*Nb_Années*Nb_Animaux,(C82=INDEX(Animaux,1))*(1-Nb_Années*(B81=Max_Années))+B81,\"\")","v":2007},{"$f":"IF(ROWS($C$20:C81)<Nb_Liste*Nb_Années*Nb_Animaux,INDEX(Animaux,MOD(MATCH(C81,Animaux,0),Nb_Animaux)+1),\"\")","v":"3-POULPE"},null,{"$f":"IF(ROWS($C$20:C81)<Nb_Liste*Nb_Années*Nb_Animaux,E81&CHAR(10)&\"MD \"&A82&\"\\\"&B82&\"\\\"&C82&\"-\"&A82&\"-\"&RIGHT(TEXT(B82,\"0000\"),2),\"\")","v":"CD C:\\Users\\jvdo\\Documents\\forum\\test\nMD JEMA\\2006\\1-CHIEN-JEMA-06\nMD JEMA\\2006\\2-CHAT-JEMA-06\nMD JEMA\\2006\\3-POULPE-JEMA-06\nMD JEMA\\2006\\4-HIPPOCAMPE-JEMA-06\nMD JEMA\\2007\\1-CHIEN-JEMA-07\nMD JEMA\\2007\\2-CHAT-JEMA-07\nMD JEMA\\2007\\3-POULPE-JEMA-07\nMD JEMA\\2007\\4-HIPPOCAMPE-JEMA-07\nMD JEMA\\2008\\1-CHIEN-JEMA-08\nMD JEMA\\2008\\2-CHAT-JEMA-08\nMD JEMA\\2008\\3-POULPE-JEMA-08\nMD JEMA\\2008\\4-HIPPOCAMPE-JEMA-08\nMD JEMA\\2009\\1-CHIEN-JEMA-09\nMD JEMA\\2009\\2-CHAT-JEMA-09\nMD JEMA\\2009\\3-POULPE-JEMA-09\nMD JEMA\\2009\\4-HIPPOCAMPE-JEMA-09\nMD JEMA\\2010\\1-CHIEN-JEMA-10\nMD JEMA\\2010\\2-CHAT-JEMA-10\nMD JEMA\\2010\\3-POULPE-JEMA-10\nMD JEMA\\2010\\4-HIPPOCAMPE-JEMA-10\nMD JEMA\\2011\\1-CHIEN-JEMA-11\nMD JEMA\\2011\\2-CHAT-JEMA-11\nMD JEMA\\2011\\3-POULPE-JEMA-11\nMD JEMA\\2011\\4-HIPPOCAMPE-JEMA-11\nMD JEMA\\2012\\1-CHIEN-JEMA-12\nMD JEMA\\2012\\2-CHAT-JEMA-12\nMD JEMA\\2012\\3-POULPE-JEMA-12\nMD JEMA\\2012\\4-HIPPOCAMPE-JEMA-12\nMD NOEM\\2006\\1-CHIEN-NOEM-06\nMD NOEM\\2006\\2-CHAT-NOEM-06\nMD NOEM\\2006\\3-POULPE-NOEM-06\nMD NOEM\\2006\\4-HIPPOCAMPE-NOEM-06\nMD NOEM\\2007\\1-CHIEN-NOEM-07\nMD NOEM\\2007\\2-CHAT-NOEM-07\nMD NOEM\\2007\\3-POULPE-NOEM-07\nMD NOEM\\2007\\4-HIPPOCAMPE-NOEM-07\nMD NOEM\\2008\\1-CHIEN-NOEM-08\nMD NOEM\\2008\\2-CHAT-NOEM-08\nMD NOEM\\2008\\3-POULPE-NOEM-08\nMD NOEM\\2008\\4-HIPPOCAMPE-NOEM-08\nMD NOEM\\2009\\1-CHIEN-NOEM-09\nMD NOEM\\2009\\2-CHAT-NOEM-09\nMD NOEM\\2009\\3-POULPE-NOEM-09\nMD NOEM\\2009\\4-HIPPOCAMPE-NOEM-09\nMD NOEM\\2010\\1-CHIEN-NOEM-10\nMD NOEM\\2010\\2-CHAT-NOEM-10\nMD NOEM\\2010\\3-POULPE-NOEM-10\nMD NOEM\\2010\\4-HIPPOCAMPE-NOEM-10\nMD NOEM\\2011\\1-CHIEN-NOEM-11\nMD NOEM\\2011\\2-CHAT-NOEM-11\nMD NOEM\\2011\\3-POULPE-NOEM-11\nMD NOEM\\2011\\4-HIPPOCAMPE-NOEM-11\nMD NOEM\\2012\\1-CHIEN-NOEM-12\nMD NOEM\\2012\\2-CHAT-NOEM-12\nMD NOEM\\2012\\3-POULPE-NOEM-12\nMD NOEM\\2012\\4-HIPPOCAMPE-NOEM-12\nMD ESCH\\2006\\1-CHIEN-ESCH-06\nMD ESCH\\2006\\2-CHAT-ESCH-06\nMD ESCH\\2006\\3-POULPE-ESCH-06\nMD ESCH\\2006\\4-HIPPOCAMPE-ESCH-06\nMD ESCH\\2007\\1-CHIEN-ESCH-07\nMD ESCH\\2007\\2-CHAT-ESCH-07\nMD ESCH\\2007\\3-POULPE-ESCH-07"}]
[{"$f":"IF(ROWS($C$20:C82)<Nb_Liste*Nb_Années*Nb_Animaux,IF(B83>=B82,A82,INDEX(Liste,MATCH(A82,Liste,0)+1)),\"\")","v":"ESCH"},{"$f":"IF(ROWS($C$20:C82)<Nb_Liste*Nb_Années*Nb_Animaux,(C83=INDEX(Animaux,1))*(1-Nb_Années*(B82=Max_Années))+B82,\"\")","v":2007},{"$f":"IF(ROWS($C$20:C82)<Nb_Liste*Nb_Années*Nb_Animaux,INDEX(Animaux,MOD(MATCH(C82,Animaux,0),Nb_Animaux)+1),\"\")","v":"4-HIPPOCAMPE"},null,{"$f":"IF(ROWS($C$20:C82)<Nb_Liste*Nb_Années*Nb_Animaux,E82&CHAR(10)&\"MD \"&A83&\"\\\"&B83&\"\\\"&C83&\"-\"&A83&\"-\"&RIGHT(TEXT(B83,\"0000\"),2),\"\")","v":"CD C:\\Users\\jvdo\\Documents\\forum\\test\nMD JEMA\\2006\\1-CHIEN-JEMA-06\nMD JEMA\\2006\\2-CHAT-JEMA-06\nMD JEMA\\2006\\3-POULPE-JEMA-06\nMD JEMA\\2006\\4-HIPPOCAMPE-JEMA-06\nMD JEMA\\2007\\1-CHIEN-JEMA-07\nMD JEMA\\2007\\2-CHAT-JEMA-07\nMD JEMA\\2007\\3-POULPE-JEMA-07\nMD JEMA\\2007\\4-HIPPOCAMPE-JEMA-07\nMD JEMA\\2008\\1-CHIEN-JEMA-08\nMD JEMA\\2008\\2-CHAT-JEMA-08\nMD JEMA\\2008\\3-POULPE-JEMA-08\nMD JEMA\\2008\\4-HIPPOCAMPE-JEMA-08\nMD JEMA\\2009\\1-CHIEN-JEMA-09\nMD JEMA\\2009\\2-CHAT-JEMA-09\nMD JEMA\\2009\\3-POULPE-JEMA-09\nMD JEMA\\2009\\4-HIPPOCAMPE-JEMA-09\nMD JEMA\\2010\\1-CHIEN-JEMA-10\nMD JEMA\\2010\\2-CHAT-JEMA-10\nMD JEMA\\2010\\3-POULPE-JEMA-10\nMD JEMA\\2010\\4-HIPPOCAMPE-JEMA-10\nMD JEMA\\2011\\1-CHIEN-JEMA-11\nMD JEMA\\2011\\2-CHAT-JEMA-11\nMD JEMA\\2011\\3-POULPE-JEMA-11\nMD JEMA\\2011\\4-HIPPOCAMPE-JEMA-11\nMD JEMA\\2012\\1-CHIEN-JEMA-12\nMD JEMA\\2012\\2-CHAT-JEMA-12\nMD JEMA\\2012\\3-POULPE-JEMA-12\nMD JEMA\\2012\\4-HIPPOCAMPE-JEMA-12\nMD NOEM\\2006\\1-CHIEN-NOEM-06\nMD NOEM\\2006\\2-CHAT-NOEM-06\nMD NOEM\\2006\\3-POULPE-NOEM-06\nMD NOEM\\2006\\4-HIPPOCAMPE-NOEM-06\nMD NOEM\\2007\\1-CHIEN-NOEM-07\nMD NOEM\\2007\\2-CHAT-NOEM-07\nMD NOEM\\2007\\3-POULPE-NOEM-07\nMD NOEM\\2007\\4-HIPPOCAMPE-NOEM-07\nMD NOEM\\2008\\1-CHIEN-NOEM-08\nMD NOEM\\2008\\2-CHAT-NOEM-08\nMD NOEM\\2008\\3-POULPE-NOEM-08\nMD NOEM\\2008\\4-HIPPOCAMPE-NOEM-08\nMD NOEM\\2009\\1-CHIEN-NOEM-09\nMD NOEM\\2009\\2-CHAT-NOEM-09\nMD NOEM\\2009\\3-POULPE-NOEM-09\nMD NOEM\\2009\\4-HIPPOCAMPE-NOEM-09\nMD NOEM\\2010\\1-CHIEN-NOEM-10\nMD NOEM\\2010\\2-CHAT-NOEM-10\nMD NOEM\\2010\\3-POULPE-NOEM-10\nMD NOEM\\2010\\4-HIPPOCAMPE-NOEM-10\nMD NOEM\\2011\\1-CHIEN-NOEM-11\nMD NOEM\\2011\\2-CHAT-NOEM-11\nMD NOEM\\2011\\3-POULPE-NOEM-11\nMD NOEM\\2011\\4-HIPPOCAMPE-NOEM-11\nMD NOEM\\2012\\1-CHIEN-NOEM-12\nMD NOEM\\2012\\2-CHAT-NOEM-12\nMD NOEM\\2012\\3-POULPE-NOEM-12\nMD NOEM\\2012\\4-HIPPOCAMPE-NOEM-12\nMD ESCH\\2006\\1-CHIEN-ESCH-06\nMD ESCH\\2006\\2-CHAT-ESCH-06\nMD ESCH\\2006\\3-POULPE-ESCH-06\nMD ESCH\\2006\\4-HIPPOCAMPE-ESCH-06\nMD ESCH\\2007\\1-CHIEN-ESCH-07\nMD ESCH\\2007\\2-CHAT-ESCH-07\nMD ESCH\\2007\\3-POULPE-ESCH-07\nMD ESCH\\2007\\4-HIPPOCAMPE-ESCH-07"}]
[{"$f":"IF(ROWS($C$20:C83)<Nb_Liste*Nb_Années*Nb_Animaux,IF(B84>=B83,A83,INDEX(Liste,MATCH(A83,Liste,0)+1)),\"\")","v":"ESCH"},{"$f":"IF(ROWS($C$20:C83)<Nb_Liste*Nb_Années*Nb_Animaux,(C84=INDEX(Animaux,1))*(1-Nb_Années*(B83=Max_Années))+B83,\"\")","v":2008},{"$f":"IF(ROWS($C$20:C83)<Nb_Liste*Nb_Années*Nb_Animaux,INDEX(Animaux,MOD(MATCH(C83,Animaux,0),Nb_Animaux)+1),\"\")","v":"1-CHIEN"},null,{"$f":"IF(ROWS($C$20:C83)<Nb_Liste*Nb_Années*Nb_Animaux,E83&CHAR(10)&\"MD \"&A84&\"\\\"&B84&\"\\\"&C84&\"-\"&A84&\"-\"&RIGHT(TEXT(B84,\"0000\"),2),\"\")","v":"CD C:\\Users\\jvdo\\Documents\\forum\\test\nMD JEMA\\2006\\1-CHIEN-JEMA-06\nMD JEMA\\2006\\2-CHAT-JEMA-06\nMD JEMA\\2006\\3-POULPE-JEMA-06\nMD JEMA\\2006\\4-HIPPOCAMPE-JEMA-06\nMD JEMA\\2007\\1-CHIEN-JEMA-07\nMD JEMA\\2007\\2-CHAT-JEMA-07\nMD JEMA\\2007\\3-POULPE-JEMA-07\nMD JEMA\\2007\\4-HIPPOCAMPE-JEMA-07\nMD JEMA\\2008\\1-CHIEN-JEMA-08\nMD JEMA\\2008\\2-CHAT-JEMA-08\nMD JEMA\\2008\\3-POULPE-JEMA-08\nMD JEMA\\2008\\4-HIPPOCAMPE-JEMA-08\nMD JEMA\\2009\\1-CHIEN-JEMA-09\nMD JEMA\\2009\\2-CHAT-JEMA-09\nMD JEMA\\2009\\3-POULPE-JEMA-09\nMD JEMA\\2009\\4-HIPPOCAMPE-JEMA-09\nMD JEMA\\2010\\1-CHIEN-JEMA-10\nMD JEMA\\2010\\2-CHAT-JEMA-10\nMD JEMA\\2010\\3-POULPE-JEMA-10\nMD JEMA\\2010\\4-HIPPOCAMPE-JEMA-10\nMD JEMA\\2011\\1-CHIEN-JEMA-11\nMD JEMA\\2011\\2-CHAT-JEMA-11\nMD JEMA\\2011\\3-POULPE-JEMA-11\nMD JEMA\\2011\\4-HIPPOCAMPE-JEMA-11\nMD JEMA\\2012\\1-CHIEN-JEMA-12\nMD JEMA\\2012\\2-CHAT-JEMA-12\nMD JEMA\\2012\\3-POULPE-JEMA-12\nMD JEMA\\2012\\4-HIPPOCAMPE-JEMA-12\nMD NOEM\\2006\\1-CHIEN-NOEM-06\nMD NOEM\\2006\\2-CHAT-NOEM-06\nMD NOEM\\2006\\3-POULPE-NOEM-06\nMD NOEM\\2006\\4-HIPPOCAMPE-NOEM-06\nMD NOEM\\2007\\1-CHIEN-NOEM-07\nMD NOEM\\2007\\2-CHAT-NOEM-07\nMD NOEM\\2007\\3-POULPE-NOEM-07\nMD NOEM\\2007\\4-HIPPOCAMPE-NOEM-07\nMD NOEM\\2008\\1-CHIEN-NOEM-08\nMD NOEM\\2008\\2-CHAT-NOEM-08\nMD NOEM\\2008\\3-POULPE-NOEM-08\nMD NOEM\\2008\\4-HIPPOCAMPE-NOEM-08\nMD NOEM\\2009\\1-CHIEN-NOEM-09\nMD NOEM\\2009\\2-CHAT-NOEM-09\nMD NOEM\\2009\\3-POULPE-NOEM-09\nMD NOEM\\2009\\4-HIPPOCAMPE-NOEM-09\nMD NOEM\\2010\\1-CHIEN-NOEM-10\nMD NOEM\\2010\\2-CHAT-NOEM-10\nMD NOEM\\2010\\3-POULPE-NOEM-10\nMD NOEM\\2010\\4-HIPPOCAMPE-NOEM-10\nMD NOEM\\2011\\1-CHIEN-NOEM-11\nMD NOEM\\2011\\2-CHAT-NOEM-11\nMD NOEM\\2011\\3-POULPE-NOEM-11\nMD NOEM\\2011\\4-HIPPOCAMPE-NOEM-11\nMD NOEM\\2012\\1-CHIEN-NOEM-12\nMD NOEM\\2012\\2-CHAT-NOEM-12\nMD NOEM\\2012\\3-POULPE-NOEM-12\nMD NOEM\\2012\\4-HIPPOCAMPE-NOEM-12\nMD ESCH\\2006\\1-CHIEN-ESCH-06\nMD ESCH\\2006\\2-CHAT-ESCH-06\nMD ESCH\\2006\\3-POULPE-ESCH-06\nMD ESCH\\2006\\4-HIPPOCAMPE-ESCH-06\nMD ESCH\\2007\\1-CHIEN-ESCH-07\nMD ESCH\\2007\\2-CHAT-ESCH-07\nMD ESCH\\2007\\3-POULPE-ESCH-07\nMD ESCH\\2007\\4-HIPPOCAMPE-ESCH-07\nMD ESCH\\2008\\1-CHIEN-ESCH-08"}]
[{"$f":"IF(ROWS($C$20:C84)<Nb_Liste*Nb_Années*Nb_Animaux,IF(B85>=B84,A84,INDEX(Liste,MATCH(A84,Liste,0)+1)),\"\")","v":"ESCH"},{"$f":"IF(ROWS($C$20:C84)<Nb_Liste*Nb_Années*Nb_Animaux,(C85=INDEX(Animaux,1))*(1-Nb_Années*(B84=Max_Années))+B84,\"\")","v":2008},{"$f":"IF(ROWS($C$20:C84)<Nb_Liste*Nb_Années*Nb_Animaux,INDEX(Animaux,MOD(MATCH(C84,Animaux,0),Nb_Animaux)+1),\"\")","v":"2-CHAT"},null,{"$f":"IF(ROWS($C$20:C84)<Nb_Liste*Nb_Années*Nb_Animaux,E84&CHAR(10)&\"MD \"&A85&\"\\\"&B85&\"\\\"&C85&\"-\"&A85&\"-\"&RIGHT(TEXT(B85,\"0000\"),2),\"\")","v":"CD C:\\Users\\jvdo\\Documents\\forum\\test\nMD JEMA\\2006\\1-CHIEN-JEMA-06\nMD JEMA\\2006\\2-CHAT-JEMA-06\nMD JEMA\\2006\\3-POULPE-JEMA-06\nMD JEMA\\2006\\4-HIPPOCAMPE-JEMA-06\nMD JEMA\\2007\\1-CHIEN-JEMA-07\nMD JEMA\\2007\\2-CHAT-JEMA-07\nMD JEMA\\2007\\3-POULPE-JEMA-07\nMD JEMA\\2007\\4-HIPPOCAMPE-JEMA-07\nMD JEMA\\2008\\1-CHIEN-JEMA-08\nMD JEMA\\2008\\2-CHAT-JEMA-08\nMD JEMA\\2008\\3-POULPE-JEMA-08\nMD JEMA\\2008\\4-HIPPOCAMPE-JEMA-08\nMD JEMA\\2009\\1-CHIEN-JEMA-09\nMD JEMA\\2009\\2-CHAT-JEMA-09\nMD JEMA\\2009\\3-POULPE-JEMA-09\nMD JEMA\\2009\\4-HIPPOCAMPE-JEMA-09\nMD JEMA\\2010\\1-CHIEN-JEMA-10\nMD JEMA\\2010\\2-CHAT-JEMA-10\nMD JEMA\\2010\\3-POULPE-JEMA-10\nMD JEMA\\2010\\4-HIPPOCAMPE-JEMA-10\nMD JEMA\\2011\\1-CHIEN-JEMA-11\nMD JEMA\\2011\\2-CHAT-JEMA-11\nMD JEMA\\2011\\3-POULPE-JEMA-11\nMD JEMA\\2011\\4-HIPPOCAMPE-JEMA-11\nMD JEMA\\2012\\1-CHIEN-JEMA-12\nMD JEMA\\2012\\2-CHAT-JEMA-12\nMD JEMA\\2012\\3-POULPE-JEMA-12\nMD JEMA\\2012\\4-HIPPOCAMPE-JEMA-12\nMD NOEM\\2006\\1-CHIEN-NOEM-06\nMD NOEM\\2006\\2-CHAT-NOEM-06\nMD NOEM\\2006\\3-POULPE-NOEM-06\nMD NOEM\\2006\\4-HIPPOCAMPE-NOEM-06\nMD NOEM\\2007\\1-CHIEN-NOEM-07\nMD NOEM\\2007\\2-CHAT-NOEM-07\nMD NOEM\\2007\\3-POULPE-NOEM-07\nMD NOEM\\2007\\4-HIPPOCAMPE-NOEM-07\nMD NOEM\\2008\\1-CHIEN-NOEM-08\nMD NOEM\\2008\\2-CHAT-NOEM-08\nMD NOEM\\2008\\3-POULPE-NOEM-08\nMD NOEM\\2008\\4-HIPPOCAMPE-NOEM-08\nMD NOEM\\2009\\1-CHIEN-NOEM-09\nMD NOEM\\2009\\2-CHAT-NOEM-09\nMD NOEM\\2009\\3-POULPE-NOEM-09\nMD NOEM\\2009\\4-HIPPOCAMPE-NOEM-09\nMD NOEM\\2010\\1-CHIEN-NOEM-10\nMD NOEM\\2010\\2-CHAT-NOEM-10\nMD NOEM\\2010\\3-POULPE-NOEM-10\nMD NOEM\\2010\\4-HIPPOCAMPE-NOEM-10\nMD NOEM\\2011\\1-CHIEN-NOEM-11\nMD NOEM\\2011\\2-CHAT-NOEM-11\nMD NOEM\\2011\\3-POULPE-NOEM-11\nMD NOEM\\2011\\4-HIPPOCAMPE-NOEM-11\nMD NOEM\\2012\\1-CHIEN-NOEM-12\nMD NOEM\\2012\\2-CHAT-NOEM-12\nMD NOEM\\2012\\3-POULPE-NOEM-12\nMD NOEM\\2012\\4-HIPPOCAMPE-NOEM-12\nMD ESCH\\2006\\1-CHIEN-ESCH-06\nMD ESCH\\2006\\2-CHAT-ESCH-06\nMD ESCH\\2006\\3-POULPE-ESCH-06\nMD ESCH\\2006\\4-HIPPOCAMPE-ESCH-06\nMD ESCH\\2007\\1-CHIEN-ESCH-07\nMD ESCH\\2007\\2-CHAT-ESCH-07\nMD ESCH\\2007\\3-POULPE-ESCH-07\nMD ESCH\\2007\\4-HIPPOCAMPE-ESCH-07\nMD ESCH\\2008\\1-CHIEN-ESCH-08\nMD ESCH\\2008\\2-CHAT-ESCH-08"}]
[{"$f":"IF(ROWS($C$20:C85)<Nb_Liste*Nb_Années*Nb_Animaux,IF(B86>=B85,A85,INDEX(Liste,MATCH(A85,Liste,0)+1)),\"\")","v":"ESCH"},{"$f":"IF(ROWS($C$20:C85)<Nb_Liste*Nb_Années*Nb_Animaux,(C86=INDEX(Animaux,1))*(1-Nb_Années*(B85=Max_Années))+B85,\"\")","v":2008},{"$f":"IF(ROWS($C$20:C85)<Nb_Liste*Nb_Années*Nb_Animaux,INDEX(Animaux,MOD(MATCH(C85,Animaux,0),Nb_Animaux)+1),\"\")","v":"3-POULPE"},null,{"$f":"IF(ROWS($C$20:C85)<Nb_Liste*Nb_Années*Nb_Animaux,E85&CHAR(10)&\"MD \"&A86&\"\\\"&B86&\"\\\"&C86&\"-\"&A86&\"-\"&RIGHT(TEXT(B86,\"0000\"),2),\"\")","v":"CD C:\\Users\\jvdo\\Documents\\forum\\test\nMD JEMA\\2006\\1-CHIEN-JEMA-06\nMD JEMA\\2006\\2-CHAT-JEMA-06\nMD JEMA\\2006\\3-POULPE-JEMA-06\nMD JEMA\\2006\\4-HIPPOCAMPE-JEMA-06\nMD JEMA\\2007\\1-CHIEN-JEMA-07\nMD JEMA\\2007\\2-CHAT-JEMA-07\nMD JEMA\\2007\\3-POULPE-JEMA-07\nMD JEMA\\2007\\4-HIPPOCAMPE-JEMA-07\nMD JEMA\\2008\\1-CHIEN-JEMA-08\nMD JEMA\\2008\\2-CHAT-JEMA-08\nMD JEMA\\2008\\3-POULPE-JEMA-08\nMD JEMA\\2008\\4-HIPPOCAMPE-JEMA-08\nMD JEMA\\2009\\1-CHIEN-JEMA-09\nMD JEMA\\2009\\2-CHAT-JEMA-09\nMD JEMA\\2009\\3-POULPE-JEMA-09\nMD JEMA\\2009\\4-HIPPOCAMPE-JEMA-09\nMD JEMA\\2010\\1-CHIEN-JEMA-10\nMD JEMA\\2010\\2-CHAT-JEMA-10\nMD JEMA\\2010\\3-POULPE-JEMA-10\nMD JEMA\\2010\\4-HIPPOCAMPE-JEMA-10\nMD JEMA\\2011\\1-CHIEN-JEMA-11\nMD JEMA\\2011\\2-CHAT-JEMA-11\nMD JEMA\\2011\\3-POULPE-JEMA-11\nMD JEMA\\2011\\4-HIPPOCAMPE-JEMA-11\nMD JEMA\\2012\\1-CHIEN-JEMA-12\nMD JEMA\\2012\\2-CHAT-JEMA-12\nMD JEMA\\2012\\3-POULPE-JEMA-12\nMD JEMA\\2012\\4-HIPPOCAMPE-JEMA-12\nMD NOEM\\2006\\1-CHIEN-NOEM-06\nMD NOEM\\2006\\2-CHAT-NOEM-06\nMD NOEM\\2006\\3-POULPE-NOEM-06\nMD NOEM\\2006\\4-HIPPOCAMPE-NOEM-06\nMD NOEM\\2007\\1-CHIEN-NOEM-07\nMD NOEM\\2007\\2-CHAT-NOEM-07\nMD NOEM\\2007\\3-POULPE-NOEM-07\nMD NOEM\\2007\\4-HIPPOCAMPE-NOEM-07\nMD NOEM\\2008\\1-CHIEN-NOEM-08\nMD NOEM\\2008\\2-CHAT-NOEM-08\nMD NOEM\\2008\\3-POULPE-NOEM-08\nMD NOEM\\2008\\4-HIPPOCAMPE-NOEM-08\nMD NOEM\\2009\\1-CHIEN-NOEM-09\nMD NOEM\\2009\\2-CHAT-NOEM-09\nMD NOEM\\2009\\3-POULPE-NOEM-09\nMD NOEM\\2009\\4-HIPPOCAMPE-NOEM-09\nMD NOEM\\2010\\1-CHIEN-NOEM-10\nMD NOEM\\2010\\2-CHAT-NOEM-10\nMD NOEM\\2010\\3-POULPE-NOEM-10\nMD NOEM\\2010\\4-HIPPOCAMPE-NOEM-10\nMD NOEM\\2011\\1-CHIEN-NOEM-11\nMD NOEM\\2011\\2-CHAT-NOEM-11\nMD NOEM\\2011\\3-POULPE-NOEM-11\nMD NOEM\\2011\\4-HIPPOCAMPE-NOEM-11\nMD NOEM\\2012\\1-CHIEN-NOEM-12\nMD NOEM\\2012\\2-CHAT-NOEM-12\nMD NOEM\\2012\\3-POULPE-NOEM-12\nMD NOEM\\2012\\4-HIPPOCAMPE-NOEM-12\nMD ESCH\\2006\\1-CHIEN-ESCH-06\nMD ESCH\\2006\\2-CHAT-ESCH-06\nMD ESCH\\2006\\3-POULPE-ESCH-06\nMD ESCH\\2006\\4-HIPPOCAMPE-ESCH-06\nMD ESCH\\2007\\1-CHIEN-ESCH-07\nMD ESCH\\2007\\2-CHAT-ESCH-07\nMD ESCH\\2007\\3-POULPE-ESCH-07\nMD ESCH\\2007\\4-HIPPOCAMPE-ESCH-07\nMD ESCH\\2008\\1-CHIEN-ESCH-08\nMD ESCH\\2008\\2-CHAT-ESCH-08\nMD ESCH\\2008\\3-POULPE-ESCH-08"}]
[{"$f":"IF(ROWS($C$20:C86)<Nb_Liste*Nb_Années*Nb_Animaux,IF(B87>=B86,A86,INDEX(Liste,MATCH(A86,Liste,0)+1)),\"\")","v":"ESCH"},{"$f":"IF(ROWS($C$20:C86)<Nb_Liste*Nb_Années*Nb_Animaux,(C87=INDEX(Animaux,1))*(1-Nb_Années*(B86=Max_Années))+B86,\"\")","v":2008},{"$f":"IF(ROWS($C$20:C86)<Nb_Liste*Nb_Années*Nb_Animaux,INDEX(Animaux,MOD(MATCH(C86,Animaux,0),Nb_Animaux)+1),\"\")","v":"4-HIPPOCAMPE"},null,{"$f":"IF(ROWS($C$20:C86)<Nb_Liste*Nb_Années*Nb_Animaux,E86&CHAR(10)&\"MD \"&A87&\"\\\"&B87&\"\\\"&C87&\"-\"&A87&\"-\"&RIGHT(TEXT(B87,\"0000\"),2),\"\")","v":"CD C:\\Users\\jvdo\\Documents\\forum\\test\nMD JEMA\\2006\\1-CHIEN-JEMA-06\nMD JEMA\\2006\\2-CHAT-JEMA-06\nMD JEMA\\2006\\3-POULPE-JEMA-06\nMD JEMA\\2006\\4-HIPPOCAMPE-JEMA-06\nMD JEMA\\2007\\1-CHIEN-JEMA-07\nMD JEMA\\2007\\2-CHAT-JEMA-07\nMD JEMA\\2007\\3-POULPE-JEMA-07\nMD JEMA\\2007\\4-HIPPOCAMPE-JEMA-07\nMD JEMA\\2008\\1-CHIEN-JEMA-08\nMD JEMA\\2008\\2-CHAT-JEMA-08\nMD JEMA\\2008\\3-POULPE-JEMA-08\nMD JEMA\\2008\\4-HIPPOCAMPE-JEMA-08\nMD JEMA\\2009\\1-CHIEN-JEMA-09\nMD JEMA\\2009\\2-CHAT-JEMA-09\nMD JEMA\\2009\\3-POULPE-JEMA-09\nMD JEMA\\2009\\4-HIPPOCAMPE-JEMA-09\nMD JEMA\\2010\\1-CHIEN-JEMA-10\nMD JEMA\\2010\\2-CHAT-JEMA-10\nMD JEMA\\2010\\3-POULPE-JEMA-10\nMD JEMA\\2010\\4-HIPPOCAMPE-JEMA-10\nMD JEMA\\2011\\1-CHIEN-JEMA-11\nMD JEMA\\2011\\2-CHAT-JEMA-11\nMD JEMA\\2011\\3-POULPE-JEMA-11\nMD JEMA\\2011\\4-HIPPOCAMPE-JEMA-11\nMD JEMA\\2012\\1-CHIEN-JEMA-12\nMD JEMA\\2012\\2-CHAT-JEMA-12\nMD JEMA\\2012\\3-POULPE-JEMA-12\nMD JEMA\\2012\\4-HIPPOCAMPE-JEMA-12\nMD NOEM\\2006\\1-CHIEN-NOEM-06\nMD NOEM\\2006\\2-CHAT-NOEM-06\nMD NOEM\\2006\\3-POULPE-NOEM-06\nMD NOEM\\2006\\4-HIPPOCAMPE-NOEM-06\nMD NOEM\\2007\\1-CHIEN-NOEM-07\nMD NOEM\\2007\\2-CHAT-NOEM-07\nMD NOEM\\2007\\3-POULPE-NOEM-07\nMD NOEM\\2007\\4-HIPPOCAMPE-NOEM-07\nMD NOEM\\2008\\1-CHIEN-NOEM-08\nMD NOEM\\2008\\2-CHAT-NOEM-08\nMD NOEM\\2008\\3-POULPE-NOEM-08\nMD NOEM\\2008\\4-HIPPOCAMPE-NOEM-08\nMD NOEM\\2009\\1-CHIEN-NOEM-09\nMD NOEM\\2009\\2-CHAT-NOEM-09\nMD NOEM\\2009\\3-POULPE-NOEM-09\nMD NOEM\\2009\\4-HIPPOCAMPE-NOEM-09\nMD NOEM\\2010\\1-CHIEN-NOEM-10\nMD NOEM\\2010\\2-CHAT-NOEM-10\nMD NOEM\\2010\\3-POULPE-NOEM-10\nMD NOEM\\2010\\4-HIPPOCAMPE-NOEM-10\nMD NOEM\\2011\\1-CHIEN-NOEM-11\nMD NOEM\\2011\\2-CHAT-NOEM-11\nMD NOEM\\2011\\3-POULPE-NOEM-11\nMD NOEM\\2011\\4-HIPPOCAMPE-NOEM-11\nMD NOEM\\2012\\1-CHIEN-NOEM-12\nMD NOEM\\2012\\2-CHAT-NOEM-12\nMD NOEM\\2012\\3-POULPE-NOEM-12\nMD NOEM\\2012\\4-HIPPOCAMPE-NOEM-12\nMD ESCH\\2006\\1-CHIEN-ESCH-06\nMD ESCH\\2006\\2-CHAT-ESCH-06\nMD ESCH\\2006\\3-POULPE-ESCH-06\nMD ESCH\\2006\\4-HIPPOCAMPE-ESCH-06\nMD ESCH\\2007\\1-CHIEN-ESCH-07\nMD ESCH\\2007\\2-CHAT-ESCH-07\nMD ESCH\\2007\\3-POULPE-ESCH-07\nMD ESCH\\2007\\4-HIPPOCAMPE-ESCH-07\nMD ESCH\\2008\\1-CHIEN-ESCH-08\nMD ESCH\\2008\\2-CHAT-ESCH-08\nMD ESCH\\2008\\3-POULPE-ESCH-08\nMD ESCH\\2008\\4-HIPPOCAMPE-ESCH-08"}]
[{"$f":"IF(ROWS($C$20:C87)<Nb_Liste*Nb_Années*Nb_Animaux,IF(B88>=B87,A87,INDEX(Liste,MATCH(A87,Liste,0)+1)),\"\")","v":"ESCH"},{"$f":"IF(ROWS($C$20:C87)<Nb_Liste*Nb_Années*Nb_Animaux,(C88=INDEX(Animaux,1))*(1-Nb_Années*(B87=Max_Années))+B87,\"\")","v":2009},{"$f":"IF(ROWS($C$20:C87)<Nb_Liste*Nb_Années*Nb_Animaux,INDEX(Animaux,MOD(MATCH(C87,Animaux,0),Nb_Animaux)+1),\"\")","v":"1-CHIEN"},null,{"$f":"IF(ROWS($C$20:C87)<Nb_Liste*Nb_Années*Nb_Animaux,E87&CHAR(10)&\"MD \"&A88&\"\\\"&B88&\"\\\"&C88&\"-\"&A88&\"-\"&RIGHT(TEXT(B88,\"0000\"),2),\"\")","v":"CD C:\\Users\\jvdo\\Documents\\forum\\test\nMD JEMA\\2006\\1-CHIEN-JEMA-06\nMD JEMA\\2006\\2-CHAT-JEMA-06\nMD JEMA\\2006\\3-POULPE-JEMA-06\nMD JEMA\\2006\\4-HIPPOCAMPE-JEMA-06\nMD JEMA\\2007\\1-CHIEN-JEMA-07\nMD JEMA\\2007\\2-CHAT-JEMA-07\nMD JEMA\\2007\\3-POULPE-JEMA-07\nMD JEMA\\2007\\4-HIPPOCAMPE-JEMA-07\nMD JEMA\\2008\\1-CHIEN-JEMA-08\nMD JEMA\\2008\\2-CHAT-JEMA-08\nMD JEMA\\2008\\3-POULPE-JEMA-08\nMD JEMA\\2008\\4-HIPPOCAMPE-JEMA-08\nMD JEMA\\2009\\1-CHIEN-JEMA-09\nMD JEMA\\2009\\2-CHAT-JEMA-09\nMD JEMA\\2009\\3-POULPE-JEMA-09\nMD JEMA\\2009\\4-HIPPOCAMPE-JEMA-09\nMD JEMA\\2010\\1-CHIEN-JEMA-10\nMD JEMA\\2010\\2-CHAT-JEMA-10\nMD JEMA\\2010\\3-POULPE-JEMA-10\nMD JEMA\\2010\\4-HIPPOCAMPE-JEMA-10\nMD JEMA\\2011\\1-CHIEN-JEMA-11\nMD JEMA\\2011\\2-CHAT-JEMA-11\nMD JEMA\\2011\\3-POULPE-JEMA-11\nMD JEMA\\2011\\4-HIPPOCAMPE-JEMA-11\nMD JEMA\\2012\\1-CHIEN-JEMA-12\nMD JEMA\\2012\\2-CHAT-JEMA-12\nMD JEMA\\2012\\3-POULPE-JEMA-12\nMD JEMA\\2012\\4-HIPPOCAMPE-JEMA-12\nMD NOEM\\2006\\1-CHIEN-NOEM-06\nMD NOEM\\2006\\2-CHAT-NOEM-06\nMD NOEM\\2006\\3-POULPE-NOEM-06\nMD NOEM\\2006\\4-HIPPOCAMPE-NOEM-06\nMD NOEM\\2007\\1-CHIEN-NOEM-07\nMD NOEM\\2007\\2-CHAT-NOEM-07\nMD NOEM\\2007\\3-POULPE-NOEM-07\nMD NOEM\\2007\\4-HIPPOCAMPE-NOEM-07\nMD NOEM\\2008\\1-CHIEN-NOEM-08\nMD NOEM\\2008\\2-CHAT-NOEM-08\nMD NOEM\\2008\\3-POULPE-NOEM-08\nMD NOEM\\2008\\4-HIPPOCAMPE-NOEM-08\nMD NOEM\\2009\\1-CHIEN-NOEM-09\nMD NOEM\\2009\\2-CHAT-NOEM-09\nMD NOEM\\2009\\3-POULPE-NOEM-09\nMD NOEM\\2009\\4-HIPPOCAMPE-NOEM-09\nMD NOEM\\2010\\1-CHIEN-NOEM-10\nMD NOEM\\2010\\2-CHAT-NOEM-10\nMD NOEM\\2010\\3-POULPE-NOEM-10\nMD NOEM\\2010\\4-HIPPOCAMPE-NOEM-10\nMD NOEM\\2011\\1-CHIEN-NOEM-11\nMD NOEM\\2011\\2-CHAT-NOEM-11\nMD NOEM\\2011\\3-POULPE-NOEM-11\nMD NOEM\\2011\\4-HIPPOCAMPE-NOEM-11\nMD NOEM\\2012\\1-CHIEN-NOEM-12\nMD NOEM\\2012\\2-CHAT-NOEM-12\nMD NOEM\\2012\\3-POULPE-NOEM-12\nMD NOEM\\2012\\4-HIPPOCAMPE-NOEM-12\nMD ESCH\\2006\\1-CHIEN-ESCH-06\nMD ESCH\\2006\\2-CHAT-ESCH-06\nMD ESCH\\2006\\3-POULPE-ESCH-06\nMD ESCH\\2006\\4-HIPPOCAMPE-ESCH-06\nMD ESCH\\2007\\1-CHIEN-ESCH-07\nMD ESCH\\2007\\2-CHAT-ESCH-07\nMD ESCH\\2007\\3-POULPE-ESCH-07\nMD ESCH\\2007\\4-HIPPOCAMPE-ESCH-07\nMD ESCH\\2008\\1-CHIEN-ESCH-08\nMD ESCH\\2008\\2-CHAT-ESCH-08\nMD ESCH\\2008\\3-POULPE-ESCH-08\nMD ESCH\\2008\\4-HIPPOCAMPE-ESCH-08\nMD ESCH\\2009\\1-CHIEN-ESCH-09"}]
[{"$f":"IF(ROWS($C$20:C88)<Nb_Liste*Nb_Années*Nb_Animaux,IF(B89>=B88,A88,INDEX(Liste,MATCH(A88,Liste,0)+1)),\"\")","v":"ESCH"},{"$f":"IF(ROWS($C$20:C88)<Nb_Liste*Nb_Années*Nb_Animaux,(C89=INDEX(Animaux,1))*(1-Nb_Années*(B88=Max_Années))+B88,\"\")","v":2009},{"$f":"IF(ROWS($C$20:C88)<Nb_Liste*Nb_Années*Nb_Animaux,INDEX(Animaux,MOD(MATCH(C88,Animaux,0),Nb_Animaux)+1),\"\")","v":"2-CHAT"},null,{"$f":"IF(ROWS($C$20:C88)<Nb_Liste*Nb_Années*Nb_Animaux,E88&CHAR(10)&\"MD \"&A89&\"\\\"&B89&\"\\\"&C89&\"-\"&A89&\"-\"&RIGHT(TEXT(B89,\"0000\"),2),\"\")","v":"CD C:\\Users\\jvdo\\Documents\\forum\\test\nMD JEMA\\2006\\1-CHIEN-JEMA-06\nMD JEMA\\2006\\2-CHAT-JEMA-06\nMD JEMA\\2006\\3-POULPE-JEMA-06\nMD JEMA\\2006\\4-HIPPOCAMPE-JEMA-06\nMD JEMA\\2007\\1-CHIEN-JEMA-07\nMD JEMA\\2007\\2-CHAT-JEMA-07\nMD JEMA\\2007\\3-POULPE-JEMA-07\nMD JEMA\\2007\\4-HIPPOCAMPE-JEMA-07\nMD JEMA\\2008\\1-CHIEN-JEMA-08\nMD JEMA\\2008\\2-CHAT-JEMA-08\nMD JEMA\\2008\\3-POULPE-JEMA-08\nMD JEMA\\2008\\4-HIPPOCAMPE-JEMA-08\nMD JEMA\\2009\\1-CHIEN-JEMA-09\nMD JEMA\\2009\\2-CHAT-JEMA-09\nMD JEMA\\2009\\3-POULPE-JEMA-09\nMD JEMA\\2009\\4-HIPPOCAMPE-JEMA-09\nMD JEMA\\2010\\1-CHIEN-JEMA-10\nMD JEMA\\2010\\2-CHAT-JEMA-10\nMD JEMA\\2010\\3-POULPE-JEMA-10\nMD JEMA\\2010\\4-HIPPOCAMPE-JEMA-10\nMD JEMA\\2011\\1-CHIEN-JEMA-11\nMD JEMA\\2011\\2-CHAT-JEMA-11\nMD JEMA\\2011\\3-POULPE-JEMA-11\nMD JEMA\\2011\\4-HIPPOCAMPE-JEMA-11\nMD JEMA\\2012\\1-CHIEN-JEMA-12\nMD JEMA\\2012\\2-CHAT-JEMA-12\nMD JEMA\\2012\\3-POULPE-JEMA-12\nMD JEMA\\2012\\4-HIPPOCAMPE-JEMA-12\nMD NOEM\\2006\\1-CHIEN-NOEM-06\nMD NOEM\\2006\\2-CHAT-NOEM-06\nMD NOEM\\2006\\3-POULPE-NOEM-06\nMD NOEM\\2006\\4-HIPPOCAMPE-NOEM-06\nMD NOEM\\2007\\1-CHIEN-NOEM-07\nMD NOEM\\2007\\2-CHAT-NOEM-07\nMD NOEM\\2007\\3-POULPE-NOEM-07\nMD NOEM\\2007\\4-HIPPOCAMPE-NOEM-07\nMD NOEM\\2008\\1-CHIEN-NOEM-08\nMD NOEM\\2008\\2-CHAT-NOEM-08\nMD NOEM\\2008\\3-POULPE-NOEM-08\nMD NOEM\\2008\\4-HIPPOCAMPE-NOEM-08\nMD NOEM\\2009\\1-CHIEN-NOEM-09\nMD NOEM\\2009\\2-CHAT-NOEM-09\nMD NOEM\\2009\\3-POULPE-NOEM-09\nMD NOEM\\2009\\4-HIPPOCAMPE-NOEM-09\nMD NOEM\\2010\\1-CHIEN-NOEM-10\nMD NOEM\\2010\\2-CHAT-NOEM-10\nMD NOEM\\2010\\3-POULPE-NOEM-10\nMD NOEM\\2010\\4-HIPPOCAMPE-NOEM-10\nMD NOEM\\2011\\1-CHIEN-NOEM-11\nMD NOEM\\2011\\2-CHAT-NOEM-11\nMD NOEM\\2011\\3-POULPE-NOEM-11\nMD NOEM\\2011\\4-HIPPOCAMPE-NOEM-11\nMD NOEM\\2012\\1-CHIEN-NOEM-12\nMD NOEM\\2012\\2-CHAT-NOEM-12\nMD NOEM\\2012\\3-POULPE-NOEM-12\nMD NOEM\\2012\\4-HIPPOCAMPE-NOEM-12\nMD ESCH\\2006\\1-CHIEN-ESCH-06\nMD ESCH\\2006\\2-CHAT-ESCH-06\nMD ESCH\\2006\\3-POULPE-ESCH-06\nMD ESCH\\2006\\4-HIPPOCAMPE-ESCH-06\nMD ESCH\\2007\\1-CHIEN-ESCH-07\nMD ESCH\\2007\\2-CHAT-ESCH-07\nMD ESCH\\2007\\3-POULPE-ESCH-07\nMD ESCH\\2007\\4-HIPPOCAMPE-ESCH-07\nMD ESCH\\2008\\1-CHIEN-ESCH-08\nMD ESCH\\2008\\2-CHAT-ESCH-08\nMD ESCH\\2008\\3-POULPE-ESCH-08\nMD ESCH\\2008\\4-HIPPOCAMPE-ESCH-08\nMD ESCH\\2009\\1-CHIEN-ESCH-09\nMD ESCH\\2009\\2-CHAT-ESCH-09"}]
[{"$f":"IF(ROWS($C$20:C89)<Nb_Liste*Nb_Années*Nb_Animaux,IF(B90>=B89,A89,INDEX(Liste,MATCH(A89,Liste,0)+1)),\"\")","v":"ESCH"},{"$f":"IF(ROWS($C$20:C89)<Nb_Liste*Nb_Années*Nb_Animaux,(C90=INDEX(Animaux,1))*(1-Nb_Années*(B89=Max_Années))+B89,\"\")","v":2009},{"$f":"IF(ROWS($C$20:C89)<Nb_Liste*Nb_Années*Nb_Animaux,INDEX(Animaux,MOD(MATCH(C89,Animaux,0),Nb_Animaux)+1),\"\")","v":"3-POULPE"},null,{"$f":"IF(ROWS($C$20:C89)<Nb_Liste*Nb_Années*Nb_Animaux,E89&CHAR(10)&\"MD \"&A90&\"\\\"&B90&\"\\\"&C90&\"-\"&A90&\"-\"&RIGHT(TEXT(B90,\"0000\"),2),\"\")","v":"CD C:\\Users\\jvdo\\Documents\\forum\\test\nMD JEMA\\2006\\1-CHIEN-JEMA-06\nMD JEMA\\2006\\2-CHAT-JEMA-06\nMD JEMA\\2006\\3-POULPE-JEMA-06\nMD JEMA\\2006\\4-HIPPOCAMPE-JEMA-06\nMD JEMA\\2007\\1-CHIEN-JEMA-07\nMD JEMA\\2007\\2-CHAT-JEMA-07\nMD JEMA\\2007\\3-POULPE-JEMA-07\nMD JEMA\\2007\\4-HIPPOCAMPE-JEMA-07\nMD JEMA\\2008\\1-CHIEN-JEMA-08\nMD JEMA\\2008\\2-CHAT-JEMA-08\nMD JEMA\\2008\\3-POULPE-JEMA-08\nMD JEMA\\2008\\4-HIPPOCAMPE-JEMA-08\nMD JEMA\\2009\\1-CHIEN-JEMA-09\nMD JEMA\\2009\\2-CHAT-JEMA-09\nMD JEMA\\2009\\3-POULPE-JEMA-09\nMD JEMA\\2009\\4-HIPPOCAMPE-JEMA-09\nMD JEMA\\2010\\1-CHIEN-JEMA-10\nMD JEMA\\2010\\2-CHAT-JEMA-10\nMD JEMA\\2010\\3-POULPE-JEMA-10\nMD JEMA\\2010\\4-HIPPOCAMPE-JEMA-10\nMD JEMA\\2011\\1-CHIEN-JEMA-11\nMD JEMA\\2011\\2-CHAT-JEMA-11\nMD JEMA\\2011\\3-POULPE-JEMA-11\nMD JEMA\\2011\\4-HIPPOCAMPE-JEMA-11\nMD JEMA\\2012\\1-CHIEN-JEMA-12\nMD JEMA\\2012\\2-CHAT-JEMA-12\nMD JEMA\\2012\\3-POULPE-JEMA-12\nMD JEMA\\2012\\4-HIPPOCAMPE-JEMA-12\nMD NOEM\\2006\\1-CHIEN-NOEM-06\nMD NOEM\\2006\\2-CHAT-NOEM-06\nMD NOEM\\2006\\3-POULPE-NOEM-06\nMD NOEM\\2006\\4-HIPPOCAMPE-NOEM-06\nMD NOEM\\2007\\1-CHIEN-NOEM-07\nMD NOEM\\2007\\2-CHAT-NOEM-07\nMD NOEM\\2007\\3-POULPE-NOEM-07\nMD NOEM\\2007\\4-HIPPOCAMPE-NOEM-07\nMD NOEM\\2008\\1-CHIEN-NOEM-08\nMD NOEM\\2008\\2-CHAT-NOEM-08\nMD NOEM\\2008\\3-POULPE-NOEM-08\nMD NOEM\\2008\\4-HIPPOCAMPE-NOEM-08\nMD NOEM\\2009\\1-CHIEN-NOEM-09\nMD NOEM\\2009\\2-CHAT-NOEM-09\nMD NOEM\\2009\\3-POULPE-NOEM-09\nMD NOEM\\2009\\4-HIPPOCAMPE-NOEM-09\nMD NOEM\\2010\\1-CHIEN-NOEM-10\nMD NOEM\\2010\\2-CHAT-NOEM-10\nMD NOEM\\2010\\3-POULPE-NOEM-10\nMD NOEM\\2010\\4-HIPPOCAMPE-NOEM-10\nMD NOEM\\2011\\1-CHIEN-NOEM-11\nMD NOEM\\2011\\2-CHAT-NOEM-11\nMD NOEM\\2011\\3-POULPE-NOEM-11\nMD NOEM\\2011\\4-HIPPOCAMPE-NOEM-11\nMD NOEM\\2012\\1-CHIEN-NOEM-12\nMD NOEM\\2012\\2-CHAT-NOEM-12\nMD NOEM\\2012\\3-POULPE-NOEM-12\nMD NOEM\\2012\\4-HIPPOCAMPE-NOEM-12\nMD ESCH\\2006\\1-CHIEN-ESCH-06\nMD ESCH\\2006\\2-CHAT-ESCH-06\nMD ESCH\\2006\\3-POULPE-ESCH-06\nMD ESCH\\2006\\4-HIPPOCAMPE-ESCH-06\nMD ESCH\\2007\\1-CHIEN-ESCH-07\nMD ESCH\\2007\\2-CHAT-ESCH-07\nMD ESCH\\2007\\3-POULPE-ESCH-07\nMD ESCH\\2007\\4-HIPPOCAMPE-ESCH-07\nMD ESCH\\2008\\1-CHIEN-ESCH-08\nMD ESCH\\2008\\2-CHAT-ESCH-08\nMD ESCH\\2008\\3-POULPE-ESCH-08\nMD ESCH\\2008\\4-HIPPOCAMPE-ESCH-08\nMD ESCH\\2009\\1-CHIEN-ESCH-09\nMD ESCH\\2009\\2-CHAT-ESCH-09\nMD ESCH\\2009\\3-POULPE-ESCH-09"}]
[{"$f":"IF(ROWS($C$20:C90)<Nb_Liste*Nb_Années*Nb_Animaux,IF(B91>=B90,A90,INDEX(Liste,MATCH(A90,Liste,0)+1)),\"\")","v":"ESCH"},{"$f":"IF(ROWS($C$20:C90)<Nb_Liste*Nb_Années*Nb_Animaux,(C91=INDEX(Animaux,1))*(1-Nb_Années*(B90=Max_Années))+B90,\"\")","v":2009},{"$f":"IF(ROWS($C$20:C90)<Nb_Liste*Nb_Années*Nb_Animaux,INDEX(Animaux,MOD(MATCH(C90,Animaux,0),Nb_Animaux)+1),\"\")","v":"4-HIPPOCAMPE"},null,{"$f":"IF(ROWS($C$20:C90)<Nb_Liste*Nb_Années*Nb_Animaux,E90&CHAR(10)&\"MD \"&A91&\"\\\"&B91&\"\\\"&C91&\"-\"&A91&\"-\"&RIGHT(TEXT(B91,\"0000\"),2),\"\")","v":"CD C:\\Users\\jvdo\\Documents\\forum\\test\nMD JEMA\\2006\\1-CHIEN-JEMA-06\nMD JEMA\\2006\\2-CHAT-JEMA-06\nMD JEMA\\2006\\3-POULPE-JEMA-06\nMD JEMA\\2006\\4-HIPPOCAMPE-JEMA-06\nMD JEMA\\2007\\1-CHIEN-JEMA-07\nMD JEMA\\2007\\2-CHAT-JEMA-07\nMD JEMA\\2007\\3-POULPE-JEMA-07\nMD JEMA\\2007\\4-HIPPOCAMPE-JEMA-07\nMD JEMA\\2008\\1-CHIEN-JEMA-08\nMD JEMA\\2008\\2-CHAT-JEMA-08\nMD JEMA\\2008\\3-POULPE-JEMA-08\nMD JEMA\\2008\\4-HIPPOCAMPE-JEMA-08\nMD JEMA\\2009\\1-CHIEN-JEMA-09\nMD JEMA\\2009\\2-CHAT-JEMA-09\nMD JEMA\\2009\\3-POULPE-JEMA-09\nMD JEMA\\2009\\4-HIPPOCAMPE-JEMA-09\nMD JEMA\\2010\\1-CHIEN-JEMA-10\nMD JEMA\\2010\\2-CHAT-JEMA-10\nMD JEMA\\2010\\3-POULPE-JEMA-10\nMD JEMA\\2010\\4-HIPPOCAMPE-JEMA-10\nMD JEMA\\2011\\1-CHIEN-JEMA-11\nMD JEMA\\2011\\2-CHAT-JEMA-11\nMD JEMA\\2011\\3-POULPE-JEMA-11\nMD JEMA\\2011\\4-HIPPOCAMPE-JEMA-11\nMD JEMA\\2012\\1-CHIEN-JEMA-12\nMD JEMA\\2012\\2-CHAT-JEMA-12\nMD JEMA\\2012\\3-POULPE-JEMA-12\nMD JEMA\\2012\\4-HIPPOCAMPE-JEMA-12\nMD NOEM\\2006\\1-CHIEN-NOEM-06\nMD NOEM\\2006\\2-CHAT-NOEM-06\nMD NOEM\\2006\\3-POULPE-NOEM-06\nMD NOEM\\2006\\4-HIPPOCAMPE-NOEM-06\nMD NOEM\\2007\\1-CHIEN-NOEM-07\nMD NOEM\\2007\\2-CHAT-NOEM-07\nMD NOEM\\2007\\3-POULPE-NOEM-07\nMD NOEM\\2007\\4-HIPPOCAMPE-NOEM-07\nMD NOEM\\2008\\1-CHIEN-NOEM-08\nMD NOEM\\2008\\2-CHAT-NOEM-08\nMD NOEM\\2008\\3-POULPE-NOEM-08\nMD NOEM\\2008\\4-HIPPOCAMPE-NOEM-08\nMD NOEM\\2009\\1-CHIEN-NOEM-09\nMD NOEM\\2009\\2-CHAT-NOEM-09\nMD NOEM\\2009\\3-POULPE-NOEM-09\nMD NOEM\\2009\\4-HIPPOCAMPE-NOEM-09\nMD NOEM\\2010\\1-CHIEN-NOEM-10\nMD NOEM\\2010\\2-CHAT-NOEM-10\nMD NOEM\\2010\\3-POULPE-NOEM-10\nMD NOEM\\2010\\4-HIPPOCAMPE-NOEM-10\nMD NOEM\\2011\\1-CHIEN-NOEM-11\nMD NOEM\\2011\\2-CHAT-NOEM-11\nMD NOEM\\2011\\3-POULPE-NOEM-11\nMD NOEM\\2011\\4-HIPPOCAMPE-NOEM-11\nMD NOEM\\2012\\1-CHIEN-NOEM-12\nMD NOEM\\2012\\2-CHAT-NOEM-12\nMD NOEM\\2012\\3-POULPE-NOEM-12\nMD NOEM\\2012\\4-HIPPOCAMPE-NOEM-12\nMD ESCH\\2006\\1-CHIEN-ESCH-06\nMD ESCH\\2006\\2-CHAT-ESCH-06\nMD ESCH\\2006\\3-POULPE-ESCH-06\nMD ESCH\\2006\\4-HIPPOCAMPE-ESCH-06\nMD ESCH\\2007\\1-CHIEN-ESCH-07\nMD ESCH\\2007\\2-CHAT-ESCH-07\nMD ESCH\\2007\\3-POULPE-ESCH-07\nMD ESCH\\2007\\4-HIPPOCAMPE-ESCH-07\nMD ESCH\\2008\\1-CHIEN-ESCH-08\nMD ESCH\\2008\\2-CHAT-ESCH-08\nMD ESCH\\2008\\3-POULPE-ESCH-08\nMD ESCH\\2008\\4-HIPPOCAMPE-ESCH-08\nMD ESCH\\2009\\1-CHIEN-ESCH-09\nMD ESCH\\2009\\2-CHAT-ESCH-09\nMD ESCH\\2009\\3-POULPE-ESCH-09\nMD ESCH\\2009\\4-HIPPOCAMPE-ESCH-09"}]
[{"$f":"IF(ROWS($C$20:C91)<Nb_Liste*Nb_Années*Nb_Animaux,IF(B92>=B91,A91,INDEX(Liste,MATCH(A91,Liste,0)+1)),\"\")","v":"ESCH"},{"$f":"IF(ROWS($C$20:C91)<Nb_Liste*Nb_Années*Nb_Animaux,(C92=INDEX(Animaux,1))*(1-Nb_Années*(B91=Max_Années))+B91,\"\")","v":2010},{"$f":"IF(ROWS($C$20:C91)<Nb_Liste*Nb_Années*Nb_Animaux,INDEX(Animaux,MOD(MATCH(C91,Animaux,0),Nb_Animaux)+1),\"\")","v":"1-CHIEN"},null,{"$f":"IF(ROWS($C$20:C91)<Nb_Liste*Nb_Années*Nb_Animaux,E91&CHAR(10)&\"MD \"&A92&\"\\\"&B92&\"\\\"&C92&\"-\"&A92&\"-\"&RIGHT(TEXT(B92,\"0000\"),2),\"\")","v":"CD C:\\Users\\jvdo\\Documents\\forum\\test\nMD JEMA\\2006\\1-CHIEN-JEMA-06\nMD JEMA\\2006\\2-CHAT-JEMA-06\nMD JEMA\\2006\\3-POULPE-JEMA-06\nMD JEMA\\2006\\4-HIPPOCAMPE-JEMA-06\nMD JEMA\\2007\\1-CHIEN-JEMA-07\nMD JEMA\\2007\\2-CHAT-JEMA-07\nMD JEMA\\2007\\3-POULPE-JEMA-07\nMD JEMA\\2007\\4-HIPPOCAMPE-JEMA-07\nMD JEMA\\2008\\1-CHIEN-JEMA-08\nMD JEMA\\2008\\2-CHAT-JEMA-08\nMD JEMA\\2008\\3-POULPE-JEMA-08\nMD JEMA\\2008\\4-HIPPOCAMPE-JEMA-08\nMD JEMA\\2009\\1-CHIEN-JEMA-09\nMD JEMA\\2009\\2-CHAT-JEMA-09\nMD JEMA\\2009\\3-POULPE-JEMA-09\nMD JEMA\\2009\\4-HIPPOCAMPE-JEMA-09\nMD JEMA\\2010\\1-CHIEN-JEMA-10\nMD JEMA\\2010\\2-CHAT-JEMA-10\nMD JEMA\\2010\\3-POULPE-JEMA-10\nMD JEMA\\2010\\4-HIPPOCAMPE-JEMA-10\nMD JEMA\\2011\\1-CHIEN-JEMA-11\nMD JEMA\\2011\\2-CHAT-JEMA-11\nMD JEMA\\2011\\3-POULPE-JEMA-11\nMD JEMA\\2011\\4-HIPPOCAMPE-JEMA-11\nMD JEMA\\2012\\1-CHIEN-JEMA-12\nMD JEMA\\2012\\2-CHAT-JEMA-12\nMD JEMA\\2012\\3-POULPE-JEMA-12\nMD JEMA\\2012\\4-HIPPOCAMPE-JEMA-12\nMD NOEM\\2006\\1-CHIEN-NOEM-06\nMD NOEM\\2006\\2-CHAT-NOEM-06\nMD NOEM\\2006\\3-POULPE-NOEM-06\nMD NOEM\\2006\\4-HIPPOCAMPE-NOEM-06\nMD NOEM\\2007\\1-CHIEN-NOEM-07\nMD NOEM\\2007\\2-CHAT-NOEM-07\nMD NOEM\\2007\\3-POULPE-NOEM-07\nMD NOEM\\2007\\4-HIPPOCAMPE-NOEM-07\nMD NOEM\\2008\\1-CHIEN-NOEM-08\nMD NOEM\\2008\\2-CHAT-NOEM-08\nMD NOEM\\2008\\3-POULPE-NOEM-08\nMD NOEM\\2008\\4-HIPPOCAMPE-NOEM-08\nMD NOEM\\2009\\1-CHIEN-NOEM-09\nMD NOEM\\2009\\2-CHAT-NOEM-09\nMD NOEM\\2009\\3-POULPE-NOEM-09\nMD NOEM\\2009\\4-HIPPOCAMPE-NOEM-09\nMD NOEM\\2010\\1-CHIEN-NOEM-10\nMD NOEM\\2010\\2-CHAT-NOEM-10\nMD NOEM\\2010\\3-POULPE-NOEM-10\nMD NOEM\\2010\\4-HIPPOCAMPE-NOEM-10\nMD NOEM\\2011\\1-CHIEN-NOEM-11\nMD NOEM\\2011\\2-CHAT-NOEM-11\nMD NOEM\\2011\\3-POULPE-NOEM-11\nMD NOEM\\2011\\4-HIPPOCAMPE-NOEM-11\nMD NOEM\\2012\\1-CHIEN-NOEM-12\nMD NOEM\\2012\\2-CHAT-NOEM-12\nMD NOEM\\2012\\3-POULPE-NOEM-12\nMD NOEM\\2012\\4-HIPPOCAMPE-NOEM-12\nMD ESCH\\2006\\1-CHIEN-ESCH-06\nMD ESCH\\2006\\2-CHAT-ESCH-06\nMD ESCH\\2006\\3-POULPE-ESCH-06\nMD ESCH\\2006\\4-HIPPOCAMPE-ESCH-06\nMD ESCH\\2007\\1-CHIEN-ESCH-07\nMD ESCH\\2007\\2-CHAT-ESCH-07\nMD ESCH\\2007\\3-POULPE-ESCH-07\nMD ESCH\\2007\\4-HIPPOCAMPE-ESCH-07\nMD ESCH\\2008\\1-CHIEN-ESCH-08\nMD ESCH\\2008\\2-CHAT-ESCH-08\nMD ESCH\\2008\\3-POULPE-ESCH-08\nMD ESCH\\2008\\4-HIPPOCAMPE-ESCH-08\nMD ESCH\\2009\\1-CHIEN-ESCH-09\nMD ESCH\\2009\\2-CHAT-ESCH-09\nMD ESCH\\2009\\3-POULPE-ESCH-09\nMD ESCH\\2009\\4-HIPPOCAMPE-ESCH-09\nMD ESCH\\2010\\1-CHIEN-ESCH-10"}]
[{"$f":"IF(ROWS($C$20:C92)<Nb_Liste*Nb_Années*Nb_Animaux,IF(B93>=B92,A92,INDEX(Liste,MATCH(A92,Liste,0)+1)),\"\")","v":"ESCH"},{"$f":"IF(ROWS($C$20:C92)<Nb_Liste*Nb_Années*Nb_Animaux,(C93=INDEX(Animaux,1))*(1-Nb_Années*(B92=Max_Années))+B92,\"\")","v":2010},{"$f":"IF(ROWS($C$20:C92)<Nb_Liste*Nb_Années*Nb_Animaux,INDEX(Animaux,MOD(MATCH(C92,Animaux,0),Nb_Animaux)+1),\"\")","v":"2-CHAT"},null,{"$f":"IF(ROWS($C$20:C92)<Nb_Liste*Nb_Années*Nb_Animaux,E92&CHAR(10)&\"MD \"&A93&\"\\\"&B93&\"\\\"&C93&\"-\"&A93&\"-\"&RIGHT(TEXT(B93,\"0000\"),2),\"\")","v":"CD C:\\Users\\jvdo\\Documents\\forum\\test\nMD JEMA\\2006\\1-CHIEN-JEMA-06\nMD JEMA\\2006\\2-CHAT-JEMA-06\nMD JEMA\\2006\\3-POULPE-JEMA-06\nMD JEMA\\2006\\4-HIPPOCAMPE-JEMA-06\nMD JEMA\\2007\\1-CHIEN-JEMA-07\nMD JEMA\\2007\\2-CHAT-JEMA-07\nMD JEMA\\2007\\3-POULPE-JEMA-07\nMD JEMA\\2007\\4-HIPPOCAMPE-JEMA-07\nMD JEMA\\2008\\1-CHIEN-JEMA-08\nMD JEMA\\2008\\2-CHAT-JEMA-08\nMD JEMA\\2008\\3-POULPE-JEMA-08\nMD JEMA\\2008\\4-HIPPOCAMPE-JEMA-08\nMD JEMA\\2009\\1-CHIEN-JEMA-09\nMD JEMA\\2009\\2-CHAT-JEMA-09\nMD JEMA\\2009\\3-POULPE-JEMA-09\nMD JEMA\\2009\\4-HIPPOCAMPE-JEMA-09\nMD JEMA\\2010\\1-CHIEN-JEMA-10\nMD JEMA\\2010\\2-CHAT-JEMA-10\nMD JEMA\\2010\\3-POULPE-JEMA-10\nMD JEMA\\2010\\4-HIPPOCAMPE-JEMA-10\nMD JEMA\\2011\\1-CHIEN-JEMA-11\nMD JEMA\\2011\\2-CHAT-JEMA-11\nMD JEMA\\2011\\3-POULPE-JEMA-11\nMD JEMA\\2011\\4-HIPPOCAMPE-JEMA-11\nMD JEMA\\2012\\1-CHIEN-JEMA-12\nMD JEMA\\2012\\2-CHAT-JEMA-12\nMD JEMA\\2012\\3-POULPE-JEMA-12\nMD JEMA\\2012\\4-HIPPOCAMPE-JEMA-12\nMD NOEM\\2006\\1-CHIEN-NOEM-06\nMD NOEM\\2006\\2-CHAT-NOEM-06\nMD NOEM\\2006\\3-POULPE-NOEM-06\nMD NOEM\\2006\\4-HIPPOCAMPE-NOEM-06\nMD NOEM\\2007\\1-CHIEN-NOEM-07\nMD NOEM\\2007\\2-CHAT-NOEM-07\nMD NOEM\\2007\\3-POULPE-NOEM-07\nMD NOEM\\2007\\4-HIPPOCAMPE-NOEM-07\nMD NOEM\\2008\\1-CHIEN-NOEM-08\nMD NOEM\\2008\\2-CHAT-NOEM-08\nMD NOEM\\2008\\3-POULPE-NOEM-08\nMD NOEM\\2008\\4-HIPPOCAMPE-NOEM-08\nMD NOEM\\2009\\1-CHIEN-NOEM-09\nMD NOEM\\2009\\2-CHAT-NOEM-09\nMD NOEM\\2009\\3-POULPE-NOEM-09\nMD NOEM\\2009\\4-HIPPOCAMPE-NOEM-09\nMD NOEM\\2010\\1-CHIEN-NOEM-10\nMD NOEM\\2010\\2-CHAT-NOEM-10\nMD NOEM\\2010\\3-POULPE-NOEM-10\nMD NOEM\\2010\\4-HIPPOCAMPE-NOEM-10\nMD NOEM\\2011\\1-CHIEN-NOEM-11\nMD NOEM\\2011\\2-CHAT-NOEM-11\nMD NOEM\\2011\\3-POULPE-NOEM-11\nMD NOEM\\2011\\4-HIPPOCAMPE-NOEM-11\nMD NOEM\\2012\\1-CHIEN-NOEM-12\nMD NOEM\\2012\\2-CHAT-NOEM-12\nMD NOEM\\2012\\3-POULPE-NOEM-12\nMD NOEM\\2012\\4-HIPPOCAMPE-NOEM-12\nMD ESCH\\2006\\1-CHIEN-ESCH-06\nMD ESCH\\2006\\2-CHAT-ESCH-06\nMD ESCH\\2006\\3-POULPE-ESCH-06\nMD ESCH\\2006\\4-HIPPOCAMPE-ESCH-06\nMD ESCH\\2007\\1-CHIEN-ESCH-07\nMD ESCH\\2007\\2-CHAT-ESCH-07\nMD ESCH\\2007\\3-POULPE-ESCH-07\nMD ESCH\\2007\\4-HIPPOCAMPE-ESCH-07\nMD ESCH\\2008\\1-CHIEN-ESCH-08\nMD ESCH\\2008\\2-CHAT-ESCH-08\nMD ESCH\\2008\\3-POULPE-ESCH-08\nMD ESCH\\2008\\4-HIPPOCAMPE-ESCH-08\nMD ESCH\\2009\\1-CHIEN-ESCH-09\nMD ESCH\\2009\\2-CHAT-ESCH-09\nMD ESCH\\2009\\3-POULPE-ESCH-09\nMD ESCH\\2009\\4-HIPPOCAMPE-ESCH-09\nMD ESCH\\2010\\1-CHIEN-ESCH-10\nMD ESCH\\2010\\2-CHAT-ESCH-10"}]
[{"$f":"IF(ROWS($C$20:C93)<Nb_Liste*Nb_Années*Nb_Animaux,IF(B94>=B93,A93,INDEX(Liste,MATCH(A93,Liste,0)+1)),\"\")","v":"ESCH"},{"$f":"IF(ROWS($C$20:C93)<Nb_Liste*Nb_Années*Nb_Animaux,(C94=INDEX(Animaux,1))*(1-Nb_Années*(B93=Max_Années))+B93,\"\")","v":2010},{"$f":"IF(ROWS($C$20:C93)<Nb_Liste*Nb_Années*Nb_Animaux,INDEX(Animaux,MOD(MATCH(C93,Animaux,0),Nb_Animaux)+1),\"\")","v":"3-POULPE"},null,{"$f":"IF(ROWS($C$20:C93)<Nb_Liste*Nb_Années*Nb_Animaux,E93&CHAR(10)&\"MD \"&A94&\"\\\"&B94&\"\\\"&C94&\"-\"&A94&\"-\"&RIGHT(TEXT(B94,\"0000\"),2),\"\")","v":"CD C:\\Users\\jvdo\\Documents\\forum\\test\nMD JEMA\\2006\\1-CHIEN-JEMA-06\nMD JEMA\\2006\\2-CHAT-JEMA-06\nMD JEMA\\2006\\3-POULPE-JEMA-06\nMD JEMA\\2006\\4-HIPPOCAMPE-JEMA-06\nMD JEMA\\2007\\1-CHIEN-JEMA-07\nMD JEMA\\2007\\2-CHAT-JEMA-07\nMD JEMA\\2007\\3-POULPE-JEMA-07\nMD JEMA\\2007\\4-HIPPOCAMPE-JEMA-07\nMD JEMA\\2008\\1-CHIEN-JEMA-08\nMD JEMA\\2008\\2-CHAT-JEMA-08\nMD JEMA\\2008\\3-POULPE-JEMA-08\nMD JEMA\\2008\\4-HIPPOCAMPE-JEMA-08\nMD JEMA\\2009\\1-CHIEN-JEMA-09\nMD JEMA\\2009\\2-CHAT-JEMA-09\nMD JEMA\\2009\\3-POULPE-JEMA-09\nMD JEMA\\2009\\4-HIPPOCAMPE-JEMA-09\nMD JEMA\\2010\\1-CHIEN-JEMA-10\nMD JEMA\\2010\\2-CHAT-JEMA-10\nMD JEMA\\2010\\3-POULPE-JEMA-10\nMD JEMA\\2010\\4-HIPPOCAMPE-JEMA-10\nMD JEMA\\2011\\1-CHIEN-JEMA-11\nMD JEMA\\2011\\2-CHAT-JEMA-11\nMD JEMA\\2011\\3-POULPE-JEMA-11\nMD JEMA\\2011\\4-HIPPOCAMPE-JEMA-11\nMD JEMA\\2012\\1-CHIEN-JEMA-12\nMD JEMA\\2012\\2-CHAT-JEMA-12\nMD JEMA\\2012\\3-POULPE-JEMA-12\nMD JEMA\\2012\\4-HIPPOCAMPE-JEMA-12\nMD NOEM\\2006\\1-CHIEN-NOEM-06\nMD NOEM\\2006\\2-CHAT-NOEM-06\nMD NOEM\\2006\\3-POULPE-NOEM-06\nMD NOEM\\2006\\4-HIPPOCAMPE-NOEM-06\nMD NOEM\\2007\\1-CHIEN-NOEM-07\nMD NOEM\\2007\\2-CHAT-NOEM-07\nMD NOEM\\2007\\3-POULPE-NOEM-07\nMD NOEM\\2007\\4-HIPPOCAMPE-NOEM-07\nMD NOEM\\2008\\1-CHIEN-NOEM-08\nMD NOEM\\2008\\2-CHAT-NOEM-08\nMD NOEM\\2008\\3-POULPE-NOEM-08\nMD NOEM\\2008\\4-HIPPOCAMPE-NOEM-08\nMD NOEM\\2009\\1-CHIEN-NOEM-09\nMD NOEM\\2009\\2-CHAT-NOEM-09\nMD NOEM\\2009\\3-POULPE-NOEM-09\nMD NOEM\\2009\\4-HIPPOCAMPE-NOEM-09\nMD NOEM\\2010\\1-CHIEN-NOEM-10\nMD NOEM\\2010\\2-CHAT-NOEM-10\nMD NOEM\\2010\\3-POULPE-NOEM-10\nMD NOEM\\2010\\4-HIPPOCAMPE-NOEM-10\nMD NOEM\\2011\\1-CHIEN-NOEM-11\nMD NOEM\\2011\\2-CHAT-NOEM-11\nMD NOEM\\2011\\3-POULPE-NOEM-11\nMD NOEM\\2011\\4-HIPPOCAMPE-NOEM-11\nMD NOEM\\2012\\1-CHIEN-NOEM-12\nMD NOEM\\2012\\2-CHAT-NOEM-12\nMD NOEM\\2012\\3-POULPE-NOEM-12\nMD NOEM\\2012\\4-HIPPOCAMPE-NOEM-12\nMD ESCH\\2006\\1-CHIEN-ESCH-06\nMD ESCH\\2006\\2-CHAT-ESCH-06\nMD ESCH\\2006\\3-POULPE-ESCH-06\nMD ESCH\\2006\\4-HIPPOCAMPE-ESCH-06\nMD ESCH\\2007\\1-CHIEN-ESCH-07\nMD ESCH\\2007\\2-CHAT-ESCH-07\nMD ESCH\\2007\\3-POULPE-ESCH-07\nMD ESCH\\2007\\4-HIPPOCAMPE-ESCH-07\nMD ESCH\\2008\\1-CHIEN-ESCH-08\nMD ESCH\\2008\\2-CHAT-ESCH-08\nMD ESCH\\2008\\3-POULPE-ESCH-08\nMD ESCH\\2008\\4-HIPPOCAMPE-ESCH-08\nMD ESCH\\2009\\1-CHIEN-ESCH-09\nMD ESCH\\2009\\2-CHAT-ESCH-09\nMD ESCH\\2009\\3-POULPE-ESCH-09\nMD ESCH\\2009\\4-HIPPOCAMPE-ESCH-09\nMD ESCH\\2010\\1-CHIEN-ESCH-10\nMD ESCH\\2010\\2-CHAT-ESCH-10\nMD ESCH\\2010\\3-POULPE-ESCH-10"}]
[{"$f":"IF(ROWS($C$20:C94)<Nb_Liste*Nb_Années*Nb_Animaux,IF(B95>=B94,A94,INDEX(Liste,MATCH(A94,Liste,0)+1)),\"\")","v":"ESCH"},{"$f":"IF(ROWS($C$20:C94)<Nb_Liste*Nb_Années*Nb_Animaux,(C95=INDEX(Animaux,1))*(1-Nb_Années*(B94=Max_Années))+B94,\"\")","v":2010},{"$f":"IF(ROWS($C$20:C94)<Nb_Liste*Nb_Années*Nb_Animaux,INDEX(Animaux,MOD(MATCH(C94,Animaux,0),Nb_Animaux)+1),\"\")","v":"4-HIPPOCAMPE"},null,{"$f":"IF(ROWS($C$20:C94)<Nb_Liste*Nb_Années*Nb_Animaux,E94&CHAR(10)&\"MD \"&A95&\"\\\"&B95&\"\\\"&C95&\"-\"&A95&\"-\"&RIGHT(TEXT(B95,\"0000\"),2),\"\")","v":"CD C:\\Users\\jvdo\\Documents\\forum\\test\nMD JEMA\\2006\\1-CHIEN-JEMA-06\nMD JEMA\\2006\\2-CHAT-JEMA-06\nMD JEMA\\2006\\3-POULPE-JEMA-06\nMD JEMA\\2006\\4-HIPPOCAMPE-JEMA-06\nMD JEMA\\2007\\1-CHIEN-JEMA-07\nMD JEMA\\2007\\2-CHAT-JEMA-07\nMD JEMA\\2007\\3-POULPE-JEMA-07\nMD JEMA\\2007\\4-HIPPOCAMPE-JEMA-07\nMD JEMA\\2008\\1-CHIEN-JEMA-08\nMD JEMA\\2008\\2-CHAT-JEMA-08\nMD JEMA\\2008\\3-POULPE-JEMA-08\nMD JEMA\\2008\\4-HIPPOCAMPE-JEMA-08\nMD JEMA\\2009\\1-CHIEN-JEMA-09\nMD JEMA\\2009\\2-CHAT-JEMA-09\nMD JEMA\\2009\\3-POULPE-JEMA-09\nMD JEMA\\2009\\4-HIPPOCAMPE-JEMA-09\nMD JEMA\\2010\\1-CHIEN-JEMA-10\nMD JEMA\\2010\\2-CHAT-JEMA-10\nMD JEMA\\2010\\3-POULPE-JEMA-10\nMD JEMA\\2010\\4-HIPPOCAMPE-JEMA-10\nMD JEMA\\2011\\1-CHIEN-JEMA-11\nMD JEMA\\2011\\2-CHAT-JEMA-11\nMD JEMA\\2011\\3-POULPE-JEMA-11\nMD JEMA\\2011\\4-HIPPOCAMPE-JEMA-11\nMD JEMA\\2012\\1-CHIEN-JEMA-12\nMD JEMA\\2012\\2-CHAT-JEMA-12\nMD JEMA\\2012\\3-POULPE-JEMA-12\nMD JEMA\\2012\\4-HIPPOCAMPE-JEMA-12\nMD NOEM\\2006\\1-CHIEN-NOEM-06\nMD NOEM\\2006\\2-CHAT-NOEM-06\nMD NOEM\\2006\\3-POULPE-NOEM-06\nMD NOEM\\2006\\4-HIPPOCAMPE-NOEM-06\nMD NOEM\\2007\\1-CHIEN-NOEM-07\nMD NOEM\\2007\\2-CHAT-NOEM-07\nMD NOEM\\2007\\3-POULPE-NOEM-07\nMD NOEM\\2007\\4-HIPPOCAMPE-NOEM-07\nMD NOEM\\2008\\1-CHIEN-NOEM-08\nMD NOEM\\2008\\2-CHAT-NOEM-08\nMD NOEM\\2008\\3-POULPE-NOEM-08\nMD NOEM\\2008\\4-HIPPOCAMPE-NOEM-08\nMD NOEM\\2009\\1-CHIEN-NOEM-09\nMD NOEM\\2009\\2-CHAT-NOEM-09\nMD NOEM\\2009\\3-POULPE-NOEM-09\nMD NOEM\\2009\\4-HIPPOCAMPE-NOEM-09\nMD NOEM\\2010\\1-CHIEN-NOEM-10\nMD NOEM\\2010\\2-CHAT-NOEM-10\nMD NOEM\\2010\\3-POULPE-NOEM-10\nMD NOEM\\2010\\4-HIPPOCAMPE-NOEM-10\nMD NOEM\\2011\\1-CHIEN-NOEM-11\nMD NOEM\\2011\\2-CHAT-NOEM-11\nMD NOEM\\2011\\3-POULPE-NOEM-11\nMD NOEM\\2011\\4-HIPPOCAMPE-NOEM-11\nMD NOEM\\2012\\1-CHIEN-NOEM-12\nMD NOEM\\2012\\2-CHAT-NOEM-12\nMD NOEM\\2012\\3-POULPE-NOEM-12\nMD NOEM\\2012\\4-HIPPOCAMPE-NOEM-12\nMD ESCH\\2006\\1-CHIEN-ESCH-06\nMD ESCH\\2006\\2-CHAT-ESCH-06\nMD ESCH\\2006\\3-POULPE-ESCH-06\nMD ESCH\\2006\\4-HIPPOCAMPE-ESCH-06\nMD ESCH\\2007\\1-CHIEN-ESCH-07\nMD ESCH\\2007\\2-CHAT-ESCH-07\nMD ESCH\\2007\\3-POULPE-ESCH-07\nMD ESCH\\2007\\4-HIPPOCAMPE-ESCH-07\nMD ESCH\\2008\\1-CHIEN-ESCH-08\nMD ESCH\\2008\\2-CHAT-ESCH-08\nMD ESCH\\2008\\3-POULPE-ESCH-08\nMD ESCH\\2008\\4-HIPPOCAMPE-ESCH-08\nMD ESCH\\2009\\1-CHIEN-ESCH-09\nMD ESCH\\2009\\2-CHAT-ESCH-09\nMD ESCH\\2009\\3-POULPE-ESCH-09\nMD ESCH\\2009\\4-HIPPOCAMPE-ESCH-09\nMD ESCH\\2010\\1-CHIEN-ESCH-10\nMD ESCH\\2010\\2-CHAT-ESCH-10\nMD ESCH\\2010\\3-POULPE-ESCH-10\nMD ESCH\\2010\\4-HIPPOCAMPE-ESCH-10"}]
[{"$f":"IF(ROWS($C$20:C95)<Nb_Liste*Nb_Années*Nb_Animaux,IF(B96>=B95,A95,INDEX(Liste,MATCH(A95,Liste,0)+1)),\"\")","v":"ESCH"},{"$f":"IF(ROWS($C$20:C95)<Nb_Liste*Nb_Années*Nb_Animaux,(C96=INDEX(Animaux,1))*(1-Nb_Années*(B95=Max_Années))+B95,\"\")","v":2011},{"$f":"IF(ROWS($C$20:C95)<Nb_Liste*Nb_Années*Nb_Animaux,INDEX(Animaux,MOD(MATCH(C95,Animaux,0),Nb_Animaux)+1),\"\")","v":"1-CHIEN"},null,{"$f":"IF(ROWS($C$20:C95)<Nb_Liste*Nb_Années*Nb_Animaux,E95&CHAR(10)&\"MD \"&A96&\"\\\"&B96&\"\\\"&C96&\"-\"&A96&\"-\"&RIGHT(TEXT(B96,\"0000\"),2),\"\")","v":"CD C:\\Users\\jvdo\\Documents\\forum\\test\nMD JEMA\\2006\\1-CHIEN-JEMA-06\nMD JEMA\\2006\\2-CHAT-JEMA-06\nMD JEMA\\2006\\3-POULPE-JEMA-06\nMD JEMA\\2006\\4-HIPPOCAMPE-JEMA-06\nMD JEMA\\2007\\1-CHIEN-JEMA-07\nMD JEMA\\2007\\2-CHAT-JEMA-07\nMD JEMA\\2007\\3-POULPE-JEMA-07\nMD JEMA\\2007\\4-HIPPOCAMPE-JEMA-07\nMD JEMA\\2008\\1-CHIEN-JEMA-08\nMD JEMA\\2008\\2-CHAT-JEMA-08\nMD JEMA\\2008\\3-POULPE-JEMA-08\nMD JEMA\\2008\\4-HIPPOCAMPE-JEMA-08\nMD JEMA\\2009\\1-CHIEN-JEMA-09\nMD JEMA\\2009\\2-CHAT-JEMA-09\nMD JEMA\\2009\\3-POULPE-JEMA-09\nMD JEMA\\2009\\4-HIPPOCAMPE-JEMA-09\nMD JEMA\\2010\\1-CHIEN-JEMA-10\nMD JEMA\\2010\\2-CHAT-JEMA-10\nMD JEMA\\2010\\3-POULPE-JEMA-10\nMD JEMA\\2010\\4-HIPPOCAMPE-JEMA-10\nMD JEMA\\2011\\1-CHIEN-JEMA-11\nMD JEMA\\2011\\2-CHAT-JEMA-11\nMD JEMA\\2011\\3-POULPE-JEMA-11\nMD JEMA\\2011\\4-HIPPOCAMPE-JEMA-11\nMD JEMA\\2012\\1-CHIEN-JEMA-12\nMD JEMA\\2012\\2-CHAT-JEMA-12\nMD JEMA\\2012\\3-POULPE-JEMA-12\nMD JEMA\\2012\\4-HIPPOCAMPE-JEMA-12\nMD NOEM\\2006\\1-CHIEN-NOEM-06\nMD NOEM\\2006\\2-CHAT-NOEM-06\nMD NOEM\\2006\\3-POULPE-NOEM-06\nMD NOEM\\2006\\4-HIPPOCAMPE-NOEM-06\nMD NOEM\\2007\\1-CHIEN-NOEM-07\nMD NOEM\\2007\\2-CHAT-NOEM-07\nMD NOEM\\2007\\3-POULPE-NOEM-07\nMD NOEM\\2007\\4-HIPPOCAMPE-NOEM-07\nMD NOEM\\2008\\1-CHIEN-NOEM-08\nMD NOEM\\2008\\2-CHAT-NOEM-08\nMD NOEM\\2008\\3-POULPE-NOEM-08\nMD NOEM\\2008\\4-HIPPOCAMPE-NOEM-08\nMD NOEM\\2009\\1-CHIEN-NOEM-09\nMD NOEM\\2009\\2-CHAT-NOEM-09\nMD NOEM\\2009\\3-POULPE-NOEM-09\nMD NOEM\\2009\\4-HIPPOCAMPE-NOEM-09\nMD NOEM\\2010\\1-CHIEN-NOEM-10\nMD NOEM\\2010\\2-CHAT-NOEM-10\nMD NOEM\\2010\\3-POULPE-NOEM-10\nMD NOEM\\2010\\4-HIPPOCAMPE-NOEM-10\nMD NOEM\\2011\\1-CHIEN-NOEM-11\nMD NOEM\\2011\\2-CHAT-NOEM-11\nMD NOEM\\2011\\3-POULPE-NOEM-11\nMD NOEM\\2011\\4-HIPPOCAMPE-NOEM-11\nMD NOEM\\2012\\1-CHIEN-NOEM-12\nMD NOEM\\2012\\2-CHAT-NOEM-12\nMD NOEM\\2012\\3-POULPE-NOEM-12\nMD NOEM\\2012\\4-HIPPOCAMPE-NOEM-12\nMD ESCH\\2006\\1-CHIEN-ESCH-06\nMD ESCH\\2006\\2-CHAT-ESCH-06\nMD ESCH\\2006\\3-POULPE-ESCH-06\nMD ESCH\\2006\\4-HIPPOCAMPE-ESCH-06\nMD ESCH\\2007\\1-CHIEN-ESCH-07\nMD ESCH\\2007\\2-CHAT-ESCH-07\nMD ESCH\\2007\\3-POULPE-ESCH-07\nMD ESCH\\2007\\4-HIPPOCAMPE-ESCH-07\nMD ESCH\\2008\\1-CHIEN-ESCH-08\nMD ESCH\\2008\\2-CHAT-ESCH-08\nMD ESCH\\2008\\3-POULPE-ESCH-08\nMD ESCH\\2008\\4-HIPPOCAMPE-ESCH-08\nMD ESCH\\2009\\1-CHIEN-ESCH-09\nMD ESCH\\2009\\2-CHAT-ESCH-09\nMD ESCH\\2009\\3-POULPE-ESCH-09\nMD ESCH\\2009\\4-HIPPOCAMPE-ESCH-09\nMD ESCH\\2010\\1-CHIEN-ESCH-10\nMD ESCH\\2010\\2-CHAT-ESCH-10\nMD ESCH\\2010\\3-POULPE-ESCH-10\nMD ESCH\\2010\\4-HIPPOCAMPE-ESCH-10\nMD ESCH\\2011\\1-CHIEN-ESCH-11"}]
[{"$f":"IF(ROWS($C$20:C96)<Nb_Liste*Nb_Années*Nb_Animaux,IF(B97>=B96,A96,INDEX(Liste,MATCH(A96,Liste,0)+1)),\"\")","v":"ESCH"},{"$f":"IF(ROWS($C$20:C96)<Nb_Liste*Nb_Années*Nb_Animaux,(C97=INDEX(Animaux,1))*(1-Nb_Années*(B96=Max_Années))+B96,\"\")","v":2011},{"$f":"IF(ROWS($C$20:C96)<Nb_Liste*Nb_Années*Nb_Animaux,INDEX(Animaux,MOD(MATCH(C96,Animaux,0),Nb_Animaux)+1),\"\")","v":"2-CHAT"},null,{"$f":"IF(ROWS($C$20:C96)<Nb_Liste*Nb_Années*Nb_Animaux,E96&CHAR(10)&\"MD \"&A97&\"\\\"&B97&\"\\\"&C97&\"-\"&A97&\"-\"&RIGHT(TEXT(B97,\"0000\"),2),\"\")","v":"CD C:\\Users\\jvdo\\Documents\\forum\\test\nMD JEMA\\2006\\1-CHIEN-JEMA-06\nMD JEMA\\2006\\2-CHAT-JEMA-06\nMD JEMA\\2006\\3-POULPE-JEMA-06\nMD JEMA\\2006\\4-HIPPOCAMPE-JEMA-06\nMD JEMA\\2007\\1-CHIEN-JEMA-07\nMD JEMA\\2007\\2-CHAT-JEMA-07\nMD JEMA\\2007\\3-POULPE-JEMA-07\nMD JEMA\\2007\\4-HIPPOCAMPE-JEMA-07\nMD JEMA\\2008\\1-CHIEN-JEMA-08\nMD JEMA\\2008\\2-CHAT-JEMA-08\nMD JEMA\\2008\\3-POULPE-JEMA-08\nMD JEMA\\2008\\4-HIPPOCAMPE-JEMA-08\nMD JEMA\\2009\\1-CHIEN-JEMA-09\nMD JEMA\\2009\\2-CHAT-JEMA-09\nMD JEMA\\2009\\3-POULPE-JEMA-09\nMD JEMA\\2009\\4-HIPPOCAMPE-JEMA-09\nMD JEMA\\2010\\1-CHIEN-JEMA-10\nMD JEMA\\2010\\2-CHAT-JEMA-10\nMD JEMA\\2010\\3-POULPE-JEMA-10\nMD JEMA\\2010\\4-HIPPOCAMPE-JEMA-10\nMD JEMA\\2011\\1-CHIEN-JEMA-11\nMD JEMA\\2011\\2-CHAT-JEMA-11\nMD JEMA\\2011\\3-POULPE-JEMA-11\nMD JEMA\\2011\\4-HIPPOCAMPE-JEMA-11\nMD JEMA\\2012\\1-CHIEN-JEMA-12\nMD JEMA\\2012\\2-CHAT-JEMA-12\nMD JEMA\\2012\\3-POULPE-JEMA-12\nMD JEMA\\2012\\4-HIPPOCAMPE-JEMA-12\nMD NOEM\\2006\\1-CHIEN-NOEM-06\nMD NOEM\\2006\\2-CHAT-NOEM-06\nMD NOEM\\2006\\3-POULPE-NOEM-06\nMD NOEM\\2006\\4-HIPPOCAMPE-NOEM-06\nMD NOEM\\2007\\1-CHIEN-NOEM-07\nMD NOEM\\2007\\2-CHAT-NOEM-07\nMD NOEM\\2007\\3-POULPE-NOEM-07\nMD NOEM\\2007\\4-HIPPOCAMPE-NOEM-07\nMD NOEM\\2008\\1-CHIEN-NOEM-08\nMD NOEM\\2008\\2-CHAT-NOEM-08\nMD NOEM\\2008\\3-POULPE-NOEM-08\nMD NOEM\\2008\\4-HIPPOCAMPE-NOEM-08\nMD NOEM\\2009\\1-CHIEN-NOEM-09\nMD NOEM\\2009\\2-CHAT-NOEM-09\nMD NOEM\\2009\\3-POULPE-NOEM-09\nMD NOEM\\2009\\4-HIPPOCAMPE-NOEM-09\nMD NOEM\\2010\\1-CHIEN-NOEM-10\nMD NOEM\\2010\\2-CHAT-NOEM-10\nMD NOEM\\2010\\3-POULPE-NOEM-10\nMD NOEM\\2010\\4-HIPPOCAMPE-NOEM-10\nMD NOEM\\2011\\1-CHIEN-NOEM-11\nMD NOEM\\2011\\2-CHAT-NOEM-11\nMD NOEM\\2011\\3-POULPE-NOEM-11\nMD NOEM\\2011\\4-HIPPOCAMPE-NOEM-11\nMD NOEM\\2012\\1-CHIEN-NOEM-12\nMD NOEM\\2012\\2-CHAT-NOEM-12\nMD NOEM\\2012\\3-POULPE-NOEM-12\nMD NOEM\\2012\\4-HIPPOCAMPE-NOEM-12\nMD ESCH\\2006\\1-CHIEN-ESCH-06\nMD ESCH\\2006\\2-CHAT-ESCH-06\nMD ESCH\\2006\\3-POULPE-ESCH-06\nMD ESCH\\2006\\4-HIPPOCAMPE-ESCH-06\nMD ESCH\\2007\\1-CHIEN-ESCH-07\nMD ESCH\\2007\\2-CHAT-ESCH-07\nMD ESCH\\2007\\3-POULPE-ESCH-07\nMD ESCH\\2007\\4-HIPPOCAMPE-ESCH-07\nMD ESCH\\2008\\1-CHIEN-ESCH-08\nMD ESCH\\2008\\2-CHAT-ESCH-08\nMD ESCH\\2008\\3-POULPE-ESCH-08\nMD ESCH\\2008\\4-HIPPOCAMPE-ESCH-08\nMD ESCH\\2009\\1-CHIEN-ESCH-09\nMD ESCH\\2009\\2-CHAT-ESCH-09\nMD ESCH\\2009\\3-POULPE-ESCH-09\nMD ESCH\\2009\\4-HIPPOCAMPE-ESCH-09\nMD ESCH\\2010\\1-CHIEN-ESCH-10\nMD ESCH\\2010\\2-CHAT-ESCH-10\nMD ESCH\\2010\\3-POULPE-ESCH-10\nMD ESCH\\2010\\4-HIPPOCAMPE-ESCH-10\nMD ESCH\\2011\\1-CHIEN-ESCH-11\nMD ESCH\\2011\\2-CHAT-ESCH-11"}]
[{"$f":"IF(ROWS($C$20:C97)<Nb_Liste*Nb_Années*Nb_Animaux,IF(B98>=B97,A97,INDEX(Liste,MATCH(A97,Liste,0)+1)),\"\")","v":"ESCH"},{"$f":"IF(ROWS($C$20:C97)<Nb_Liste*Nb_Années*Nb_Animaux,(C98=INDEX(Animaux,1))*(1-Nb_Années*(B97=Max_Années))+B97,\"\")","v":2011},{"$f":"IF(ROWS($C$20:C97)<Nb_Liste*Nb_Années*Nb_Animaux,INDEX(Animaux,MOD(MATCH(C97,Animaux,0),Nb_Animaux)+1),\"\")","v":"3-POULPE"},null,{"$f":"IF(ROWS($C$20:C97)<Nb_Liste*Nb_Années*Nb_Animaux,E97&CHAR(10)&\"MD \"&A98&\"\\\"&B98&\"\\\"&C98&\"-\"&A98&\"-\"&RIGHT(TEXT(B98,\"0000\"),2),\"\")","v":"CD C:\\Users\\jvdo\\Documents\\forum\\test\nMD JEMA\\2006\\1-CHIEN-JEMA-06\nMD JEMA\\2006\\2-CHAT-JEMA-06\nMD JEMA\\2006\\3-POULPE-JEMA-06\nMD JEMA\\2006\\4-HIPPOCAMPE-JEMA-06\nMD JEMA\\2007\\1-CHIEN-JEMA-07\nMD JEMA\\2007\\2-CHAT-JEMA-07\nMD JEMA\\2007\\3-POULPE-JEMA-07\nMD JEMA\\2007\\4-HIPPOCAMPE-JEMA-07\nMD JEMA\\2008\\1-CHIEN-JEMA-08\nMD JEMA\\2008\\2-CHAT-JEMA-08\nMD JEMA\\2008\\3-POULPE-JEMA-08\nMD JEMA\\2008\\4-HIPPOCAMPE-JEMA-08\nMD JEMA\\2009\\1-CHIEN-JEMA-09\nMD JEMA\\2009\\2-CHAT-JEMA-09\nMD JEMA\\2009\\3-POULPE-JEMA-09\nMD JEMA\\2009\\4-HIPPOCAMPE-JEMA-09\nMD JEMA\\2010\\1-CHIEN-JEMA-10\nMD JEMA\\2010\\2-CHAT-JEMA-10\nMD JEMA\\2010\\3-POULPE-JEMA-10\nMD JEMA\\2010\\4-HIPPOCAMPE-JEMA-10\nMD JEMA\\2011\\1-CHIEN-JEMA-11\nMD JEMA\\2011\\2-CHAT-JEMA-11\nMD JEMA\\2011\\3-POULPE-JEMA-11\nMD JEMA\\2011\\4-HIPPOCAMPE-JEMA-11\nMD JEMA\\2012\\1-CHIEN-JEMA-12\nMD JEMA\\2012\\2-CHAT-JEMA-12\nMD JEMA\\2012\\3-POULPE-JEMA-12\nMD JEMA\\2012\\4-HIPPOCAMPE-JEMA-12\nMD NOEM\\2006\\1-CHIEN-NOEM-06\nMD NOEM\\2006\\2-CHAT-NOEM-06\nMD NOEM\\2006\\3-POULPE-NOEM-06\nMD NOEM\\2006\\4-HIPPOCAMPE-NOEM-06\nMD NOEM\\2007\\1-CHIEN-NOEM-07\nMD NOEM\\2007\\2-CHAT-NOEM-07\nMD NOEM\\2007\\3-POULPE-NOEM-07\nMD NOEM\\2007\\4-HIPPOCAMPE-NOEM-07\nMD NOEM\\2008\\1-CHIEN-NOEM-08\nMD NOEM\\2008\\2-CHAT-NOEM-08\nMD NOEM\\2008\\3-POULPE-NOEM-08\nMD NOEM\\2008\\4-HIPPOCAMPE-NOEM-08\nMD NOEM\\2009\\1-CHIEN-NOEM-09\nMD NOEM\\2009\\2-CHAT-NOEM-09\nMD NOEM\\2009\\3-POULPE-NOEM-09\nMD NOEM\\2009\\4-HIPPOCAMPE-NOEM-09\nMD NOEM\\2010\\1-CHIEN-NOEM-10\nMD NOEM\\2010\\2-CHAT-NOEM-10\nMD NOEM\\2010\\3-POULPE-NOEM-10\nMD NOEM\\2010\\4-HIPPOCAMPE-NOEM-10\nMD NOEM\\2011\\1-CHIEN-NOEM-11\nMD NOEM\\2011\\2-CHAT-NOEM-11\nMD NOEM\\2011\\3-POULPE-NOEM-11\nMD NOEM\\2011\\4-HIPPOCAMPE-NOEM-11\nMD NOEM\\2012\\1-CHIEN-NOEM-12\nMD NOEM\\2012\\2-CHAT-NOEM-12\nMD NOEM\\2012\\3-POULPE-NOEM-12\nMD NOEM\\2012\\4-HIPPOCAMPE-NOEM-12\nMD ESCH\\2006\\1-CHIEN-ESCH-06\nMD ESCH\\2006\\2-CHAT-ESCH-06\nMD ESCH\\2006\\3-POULPE-ESCH-06\nMD ESCH\\2006\\4-HIPPOCAMPE-ESCH-06\nMD ESCH\\2007\\1-CHIEN-ESCH-07\nMD ESCH\\2007\\2-CHAT-ESCH-07\nMD ESCH\\2007\\3-POULPE-ESCH-07\nMD ESCH\\2007\\4-HIPPOCAMPE-ESCH-07\nMD ESCH\\2008\\1-CHIEN-ESCH-08\nMD ESCH\\2008\\2-CHAT-ESCH-08\nMD ESCH\\2008\\3-POULPE-ESCH-08\nMD ESCH\\2008\\4-HIPPOCAMPE-ESCH-08\nMD ESCH\\2009\\1-CHIEN-ESCH-09\nMD ESCH\\2009\\2-CHAT-ESCH-09\nMD ESCH\\2009\\3-POULPE-ESCH-09\nMD ESCH\\2009\\4-HIPPOCAMPE-ESCH-09\nMD ESCH\\2010\\1-CHIEN-ESCH-10\nMD ESCH\\2010\\2-CHAT-ESCH-10\nMD ESCH\\2010\\3-POULPE-ESCH-10\nMD ESCH\\2010\\4-HIPPOCAMPE-ESCH-10\nMD ESCH\\2011\\1-CHIEN-ESCH-11\nMD ESCH\\2011\\2-CHAT-ESCH-11\nMD ESCH\\2011\\3-POULPE-ESCH-11"}]
[{"$f":"IF(ROWS($C$20:C98)<Nb_Liste*Nb_Années*Nb_Animaux,IF(B99>=B98,A98,INDEX(Liste,MATCH(A98,Liste,0)+1)),\"\")","v":"ESCH"},{"$f":"IF(ROWS($C$20:C98)<Nb_Liste*Nb_Années*Nb_Animaux,(C99=INDEX(Animaux,1))*(1-Nb_Années*(B98=Max_Années))+B98,\"\")","v":2011},{"$f":"IF(ROWS($C$20:C98)<Nb_Liste*Nb_Années*Nb_Animaux,INDEX(Animaux,MOD(MATCH(C98,Animaux,0),Nb_Animaux)+1),\"\")","v":"4-HIPPOCAMPE"},null,{"$f":"IF(ROWS($C$20:C98)<Nb_Liste*Nb_Années*Nb_Animaux,E98&CHAR(10)&\"MD \"&A99&\"\\\"&B99&\"\\\"&C99&\"-\"&A99&\"-\"&RIGHT(TEXT(B99,\"0000\"),2),\"\")","v":"CD C:\\Users\\jvdo\\Documents\\forum\\test\nMD JEMA\\2006\\1-CHIEN-JEMA-06\nMD JEMA\\2006\\2-CHAT-JEMA-06\nMD JEMA\\2006\\3-POULPE-JEMA-06\nMD JEMA\\2006\\4-HIPPOCAMPE-JEMA-06\nMD JEMA\\2007\\1-CHIEN-JEMA-07\nMD JEMA\\2007\\2-CHAT-JEMA-07\nMD JEMA\\2007\\3-POULPE-JEMA-07\nMD JEMA\\2007\\4-HIPPOCAMPE-JEMA-07\nMD JEMA\\2008\\1-CHIEN-JEMA-08\nMD JEMA\\2008\\2-CHAT-JEMA-08\nMD JEMA\\2008\\3-POULPE-JEMA-08\nMD JEMA\\2008\\4-HIPPOCAMPE-JEMA-08\nMD JEMA\\2009\\1-CHIEN-JEMA-09\nMD JEMA\\2009\\2-CHAT-JEMA-09\nMD JEMA\\2009\\3-POULPE-JEMA-09\nMD JEMA\\2009\\4-HIPPOCAMPE-JEMA-09\nMD JEMA\\2010\\1-CHIEN-JEMA-10\nMD JEMA\\2010\\2-CHAT-JEMA-10\nMD JEMA\\2010\\3-POULPE-JEMA-10\nMD JEMA\\2010\\4-HIPPOCAMPE-JEMA-10\nMD JEMA\\2011\\1-CHIEN-JEMA-11\nMD JEMA\\2011\\2-CHAT-JEMA-11\nMD JEMA\\2011\\3-POULPE-JEMA-11\nMD JEMA\\2011\\4-HIPPOCAMPE-JEMA-11\nMD JEMA\\2012\\1-CHIEN-JEMA-12\nMD JEMA\\2012\\2-CHAT-JEMA-12\nMD JEMA\\2012\\3-POULPE-JEMA-12\nMD JEMA\\2012\\4-HIPPOCAMPE-JEMA-12\nMD NOEM\\2006\\1-CHIEN-NOEM-06\nMD NOEM\\2006\\2-CHAT-NOEM-06\nMD NOEM\\2006\\3-POULPE-NOEM-06\nMD NOEM\\2006\\4-HIPPOCAMPE-NOEM-06\nMD NOEM\\2007\\1-CHIEN-NOEM-07\nMD NOEM\\2007\\2-CHAT-NOEM-07\nMD NOEM\\2007\\3-POULPE-NOEM-07\nMD NOEM\\2007\\4-HIPPOCAMPE-NOEM-07\nMD NOEM\\2008\\1-CHIEN-NOEM-08\nMD NOEM\\2008\\2-CHAT-NOEM-08\nMD NOEM\\2008\\3-POULPE-NOEM-08\nMD NOEM\\2008\\4-HIPPOCAMPE-NOEM-08\nMD NOEM\\2009\\1-CHIEN-NOEM-09\nMD NOEM\\2009\\2-CHAT-NOEM-09\nMD NOEM\\2009\\3-POULPE-NOEM-09\nMD NOEM\\2009\\4-HIPPOCAMPE-NOEM-09\nMD NOEM\\2010\\1-CHIEN-NOEM-10\nMD NOEM\\2010\\2-CHAT-NOEM-10\nMD NOEM\\2010\\3-POULPE-NOEM-10\nMD NOEM\\2010\\4-HIPPOCAMPE-NOEM-10\nMD NOEM\\2011\\1-CHIEN-NOEM-11\nMD NOEM\\2011\\2-CHAT-NOEM-11\nMD NOEM\\2011\\3-POULPE-NOEM-11\nMD NOEM\\2011\\4-HIPPOCAMPE-NOEM-11\nMD NOEM\\2012\\1-CHIEN-NOEM-12\nMD NOEM\\2012\\2-CHAT-NOEM-12\nMD NOEM\\2012\\3-POULPE-NOEM-12\nMD NOEM\\2012\\4-HIPPOCAMPE-NOEM-12\nMD ESCH\\2006\\1-CHIEN-ESCH-06\nMD ESCH\\2006\\2-CHAT-ESCH-06\nMD ESCH\\2006\\3-POULPE-ESCH-06\nMD ESCH\\2006\\4-HIPPOCAMPE-ESCH-06\nMD ESCH\\2007\\1-CHIEN-ESCH-07\nMD ESCH\\2007\\2-CHAT-ESCH-07\nMD ESCH\\2007\\3-POULPE-ESCH-07\nMD ESCH\\2007\\4-HIPPOCAMPE-ESCH-07\nMD ESCH\\2008\\1-CHIEN-ESCH-08\nMD ESCH\\2008\\2-CHAT-ESCH-08\nMD ESCH\\2008\\3-POULPE-ESCH-08\nMD ESCH\\2008\\4-HIPPOCAMPE-ESCH-08\nMD ESCH\\2009\\1-CHIEN-ESCH-09\nMD ESCH\\2009\\2-CHAT-ESCH-09\nMD ESCH\\2009\\3-POULPE-ESCH-09\nMD ESCH\\2009\\4-HIPPOCAMPE-ESCH-09\nMD ESCH\\2010\\1-CHIEN-ESCH-10\nMD ESCH\\2010\\2-CHAT-ESCH-10\nMD ESCH\\2010\\3-POULPE-ESCH-10\nMD ESCH\\2010\\4-HIPPOCAMPE-ESCH-10\nMD ESCH\\2011\\1-CHIEN-ESCH-11\nMD ESCH\\2011\\2-CHAT-ESCH-11\nMD ESCH\\2011\\3-POULPE-ESCH-11\nMD ESCH\\2011\\4-HIPPOCAMPE-ESCH-11"}]
[{"$f":"IF(ROWS($C$20:C99)<Nb_Liste*Nb_Années*Nb_Animaux,IF(B100>=B99,A99,INDEX(Liste,MATCH(A99,Liste,0)+1)),\"\")","v":"ESCH"},{"$f":"IF(ROWS($C$20:C99)<Nb_Liste*Nb_Années*Nb_Animaux,(C100=INDEX(Animaux,1))*(1-Nb_Années*(B99=Max_Années))+B99,\"\")","v":2012},{"$f":"IF(ROWS($C$20:C99)<Nb_Liste*Nb_Années*Nb_Animaux,INDEX(Animaux,MOD(MATCH(C99,Animaux,0),Nb_Animaux)+1),\"\")","v":"1-CHIEN"},null,{"$f":"IF(ROWS($C$20:C99)<Nb_Liste*Nb_Années*Nb_Animaux,E99&CHAR(10)&\"MD \"&A100&\"\\\"&B100&\"\\\"&C100&\"-\"&A100&\"-\"&RIGHT(TEXT(B100,\"0000\"),2),\"\")","v":"CD C:\\Users\\jvdo\\Documents\\forum\\test\nMD JEMA\\2006\\1-CHIEN-JEMA-06\nMD JEMA\\2006\\2-CHAT-JEMA-06\nMD JEMA\\2006\\3-POULPE-JEMA-06\nMD JEMA\\2006\\4-HIPPOCAMPE-JEMA-06\nMD JEMA\\2007\\1-CHIEN-JEMA-07\nMD JEMA\\2007\\2-CHAT-JEMA-07\nMD JEMA\\2007\\3-POULPE-JEMA-07\nMD JEMA\\2007\\4-HIPPOCAMPE-JEMA-07\nMD JEMA\\2008\\1-CHIEN-JEMA-08\nMD JEMA\\2008\\2-CHAT-JEMA-08\nMD JEMA\\2008\\3-POULPE-JEMA-08\nMD JEMA\\2008\\4-HIPPOCAMPE-JEMA-08\nMD JEMA\\2009\\1-CHIEN-JEMA-09\nMD JEMA\\2009\\2-CHAT-JEMA-09\nMD JEMA\\2009\\3-POULPE-JEMA-09\nMD JEMA\\2009\\4-HIPPOCAMPE-JEMA-09\nMD JEMA\\2010\\1-CHIEN-JEMA-10\nMD JEMA\\2010\\2-CHAT-JEMA-10\nMD JEMA\\2010\\3-POULPE-JEMA-10\nMD JEMA\\2010\\4-HIPPOCAMPE-JEMA-10\nMD JEMA\\2011\\1-CHIEN-JEMA-11\nMD JEMA\\2011\\2-CHAT-JEMA-11\nMD JEMA\\2011\\3-POULPE-JEMA-11\nMD JEMA\\2011\\4-HIPPOCAMPE-JEMA-11\nMD JEMA\\2012\\1-CHIEN-JEMA-12\nMD JEMA\\2012\\2-CHAT-JEMA-12\nMD JEMA\\2012\\3-POULPE-JEMA-12\nMD JEMA\\2012\\4-HIPPOCAMPE-JEMA-12\nMD NOEM\\2006\\1-CHIEN-NOEM-06\nMD NOEM\\2006\\2-CHAT-NOEM-06\nMD NOEM\\2006\\3-POULPE-NOEM-06\nMD NOEM\\2006\\4-HIPPOCAMPE-NOEM-06\nMD NOEM\\2007\\1-CHIEN-NOEM-07\nMD NOEM\\2007\\2-CHAT-NOEM-07\nMD NOEM\\2007\\3-POULPE-NOEM-07\nMD NOEM\\2007\\4-HIPPOCAMPE-NOEM-07\nMD NOEM\\2008\\1-CHIEN-NOEM-08\nMD NOEM\\2008\\2-CHAT-NOEM-08\nMD NOEM\\2008\\3-POULPE-NOEM-08\nMD NOEM\\2008\\4-HIPPOCAMPE-NOEM-08\nMD NOEM\\2009\\1-CHIEN-NOEM-09\nMD NOEM\\2009\\2-CHAT-NOEM-09\nMD NOEM\\2009\\3-POULPE-NOEM-09\nMD NOEM\\2009\\4-HIPPOCAMPE-NOEM-09\nMD NOEM\\2010\\1-CHIEN-NOEM-10\nMD NOEM\\2010\\2-CHAT-NOEM-10\nMD NOEM\\2010\\3-POULPE-NOEM-10\nMD NOEM\\2010\\4-HIPPOCAMPE-NOEM-10\nMD NOEM\\2011\\1-CHIEN-NOEM-11\nMD NOEM\\2011\\2-CHAT-NOEM-11\nMD NOEM\\2011\\3-POULPE-NOEM-11\nMD NOEM\\2011\\4-HIPPOCAMPE-NOEM-11\nMD NOEM\\2012\\1-CHIEN-NOEM-12\nMD NOEM\\2012\\2-CHAT-NOEM-12\nMD NOEM\\2012\\3-POULPE-NOEM-12\nMD NOEM\\2012\\4-HIPPOCAMPE-NOEM-12\nMD ESCH\\2006\\1-CHIEN-ESCH-06\nMD ESCH\\2006\\2-CHAT-ESCH-06\nMD ESCH\\2006\\3-POULPE-ESCH-06\nMD ESCH\\2006\\4-HIPPOCAMPE-ESCH-06\nMD ESCH\\2007\\1-CHIEN-ESCH-07\nMD ESCH\\2007\\2-CHAT-ESCH-07\nMD ESCH\\2007\\3-POULPE-ESCH-07\nMD ESCH\\2007\\4-HIPPOCAMPE-ESCH-07\nMD ESCH\\2008\\1-CHIEN-ESCH-08\nMD ESCH\\2008\\2-CHAT-ESCH-08\nMD ESCH\\2008\\3-POULPE-ESCH-08\nMD ESCH\\2008\\4-HIPPOCAMPE-ESCH-08\nMD ESCH\\2009\\1-CHIEN-ESCH-09\nMD ESCH\\2009\\2-CHAT-ESCH-09\nMD ESCH\\2009\\3-POULPE-ESCH-09\nMD ESCH\\2009\\4-HIPPOCAMPE-ESCH-09\nMD ESCH\\2010\\1-CHIEN-ESCH-10\nMD ESCH\\2010\\2-CHAT-ESCH-10\nMD ESCH\\2010\\3-POULPE-ESCH-10\nMD ESCH\\2010\\4-HIPPOCAMPE-ESCH-10\nMD ESCH\\2011\\1-CHIEN-ESCH-11\nMD ESCH\\2011\\2-CHAT-ESCH-11\nMD ESCH\\2011\\3-POULPE-ESCH-11\nMD ESCH\\2011\\4-HIPPOCAMPE-ESCH-11\nMD ESCH\\2012\\1-CHIEN-ESCH-12"}]
[{"$f":"IF(ROWS($C$20:C100)<Nb_Liste*Nb_Années*Nb_Animaux,IF(B101>=B100,A100,INDEX(Liste,MATCH(A100,Liste,0)+1)),\"\")","v":"ESCH"},{"$f":"IF(ROWS($C$20:C100)<Nb_Liste*Nb_Années*Nb_Animaux,(C101=INDEX(Animaux,1))*(1-Nb_Années*(B100=Max_Années))+B100,\"\")","v":2012},{"$f":"IF(ROWS($C$20:C100)<Nb_Liste*Nb_Années*Nb_Animaux,INDEX(Animaux,MOD(MATCH(C100,Animaux,0),Nb_Animaux)+1),\"\")","v":"2-CHAT"},null,{"$f":"IF(ROWS($C$20:C100)<Nb_Liste*Nb_Années*Nb_Animaux,E100&CHAR(10)&\"MD \"&A101&\"\\\"&B101&\"\\\"&C101&\"-\"&A101&\"-\"&RIGHT(TEXT(B101,\"0000\"),2),\"\")","v":"CD C:\\Users\\jvdo\\Documents\\forum\\test\nMD JEMA\\2006\\1-CHIEN-JEMA-06\nMD JEMA\\2006\\2-CHAT-JEMA-06\nMD JEMA\\2006\\3-POULPE-JEMA-06\nMD JEMA\\2006\\4-HIPPOCAMPE-JEMA-06\nMD JEMA\\2007\\1-CHIEN-JEMA-07\nMD JEMA\\2007\\2-CHAT-JEMA-07\nMD JEMA\\2007\\3-POULPE-JEMA-07\nMD JEMA\\2007\\4-HIPPOCAMPE-JEMA-07\nMD JEMA\\2008\\1-CHIEN-JEMA-08\nMD JEMA\\2008\\2-CHAT-JEMA-08\nMD JEMA\\2008\\3-POULPE-JEMA-08\nMD JEMA\\2008\\4-HIPPOCAMPE-JEMA-08\nMD JEMA\\2009\\1-CHIEN-JEMA-09\nMD JEMA\\2009\\2-CHAT-JEMA-09\nMD JEMA\\2009\\3-POULPE-JEMA-09\nMD JEMA\\2009\\4-HIPPOCAMPE-JEMA-09\nMD JEMA\\2010\\1-CHIEN-JEMA-10\nMD JEMA\\2010\\2-CHAT-JEMA-10\nMD JEMA\\2010\\3-POULPE-JEMA-10\nMD JEMA\\2010\\4-HIPPOCAMPE-JEMA-10\nMD JEMA\\2011\\1-CHIEN-JEMA-11\nMD JEMA\\2011\\2-CHAT-JEMA-11\nMD JEMA\\2011\\3-POULPE-JEMA-11\nMD JEMA\\2011\\4-HIPPOCAMPE-JEMA-11\nMD JEMA\\2012\\1-CHIEN-JEMA-12\nMD JEMA\\2012\\2-CHAT-JEMA-12\nMD JEMA\\2012\\3-POULPE-JEMA-12\nMD JEMA\\2012\\4-HIPPOCAMPE-JEMA-12\nMD NOEM\\2006\\1-CHIEN-NOEM-06\nMD NOEM\\2006\\2-CHAT-NOEM-06\nMD NOEM\\2006\\3-POULPE-NOEM-06\nMD NOEM\\2006\\4-HIPPOCAMPE-NOEM-06\nMD NOEM\\2007\\1-CHIEN-NOEM-07\nMD NOEM\\2007\\2-CHAT-NOEM-07\nMD NOEM\\2007\\3-POULPE-NOEM-07\nMD NOEM\\2007\\4-HIPPOCAMPE-NOEM-07\nMD NOEM\\2008\\1-CHIEN-NOEM-08\nMD NOEM\\2008\\2-CHAT-NOEM-08\nMD NOEM\\2008\\3-POULPE-NOEM-08\nMD NOEM\\2008\\4-HIPPOCAMPE-NOEM-08\nMD NOEM\\2009\\1-CHIEN-NOEM-09\nMD NOEM\\2009\\2-CHAT-NOEM-09\nMD NOEM\\2009\\3-POULPE-NOEM-09\nMD NOEM\\2009\\4-HIPPOCAMPE-NOEM-09\nMD NOEM\\2010\\1-CHIEN-NOEM-10\nMD NOEM\\2010\\2-CHAT-NOEM-10\nMD NOEM\\2010\\3-POULPE-NOEM-10\nMD NOEM\\2010\\4-HIPPOCAMPE-NOEM-10\nMD NOEM\\2011\\1-CHIEN-NOEM-11\nMD NOEM\\2011\\2-CHAT-NOEM-11\nMD NOEM\\2011\\3-POULPE-NOEM-11\nMD NOEM\\2011\\4-HIPPOCAMPE-NOEM-11\nMD NOEM\\2012\\1-CHIEN-NOEM-12\nMD NOEM\\2012\\2-CHAT-NOEM-12\nMD NOEM\\2012\\3-POULPE-NOEM-12\nMD NOEM\\2012\\4-HIPPOCAMPE-NOEM-12\nMD ESCH\\2006\\1-CHIEN-ESCH-06\nMD ESCH\\2006\\2-CHAT-ESCH-06\nMD ESCH\\2006\\3-POULPE-ESCH-06\nMD ESCH\\2006\\4-HIPPOCAMPE-ESCH-06\nMD ESCH\\2007\\1-CHIEN-ESCH-07\nMD ESCH\\2007\\2-CHAT-ESCH-07\nMD ESCH\\2007\\3-POULPE-ESCH-07\nMD ESCH\\2007\\4-HIPPOCAMPE-ESCH-07\nMD ESCH\\2008\\1-CHIEN-ESCH-08\nMD ESCH\\2008\\2-CHAT-ESCH-08\nMD ESCH\\2008\\3-POULPE-ESCH-08\nMD ESCH\\2008\\4-HIPPOCAMPE-ESCH-08\nMD ESCH\\2009\\1-CHIEN-ESCH-09\nMD ESCH\\2009\\2-CHAT-ESCH-09\nMD ESCH\\2009\\3-POULPE-ESCH-09\nMD ESCH\\2009\\4-HIPPOCAMPE-ESCH-09\nMD ESCH\\2010\\1-CHIEN-ESCH-10\nMD ESCH\\2010\\2-CHAT-ESCH-10\nMD ESCH\\2010\\3-POULPE-ESCH-10\nMD ESCH\\2010\\4-HIPPOCAMPE-ESCH-10\nMD ESCH\\2011\\1-CHIEN-ESCH-11\nMD ESCH\\2011\\2-CHAT-ESCH-11\nMD ESCH\\2011\\3-POULPE-ESCH-11\nMD ESCH\\2011\\4-HIPPOCAMPE-ESCH-11\nMD ESCH\\2012\\1-CHIEN-ESCH-12\nMD ESCH\\2012\\2-CHAT-ESCH-12"}]
[{"$f":"IF(ROWS($C$20:C101)<Nb_Liste*Nb_Années*Nb_Animaux,IF(B102>=B101,A101,INDEX(Liste,MATCH(A101,Liste,0)+1)),\"\")","v":"ESCH"},{"$f":"IF(ROWS($C$20:C101)<Nb_Liste*Nb_Années*Nb_Animaux,(C102=INDEX(Animaux,1))*(1-Nb_Années*(B101=Max_Années))+B101,\"\")","v":2012},{"$f":"IF(ROWS($C$20:C101)<Nb_Liste*Nb_Années*Nb_Animaux,INDEX(Animaux,MOD(MATCH(C101,Animaux,0),Nb_Animaux)+1),\"\")","v":"3-POULPE"},null,{"$f":"IF(ROWS($C$20:C101)<Nb_Liste*Nb_Années*Nb_Animaux,E101&CHAR(10)&\"MD \"&A102&\"\\\"&B102&\"\\\"&C102&\"-\"&A102&\"-\"&RIGHT(TEXT(B102,\"0000\"),2),\"\")","v":"CD C:\\Users\\jvdo\\Documents\\forum\\test\nMD JEMA\\2006\\1-CHIEN-JEMA-06\nMD JEMA\\2006\\2-CHAT-JEMA-06\nMD JEMA\\2006\\3-POULPE-JEMA-06\nMD JEMA\\2006\\4-HIPPOCAMPE-JEMA-06\nMD JEMA\\2007\\1-CHIEN-JEMA-07\nMD JEMA\\2007\\2-CHAT-JEMA-07\nMD JEMA\\2007\\3-POULPE-JEMA-07\nMD JEMA\\2007\\4-HIPPOCAMPE-JEMA-07\nMD JEMA\\2008\\1-CHIEN-JEMA-08\nMD JEMA\\2008\\2-CHAT-JEMA-08\nMD JEMA\\2008\\3-POULPE-JEMA-08\nMD JEMA\\2008\\4-HIPPOCAMPE-JEMA-08\nMD JEMA\\2009\\1-CHIEN-JEMA-09\nMD JEMA\\2009\\2-CHAT-JEMA-09\nMD JEMA\\2009\\3-POULPE-JEMA-09\nMD JEMA\\2009\\4-HIPPOCAMPE-JEMA-09\nMD JEMA\\2010\\1-CHIEN-JEMA-10\nMD JEMA\\2010\\2-CHAT-JEMA-10\nMD JEMA\\2010\\3-POULPE-JEMA-10\nMD JEMA\\2010\\4-HIPPOCAMPE-JEMA-10\nMD JEMA\\2011\\1-CHIEN-JEMA-11\nMD JEMA\\2011\\2-CHAT-JEMA-11\nMD JEMA\\2011\\3-POULPE-JEMA-11\nMD JEMA\\2011\\4-HIPPOCAMPE-JEMA-11\nMD JEMA\\2012\\1-CHIEN-JEMA-12\nMD JEMA\\2012\\2-CHAT-JEMA-12\nMD JEMA\\2012\\3-POULPE-JEMA-12\nMD JEMA\\2012\\4-HIPPOCAMPE-JEMA-12\nMD NOEM\\2006\\1-CHIEN-NOEM-06\nMD NOEM\\2006\\2-CHAT-NOEM-06\nMD NOEM\\2006\\3-POULPE-NOEM-06\nMD NOEM\\2006\\4-HIPPOCAMPE-NOEM-06\nMD NOEM\\2007\\1-CHIEN-NOEM-07\nMD NOEM\\2007\\2-CHAT-NOEM-07\nMD NOEM\\2007\\3-POULPE-NOEM-07\nMD NOEM\\2007\\4-HIPPOCAMPE-NOEM-07\nMD NOEM\\2008\\1-CHIEN-NOEM-08\nMD NOEM\\2008\\2-CHAT-NOEM-08\nMD NOEM\\2008\\3-POULPE-NOEM-08\nMD NOEM\\2008\\4-HIPPOCAMPE-NOEM-08\nMD NOEM\\2009\\1-CHIEN-NOEM-09\nMD NOEM\\2009\\2-CHAT-NOEM-09\nMD NOEM\\2009\\3-POULPE-NOEM-09\nMD NOEM\\2009\\4-HIPPOCAMPE-NOEM-09\nMD NOEM\\2010\\1-CHIEN-NOEM-10\nMD NOEM\\2010\\2-CHAT-NOEM-10\nMD NOEM\\2010\\3-POULPE-NOEM-10\nMD NOEM\\2010\\4-HIPPOCAMPE-NOEM-10\nMD NOEM\\2011\\1-CHIEN-NOEM-11\nMD NOEM\\2011\\2-CHAT-NOEM-11\nMD NOEM\\2011\\3-POULPE-NOEM-11\nMD NOEM\\2011\\4-HIPPOCAMPE-NOEM-11\nMD NOEM\\2012\\1-CHIEN-NOEM-12\nMD NOEM\\2012\\2-CHAT-NOEM-12\nMD NOEM\\2012\\3-POULPE-NOEM-12\nMD NOEM\\2012\\4-HIPPOCAMPE-NOEM-12\nMD ESCH\\2006\\1-CHIEN-ESCH-06\nMD ESCH\\2006\\2-CHAT-ESCH-06\nMD ESCH\\2006\\3-POULPE-ESCH-06\nMD ESCH\\2006\\4-HIPPOCAMPE-ESCH-06\nMD ESCH\\2007\\1-CHIEN-ESCH-07\nMD ESCH\\2007\\2-CHAT-ESCH-07\nMD ESCH\\2007\\3-POULPE-ESCH-07\nMD ESCH\\2007\\4-HIPPOCAMPE-ESCH-07\nMD ESCH\\2008\\1-CHIEN-ESCH-08\nMD ESCH\\2008\\2-CHAT-ESCH-08\nMD ESCH\\2008\\3-POULPE-ESCH-08\nMD ESCH\\2008\\4-HIPPOCAMPE-ESCH-08\nMD ESCH\\2009\\1-CHIEN-ESCH-09\nMD ESCH\\2009\\2-CHAT-ESCH-09\nMD ESCH\\2009\\3-POULPE-ESCH-09\nMD ESCH\\2009\\4-HIPPOCAMPE-ESCH-09\nMD ESCH\\2010\\1-CHIEN-ESCH-10\nMD ESCH\\2010\\2-CHAT-ESCH-10\nMD ESCH\\2010\\3-POULPE-ESCH-10\nMD ESCH\\2010\\4-HIPPOCAMPE-ESCH-10\nMD ESCH\\2011\\1-CHIEN-ESCH-11\nMD ESCH\\2011\\2-CHAT-ESCH-11\nMD ESCH\\2011\\3-POULPE-ESCH-11\nMD ESCH\\2011\\4-HIPPOCAMPE-ESCH-11\nMD ESCH\\2012\\1-CHIEN-ESCH-12\nMD ESCH\\2012\\2-CHAT-ESCH-12\nMD ESCH\\2012\\3-POULPE-ESCH-12"}]
[{"$f":"IF(ROWS($C$20:C102)<Nb_Liste*Nb_Années*Nb_Animaux,IF(B103>=B102,A102,INDEX(Liste,MATCH(A102,Liste,0)+1)),\"\")","v":"ESCH"},{"$f":"IF(ROWS($C$20:C102)<Nb_Liste*Nb_Années*Nb_Animaux,(C103=INDEX(Animaux,1))*(1-Nb_Années*(B102=Max_Années))+B102,\"\")","v":2012},{"$f":"IF(ROWS($C$20:C102)<Nb_Liste*Nb_Années*Nb_Animaux,INDEX(Animaux,MOD(MATCH(C102,Animaux,0),Nb_Animaux)+1),\"\")","v":"4-HIPPOCAMPE"},null,{"$f":"IF(ROWS($C$20:C102)<Nb_Liste*Nb_Années*Nb_Animaux,E102&CHAR(10)&\"MD \"&A103&\"\\\"&B103&\"\\\"&C103&\"-\"&A103&\"-\"&RIGHT(TEXT(B103,\"0000\"),2),\"\")","v":"CD C:\\Users\\jvdo\\Documents\\forum\\test\nMD JEMA\\2006\\1-CHIEN-JEMA-06\nMD JEMA\\2006\\2-CHAT-JEMA-06\nMD JEMA\\2006\\3-POULPE-JEMA-06\nMD JEMA\\2006\\4-HIPPOCAMPE-JEMA-06\nMD JEMA\\2007\\1-CHIEN-JEMA-07\nMD JEMA\\2007\\2-CHAT-JEMA-07\nMD JEMA\\2007\\3-POULPE-JEMA-07\nMD JEMA\\2007\\4-HIPPOCAMPE-JEMA-07\nMD JEMA\\2008\\1-CHIEN-JEMA-08\nMD JEMA\\2008\\2-CHAT-JEMA-08\nMD JEMA\\2008\\3-POULPE-JEMA-08\nMD JEMA\\2008\\4-HIPPOCAMPE-JEMA-08\nMD JEMA\\2009\\1-CHIEN-JEMA-09\nMD JEMA\\2009\\2-CHAT-JEMA-09\nMD JEMA\\2009\\3-POULPE-JEMA-09\nMD JEMA\\2009\\4-HIPPOCAMPE-JEMA-09\nMD JEMA\\2010\\1-CHIEN-JEMA-10\nMD JEMA\\2010\\2-CHAT-JEMA-10\nMD JEMA\\2010\\3-POULPE-JEMA-10\nMD JEMA\\2010\\4-HIPPOCAMPE-JEMA-10\nMD JEMA\\2011\\1-CHIEN-JEMA-11\nMD JEMA\\2011\\2-CHAT-JEMA-11\nMD JEMA\\2011\\3-POULPE-JEMA-11\nMD JEMA\\2011\\4-HIPPOCAMPE-JEMA-11\nMD JEMA\\2012\\1-CHIEN-JEMA-12\nMD JEMA\\2012\\2-CHAT-JEMA-12\nMD JEMA\\2012\\3-POULPE-JEMA-12\nMD JEMA\\2012\\4-HIPPOCAMPE-JEMA-12\nMD NOEM\\2006\\1-CHIEN-NOEM-06\nMD NOEM\\2006\\2-CHAT-NOEM-06\nMD NOEM\\2006\\3-POULPE-NOEM-06\nMD NOEM\\2006\\4-HIPPOCAMPE-NOEM-06\nMD NOEM\\2007\\1-CHIEN-NOEM-07\nMD NOEM\\2007\\2-CHAT-NOEM-07\nMD NOEM\\2007\\3-POULPE-NOEM-07\nMD NOEM\\2007\\4-HIPPOCAMPE-NOEM-07\nMD NOEM\\2008\\1-CHIEN-NOEM-08\nMD NOEM\\2008\\2-CHAT-NOEM-08\nMD NOEM\\2008\\3-POULPE-NOEM-08\nMD NOEM\\2008\\4-HIPPOCAMPE-NOEM-08\nMD NOEM\\2009\\1-CHIEN-NOEM-09\nMD NOEM\\2009\\2-CHAT-NOEM-09\nMD NOEM\\2009\\3-POULPE-NOEM-09\nMD NOEM\\2009\\4-HIPPOCAMPE-NOEM-09\nMD NOEM\\2010\\1-CHIEN-NOEM-10\nMD NOEM\\2010\\2-CHAT-NOEM-10\nMD NOEM\\2010\\3-POULPE-NOEM-10\nMD NOEM\\2010\\4-HIPPOCAMPE-NOEM-10\nMD NOEM\\2011\\1-CHIEN-NOEM-11\nMD NOEM\\2011\\2-CHAT-NOEM-11\nMD NOEM\\2011\\3-POULPE-NOEM-11\nMD NOEM\\2011\\4-HIPPOCAMPE-NOEM-11\nMD NOEM\\2012\\1-CHIEN-NOEM-12\nMD NOEM\\2012\\2-CHAT-NOEM-12\nMD NOEM\\2012\\3-POULPE-NOEM-12\nMD NOEM\\2012\\4-HIPPOCAMPE-NOEM-12\nMD ESCH\\2006\\1-CHIEN-ESCH-06\nMD ESCH\\2006\\2-CHAT-ESCH-06\nMD ESCH\\2006\\3-POULPE-ESCH-06\nMD ESCH\\2006\\4-HIPPOCAMPE-ESCH-06\nMD ESCH\\2007\\1-CHIEN-ESCH-07\nMD ESCH\\2007\\2-CHAT-ESCH-07\nMD ESCH\\2007\\3-POULPE-ESCH-07\nMD ESCH\\2007\\4-HIPPOCAMPE-ESCH-07\nMD ESCH\\2008\\1-CHIEN-ESCH-08\nMD ESCH\\2008\\2-CHAT-ESCH-08\nMD ESCH\\2008\\3-POULPE-ESCH-08\nMD ESCH\\2008\\4-HIPPOCAMPE-ESCH-08\nMD ESCH\\2009\\1-CHIEN-ESCH-09\nMD ESCH\\2009\\2-CHAT-ESCH-09\nMD ESCH\\2009\\3-POULPE-ESCH-09\nMD ESCH\\2009\\4-HIPPOCAMPE-ESCH-09\nMD ESCH\\2010\\1-CHIEN-ESCH-10\nMD ESCH\\2010\\2-CHAT-ESCH-10\nMD ESCH\\2010\\3-POULPE-ESCH-10\nMD ESCH\\2010\\4-HIPPOCAMPE-ESCH-10\nMD ESCH\\2011\\1-CHIEN-ESCH-11\nMD ESCH\\2011\\2-CHAT-ESCH-11\nMD ESCH\\2011\\3-POULPE-ESCH-11\nMD ESCH\\2011\\4-HIPPOCAMPE-ESCH-11\nMD ESCH\\2012\\1-CHIEN-ESCH-12\nMD ESCH\\2012\\2-CHAT-ESCH-12\nMD ESCH\\2012\\3-POULPE-ESCH-12\nMD ESCH\\2012\\4-HIPPOCAMPE-ESCH-12"}]
[{"$f":"IF(ROWS($C$20:C103)<Nb_Liste*Nb_Années*Nb_Animaux,IF(B104>=B103,A103,INDEX(Liste,MATCH(A103,Liste,0)+1)),\"\")","v":"IENS"},{"$f":"IF(ROWS($C$20:C103)<Nb_Liste*Nb_Années*Nb_Animaux,(C104=INDEX(Animaux,1))*(1-Nb_Années*(B103=Max_Années))+B103,\"\")","v":2006},{"$f":"IF(ROWS($C$20:C103)<Nb_Liste*Nb_Années*Nb_Animaux,INDEX(Animaux,MOD(MATCH(C103,Animaux,0),Nb_Animaux)+1),\"\")","v":"1-CHIEN"},null,{"$f":"IF(ROWS($C$20:C103)<Nb_Liste*Nb_Années*Nb_Animaux,E103&CHAR(10)&\"MD \"&A104&\"\\\"&B104&\"\\\"&C104&\"-\"&A104&\"-\"&RIGHT(TEXT(B104,\"0000\"),2),\"\")","v":"CD C:\\Users\\jvdo\\Documents\\forum\\test\nMD JEMA\\2006\\1-CHIEN-JEMA-06\nMD JEMA\\2006\\2-CHAT-JEMA-06\nMD JEMA\\2006\\3-POULPE-JEMA-06\nMD JEMA\\2006\\4-HIPPOCAMPE-JEMA-06\nMD JEMA\\2007\\1-CHIEN-JEMA-07\nMD JEMA\\2007\\2-CHAT-JEMA-07\nMD JEMA\\2007\\3-POULPE-JEMA-07\nMD JEMA\\2007\\4-HIPPOCAMPE-JEMA-07\nMD JEMA\\2008\\1-CHIEN-JEMA-08\nMD JEMA\\2008\\2-CHAT-JEMA-08\nMD JEMA\\2008\\3-POULPE-JEMA-08\nMD JEMA\\2008\\4-HIPPOCAMPE-JEMA-08\nMD JEMA\\2009\\1-CHIEN-JEMA-09\nMD JEMA\\2009\\2-CHAT-JEMA-09\nMD JEMA\\2009\\3-POULPE-JEMA-09\nMD JEMA\\2009\\4-HIPPOCAMPE-JEMA-09\nMD JEMA\\2010\\1-CHIEN-JEMA-10\nMD JEMA\\2010\\2-CHAT-JEMA-10\nMD JEMA\\2010\\3-POULPE-JEMA-10\nMD JEMA\\2010\\4-HIPPOCAMPE-JEMA-10\nMD JEMA\\2011\\1-CHIEN-JEMA-11\nMD JEMA\\2011\\2-CHAT-JEMA-11\nMD JEMA\\2011\\3-POULPE-JEMA-11\nMD JEMA\\2011\\4-HIPPOCAMPE-JEMA-11\nMD JEMA\\2012\\1-CHIEN-JEMA-12\nMD JEMA\\2012\\2-CHAT-JEMA-12\nMD JEMA\\2012\\3-POULPE-JEMA-12\nMD JEMA\\2012\\4-HIPPOCAMPE-JEMA-12\nMD NOEM\\2006\\1-CHIEN-NOEM-06\nMD NOEM\\2006\\2-CHAT-NOEM-06\nMD NOEM\\2006\\3-POULPE-NOEM-06\nMD NOEM\\2006\\4-HIPPOCAMPE-NOEM-06\nMD NOEM\\2007\\1-CHIEN-NOEM-07\nMD NOEM\\2007\\2-CHAT-NOEM-07\nMD NOEM\\2007\\3-POULPE-NOEM-07\nMD NOEM\\2007\\4-HIPPOCAMPE-NOEM-07\nMD NOEM\\2008\\1-CHIEN-NOEM-08\nMD NOEM\\2008\\2-CHAT-NOEM-08\nMD NOEM\\2008\\3-POULPE-NOEM-08\nMD NOEM\\2008\\4-HIPPOCAMPE-NOEM-08\nMD NOEM\\2009\\1-CHIEN-NOEM-09\nMD NOEM\\2009\\2-CHAT-NOEM-09\nMD NOEM\\2009\\3-POULPE-NOEM-09\nMD NOEM\\2009\\4-HIPPOCAMPE-NOEM-09\nMD NOEM\\2010\\1-CHIEN-NOEM-10\nMD NOEM\\2010\\2-CHAT-NOEM-10\nMD NOEM\\2010\\3-POULPE-NOEM-10\nMD NOEM\\2010\\4-HIPPOCAMPE-NOEM-10\nMD NOEM\\2011\\1-CHIEN-NOEM-11\nMD NOEM\\2011\\2-CHAT-NOEM-11\nMD NOEM\\2011\\3-POULPE-NOEM-11\nMD NOEM\\2011\\4-HIPPOCAMPE-NOEM-11\nMD NOEM\\2012\\1-CHIEN-NOEM-12\nMD NOEM\\2012\\2-CHAT-NOEM-12\nMD NOEM\\2012\\3-POULPE-NOEM-12\nMD NOEM\\2012\\4-HIPPOCAMPE-NOEM-12\nMD ESCH\\2006\\1-CHIEN-ESCH-06\nMD ESCH\\2006\\2-CHAT-ESCH-06\nMD ESCH\\2006\\3-POULPE-ESCH-06\nMD ESCH\\2006\\4-HIPPOCAMPE-ESCH-06\nMD ESCH\\2007\\1-CHIEN-ESCH-07\nMD ESCH\\2007\\2-CHAT-ESCH-07\nMD ESCH\\2007\\3-POULPE-ESCH-07\nMD ESCH\\2007\\4-HIPPOCAMPE-ESCH-07\nMD ESCH\\2008\\1-CHIEN-ESCH-08\nMD ESCH\\2008\\2-CHAT-ESCH-08\nMD ESCH\\2008\\3-POULPE-ESCH-08\nMD ESCH\\2008\\4-HIPPOCAMPE-ESCH-08\nMD ESCH\\2009\\1-CHIEN-ESCH-09\nMD ESCH\\2009\\2-CHAT-ESCH-09\nMD ESCH\\2009\\3-POULPE-ESCH-09\nMD ESCH\\2009\\4-HIPPOCAMPE-ESCH-09\nMD ESCH\\2010\\1-CHIEN-ESCH-10\nMD ESCH\\2010\\2-CHAT-ESCH-10\nMD ESCH\\2010\\3-POULPE-ESCH-10\nMD ESCH\\2010\\4-HIPPOCAMPE-ESCH-10\nMD ESCH\\2011\\1-CHIEN-ESCH-11\nMD ESCH\\2011\\2-CHAT-ESCH-11\nMD ESCH\\2011\\3-POULPE-ESCH-11\nMD ESCH\\2011\\4-HIPPOCAMPE-ESCH-11\nMD ESCH\\2012\\1-CHIEN-ESCH-12\nMD ESCH\\2012\\2-CHAT-ESCH-12\nMD ESCH\\2012\\3-POULPE-ESCH-12\nMD ESCH\\2012\\4-HIPPOCAMPE-ESCH-12\nMD IENS\\2006\\1-CHIEN-IENS-06"}]
[{"$f":"IF(ROWS($C$20:C104)<Nb_Liste*Nb_Années*Nb_Animaux,IF(B105>=B104,A104,INDEX(Liste,MATCH(A104,Liste,0)+1)),\"\")","v":"IENS"},{"$f":"IF(ROWS($C$20:C104)<Nb_Liste*Nb_Années*Nb_Animaux,(C105=INDEX(Animaux,1))*(1-Nb_Années*(B104=Max_Années))+B104,\"\")","v":2006},{"$f":"IF(ROWS($C$20:C104)<Nb_Liste*Nb_Années*Nb_Animaux,INDEX(Animaux,MOD(MATCH(C104,Animaux,0),Nb_Animaux)+1),\"\")","v":"2-CHAT"},null,{"$f":"IF(ROWS($C$20:C104)<Nb_Liste*Nb_Années*Nb_Animaux,E104&CHAR(10)&\"MD \"&A105&\"\\\"&B105&\"\\\"&C105&\"-\"&A105&\"-\"&RIGHT(TEXT(B105,\"0000\"),2),\"\")","v":"CD C:\\Users\\jvdo\\Documents\\forum\\test\nMD JEMA\\2006\\1-CHIEN-JEMA-06\nMD JEMA\\2006\\2-CHAT-JEMA-06\nMD JEMA\\2006\\3-POULPE-JEMA-06\nMD JEMA\\2006\\4-HIPPOCAMPE-JEMA-06\nMD JEMA\\2007\\1-CHIEN-JEMA-07\nMD JEMA\\2007\\2-CHAT-JEMA-07\nMD JEMA\\2007\\3-POULPE-JEMA-07\nMD JEMA\\2007\\4-HIPPOCAMPE-JEMA-07\nMD JEMA\\2008\\1-CHIEN-JEMA-08\nMD JEMA\\2008\\2-CHAT-JEMA-08\nMD JEMA\\2008\\3-POULPE-JEMA-08\nMD JEMA\\2008\\4-HIPPOCAMPE-JEMA-08\nMD JEMA\\2009\\1-CHIEN-JEMA-09\nMD JEMA\\2009\\2-CHAT-JEMA-09\nMD JEMA\\2009\\3-POULPE-JEMA-09\nMD JEMA\\2009\\4-HIPPOCAMPE-JEMA-09\nMD JEMA\\2010\\1-CHIEN-JEMA-10\nMD JEMA\\2010\\2-CHAT-JEMA-10\nMD JEMA\\2010\\3-POULPE-JEMA-10\nMD JEMA\\2010\\4-HIPPOCAMPE-JEMA-10\nMD JEMA\\2011\\1-CHIEN-JEMA-11\nMD JEMA\\2011\\2-CHAT-JEMA-11\nMD JEMA\\2011\\3-POULPE-JEMA-11\nMD JEMA\\2011\\4-HIPPOCAMPE-JEMA-11\nMD JEMA\\2012\\1-CHIEN-JEMA-12\nMD JEMA\\2012\\2-CHAT-JEMA-12\nMD JEMA\\2012\\3-POULPE-JEMA-12\nMD JEMA\\2012\\4-HIPPOCAMPE-JEMA-12\nMD NOEM\\2006\\1-CHIEN-NOEM-06\nMD NOEM\\2006\\2-CHAT-NOEM-06\nMD NOEM\\2006\\3-POULPE-NOEM-06\nMD NOEM\\2006\\4-HIPPOCAMPE-NOEM-06\nMD NOEM\\2007\\1-CHIEN-NOEM-07\nMD NOEM\\2007\\2-CHAT-NOEM-07\nMD NOEM\\2007\\3-POULPE-NOEM-07\nMD NOEM\\2007\\4-HIPPOCAMPE-NOEM-07\nMD NOEM\\2008\\1-CHIEN-NOEM-08\nMD NOEM\\2008\\2-CHAT-NOEM-08\nMD NOEM\\2008\\3-POULPE-NOEM-08\nMD NOEM\\2008\\4-HIPPOCAMPE-NOEM-08\nMD NOEM\\2009\\1-CHIEN-NOEM-09\nMD NOEM\\2009\\2-CHAT-NOEM-09\nMD NOEM\\2009\\3-POULPE-NOEM-09\nMD NOEM\\2009\\4-HIPPOCAMPE-NOEM-09\nMD NOEM\\2010\\1-CHIEN-NOEM-10\nMD NOEM\\2010\\2-CHAT-NOEM-10\nMD NOEM\\2010\\3-POULPE-NOEM-10\nMD NOEM\\2010\\4-HIPPOCAMPE-NOEM-10\nMD NOEM\\2011\\1-CHIEN-NOEM-11\nMD NOEM\\2011\\2-CHAT-NOEM-11\nMD NOEM\\2011\\3-POULPE-NOEM-11\nMD NOEM\\2011\\4-HIPPOCAMPE-NOEM-11\nMD NOEM\\2012\\1-CHIEN-NOEM-12\nMD NOEM\\2012\\2-CHAT-NOEM-12\nMD NOEM\\2012\\3-POULPE-NOEM-12\nMD NOEM\\2012\\4-HIPPOCAMPE-NOEM-12\nMD ESCH\\2006\\1-CHIEN-ESCH-06\nMD ESCH\\2006\\2-CHAT-ESCH-06\nMD ESCH\\2006\\3-POULPE-ESCH-06\nMD ESCH\\2006\\4-HIPPOCAMPE-ESCH-06\nMD ESCH\\2007\\1-CHIEN-ESCH-07\nMD ESCH\\2007\\2-CHAT-ESCH-07\nMD ESCH\\2007\\3-POULPE-ESCH-07\nMD ESCH\\2007\\4-HIPPOCAMPE-ESCH-07\nMD ESCH\\2008\\1-CHIEN-ESCH-08\nMD ESCH\\2008\\2-CHAT-ESCH-08\nMD ESCH\\2008\\3-POULPE-ESCH-08\nMD ESCH\\2008\\4-HIPPOCAMPE-ESCH-08\nMD ESCH\\2009\\1-CHIEN-ESCH-09\nMD ESCH\\2009\\2-CHAT-ESCH-09\nMD ESCH\\2009\\3-POULPE-ESCH-09\nMD ESCH\\2009\\4-HIPPOCAMPE-ESCH-09\nMD ESCH\\2010\\1-CHIEN-ESCH-10\nMD ESCH\\2010\\2-CHAT-ESCH-10\nMD ESCH\\2010\\3-POULPE-ESCH-10\nMD ESCH\\2010\\4-HIPPOCAMPE-ESCH-10\nMD ESCH\\2011\\1-CHIEN-ESCH-11\nMD ESCH\\2011\\2-CHAT-ESCH-11\nMD ESCH\\2011\\3-POULPE-ESCH-11\nMD ESCH\\2011\\4-HIPPOCAMPE-ESCH-11\nMD ESCH\\2012\\1-CHIEN-ESCH-12\nMD ESCH\\2012\\2-CHAT-ESCH-12\nMD ESCH\\2012\\3-POULPE-ESCH-12\nMD ESCH\\2012\\4-HIPPOCAMPE-ESCH-12\nMD IENS\\2006\\1-CHIEN-IENS-06\nMD IENS\\2006\\2-CHAT-IENS-06"}]
[{"$f":"IF(ROWS($C$20:C105)<Nb_Liste*Nb_Années*Nb_Animaux,IF(B106>=B105,A105,INDEX(Liste,MATCH(A105,Liste,0)+1)),\"\")","v":"IENS"},{"$f":"IF(ROWS($C$20:C105)<Nb_Liste*Nb_Années*Nb_Animaux,(C106=INDEX(Animaux,1))*(1-Nb_Années*(B105=Max_Années))+B105,\"\")","v":2006},{"$f":"IF(ROWS($C$20:C105)<Nb_Liste*Nb_Années*Nb_Animaux,INDEX(Animaux,MOD(MATCH(C105,Animaux,0),Nb_Animaux)+1),\"\")","v":"3-POULPE"},null,{"$f":"IF(ROWS($C$20:C105)<Nb_Liste*Nb_Années*Nb_Animaux,E105&CHAR(10)&\"MD \"&A106&\"\\\"&B106&\"\\\"&C106&\"-\"&A106&\"-\"&RIGHT(TEXT(B106,\"0000\"),2),\"\")","v":"CD C:\\Users\\jvdo\\Documents\\forum\\test\nMD JEMA\\2006\\1-CHIEN-JEMA-06\nMD JEMA\\2006\\2-CHAT-JEMA-06\nMD JEMA\\2006\\3-POULPE-JEMA-06\nMD JEMA\\2006\\4-HIPPOCAMPE-JEMA-06\nMD JEMA\\2007\\1-CHIEN-JEMA-07\nMD JEMA\\2007\\2-CHAT-JEMA-07\nMD JEMA\\2007\\3-POULPE-JEMA-07\nMD JEMA\\2007\\4-HIPPOCAMPE-JEMA-07\nMD JEMA\\2008\\1-CHIEN-JEMA-08\nMD JEMA\\2008\\2-CHAT-JEMA-08\nMD JEMA\\2008\\3-POULPE-JEMA-08\nMD JEMA\\2008\\4-HIPPOCAMPE-JEMA-08\nMD JEMA\\2009\\1-CHIEN-JEMA-09\nMD JEMA\\2009\\2-CHAT-JEMA-09\nMD JEMA\\2009\\3-POULPE-JEMA-09\nMD JEMA\\2009\\4-HIPPOCAMPE-JEMA-09\nMD JEMA\\2010\\1-CHIEN-JEMA-10\nMD JEMA\\2010\\2-CHAT-JEMA-10\nMD JEMA\\2010\\3-POULPE-JEMA-10\nMD JEMA\\2010\\4-HIPPOCAMPE-JEMA-10\nMD JEMA\\2011\\1-CHIEN-JEMA-11\nMD JEMA\\2011\\2-CHAT-JEMA-11\nMD JEMA\\2011\\3-POULPE-JEMA-11\nMD JEMA\\2011\\4-HIPPOCAMPE-JEMA-11\nMD JEMA\\2012\\1-CHIEN-JEMA-12\nMD JEMA\\2012\\2-CHAT-JEMA-12\nMD JEMA\\2012\\3-POULPE-JEMA-12\nMD JEMA\\2012\\4-HIPPOCAMPE-JEMA-12\nMD NOEM\\2006\\1-CHIEN-NOEM-06\nMD NOEM\\2006\\2-CHAT-NOEM-06\nMD NOEM\\2006\\3-POULPE-NOEM-06\nMD NOEM\\2006\\4-HIPPOCAMPE-NOEM-06\nMD NOEM\\2007\\1-CHIEN-NOEM-07\nMD NOEM\\2007\\2-CHAT-NOEM-07\nMD NOEM\\2007\\3-POULPE-NOEM-07\nMD NOEM\\2007\\4-HIPPOCAMPE-NOEM-07\nMD NOEM\\2008\\1-CHIEN-NOEM-08\nMD NOEM\\2008\\2-CHAT-NOEM-08\nMD NOEM\\2008\\3-POULPE-NOEM-08\nMD NOEM\\2008\\4-HIPPOCAMPE-NOEM-08\nMD NOEM\\2009\\1-CHIEN-NOEM-09\nMD NOEM\\2009\\2-CHAT-NOEM-09\nMD NOEM\\2009\\3-POULPE-NOEM-09\nMD NOEM\\2009\\4-HIPPOCAMPE-NOEM-09\nMD NOEM\\2010\\1-CHIEN-NOEM-10\nMD NOEM\\2010\\2-CHAT-NOEM-10\nMD NOEM\\2010\\3-POULPE-NOEM-10\nMD NOEM\\2010\\4-HIPPOCAMPE-NOEM-10\nMD NOEM\\2011\\1-CHIEN-NOEM-11\nMD NOEM\\2011\\2-CHAT-NOEM-11\nMD NOEM\\2011\\3-POULPE-NOEM-11\nMD NOEM\\2011\\4-HIPPOCAMPE-NOEM-11\nMD NOEM\\2012\\1-CHIEN-NOEM-12\nMD NOEM\\2012\\2-CHAT-NOEM-12\nMD NOEM\\2012\\3-POULPE-NOEM-12\nMD NOEM\\2012\\4-HIPPOCAMPE-NOEM-12\nMD ESCH\\2006\\1-CHIEN-ESCH-06\nMD ESCH\\2006\\2-CHAT-ESCH-06\nMD ESCH\\2006\\3-POULPE-ESCH-06\nMD ESCH\\2006\\4-HIPPOCAMPE-ESCH-06\nMD ESCH\\2007\\1-CHIEN-ESCH-07\nMD ESCH\\2007\\2-CHAT-ESCH-07\nMD ESCH\\2007\\3-POULPE-ESCH-07\nMD ESCH\\2007\\4-HIPPOCAMPE-ESCH-07\nMD ESCH\\2008\\1-CHIEN-ESCH-08\nMD ESCH\\2008\\2-CHAT-ESCH-08\nMD ESCH\\2008\\3-POULPE-ESCH-08\nMD ESCH\\2008\\4-HIPPOCAMPE-ESCH-08\nMD ESCH\\2009\\1-CHIEN-ESCH-09\nMD ESCH\\2009\\2-CHAT-ESCH-09\nMD ESCH\\2009\\3-POULPE-ESCH-09\nMD ESCH\\2009\\4-HIPPOCAMPE-ESCH-09\nMD ESCH\\2010\\1-CHIEN-ESCH-10\nMD ESCH\\2010\\2-CHAT-ESCH-10\nMD ESCH\\2010\\3-POULPE-ESCH-10\nMD ESCH\\2010\\4-HIPPOCAMPE-ESCH-10\nMD ESCH\\2011\\1-CHIEN-ESCH-11\nMD ESCH\\2011\\2-CHAT-ESCH-11\nMD ESCH\\2011\\3-POULPE-ESCH-11\nMD ESCH\\2011\\4-HIPPOCAMPE-ESCH-11\nMD ESCH\\2012\\1-CHIEN-ESCH-12\nMD ESCH\\2012\\2-CHAT-ESCH-12\nMD ESCH\\2012\\3-POULPE-ESCH-12\nMD ESCH\\2012\\4-HIPPOCAMPE-ESCH-12\nMD IENS\\2006\\1-CHIEN-IENS-06\nMD IENS\\2006\\2-CHAT-IENS-06\nMD IENS\\2006\\3-POULPE-IENS-06"}]
[{"$f":"IF(ROWS($C$20:C106)<Nb_Liste*Nb_Années*Nb_Animaux,IF(B107>=B106,A106,INDEX(Liste,MATCH(A106,Liste,0)+1)),\"\")","v":"IENS"},{"$f":"IF(ROWS($C$20:C106)<Nb_Liste*Nb_Années*Nb_Animaux,(C107=INDEX(Animaux,1))*(1-Nb_Années*(B106=Max_Années))+B106,\"\")","v":2006},{"$f":"IF(ROWS($C$20:C106)<Nb_Liste*Nb_Années*Nb_Animaux,INDEX(Animaux,MOD(MATCH(C106,Animaux,0),Nb_Animaux)+1),\"\")","v":"4-HIPPOCAMPE"},null,{"$f":"IF(ROWS($C$20:C106)<Nb_Liste*Nb_Années*Nb_Animaux,E106&CHAR(10)&\"MD \"&A107&\"\\\"&B107&\"\\\"&C107&\"-\"&A107&\"-\"&RIGHT(TEXT(B107,\"0000\"),2),\"\")","v":"CD C:\\Users\\jvdo\\Documents\\forum\\test\nMD JEMA\\2006\\1-CHIEN-JEMA-06\nMD JEMA\\2006\\2-CHAT-JEMA-06\nMD JEMA\\2006\\3-POULPE-JEMA-06\nMD JEMA\\2006\\4-HIPPOCAMPE-JEMA-06\nMD JEMA\\2007\\1-CHIEN-JEMA-07\nMD JEMA\\2007\\2-CHAT-JEMA-07\nMD JEMA\\2007\\3-POULPE-JEMA-07\nMD JEMA\\2007\\4-HIPPOCAMPE-JEMA-07\nMD JEMA\\2008\\1-CHIEN-JEMA-08\nMD JEMA\\2008\\2-CHAT-JEMA-08\nMD JEMA\\2008\\3-POULPE-JEMA-08\nMD JEMA\\2008\\4-HIPPOCAMPE-JEMA-08\nMD JEMA\\2009\\1-CHIEN-JEMA-09\nMD JEMA\\2009\\2-CHAT-JEMA-09\nMD JEMA\\2009\\3-POULPE-JEMA-09\nMD JEMA\\2009\\4-HIPPOCAMPE-JEMA-09\nMD JEMA\\2010\\1-CHIEN-JEMA-10\nMD JEMA\\2010\\2-CHAT-JEMA-10\nMD JEMA\\2010\\3-POULPE-JEMA-10\nMD JEMA\\2010\\4-HIPPOCAMPE-JEMA-10\nMD JEMA\\2011\\1-CHIEN-JEMA-11\nMD JEMA\\2011\\2-CHAT-JEMA-11\nMD JEMA\\2011\\3-POULPE-JEMA-11\nMD JEMA\\2011\\4-HIPPOCAMPE-JEMA-11\nMD JEMA\\2012\\1-CHIEN-JEMA-12\nMD JEMA\\2012\\2-CHAT-JEMA-12\nMD JEMA\\2012\\3-POULPE-JEMA-12\nMD JEMA\\2012\\4-HIPPOCAMPE-JEMA-12\nMD NOEM\\2006\\1-CHIEN-NOEM-06\nMD NOEM\\2006\\2-CHAT-NOEM-06\nMD NOEM\\2006\\3-POULPE-NOEM-06\nMD NOEM\\2006\\4-HIPPOCAMPE-NOEM-06\nMD NOEM\\2007\\1-CHIEN-NOEM-07\nMD NOEM\\2007\\2-CHAT-NOEM-07\nMD NOEM\\2007\\3-POULPE-NOEM-07\nMD NOEM\\2007\\4-HIPPOCAMPE-NOEM-07\nMD NOEM\\2008\\1-CHIEN-NOEM-08\nMD NOEM\\2008\\2-CHAT-NOEM-08\nMD NOEM\\2008\\3-POULPE-NOEM-08\nMD NOEM\\2008\\4-HIPPOCAMPE-NOEM-08\nMD NOEM\\2009\\1-CHIEN-NOEM-09\nMD NOEM\\2009\\2-CHAT-NOEM-09\nMD NOEM\\2009\\3-POULPE-NOEM-09\nMD NOEM\\2009\\4-HIPPOCAMPE-NOEM-09\nMD NOEM\\2010\\1-CHIEN-NOEM-10\nMD NOEM\\2010\\2-CHAT-NOEM-10\nMD NOEM\\2010\\3-POULPE-NOEM-10\nMD NOEM\\2010\\4-HIPPOCAMPE-NOEM-10\nMD NOEM\\2011\\1-CHIEN-NOEM-11\nMD NOEM\\2011\\2-CHAT-NOEM-11\nMD NOEM\\2011\\3-POULPE-NOEM-11\nMD NOEM\\2011\\4-HIPPOCAMPE-NOEM-11\nMD NOEM\\2012\\1-CHIEN-NOEM-12\nMD NOEM\\2012\\2-CHAT-NOEM-12\nMD NOEM\\2012\\3-POULPE-NOEM-12\nMD NOEM\\2012\\4-HIPPOCAMPE-NOEM-12\nMD ESCH\\2006\\1-CHIEN-ESCH-06\nMD ESCH\\2006\\2-CHAT-ESCH-06\nMD ESCH\\2006\\3-POULPE-ESCH-06\nMD ESCH\\2006\\4-HIPPOCAMPE-ESCH-06\nMD ESCH\\2007\\1-CHIEN-ESCH-07\nMD ESCH\\2007\\2-CHAT-ESCH-07\nMD ESCH\\2007\\3-POULPE-ESCH-07\nMD ESCH\\2007\\4-HIPPOCAMPE-ESCH-07\nMD ESCH\\2008\\1-CHIEN-ESCH-08\nMD ESCH\\2008\\2-CHAT-ESCH-08\nMD ESCH\\2008\\3-POULPE-ESCH-08\nMD ESCH\\2008\\4-HIPPOCAMPE-ESCH-08\nMD ESCH\\2009\\1-CHIEN-ESCH-09\nMD ESCH\\2009\\2-CHAT-ESCH-09\nMD ESCH\\2009\\3-POULPE-ESCH-09\nMD ESCH\\2009\\4-HIPPOCAMPE-ESCH-09\nMD ESCH\\2010\\1-CHIEN-ESCH-10\nMD ESCH\\2010\\2-CHAT-ESCH-10\nMD ESCH\\2010\\3-POULPE-ESCH-10\nMD ESCH\\2010\\4-HIPPOCAMPE-ESCH-10\nMD ESCH\\2011\\1-CHIEN-ESCH-11\nMD ESCH\\2011\\2-CHAT-ESCH-11\nMD ESCH\\2011\\3-POULPE-ESCH-11\nMD ESCH\\2011\\4-HIPPOCAMPE-ESCH-11\nMD ESCH\\2012\\1-CHIEN-ESCH-12\nMD ESCH\\2012\\2-CHAT-ESCH-12\nMD ESCH\\2012\\3-POULPE-ESCH-12\nMD ESCH\\2012\\4-HIPPOCAMPE-ESCH-12\nMD IENS\\2006\\1-CHIEN-IENS-06\nMD IENS\\2006\\2-CHAT-IENS-06\nMD IENS\\2006\\3-POULPE-IENS-06\nMD IENS\\2006\\4-HIPPOCAMPE-IENS-06"}]
[{"$f":"IF(ROWS($C$20:C107)<Nb_Liste*Nb_Années*Nb_Animaux,IF(B108>=B107,A107,INDEX(Liste,MATCH(A107,Liste,0)+1)),\"\")","v":"IENS"},{"$f":"IF(ROWS($C$20:C107)<Nb_Liste*Nb_Années*Nb_Animaux,(C108=INDEX(Animaux,1))*(1-Nb_Années*(B107=Max_Années))+B107,\"\")","v":2007},{"$f":"IF(ROWS($C$20:C107)<Nb_Liste*Nb_Années*Nb_Animaux,INDEX(Animaux,MOD(MATCH(C107,Animaux,0),Nb_Animaux)+1),\"\")","v":"1-CHIEN"},null,{"$f":"IF(ROWS($C$20:C107)<Nb_Liste*Nb_Années*Nb_Animaux,E107&CHAR(10)&\"MD \"&A108&\"\\\"&B108&\"\\\"&C108&\"-\"&A108&\"-\"&RIGHT(TEXT(B108,\"0000\"),2),\"\")","v":"CD C:\\Users\\jvdo\\Documents\\forum\\test\nMD JEMA\\2006\\1-CHIEN-JEMA-06\nMD JEMA\\2006\\2-CHAT-JEMA-06\nMD JEMA\\2006\\3-POULPE-JEMA-06\nMD JEMA\\2006\\4-HIPPOCAMPE-JEMA-06\nMD JEMA\\2007\\1-CHIEN-JEMA-07\nMD JEMA\\2007\\2-CHAT-JEMA-07\nMD JEMA\\2007\\3-POULPE-JEMA-07\nMD JEMA\\2007\\4-HIPPOCAMPE-JEMA-07\nMD JEMA\\2008\\1-CHIEN-JEMA-08\nMD JEMA\\2008\\2-CHAT-JEMA-08\nMD JEMA\\2008\\3-POULPE-JEMA-08\nMD JEMA\\2008\\4-HIPPOCAMPE-JEMA-08\nMD JEMA\\2009\\1-CHIEN-JEMA-09\nMD JEMA\\2009\\2-CHAT-JEMA-09\nMD JEMA\\2009\\3-POULPE-JEMA-09\nMD JEMA\\2009\\4-HIPPOCAMPE-JEMA-09\nMD JEMA\\2010\\1-CHIEN-JEMA-10\nMD JEMA\\2010\\2-CHAT-JEMA-10\nMD JEMA\\2010\\3-POULPE-JEMA-10\nMD JEMA\\2010\\4-HIPPOCAMPE-JEMA-10\nMD JEMA\\2011\\1-CHIEN-JEMA-11\nMD JEMA\\2011\\2-CHAT-JEMA-11\nMD JEMA\\2011\\3-POULPE-JEMA-11\nMD JEMA\\2011\\4-HIPPOCAMPE-JEMA-11\nMD JEMA\\2012\\1-CHIEN-JEMA-12\nMD JEMA\\2012\\2-CHAT-JEMA-12\nMD JEMA\\2012\\3-POULPE-JEMA-12\nMD JEMA\\2012\\4-HIPPOCAMPE-JEMA-12\nMD NOEM\\2006\\1-CHIEN-NOEM-06\nMD NOEM\\2006\\2-CHAT-NOEM-06\nMD NOEM\\2006\\3-POULPE-NOEM-06\nMD NOEM\\2006\\4-HIPPOCAMPE-NOEM-06\nMD NOEM\\2007\\1-CHIEN-NOEM-07\nMD NOEM\\2007\\2-CHAT-NOEM-07\nMD NOEM\\2007\\3-POULPE-NOEM-07\nMD NOEM\\2007\\4-HIPPOCAMPE-NOEM-07\nMD NOEM\\2008\\1-CHIEN-NOEM-08\nMD NOEM\\2008\\2-CHAT-NOEM-08\nMD NOEM\\2008\\3-POULPE-NOEM-08\nMD NOEM\\2008\\4-HIPPOCAMPE-NOEM-08\nMD NOEM\\2009\\1-CHIEN-NOEM-09\nMD NOEM\\2009\\2-CHAT-NOEM-09\nMD NOEM\\2009\\3-POULPE-NOEM-09\nMD NOEM\\2009\\4-HIPPOCAMPE-NOEM-09\nMD NOEM\\2010\\1-CHIEN-NOEM-10\nMD NOEM\\2010\\2-CHAT-NOEM-10\nMD NOEM\\2010\\3-POULPE-NOEM-10\nMD NOEM\\2010\\4-HIPPOCAMPE-NOEM-10\nMD NOEM\\2011\\1-CHIEN-NOEM-11\nMD NOEM\\2011\\2-CHAT-NOEM-11\nMD NOEM\\2011\\3-POULPE-NOEM-11\nMD NOEM\\2011\\4-HIPPOCAMPE-NOEM-11\nMD NOEM\\2012\\1-CHIEN-NOEM-12\nMD NOEM\\2012\\2-CHAT-NOEM-12\nMD NOEM\\2012\\3-POULPE-NOEM-12\nMD NOEM\\2012\\4-HIPPOCAMPE-NOEM-12\nMD ESCH\\2006\\1-CHIEN-ESCH-06\nMD ESCH\\2006\\2-CHAT-ESCH-06\nMD ESCH\\2006\\3-POULPE-ESCH-06\nMD ESCH\\2006\\4-HIPPOCAMPE-ESCH-06\nMD ESCH\\2007\\1-CHIEN-ESCH-07\nMD ESCH\\2007\\2-CHAT-ESCH-07\nMD ESCH\\2007\\3-POULPE-ESCH-07\nMD ESCH\\2007\\4-HIPPOCAMPE-ESCH-07\nMD ESCH\\2008\\1-CHIEN-ESCH-08\nMD ESCH\\2008\\2-CHAT-ESCH-08\nMD ESCH\\2008\\3-POULPE-ESCH-08\nMD ESCH\\2008\\4-HIPPOCAMPE-ESCH-08\nMD ESCH\\2009\\1-CHIEN-ESCH-09\nMD ESCH\\2009\\2-CHAT-ESCH-09\nMD ESCH\\2009\\3-POULPE-ESCH-09\nMD ESCH\\2009\\4-HIPPOCAMPE-ESCH-09\nMD ESCH\\2010\\1-CHIEN-ESCH-10\nMD ESCH\\2010\\2-CHAT-ESCH-10\nMD ESCH\\2010\\3-POULPE-ESCH-10\nMD ESCH\\2010\\4-HIPPOCAMPE-ESCH-10\nMD ESCH\\2011\\1-CHIEN-ESCH-11\nMD ESCH\\2011\\2-CHAT-ESCH-11\nMD ESCH\\2011\\3-POULPE-ESCH-11\nMD ESCH\\2011\\4-HIPPOCAMPE-ESCH-11\nMD ESCH\\2012\\1-CHIEN-ESCH-12\nMD ESCH\\2012\\2-CHAT-ESCH-12\nMD ESCH\\2012\\3-POULPE-ESCH-12\nMD ESCH\\2012\\4-HIPPOCAMPE-ESCH-12\nMD IENS\\2006\\1-CHIEN-IENS-06\nMD IENS\\2006\\2-CHAT-IENS-06\nMD IENS\\2006\\3-POULPE-IENS-06\nMD IENS\\2006\\4-HIPPOCAMPE-IENS-06\nMD IENS\\2007\\1-CHIEN-IENS-07"}]
[{"$f":"IF(ROWS($C$20:C108)<Nb_Liste*Nb_Années*Nb_Animaux,IF(B109>=B108,A108,INDEX(Liste,MATCH(A108,Liste,0)+1)),\"\")","v":"IENS"},{"$f":"IF(ROWS($C$20:C108)<Nb_Liste*Nb_Années*Nb_Animaux,(C109=INDEX(Animaux,1))*(1-Nb_Années*(B108=Max_Années))+B108,\"\")","v":2007},{"$f":"IF(ROWS($C$20:C108)<Nb_Liste*Nb_Années*Nb_Animaux,INDEX(Animaux,MOD(MATCH(C108,Animaux,0),Nb_Animaux)+1),\"\")","v":"2-CHAT"},null,{"$f":"IF(ROWS($C$20:C108)<Nb_Liste*Nb_Années*Nb_Animaux,E108&CHAR(10)&\"MD \"&A109&\"\\\"&B109&\"\\\"&C109&\"-\"&A109&\"-\"&RIGHT(TEXT(B109,\"0000\"),2),\"\")","v":"CD C:\\Users\\jvdo\\Documents\\forum\\test\nMD JEMA\\2006\\1-CHIEN-JEMA-06\nMD JEMA\\2006\\2-CHAT-JEMA-06\nMD JEMA\\2006\\3-POULPE-JEMA-06\nMD JEMA\\2006\\4-HIPPOCAMPE-JEMA-06\nMD JEMA\\2007\\1-CHIEN-JEMA-07\nMD JEMA\\2007\\2-CHAT-JEMA-07\nMD JEMA\\2007\\3-POULPE-JEMA-07\nMD JEMA\\2007\\4-HIPPOCAMPE-JEMA-07\nMD JEMA\\2008\\1-CHIEN-JEMA-08\nMD JEMA\\2008\\2-CHAT-JEMA-08\nMD JEMA\\2008\\3-POULPE-JEMA-08\nMD JEMA\\2008\\4-HIPPOCAMPE-JEMA-08\nMD JEMA\\2009\\1-CHIEN-JEMA-09\nMD JEMA\\2009\\2-CHAT-JEMA-09\nMD JEMA\\2009\\3-POULPE-JEMA-09\nMD JEMA\\2009\\4-HIPPOCAMPE-JEMA-09\nMD JEMA\\2010\\1-CHIEN-JEMA-10\nMD JEMA\\2010\\2-CHAT-JEMA-10\nMD JEMA\\2010\\3-POULPE-JEMA-10\nMD JEMA\\2010\\4-HIPPOCAMPE-JEMA-10\nMD JEMA\\2011\\1-CHIEN-JEMA-11\nMD JEMA\\2011\\2-CHAT-JEMA-11\nMD JEMA\\2011\\3-POULPE-JEMA-11\nMD JEMA\\2011\\4-HIPPOCAMPE-JEMA-11\nMD JEMA\\2012\\1-CHIEN-JEMA-12\nMD JEMA\\2012\\2-CHAT-JEMA-12\nMD JEMA\\2012\\3-POULPE-JEMA-12\nMD JEMA\\2012\\4-HIPPOCAMPE-JEMA-12\nMD NOEM\\2006\\1-CHIEN-NOEM-06\nMD NOEM\\2006\\2-CHAT-NOEM-06\nMD NOEM\\2006\\3-POULPE-NOEM-06\nMD NOEM\\2006\\4-HIPPOCAMPE-NOEM-06\nMD NOEM\\2007\\1-CHIEN-NOEM-07\nMD NOEM\\2007\\2-CHAT-NOEM-07\nMD NOEM\\2007\\3-POULPE-NOEM-07\nMD NOEM\\2007\\4-HIPPOCAMPE-NOEM-07\nMD NOEM\\2008\\1-CHIEN-NOEM-08\nMD NOEM\\2008\\2-CHAT-NOEM-08\nMD NOEM\\2008\\3-POULPE-NOEM-08\nMD NOEM\\2008\\4-HIPPOCAMPE-NOEM-08\nMD NOEM\\2009\\1-CHIEN-NOEM-09\nMD NOEM\\2009\\2-CHAT-NOEM-09\nMD NOEM\\2009\\3-POULPE-NOEM-09\nMD NOEM\\2009\\4-HIPPOCAMPE-NOEM-09\nMD NOEM\\2010\\1-CHIEN-NOEM-10\nMD NOEM\\2010\\2-CHAT-NOEM-10\nMD NOEM\\2010\\3-POULPE-NOEM-10\nMD NOEM\\2010\\4-HIPPOCAMPE-NOEM-10\nMD NOEM\\2011\\1-CHIEN-NOEM-11\nMD NOEM\\2011\\2-CHAT-NOEM-11\nMD NOEM\\2011\\3-POULPE-NOEM-11\nMD NOEM\\2011\\4-HIPPOCAMPE-NOEM-11\nMD NOEM\\2012\\1-CHIEN-NOEM-12\nMD NOEM\\2012\\2-CHAT-NOEM-12\nMD NOEM\\2012\\3-POULPE-NOEM-12\nMD NOEM\\2012\\4-HIPPOCAMPE-NOEM-12\nMD ESCH\\2006\\1-CHIEN-ESCH-06\nMD ESCH\\2006\\2-CHAT-ESCH-06\nMD ESCH\\2006\\3-POULPE-ESCH-06\nMD ESCH\\2006\\4-HIPPOCAMPE-ESCH-06\nMD ESCH\\2007\\1-CHIEN-ESCH-07\nMD ESCH\\2007\\2-CHAT-ESCH-07\nMD ESCH\\2007\\3-POULPE-ESCH-07\nMD ESCH\\2007\\4-HIPPOCAMPE-ESCH-07\nMD ESCH\\2008\\1-CHIEN-ESCH-08\nMD ESCH\\2008\\2-CHAT-ESCH-08\nMD ESCH\\2008\\3-POULPE-ESCH-08\nMD ESCH\\2008\\4-HIPPOCAMPE-ESCH-08\nMD ESCH\\2009\\1-CHIEN-ESCH-09\nMD ESCH\\2009\\2-CHAT-ESCH-09\nMD ESCH\\2009\\3-POULPE-ESCH-09\nMD ESCH\\2009\\4-HIPPOCAMPE-ESCH-09\nMD ESCH\\2010\\1-CHIEN-ESCH-10\nMD ESCH\\2010\\2-CHAT-ESCH-10\nMD ESCH\\2010\\3-POULPE-ESCH-10\nMD ESCH\\2010\\4-HIPPOCAMPE-ESCH-10\nMD ESCH\\2011\\1-CHIEN-ESCH-11\nMD ESCH\\2011\\2-CHAT-ESCH-11\nMD ESCH\\2011\\3-POULPE-ESCH-11\nMD ESCH\\2011\\4-HIPPOCAMPE-ESCH-11\nMD ESCH\\2012\\1-CHIEN-ESCH-12\nMD ESCH\\2012\\2-CHAT-ESCH-12\nMD ESCH\\2012\\3-POULPE-ESCH-12\nMD ESCH\\2012\\4-HIPPOCAMPE-ESCH-12\nMD IENS\\2006\\1-CHIEN-IENS-06\nMD IENS\\2006\\2-CHAT-IENS-06\nMD IENS\\2006\\3-POULPE-IENS-06\nMD IENS\\2006\\4-HIPPOCAMPE-IENS-06\nMD IENS\\2007\\1-CHIEN-IENS-07\nMD IENS\\2007\\2-CHAT-IENS-07"}]
[{"$f":"IF(ROWS($C$20:C109)<Nb_Liste*Nb_Années*Nb_Animaux,IF(B110>=B109,A109,INDEX(Liste,MATCH(A109,Liste,0)+1)),\"\")","v":"IENS"},{"$f":"IF(ROWS($C$20:C109)<Nb_Liste*Nb_Années*Nb_Animaux,(C110=INDEX(Animaux,1))*(1-Nb_Années*(B109=Max_Années))+B109,\"\")","v":2007},{"$f":"IF(ROWS($C$20:C109)<Nb_Liste*Nb_Années*Nb_Animaux,INDEX(Animaux,MOD(MATCH(C109,Animaux,0),Nb_Animaux)+1),\"\")","v":"3-POULPE"},null,{"$f":"IF(ROWS($C$20:C109)<Nb_Liste*Nb_Années*Nb_Animaux,E109&CHAR(10)&\"MD \"&A110&\"\\\"&B110&\"\\\"&C110&\"-\"&A110&\"-\"&RIGHT(TEXT(B110,\"0000\"),2),\"\")","v":"CD C:\\Users\\jvdo\\Documents\\forum\\test\nMD JEMA\\2006\\1-CHIEN-JEMA-06\nMD JEMA\\2006\\2-CHAT-JEMA-06\nMD JEMA\\2006\\3-POULPE-JEMA-06\nMD JEMA\\2006\\4-HIPPOCAMPE-JEMA-06\nMD JEMA\\2007\\1-CHIEN-JEMA-07\nMD JEMA\\2007\\2-CHAT-JEMA-07\nMD JEMA\\2007\\3-POULPE-JEMA-07\nMD JEMA\\2007\\4-HIPPOCAMPE-JEMA-07\nMD JEMA\\2008\\1-CHIEN-JEMA-08\nMD JEMA\\2008\\2-CHAT-JEMA-08\nMD JEMA\\2008\\3-POULPE-JEMA-08\nMD JEMA\\2008\\4-HIPPOCAMPE-JEMA-08\nMD JEMA\\2009\\1-CHIEN-JEMA-09\nMD JEMA\\2009\\2-CHAT-JEMA-09\nMD JEMA\\2009\\3-POULPE-JEMA-09\nMD JEMA\\2009\\4-HIPPOCAMPE-JEMA-09\nMD JEMA\\2010\\1-CHIEN-JEMA-10\nMD JEMA\\2010\\2-CHAT-JEMA-10\nMD JEMA\\2010\\3-POULPE-JEMA-10\nMD JEMA\\2010\\4-HIPPOCAMPE-JEMA-10\nMD JEMA\\2011\\1-CHIEN-JEMA-11\nMD JEMA\\2011\\2-CHAT-JEMA-11\nMD JEMA\\2011\\3-POULPE-JEMA-11\nMD JEMA\\2011\\4-HIPPOCAMPE-JEMA-11\nMD JEMA\\2012\\1-CHIEN-JEMA-12\nMD JEMA\\2012\\2-CHAT-JEMA-12\nMD JEMA\\2012\\3-POULPE-JEMA-12\nMD JEMA\\2012\\4-HIPPOCAMPE-JEMA-12\nMD NOEM\\2006\\1-CHIEN-NOEM-06\nMD NOEM\\2006\\2-CHAT-NOEM-06\nMD NOEM\\2006\\3-POULPE-NOEM-06\nMD NOEM\\2006\\4-HIPPOCAMPE-NOEM-06\nMD NOEM\\2007\\1-CHIEN-NOEM-07\nMD NOEM\\2007\\2-CHAT-NOEM-07\nMD NOEM\\2007\\3-POULPE-NOEM-07\nMD NOEM\\2007\\4-HIPPOCAMPE-NOEM-07\nMD NOEM\\2008\\1-CHIEN-NOEM-08\nMD NOEM\\2008\\2-CHAT-NOEM-08\nMD NOEM\\2008\\3-POULPE-NOEM-08\nMD NOEM\\2008\\4-HIPPOCAMPE-NOEM-08\nMD NOEM\\2009\\1-CHIEN-NOEM-09\nMD NOEM\\2009\\2-CHAT-NOEM-09\nMD NOEM\\2009\\3-POULPE-NOEM-09\nMD NOEM\\2009\\4-HIPPOCAMPE-NOEM-09\nMD NOEM\\2010\\1-CHIEN-NOEM-10\nMD NOEM\\2010\\2-CHAT-NOEM-10\nMD NOEM\\2010\\3-POULPE-NOEM-10\nMD NOEM\\2010\\4-HIPPOCAMPE-NOEM-10\nMD NOEM\\2011\\1-CHIEN-NOEM-11\nMD NOEM\\2011\\2-CHAT-NOEM-11\nMD NOEM\\2011\\3-POULPE-NOEM-11\nMD NOEM\\2011\\4-HIPPOCAMPE-NOEM-11\nMD NOEM\\2012\\1-CHIEN-NOEM-12\nMD NOEM\\2012\\2-CHAT-NOEM-12\nMD NOEM\\2012\\3-POULPE-NOEM-12\nMD NOEM\\2012\\4-HIPPOCAMPE-NOEM-12\nMD ESCH\\2006\\1-CHIEN-ESCH-06\nMD ESCH\\2006\\2-CHAT-ESCH-06\nMD ESCH\\2006\\3-POULPE-ESCH-06\nMD ESCH\\2006\\4-HIPPOCAMPE-ESCH-06\nMD ESCH\\2007\\1-CHIEN-ESCH-07\nMD ESCH\\2007\\2-CHAT-ESCH-07\nMD ESCH\\2007\\3-POULPE-ESCH-07\nMD ESCH\\2007\\4-HIPPOCAMPE-ESCH-07\nMD ESCH\\2008\\1-CHIEN-ESCH-08\nMD ESCH\\2008\\2-CHAT-ESCH-08\nMD ESCH\\2008\\3-POULPE-ESCH-08\nMD ESCH\\2008\\4-HIPPOCAMPE-ESCH-08\nMD ESCH\\2009\\1-CHIEN-ESCH-09\nMD ESCH\\2009\\2-CHAT-ESCH-09\nMD ESCH\\2009\\3-POULPE-ESCH-09\nMD ESCH\\2009\\4-HIPPOCAMPE-ESCH-09\nMD ESCH\\2010\\1-CHIEN-ESCH-10\nMD ESCH\\2010\\2-CHAT-ESCH-10\nMD ESCH\\2010\\3-POULPE-ESCH-10\nMD ESCH\\2010\\4-HIPPOCAMPE-ESCH-10\nMD ESCH\\2011\\1-CHIEN-ESCH-11\nMD ESCH\\2011\\2-CHAT-ESCH-11\nMD ESCH\\2011\\3-POULPE-ESCH-11\nMD ESCH\\2011\\4-HIPPOCAMPE-ESCH-11\nMD ESCH\\2012\\1-CHIEN-ESCH-12\nMD ESCH\\2012\\2-CHAT-ESCH-12\nMD ESCH\\2012\\3-POULPE-ESCH-12\nMD ESCH\\2012\\4-HIPPOCAMPE-ESCH-12\nMD IENS\\2006\\1-CHIEN-IENS-06\nMD IENS\\2006\\2-CHAT-IENS-06\nMD IENS\\2006\\3-POULPE-IENS-06\nMD IENS\\2006\\4-HIPPOCAMPE-IENS-06\nMD IENS\\2007\\1-CHIEN-IENS-07\nMD IENS\\2007\\2-CHAT-IENS-07\nMD IENS\\2007\\3-POULPE-IENS-07"}]
[{"$f":"IF(ROWS($C$20:C110)<Nb_Liste*Nb_Années*Nb_Animaux,IF(B111>=B110,A110,INDEX(Liste,MATCH(A110,Liste,0)+1)),\"\")","v":"IENS"},{"$f":"IF(ROWS($C$20:C110)<Nb_Liste*Nb_Années*Nb_Animaux,(C111=INDEX(Animaux,1))*(1-Nb_Années*(B110=Max_Années))+B110,\"\")","v":2007},{"$f":"IF(ROWS($C$20:C110)<Nb_Liste*Nb_Années*Nb_Animaux,INDEX(Animaux,MOD(MATCH(C110,Animaux,0),Nb_Animaux)+1),\"\")","v":"4-HIPPOCAMPE"},null,{"$f":"IF(ROWS($C$20:C110)<Nb_Liste*Nb_Années*Nb_Animaux,E110&CHAR(10)&\"MD \"&A111&\"\\\"&B111&\"\\\"&C111&\"-\"&A111&\"-\"&RIGHT(TEXT(B111,\"0000\"),2),\"\")","v":"CD C:\\Users\\jvdo\\Documents\\forum\\test\nMD JEMA\\2006\\1-CHIEN-JEMA-06\nMD JEMA\\2006\\2-CHAT-JEMA-06\nMD JEMA\\2006\\3-POULPE-JEMA-06\nMD JEMA\\2006\\4-HIPPOCAMPE-JEMA-06\nMD JEMA\\2007\\1-CHIEN-JEMA-07\nMD JEMA\\2007\\2-CHAT-JEMA-07\nMD JEMA\\2007\\3-POULPE-JEMA-07\nMD JEMA\\2007\\4-HIPPOCAMPE-JEMA-07\nMD JEMA\\2008\\1-CHIEN-JEMA-08\nMD JEMA\\2008\\2-CHAT-JEMA-08\nMD JEMA\\2008\\3-POULPE-JEMA-08\nMD JEMA\\2008\\4-HIPPOCAMPE-JEMA-08\nMD JEMA\\2009\\1-CHIEN-JEMA-09\nMD JEMA\\2009\\2-CHAT-JEMA-09\nMD JEMA\\2009\\3-POULPE-JEMA-09\nMD JEMA\\2009\\4-HIPPOCAMPE-JEMA-09\nMD JEMA\\2010\\1-CHIEN-JEMA-10\nMD JEMA\\2010\\2-CHAT-JEMA-10\nMD JEMA\\2010\\3-POULPE-JEMA-10\nMD JEMA\\2010\\4-HIPPOCAMPE-JEMA-10\nMD JEMA\\2011\\1-CHIEN-JEMA-11\nMD JEMA\\2011\\2-CHAT-JEMA-11\nMD JEMA\\2011\\3-POULPE-JEMA-11\nMD JEMA\\2011\\4-HIPPOCAMPE-JEMA-11\nMD JEMA\\2012\\1-CHIEN-JEMA-12\nMD JEMA\\2012\\2-CHAT-JEMA-12\nMD JEMA\\2012\\3-POULPE-JEMA-12\nMD JEMA\\2012\\4-HIPPOCAMPE-JEMA-12\nMD NOEM\\2006\\1-CHIEN-NOEM-06\nMD NOEM\\2006\\2-CHAT-NOEM-06\nMD NOEM\\2006\\3-POULPE-NOEM-06\nMD NOEM\\2006\\4-HIPPOCAMPE-NOEM-06\nMD NOEM\\2007\\1-CHIEN-NOEM-07\nMD NOEM\\2007\\2-CHAT-NOEM-07\nMD NOEM\\2007\\3-POULPE-NOEM-07\nMD NOEM\\2007\\4-HIPPOCAMPE-NOEM-07\nMD NOEM\\2008\\1-CHIEN-NOEM-08\nMD NOEM\\2008\\2-CHAT-NOEM-08\nMD NOEM\\2008\\3-POULPE-NOEM-08\nMD NOEM\\2008\\4-HIPPOCAMPE-NOEM-08\nMD NOEM\\2009\\1-CHIEN-NOEM-09\nMD NOEM\\2009\\2-CHAT-NOEM-09\nMD NOEM\\2009\\3-POULPE-NOEM-09\nMD NOEM\\2009\\4-HIPPOCAMPE-NOEM-09\nMD NOEM\\2010\\1-CHIEN-NOEM-10\nMD NOEM\\2010\\2-CHAT-NOEM-10\nMD NOEM\\2010\\3-POULPE-NOEM-10\nMD NOEM\\2010\\4-HIPPOCAMPE-NOEM-10\nMD NOEM\\2011\\1-CHIEN-NOEM-11\nMD NOEM\\2011\\2-CHAT-NOEM-11\nMD NOEM\\2011\\3-POULPE-NOEM-11\nMD NOEM\\2011\\4-HIPPOCAMPE-NOEM-11\nMD NOEM\\2012\\1-CHIEN-NOEM-12\nMD NOEM\\2012\\2-CHAT-NOEM-12\nMD NOEM\\2012\\3-POULPE-NOEM-12\nMD NOEM\\2012\\4-HIPPOCAMPE-NOEM-12\nMD ESCH\\2006\\1-CHIEN-ESCH-06\nMD ESCH\\2006\\2-CHAT-ESCH-06\nMD ESCH\\2006\\3-POULPE-ESCH-06\nMD ESCH\\2006\\4-HIPPOCAMPE-ESCH-06\nMD ESCH\\2007\\1-CHIEN-ESCH-07\nMD ESCH\\2007\\2-CHAT-ESCH-07\nMD ESCH\\2007\\3-POULPE-ESCH-07\nMD ESCH\\2007\\4-HIPPOCAMPE-ESCH-07\nMD ESCH\\2008\\1-CHIEN-ESCH-08\nMD ESCH\\2008\\2-CHAT-ESCH-08\nMD ESCH\\2008\\3-POULPE-ESCH-08\nMD ESCH\\2008\\4-HIPPOCAMPE-ESCH-08\nMD ESCH\\2009\\1-CHIEN-ESCH-09\nMD ESCH\\2009\\2-CHAT-ESCH-09\nMD ESCH\\2009\\3-POULPE-ESCH-09\nMD ESCH\\2009\\4-HIPPOCAMPE-ESCH-09\nMD ESCH\\2010\\1-CHIEN-ESCH-10\nMD ESCH\\2010\\2-CHAT-ESCH-10\nMD ESCH\\2010\\3-POULPE-ESCH-10\nMD ESCH\\2010\\4-HIPPOCAMPE-ESCH-10\nMD ESCH\\2011\\1-CHIEN-ESCH-11\nMD ESCH\\2011\\2-CHAT-ESCH-11\nMD ESCH\\2011\\3-POULPE-ESCH-11\nMD ESCH\\2011\\4-HIPPOCAMPE-ESCH-11\nMD ESCH\\2012\\1-CHIEN-ESCH-12\nMD ESCH\\2012\\2-CHAT-ESCH-12\nMD ESCH\\2012\\3-POULPE-ESCH-12\nMD ESCH\\2012\\4-HIPPOCAMPE-ESCH-12\nMD IENS\\2006\\1-CHIEN-IENS-06\nMD IENS\\2006\\2-CHAT-IENS-06\nMD IENS\\2006\\3-POULPE-IENS-06\nMD IENS\\2006\\4-HIPPOCAMPE-IENS-06\nMD IENS\\2007\\1-CHIEN-IENS-07\nMD IENS\\2007\\2-CHAT-IENS-07\nMD IENS\\2007\\3-POULPE-IENS-07\nMD IENS\\2007\\4-HIPPOCAMPE-IENS-07"}]
[{"$f":"IF(ROWS($C$20:C111)<Nb_Liste*Nb_Années*Nb_Animaux,IF(B112>=B111,A111,INDEX(Liste,MATCH(A111,Liste,0)+1)),\"\")","v":"IENS"},{"$f":"IF(ROWS($C$20:C111)<Nb_Liste*Nb_Années*Nb_Animaux,(C112=INDEX(Animaux,1))*(1-Nb_Années*(B111=Max_Années))+B111,\"\")","v":2008},{"$f":"IF(ROWS($C$20:C111)<Nb_Liste*Nb_Années*Nb_Animaux,INDEX(Animaux,MOD(MATCH(C111,Animaux,0),Nb_Animaux)+1),\"\")","v":"1-CHIEN"},null,{"$f":"IF(ROWS($C$20:C111)<Nb_Liste*Nb_Années*Nb_Animaux,E111&CHAR(10)&\"MD \"&A112&\"\\\"&B112&\"\\\"&C112&\"-\"&A112&\"-\"&RIGHT(TEXT(B112,\"0000\"),2),\"\")","v":"CD C:\\Users\\jvdo\\Documents\\forum\\test\nMD JEMA\\2006\\1-CHIEN-JEMA-06\nMD JEMA\\2006\\2-CHAT-JEMA-06\nMD JEMA\\2006\\3-POULPE-JEMA-06\nMD JEMA\\2006\\4-HIPPOCAMPE-JEMA-06\nMD JEMA\\2007\\1-CHIEN-JEMA-07\nMD JEMA\\2007\\2-CHAT-JEMA-07\nMD JEMA\\2007\\3-POULPE-JEMA-07\nMD JEMA\\2007\\4-HIPPOCAMPE-JEMA-07\nMD JEMA\\2008\\1-CHIEN-JEMA-08\nMD JEMA\\2008\\2-CHAT-JEMA-08\nMD JEMA\\2008\\3-POULPE-JEMA-08\nMD JEMA\\2008\\4-HIPPOCAMPE-JEMA-08\nMD JEMA\\2009\\1-CHIEN-JEMA-09\nMD JEMA\\2009\\2-CHAT-JEMA-09\nMD JEMA\\2009\\3-POULPE-JEMA-09\nMD JEMA\\2009\\4-HIPPOCAMPE-JEMA-09\nMD JEMA\\2010\\1-CHIEN-JEMA-10\nMD JEMA\\2010\\2-CHAT-JEMA-10\nMD JEMA\\2010\\3-POULPE-JEMA-10\nMD JEMA\\2010\\4-HIPPOCAMPE-JEMA-10\nMD JEMA\\2011\\1-CHIEN-JEMA-11\nMD JEMA\\2011\\2-CHAT-JEMA-11\nMD JEMA\\2011\\3-POULPE-JEMA-11\nMD JEMA\\2011\\4-HIPPOCAMPE-JEMA-11\nMD JEMA\\2012\\1-CHIEN-JEMA-12\nMD JEMA\\2012\\2-CHAT-JEMA-12\nMD JEMA\\2012\\3-POULPE-JEMA-12\nMD JEMA\\2012\\4-HIPPOCAMPE-JEMA-12\nMD NOEM\\2006\\1-CHIEN-NOEM-06\nMD NOEM\\2006\\2-CHAT-NOEM-06\nMD NOEM\\2006\\3-POULPE-NOEM-06\nMD NOEM\\2006\\4-HIPPOCAMPE-NOEM-06\nMD NOEM\\2007\\1-CHIEN-NOEM-07\nMD NOEM\\2007\\2-CHAT-NOEM-07\nMD NOEM\\2007\\3-POULPE-NOEM-07\nMD NOEM\\2007\\4-HIPPOCAMPE-NOEM-07\nMD NOEM\\2008\\1-CHIEN-NOEM-08\nMD NOEM\\2008\\2-CHAT-NOEM-08\nMD NOEM\\2008\\3-POULPE-NOEM-08\nMD NOEM\\2008\\4-HIPPOCAMPE-NOEM-08\nMD NOEM\\2009\\1-CHIEN-NOEM-09\nMD NOEM\\2009\\2-CHAT-NOEM-09\nMD NOEM\\2009\\3-POULPE-NOEM-09\nMD NOEM\\2009\\4-HIPPOCAMPE-NOEM-09\nMD NOEM\\2010\\1-CHIEN-NOEM-10\nMD NOEM\\2010\\2-CHAT-NOEM-10\nMD NOEM\\2010\\3-POULPE-NOEM-10\nMD NOEM\\2010\\4-HIPPOCAMPE-NOEM-10\nMD NOEM\\2011\\1-CHIEN-NOEM-11\nMD NOEM\\2011\\2-CHAT-NOEM-11\nMD NOEM\\2011\\3-POULPE-NOEM-11\nMD NOEM\\2011\\4-HIPPOCAMPE-NOEM-11\nMD NOEM\\2012\\1-CHIEN-NOEM-12\nMD NOEM\\2012\\2-CHAT-NOEM-12\nMD NOEM\\2012\\3-POULPE-NOEM-12\nMD NOEM\\2012\\4-HIPPOCAMPE-NOEM-12\nMD ESCH\\2006\\1-CHIEN-ESCH-06\nMD ESCH\\2006\\2-CHAT-ESCH-06\nMD ESCH\\2006\\3-POULPE-ESCH-06\nMD ESCH\\2006\\4-HIPPOCAMPE-ESCH-06\nMD ESCH\\2007\\1-CHIEN-ESCH-07\nMD ESCH\\2007\\2-CHAT-ESCH-07\nMD ESCH\\2007\\3-POULPE-ESCH-07\nMD ESCH\\2007\\4-HIPPOCAMPE-ESCH-07\nMD ESCH\\2008\\1-CHIEN-ESCH-08\nMD ESCH\\2008\\2-CHAT-ESCH-08\nMD ESCH\\2008\\3-POULPE-ESCH-08\nMD ESCH\\2008\\4-HIPPOCAMPE-ESCH-08\nMD ESCH\\2009\\1-CHIEN-ESCH-09\nMD ESCH\\2009\\2-CHAT-ESCH-09\nMD ESCH\\2009\\3-POULPE-ESCH-09\nMD ESCH\\2009\\4-HIPPOCAMPE-ESCH-09\nMD ESCH\\2010\\1-CHIEN-ESCH-10\nMD ESCH\\2010\\2-CHAT-ESCH-10\nMD ESCH\\2010\\3-POULPE-ESCH-10\nMD ESCH\\2010\\4-HIPPOCAMPE-ESCH-10\nMD ESCH\\2011\\1-CHIEN-ESCH-11\nMD ESCH\\2011\\2-CHAT-ESCH-11\nMD ESCH\\2011\\3-POULPE-ESCH-11\nMD ESCH\\2011\\4-HIPPOCAMPE-ESCH-11\nMD ESCH\\2012\\1-CHIEN-ESCH-12\nMD ESCH\\2012\\2-CHAT-ESCH-12\nMD ESCH\\2012\\3-POULPE-ESCH-12\nMD ESCH\\2012\\4-HIPPOCAMPE-ESCH-12\nMD IENS\\2006\\1-CHIEN-IENS-06\nMD IENS\\2006\\2-CHAT-IENS-06\nMD IENS\\2006\\3-POULPE-IENS-06\nMD IENS\\2006\\4-HIPPOCAMPE-IENS-06\nMD IENS\\2007\\1-CHIEN-IENS-07\nMD IENS\\2007\\2-CHAT-IENS-07\nMD IENS\\2007\\3-POULPE-IENS-07\nMD IENS\\2007\\4-HIPPOCAMPE-IENS-07\nMD IENS\\2008\\1-CHIEN-IENS-08"}]
[{"$f":"IF(ROWS($C$20:C112)<Nb_Liste*Nb_Années*Nb_Animaux,IF(B113>=B112,A112,INDEX(Liste,MATCH(A112,Liste,0)+1)),\"\")","v":"IENS"},{"$f":"IF(ROWS($C$20:C112)<Nb_Liste*Nb_Années*Nb_Animaux,(C113=INDEX(Animaux,1))*(1-Nb_Années*(B112=Max_Années))+B112,\"\")","v":2008},{"$f":"IF(ROWS($C$20:C112)<Nb_Liste*Nb_Années*Nb_Animaux,INDEX(Animaux,MOD(MATCH(C112,Animaux,0),Nb_Animaux)+1),\"\")","v":"2-CHAT"},null,{"$f":"IF(ROWS($C$20:C112)<Nb_Liste*Nb_Années*Nb_Animaux,E112&CHAR(10)&\"MD \"&A113&\"\\\"&B113&\"\\\"&C113&\"-\"&A113&\"-\"&RIGHT(TEXT(B113,\"0000\"),2),\"\")","v":"CD C:\\Users\\jvdo\\Documents\\forum\\test\nMD JEMA\\2006\\1-CHIEN-JEMA-06\nMD JEMA\\2006\\2-CHAT-JEMA-06\nMD JEMA\\2006\\3-POULPE-JEMA-06\nMD JEMA\\2006\\4-HIPPOCAMPE-JEMA-06\nMD JEMA\\2007\\1-CHIEN-JEMA-07\nMD JEMA\\2007\\2-CHAT-JEMA-07\nMD JEMA\\2007\\3-POULPE-JEMA-07\nMD JEMA\\2007\\4-HIPPOCAMPE-JEMA-07\nMD JEMA\\2008\\1-CHIEN-JEMA-08\nMD JEMA\\2008\\2-CHAT-JEMA-08\nMD JEMA\\2008\\3-POULPE-JEMA-08\nMD JEMA\\2008\\4-HIPPOCAMPE-JEMA-08\nMD JEMA\\2009\\1-CHIEN-JEMA-09\nMD JEMA\\2009\\2-CHAT-JEMA-09\nMD JEMA\\2009\\3-POULPE-JEMA-09\nMD JEMA\\2009\\4-HIPPOCAMPE-JEMA-09\nMD JEMA\\2010\\1-CHIEN-JEMA-10\nMD JEMA\\2010\\2-CHAT-JEMA-10\nMD JEMA\\2010\\3-POULPE-JEMA-10\nMD JEMA\\2010\\4-HIPPOCAMPE-JEMA-10\nMD JEMA\\2011\\1-CHIEN-JEMA-11\nMD JEMA\\2011\\2-CHAT-JEMA-11\nMD JEMA\\2011\\3-POULPE-JEMA-11\nMD JEMA\\2011\\4-HIPPOCAMPE-JEMA-11\nMD JEMA\\2012\\1-CHIEN-JEMA-12\nMD JEMA\\2012\\2-CHAT-JEMA-12\nMD JEMA\\2012\\3-POULPE-JEMA-12\nMD JEMA\\2012\\4-HIPPOCAMPE-JEMA-12\nMD NOEM\\2006\\1-CHIEN-NOEM-06\nMD NOEM\\2006\\2-CHAT-NOEM-06\nMD NOEM\\2006\\3-POULPE-NOEM-06\nMD NOEM\\2006\\4-HIPPOCAMPE-NOEM-06\nMD NOEM\\2007\\1-CHIEN-NOEM-07\nMD NOEM\\2007\\2-CHAT-NOEM-07\nMD NOEM\\2007\\3-POULPE-NOEM-07\nMD NOEM\\2007\\4-HIPPOCAMPE-NOEM-07\nMD NOEM\\2008\\1-CHIEN-NOEM-08\nMD NOEM\\2008\\2-CHAT-NOEM-08\nMD NOEM\\2008\\3-POULPE-NOEM-08\nMD NOEM\\2008\\4-HIPPOCAMPE-NOEM-08\nMD NOEM\\2009\\1-CHIEN-NOEM-09\nMD NOEM\\2009\\2-CHAT-NOEM-09\nMD NOEM\\2009\\3-POULPE-NOEM-09\nMD NOEM\\2009\\4-HIPPOCAMPE-NOEM-09\nMD NOEM\\2010\\1-CHIEN-NOEM-10\nMD NOEM\\2010\\2-CHAT-NOEM-10\nMD NOEM\\2010\\3-POULPE-NOEM-10\nMD NOEM\\2010\\4-HIPPOCAMPE-NOEM-10\nMD NOEM\\2011\\1-CHIEN-NOEM-11\nMD NOEM\\2011\\2-CHAT-NOEM-11\nMD NOEM\\2011\\3-POULPE-NOEM-11\nMD NOEM\\2011\\4-HIPPOCAMPE-NOEM-11\nMD NOEM\\2012\\1-CHIEN-NOEM-12\nMD NOEM\\2012\\2-CHAT-NOEM-12\nMD NOEM\\2012\\3-POULPE-NOEM-12\nMD NOEM\\2012\\4-HIPPOCAMPE-NOEM-12\nMD ESCH\\2006\\1-CHIEN-ESCH-06\nMD ESCH\\2006\\2-CHAT-ESCH-06\nMD ESCH\\2006\\3-POULPE-ESCH-06\nMD ESCH\\2006\\4-HIPPOCAMPE-ESCH-06\nMD ESCH\\2007\\1-CHIEN-ESCH-07\nMD ESCH\\2007\\2-CHAT-ESCH-07\nMD ESCH\\2007\\3-POULPE-ESCH-07\nMD ESCH\\2007\\4-HIPPOCAMPE-ESCH-07\nMD ESCH\\2008\\1-CHIEN-ESCH-08\nMD ESCH\\2008\\2-CHAT-ESCH-08\nMD ESCH\\2008\\3-POULPE-ESCH-08\nMD ESCH\\2008\\4-HIPPOCAMPE-ESCH-08\nMD ESCH\\2009\\1-CHIEN-ESCH-09\nMD ESCH\\2009\\2-CHAT-ESCH-09\nMD ESCH\\2009\\3-POULPE-ESCH-09\nMD ESCH\\2009\\4-HIPPOCAMPE-ESCH-09\nMD ESCH\\2010\\1-CHIEN-ESCH-10\nMD ESCH\\2010\\2-CHAT-ESCH-10\nMD ESCH\\2010\\3-POULPE-ESCH-10\nMD ESCH\\2010\\4-HIPPOCAMPE-ESCH-10\nMD ESCH\\2011\\1-CHIEN-ESCH-11\nMD ESCH\\2011\\2-CHAT-ESCH-11\nMD ESCH\\2011\\3-POULPE-ESCH-11\nMD ESCH\\2011\\4-HIPPOCAMPE-ESCH-11\nMD ESCH\\2012\\1-CHIEN-ESCH-12\nMD ESCH\\2012\\2-CHAT-ESCH-12\nMD ESCH\\2012\\3-POULPE-ESCH-12\nMD ESCH\\2012\\4-HIPPOCAMPE-ESCH-12\nMD IENS\\2006\\1-CHIEN-IENS-06\nMD IENS\\2006\\2-CHAT-IENS-06\nMD IENS\\2006\\3-POULPE-IENS-06\nMD IENS\\2006\\4-HIPPOCAMPE-IENS-06\nMD IENS\\2007\\1-CHIEN-IENS-07\nMD IENS\\2007\\2-CHAT-IENS-07\nMD IENS\\2007\\3-POULPE-IENS-07\nMD IENS\\2007\\4-HIPPOCAMPE-IENS-07\nMD IENS\\2008\\1-CHIEN-IENS-08\nMD IENS\\2008\\2-CHAT-IENS-08"}]
[{"$f":"IF(ROWS($C$20:C113)<Nb_Liste*Nb_Années*Nb_Animaux,IF(B114>=B113,A113,INDEX(Liste,MATCH(A113,Liste,0)+1)),\"\")","v":"IENS"},{"$f":"IF(ROWS($C$20:C113)<Nb_Liste*Nb_Années*Nb_Animaux,(C114=INDEX(Animaux,1))*(1-Nb_Années*(B113=Max_Années))+B113,\"\")","v":2008},{"$f":"IF(ROWS($C$20:C113)<Nb_Liste*Nb_Années*Nb_Animaux,INDEX(Animaux,MOD(MATCH(C113,Animaux,0),Nb_Animaux)+1),\"\")","v":"3-POULPE"},null,{"$f":"IF(ROWS($C$20:C113)<Nb_Liste*Nb_Années*Nb_Animaux,E113&CHAR(10)&\"MD \"&A114&\"\\\"&B114&\"\\\"&C114&\"-\"&A114&\"-\"&RIGHT(TEXT(B114,\"0000\"),2),\"\")","v":"CD C:\\Users\\jvdo\\Documents\\forum\\test\nMD JEMA\\2006\\1-CHIEN-JEMA-06\nMD JEMA\\2006\\2-CHAT-JEMA-06\nMD JEMA\\2006\\3-POULPE-JEMA-06\nMD JEMA\\2006\\4-HIPPOCAMPE-JEMA-06\nMD JEMA\\2007\\1-CHIEN-JEMA-07\nMD JEMA\\2007\\2-CHAT-JEMA-07\nMD JEMA\\2007\\3-POULPE-JEMA-07\nMD JEMA\\2007\\4-HIPPOCAMPE-JEMA-07\nMD JEMA\\2008\\1-CHIEN-JEMA-08\nMD JEMA\\2008\\2-CHAT-JEMA-08\nMD JEMA\\2008\\3-POULPE-JEMA-08\nMD JEMA\\2008\\4-HIPPOCAMPE-JEMA-08\nMD JEMA\\2009\\1-CHIEN-JEMA-09\nMD JEMA\\2009\\2-CHAT-JEMA-09\nMD JEMA\\2009\\3-POULPE-JEMA-09\nMD JEMA\\2009\\4-HIPPOCAMPE-JEMA-09\nMD JEMA\\2010\\1-CHIEN-JEMA-10\nMD JEMA\\2010\\2-CHAT-JEMA-10\nMD JEMA\\2010\\3-POULPE-JEMA-10\nMD JEMA\\2010\\4-HIPPOCAMPE-JEMA-10\nMD JEMA\\2011\\1-CHIEN-JEMA-11\nMD JEMA\\2011\\2-CHAT-JEMA-11\nMD JEMA\\2011\\3-POULPE-JEMA-11\nMD JEMA\\2011\\4-HIPPOCAMPE-JEMA-11\nMD JEMA\\2012\\1-CHIEN-JEMA-12\nMD JEMA\\2012\\2-CHAT-JEMA-12\nMD JEMA\\2012\\3-POULPE-JEMA-12\nMD JEMA\\2012\\4-HIPPOCAMPE-JEMA-12\nMD NOEM\\2006\\1-CHIEN-NOEM-06\nMD NOEM\\2006\\2-CHAT-NOEM-06\nMD NOEM\\2006\\3-POULPE-NOEM-06\nMD NOEM\\2006\\4-HIPPOCAMPE-NOEM-06\nMD NOEM\\2007\\1-CHIEN-NOEM-07\nMD NOEM\\2007\\2-CHAT-NOEM-07\nMD NOEM\\2007\\3-POULPE-NOEM-07\nMD NOEM\\2007\\4-HIPPOCAMPE-NOEM-07\nMD NOEM\\2008\\1-CHIEN-NOEM-08\nMD NOEM\\2008\\2-CHAT-NOEM-08\nMD NOEM\\2008\\3-POULPE-NOEM-08\nMD NOEM\\2008\\4-HIPPOCAMPE-NOEM-08\nMD NOEM\\2009\\1-CHIEN-NOEM-09\nMD NOEM\\2009\\2-CHAT-NOEM-09\nMD NOEM\\2009\\3-POULPE-NOEM-09\nMD NOEM\\2009\\4-HIPPOCAMPE-NOEM-09\nMD NOEM\\2010\\1-CHIEN-NOEM-10\nMD NOEM\\2010\\2-CHAT-NOEM-10\nMD NOEM\\2010\\3-POULPE-NOEM-10\nMD NOEM\\2010\\4-HIPPOCAMPE-NOEM-10\nMD NOEM\\2011\\1-CHIEN-NOEM-11\nMD NOEM\\2011\\2-CHAT-NOEM-11\nMD NOEM\\2011\\3-POULPE-NOEM-11\nMD NOEM\\2011\\4-HIPPOCAMPE-NOEM-11\nMD NOEM\\2012\\1-CHIEN-NOEM-12\nMD NOEM\\2012\\2-CHAT-NOEM-12\nMD NOEM\\2012\\3-POULPE-NOEM-12\nMD NOEM\\2012\\4-HIPPOCAMPE-NOEM-12\nMD ESCH\\2006\\1-CHIEN-ESCH-06\nMD ESCH\\2006\\2-CHAT-ESCH-06\nMD ESCH\\2006\\3-POULPE-ESCH-06\nMD ESCH\\2006\\4-HIPPOCAMPE-ESCH-06\nMD ESCH\\2007\\1-CHIEN-ESCH-07\nMD ESCH\\2007\\2-CHAT-ESCH-07\nMD ESCH\\2007\\3-POULPE-ESCH-07\nMD ESCH\\2007\\4-HIPPOCAMPE-ESCH-07\nMD ESCH\\2008\\1-CHIEN-ESCH-08\nMD ESCH\\2008\\2-CHAT-ESCH-08\nMD ESCH\\2008\\3-POULPE-ESCH-08\nMD ESCH\\2008\\4-HIPPOCAMPE-ESCH-08\nMD ESCH\\2009\\1-CHIEN-ESCH-09\nMD ESCH\\2009\\2-CHAT-ESCH-09\nMD ESCH\\2009\\3-POULPE-ESCH-09\nMD ESCH\\2009\\4-HIPPOCAMPE-ESCH-09\nMD ESCH\\2010\\1-CHIEN-ESCH-10\nMD ESCH\\2010\\2-CHAT-ESCH-10\nMD ESCH\\2010\\3-POULPE-ESCH-10\nMD ESCH\\2010\\4-HIPPOCAMPE-ESCH-10\nMD ESCH\\2011\\1-CHIEN-ESCH-11\nMD ESCH\\2011\\2-CHAT-ESCH-11\nMD ESCH\\2011\\3-POULPE-ESCH-11\nMD ESCH\\2011\\4-HIPPOCAMPE-ESCH-11\nMD ESCH\\2012\\1-CHIEN-ESCH-12\nMD ESCH\\2012\\2-CHAT-ESCH-12\nMD ESCH\\2012\\3-POULPE-ESCH-12\nMD ESCH\\2012\\4-HIPPOCAMPE-ESCH-12\nMD IENS\\2006\\1-CHIEN-IENS-06\nMD IENS\\2006\\2-CHAT-IENS-06\nMD IENS\\2006\\3-POULPE-IENS-06\nMD IENS\\2006\\4-HIPPOCAMPE-IENS-06\nMD IENS\\2007\\1-CHIEN-IENS-07\nMD IENS\\2007\\2-CHAT-IENS-07\nMD IENS\\2007\\3-POULPE-IENS-07\nMD IENS\\2007\\4-HIPPOCAMPE-IENS-07\nMD IENS\\2008\\1-CHIEN-IENS-08\nMD IENS\\2008\\2-CHAT-IENS-08\nMD IENS\\2008\\3-POULPE-IENS-08"}]
[{"$f":"IF(ROWS($C$20:C114)<Nb_Liste*Nb_Années*Nb_Animaux,IF(B115>=B114,A114,INDEX(Liste,MATCH(A114,Liste,0)+1)),\"\")","v":"IENS"},{"$f":"IF(ROWS($C$20:C114)<Nb_Liste*Nb_Années*Nb_Animaux,(C115=INDEX(Animaux,1))*(1-Nb_Années*(B114=Max_Années))+B114,\"\")","v":2008},{"$f":"IF(ROWS($C$20:C114)<Nb_Liste*Nb_Années*Nb_Animaux,INDEX(Animaux,MOD(MATCH(C114,Animaux,0),Nb_Animaux)+1),\"\")","v":"4-HIPPOCAMPE"},null,{"$f":"IF(ROWS($C$20:C114)<Nb_Liste*Nb_Années*Nb_Animaux,E114&CHAR(10)&\"MD \"&A115&\"\\\"&B115&\"\\\"&C115&\"-\"&A115&\"-\"&RIGHT(TEXT(B115,\"0000\"),2),\"\")","v":"CD C:\\Users\\jvdo\\Documents\\forum\\test\nMD JEMA\\2006\\1-CHIEN-JEMA-06\nMD JEMA\\2006\\2-CHAT-JEMA-06\nMD JEMA\\2006\\3-POULPE-JEMA-06\nMD JEMA\\2006\\4-HIPPOCAMPE-JEMA-06\nMD JEMA\\2007\\1-CHIEN-JEMA-07\nMD JEMA\\2007\\2-CHAT-JEMA-07\nMD JEMA\\2007\\3-POULPE-JEMA-07\nMD JEMA\\2007\\4-HIPPOCAMPE-JEMA-07\nMD JEMA\\2008\\1-CHIEN-JEMA-08\nMD JEMA\\2008\\2-CHAT-JEMA-08\nMD JEMA\\2008\\3-POULPE-JEMA-08\nMD JEMA\\2008\\4-HIPPOCAMPE-JEMA-08\nMD JEMA\\2009\\1-CHIEN-JEMA-09\nMD JEMA\\2009\\2-CHAT-JEMA-09\nMD JEMA\\2009\\3-POULPE-JEMA-09\nMD JEMA\\2009\\4-HIPPOCAMPE-JEMA-09\nMD JEMA\\2010\\1-CHIEN-JEMA-10\nMD JEMA\\2010\\2-CHAT-JEMA-10\nMD JEMA\\2010\\3-POULPE-JEMA-10\nMD JEMA\\2010\\4-HIPPOCAMPE-JEMA-10\nMD JEMA\\2011\\1-CHIEN-JEMA-11\nMD JEMA\\2011\\2-CHAT-JEMA-11\nMD JEMA\\2011\\3-POULPE-JEMA-11\nMD JEMA\\2011\\4-HIPPOCAMPE-JEMA-11\nMD JEMA\\2012\\1-CHIEN-JEMA-12\nMD JEMA\\2012\\2-CHAT-JEMA-12\nMD JEMA\\2012\\3-POULPE-JEMA-12\nMD JEMA\\2012\\4-HIPPOCAMPE-JEMA-12\nMD NOEM\\2006\\1-CHIEN-NOEM-06\nMD NOEM\\2006\\2-CHAT-NOEM-06\nMD NOEM\\2006\\3-POULPE-NOEM-06\nMD NOEM\\2006\\4-HIPPOCAMPE-NOEM-06\nMD NOEM\\2007\\1-CHIEN-NOEM-07\nMD NOEM\\2007\\2-CHAT-NOEM-07\nMD NOEM\\2007\\3-POULPE-NOEM-07\nMD NOEM\\2007\\4-HIPPOCAMPE-NOEM-07\nMD NOEM\\2008\\1-CHIEN-NOEM-08\nMD NOEM\\2008\\2-CHAT-NOEM-08\nMD NOEM\\2008\\3-POULPE-NOEM-08\nMD NOEM\\2008\\4-HIPPOCAMPE-NOEM-08\nMD NOEM\\2009\\1-CHIEN-NOEM-09\nMD NOEM\\2009\\2-CHAT-NOEM-09\nMD NOEM\\2009\\3-POULPE-NOEM-09\nMD NOEM\\2009\\4-HIPPOCAMPE-NOEM-09\nMD NOEM\\2010\\1-CHIEN-NOEM-10\nMD NOEM\\2010\\2-CHAT-NOEM-10\nMD NOEM\\2010\\3-POULPE-NOEM-10\nMD NOEM\\2010\\4-HIPPOCAMPE-NOEM-10\nMD NOEM\\2011\\1-CHIEN-NOEM-11\nMD NOEM\\2011\\2-CHAT-NOEM-11\nMD NOEM\\2011\\3-POULPE-NOEM-11\nMD NOEM\\2011\\4-HIPPOCAMPE-NOEM-11\nMD NOEM\\2012\\1-CHIEN-NOEM-12\nMD NOEM\\2012\\2-CHAT-NOEM-12\nMD NOEM\\2012\\3-POULPE-NOEM-12\nMD NOEM\\2012\\4-HIPPOCAMPE-NOEM-12\nMD ESCH\\2006\\1-CHIEN-ESCH-06\nMD ESCH\\2006\\2-CHAT-ESCH-06\nMD ESCH\\2006\\3-POULPE-ESCH-06\nMD ESCH\\2006\\4-HIPPOCAMPE-ESCH-06\nMD ESCH\\2007\\1-CHIEN-ESCH-07\nMD ESCH\\2007\\2-CHAT-ESCH-07\nMD ESCH\\2007\\3-POULPE-ESCH-07\nMD ESCH\\2007\\4-HIPPOCAMPE-ESCH-07\nMD ESCH\\2008\\1-CHIEN-ESCH-08\nMD ESCH\\2008\\2-CHAT-ESCH-08\nMD ESCH\\2008\\3-POULPE-ESCH-08\nMD ESCH\\2008\\4-HIPPOCAMPE-ESCH-08\nMD ESCH\\2009\\1-CHIEN-ESCH-09\nMD ESCH\\2009\\2-CHAT-ESCH-09\nMD ESCH\\2009\\3-POULPE-ESCH-09\nMD ESCH\\2009\\4-HIPPOCAMPE-ESCH-09\nMD ESCH\\2010\\1-CHIEN-ESCH-10\nMD ESCH\\2010\\2-CHAT-ESCH-10\nMD ESCH\\2010\\3-POULPE-ESCH-10\nMD ESCH\\2010\\4-HIPPOCAMPE-ESCH-10\nMD ESCH\\2011\\1-CHIEN-ESCH-11\nMD ESCH\\2011\\2-CHAT-ESCH-11\nMD ESCH\\2011\\3-POULPE-ESCH-11\nMD ESCH\\2011\\4-HIPPOCAMPE-ESCH-11\nMD ESCH\\2012\\1-CHIEN-ESCH-12\nMD ESCH\\2012\\2-CHAT-ESCH-12\nMD ESCH\\2012\\3-POULPE-ESCH-12\nMD ESCH\\2012\\4-HIPPOCAMPE-ESCH-12\nMD IENS\\2006\\1-CHIEN-IENS-06\nMD IENS\\2006\\2-CHAT-IENS-06\nMD IENS\\2006\\3-POULPE-IENS-06\nMD IENS\\2006\\4-HIPPOCAMPE-IENS-06\nMD IENS\\2007\\1-CHIEN-IENS-07\nMD IENS\\2007\\2-CHAT-IENS-07\nMD IENS\\2007\\3-POULPE-IENS-07\nMD IENS\\2007\\4-HIPPOCAMPE-IENS-07\nMD IENS\\2008\\1-CHIEN-IENS-08\nMD IENS\\2008\\2-CHAT-IENS-08\nMD IENS\\2008\\3-POULPE-IENS-08\nMD IENS\\2008\\4-HIPPOCAMPE-IENS-08"}]
[{"$f":"IF(ROWS($C$20:C115)<Nb_Liste*Nb_Années*Nb_Animaux,IF(B116>=B115,A115,INDEX(Liste,MATCH(A115,Liste,0)+1)),\"\")","v":"IENS"},{"$f":"IF(ROWS($C$20:C115)<Nb_Liste*Nb_Années*Nb_Animaux,(C116=INDEX(Animaux,1))*(1-Nb_Années*(B115=Max_Années))+B115,\"\")","v":2009},{"$f":"IF(ROWS($C$20:C115)<Nb_Liste*Nb_Années*Nb_Animaux,INDEX(Animaux,MOD(MATCH(C115,Animaux,0),Nb_Animaux)+1),\"\")","v":"1-CHIEN"},null,{"$f":"IF(ROWS($C$20:C115)<Nb_Liste*Nb_Années*Nb_Animaux,E115&CHAR(10)&\"MD \"&A116&\"\\\"&B116&\"\\\"&C116&\"-\"&A116&\"-\"&RIGHT(TEXT(B116,\"0000\"),2),\"\")","v":"CD C:\\Users\\jvdo\\Documents\\forum\\test\nMD JEMA\\2006\\1-CHIEN-JEMA-06\nMD JEMA\\2006\\2-CHAT-JEMA-06\nMD JEMA\\2006\\3-POULPE-JEMA-06\nMD JEMA\\2006\\4-HIPPOCAMPE-JEMA-06\nMD JEMA\\2007\\1-CHIEN-JEMA-07\nMD JEMA\\2007\\2-CHAT-JEMA-07\nMD JEMA\\2007\\3-POULPE-JEMA-07\nMD JEMA\\2007\\4-HIPPOCAMPE-JEMA-07\nMD JEMA\\2008\\1-CHIEN-JEMA-08\nMD JEMA\\2008\\2-CHAT-JEMA-08\nMD JEMA\\2008\\3-POULPE-JEMA-08\nMD JEMA\\2008\\4-HIPPOCAMPE-JEMA-08\nMD JEMA\\2009\\1-CHIEN-JEMA-09\nMD JEMA\\2009\\2-CHAT-JEMA-09\nMD JEMA\\2009\\3-POULPE-JEMA-09\nMD JEMA\\2009\\4-HIPPOCAMPE-JEMA-09\nMD JEMA\\2010\\1-CHIEN-JEMA-10\nMD JEMA\\2010\\2-CHAT-JEMA-10\nMD JEMA\\2010\\3-POULPE-JEMA-10\nMD JEMA\\2010\\4-HIPPOCAMPE-JEMA-10\nMD JEMA\\2011\\1-CHIEN-JEMA-11\nMD JEMA\\2011\\2-CHAT-JEMA-11\nMD JEMA\\2011\\3-POULPE-JEMA-11\nMD JEMA\\2011\\4-HIPPOCAMPE-JEMA-11\nMD JEMA\\2012\\1-CHIEN-JEMA-12\nMD JEMA\\2012\\2-CHAT-JEMA-12\nMD JEMA\\2012\\3-POULPE-JEMA-12\nMD JEMA\\2012\\4-HIPPOCAMPE-JEMA-12\nMD NOEM\\2006\\1-CHIEN-NOEM-06\nMD NOEM\\2006\\2-CHAT-NOEM-06\nMD NOEM\\2006\\3-POULPE-NOEM-06\nMD NOEM\\2006\\4-HIPPOCAMPE-NOEM-06\nMD NOEM\\2007\\1-CHIEN-NOEM-07\nMD NOEM\\2007\\2-CHAT-NOEM-07\nMD NOEM\\2007\\3-POULPE-NOEM-07\nMD NOEM\\2007\\4-HIPPOCAMPE-NOEM-07\nMD NOEM\\2008\\1-CHIEN-NOEM-08\nMD NOEM\\2008\\2-CHAT-NOEM-08\nMD NOEM\\2008\\3-POULPE-NOEM-08\nMD NOEM\\2008\\4-HIPPOCAMPE-NOEM-08\nMD NOEM\\2009\\1-CHIEN-NOEM-09\nMD NOEM\\2009\\2-CHAT-NOEM-09\nMD NOEM\\2009\\3-POULPE-NOEM-09\nMD NOEM\\2009\\4-HIPPOCAMPE-NOEM-09\nMD NOEM\\2010\\1-CHIEN-NOEM-10\nMD NOEM\\2010\\2-CHAT-NOEM-10\nMD NOEM\\2010\\3-POULPE-NOEM-10\nMD NOEM\\2010\\4-HIPPOCAMPE-NOEM-10\nMD NOEM\\2011\\1-CHIEN-NOEM-11\nMD NOEM\\2011\\2-CHAT-NOEM-11\nMD NOEM\\2011\\3-POULPE-NOEM-11\nMD NOEM\\2011\\4-HIPPOCAMPE-NOEM-11\nMD NOEM\\2012\\1-CHIEN-NOEM-12\nMD NOEM\\2012\\2-CHAT-NOEM-12\nMD NOEM\\2012\\3-POULPE-NOEM-12\nMD NOEM\\2012\\4-HIPPOCAMPE-NOEM-12\nMD ESCH\\2006\\1-CHIEN-ESCH-06\nMD ESCH\\2006\\2-CHAT-ESCH-06\nMD ESCH\\2006\\3-POULPE-ESCH-06\nMD ESCH\\2006\\4-HIPPOCAMPE-ESCH-06\nMD ESCH\\2007\\1-CHIEN-ESCH-07\nMD ESCH\\2007\\2-CHAT-ESCH-07\nMD ESCH\\2007\\3-POULPE-ESCH-07\nMD ESCH\\2007\\4-HIPPOCAMPE-ESCH-07\nMD ESCH\\2008\\1-CHIEN-ESCH-08\nMD ESCH\\2008\\2-CHAT-ESCH-08\nMD ESCH\\2008\\3-POULPE-ESCH-08\nMD ESCH\\2008\\4-HIPPOCAMPE-ESCH-08\nMD ESCH\\2009\\1-CHIEN-ESCH-09\nMD ESCH\\2009\\2-CHAT-ESCH-09\nMD ESCH\\2009\\3-POULPE-ESCH-09\nMD ESCH\\2009\\4-HIPPOCAMPE-ESCH-09\nMD ESCH\\2010\\1-CHIEN-ESCH-10\nMD ESCH\\2010\\2-CHAT-ESCH-10\nMD ESCH\\2010\\3-POULPE-ESCH-10\nMD ESCH\\2010\\4-HIPPOCAMPE-ESCH-10\nMD ESCH\\2011\\1-CHIEN-ESCH-11\nMD ESCH\\2011\\2-CHAT-ESCH-11\nMD ESCH\\2011\\3-POULPE-ESCH-11\nMD ESCH\\2011\\4-HIPPOCAMPE-ESCH-11\nMD ESCH\\2012\\1-CHIEN-ESCH-12\nMD ESCH\\2012\\2-CHAT-ESCH-12\nMD ESCH\\2012\\3-POULPE-ESCH-12\nMD ESCH\\2012\\4-HIPPOCAMPE-ESCH-12\nMD IENS\\2006\\1-CHIEN-IENS-06\nMD IENS\\2006\\2-CHAT-IENS-06\nMD IENS\\2006\\3-POULPE-IENS-06\nMD IENS\\2006\\4-HIPPOCAMPE-IENS-06\nMD IENS\\2007\\1-CHIEN-IENS-07\nMD IENS\\2007\\2-CHAT-IENS-07\nMD IENS\\2007\\3-POULPE-IENS-07\nMD IENS\\2007\\4-HIPPOCAMPE-IENS-07\nMD IENS\\2008\\1-CHIEN-IENS-08\nMD IENS\\2008\\2-CHAT-IENS-08\nMD IENS\\2008\\3-POULPE-IENS-08\nMD IENS\\2008\\4-HIPPOCAMPE-IENS-08\nMD IENS\\2009\\1-CHIEN-IENS-09"}]
[{"$f":"IF(ROWS($C$20:C116)<Nb_Liste*Nb_Années*Nb_Animaux,IF(B117>=B116,A116,INDEX(Liste,MATCH(A116,Liste,0)+1)),\"\")","v":"IENS"},{"$f":"IF(ROWS($C$20:C116)<Nb_Liste*Nb_Années*Nb_Animaux,(C117=INDEX(Animaux,1))*(1-Nb_Années*(B116=Max_Années))+B116,\"\")","v":2009},{"$f":"IF(ROWS($C$20:C116)<Nb_Liste*Nb_Années*Nb_Animaux,INDEX(Animaux,MOD(MATCH(C116,Animaux,0),Nb_Animaux)+1),\"\")","v":"2-CHAT"},null,{"$f":"IF(ROWS($C$20:C116)<Nb_Liste*Nb_Années*Nb_Animaux,E116&CHAR(10)&\"MD \"&A117&\"\\\"&B117&\"\\\"&C117&\"-\"&A117&\"-\"&RIGHT(TEXT(B117,\"0000\"),2),\"\")","v":"CD C:\\Users\\jvdo\\Documents\\forum\\test\nMD JEMA\\2006\\1-CHIEN-JEMA-06\nMD JEMA\\2006\\2-CHAT-JEMA-06\nMD JEMA\\2006\\3-POULPE-JEMA-06\nMD JEMA\\2006\\4-HIPPOCAMPE-JEMA-06\nMD JEMA\\2007\\1-CHIEN-JEMA-07\nMD JEMA\\2007\\2-CHAT-JEMA-07\nMD JEMA\\2007\\3-POULPE-JEMA-07\nMD JEMA\\2007\\4-HIPPOCAMPE-JEMA-07\nMD JEMA\\2008\\1-CHIEN-JEMA-08\nMD JEMA\\2008\\2-CHAT-JEMA-08\nMD JEMA\\2008\\3-POULPE-JEMA-08\nMD JEMA\\2008\\4-HIPPOCAMPE-JEMA-08\nMD JEMA\\2009\\1-CHIEN-JEMA-09\nMD JEMA\\2009\\2-CHAT-JEMA-09\nMD JEMA\\2009\\3-POULPE-JEMA-09\nMD JEMA\\2009\\4-HIPPOCAMPE-JEMA-09\nMD JEMA\\2010\\1-CHIEN-JEMA-10\nMD JEMA\\2010\\2-CHAT-JEMA-10\nMD JEMA\\2010\\3-POULPE-JEMA-10\nMD JEMA\\2010\\4-HIPPOCAMPE-JEMA-10\nMD JEMA\\2011\\1-CHIEN-JEMA-11\nMD JEMA\\2011\\2-CHAT-JEMA-11\nMD JEMA\\2011\\3-POULPE-JEMA-11\nMD JEMA\\2011\\4-HIPPOCAMPE-JEMA-11\nMD JEMA\\2012\\1-CHIEN-JEMA-12\nMD JEMA\\2012\\2-CHAT-JEMA-12\nMD JEMA\\2012\\3-POULPE-JEMA-12\nMD JEMA\\2012\\4-HIPPOCAMPE-JEMA-12\nMD NOEM\\2006\\1-CHIEN-NOEM-06\nMD NOEM\\2006\\2-CHAT-NOEM-06\nMD NOEM\\2006\\3-POULPE-NOEM-06\nMD NOEM\\2006\\4-HIPPOCAMPE-NOEM-06\nMD NOEM\\2007\\1-CHIEN-NOEM-07\nMD NOEM\\2007\\2-CHAT-NOEM-07\nMD NOEM\\2007\\3-POULPE-NOEM-07\nMD NOEM\\2007\\4-HIPPOCAMPE-NOEM-07\nMD NOEM\\2008\\1-CHIEN-NOEM-08\nMD NOEM\\2008\\2-CHAT-NOEM-08\nMD NOEM\\2008\\3-POULPE-NOEM-08\nMD NOEM\\2008\\4-HIPPOCAMPE-NOEM-08\nMD NOEM\\2009\\1-CHIEN-NOEM-09\nMD NOEM\\2009\\2-CHAT-NOEM-09\nMD NOEM\\2009\\3-POULPE-NOEM-09\nMD NOEM\\2009\\4-HIPPOCAMPE-NOEM-09\nMD NOEM\\2010\\1-CHIEN-NOEM-10\nMD NOEM\\2010\\2-CHAT-NOEM-10\nMD NOEM\\2010\\3-POULPE-NOEM-10\nMD NOEM\\2010\\4-HIPPOCAMPE-NOEM-10\nMD NOEM\\2011\\1-CHIEN-NOEM-11\nMD NOEM\\2011\\2-CHAT-NOEM-11\nMD NOEM\\2011\\3-POULPE-NOEM-11\nMD NOEM\\2011\\4-HIPPOCAMPE-NOEM-11\nMD NOEM\\2012\\1-CHIEN-NOEM-12\nMD NOEM\\2012\\2-CHAT-NOEM-12\nMD NOEM\\2012\\3-POULPE-NOEM-12\nMD NOEM\\2012\\4-HIPPOCAMPE-NOEM-12\nMD ESCH\\2006\\1-CHIEN-ESCH-06\nMD ESCH\\2006\\2-CHAT-ESCH-06\nMD ESCH\\2006\\3-POULPE-ESCH-06\nMD ESCH\\2006\\4-HIPPOCAMPE-ESCH-06\nMD ESCH\\2007\\1-CHIEN-ESCH-07\nMD ESCH\\2007\\2-CHAT-ESCH-07\nMD ESCH\\2007\\3-POULPE-ESCH-07\nMD ESCH\\2007\\4-HIPPOCAMPE-ESCH-07\nMD ESCH\\2008\\1-CHIEN-ESCH-08\nMD ESCH\\2008\\2-CHAT-ESCH-08\nMD ESCH\\2008\\3-POULPE-ESCH-08\nMD ESCH\\2008\\4-HIPPOCAMPE-ESCH-08\nMD ESCH\\2009\\1-CHIEN-ESCH-09\nMD ESCH\\2009\\2-CHAT-ESCH-09\nMD ESCH\\2009\\3-POULPE-ESCH-09\nMD ESCH\\2009\\4-HIPPOCAMPE-ESCH-09\nMD ESCH\\2010\\1-CHIEN-ESCH-10\nMD ESCH\\2010\\2-CHAT-ESCH-10\nMD ESCH\\2010\\3-POULPE-ESCH-10\nMD ESCH\\2010\\4-HIPPOCAMPE-ESCH-10\nMD ESCH\\2011\\1-CHIEN-ESCH-11\nMD ESCH\\2011\\2-CHAT-ESCH-11\nMD ESCH\\2011\\3-POULPE-ESCH-11\nMD ESCH\\2011\\4-HIPPOCAMPE-ESCH-11\nMD ESCH\\2012\\1-CHIEN-ESCH-12\nMD ESCH\\2012\\2-CHAT-ESCH-12\nMD ESCH\\2012\\3-POULPE-ESCH-12\nMD ESCH\\2012\\4-HIPPOCAMPE-ESCH-12\nMD IENS\\2006\\1-CHIEN-IENS-06\nMD IENS\\2006\\2-CHAT-IENS-06\nMD IENS\\2006\\3-POULPE-IENS-06\nMD IENS\\2006\\4-HIPPOCAMPE-IENS-06\nMD IENS\\2007\\1-CHIEN-IENS-07\nMD IENS\\2007\\2-CHAT-IENS-07\nMD IENS\\2007\\3-POULPE-IENS-07\nMD IENS\\2007\\4-HIPPOCAMPE-IENS-07\nMD IENS\\2008\\1-CHIEN-IENS-08\nMD IENS\\2008\\2-CHAT-IENS-08\nMD IENS\\2008\\3-POULPE-IENS-08\nMD IENS\\2008\\4-HIPPOCAMPE-IENS-08\nMD IENS\\2009\\1-CHIEN-IENS-09\nMD IENS\\2009\\2-CHAT-IENS-09"}]
[{"$f":"IF(ROWS($C$20:C117)<Nb_Liste*Nb_Années*Nb_Animaux,IF(B118>=B117,A117,INDEX(Liste,MATCH(A117,Liste,0)+1)),\"\")","v":"IENS"},{"$f":"IF(ROWS($C$20:C117)<Nb_Liste*Nb_Années*Nb_Animaux,(C118=INDEX(Animaux,1))*(1-Nb_Années*(B117=Max_Années))+B117,\"\")","v":2009},{"$f":"IF(ROWS($C$20:C117)<Nb_Liste*Nb_Années*Nb_Animaux,INDEX(Animaux,MOD(MATCH(C117,Animaux,0),Nb_Animaux)+1),\"\")","v":"3-POULPE"},null,{"$f":"IF(ROWS($C$20:C117)<Nb_Liste*Nb_Années*Nb_Animaux,E117&CHAR(10)&\"MD \"&A118&\"\\\"&B118&\"\\\"&C118&\"-\"&A118&\"-\"&RIGHT(TEXT(B118,\"0000\"),2),\"\")","v":"CD C:\\Users\\jvdo\\Documents\\forum\\test\nMD JEMA\\2006\\1-CHIEN-JEMA-06\nMD JEMA\\2006\\2-CHAT-JEMA-06\nMD JEMA\\2006\\3-POULPE-JEMA-06\nMD JEMA\\2006\\4-HIPPOCAMPE-JEMA-06\nMD JEMA\\2007\\1-CHIEN-JEMA-07\nMD JEMA\\2007\\2-CHAT-JEMA-07\nMD JEMA\\2007\\3-POULPE-JEMA-07\nMD JEMA\\2007\\4-HIPPOCAMPE-JEMA-07\nMD JEMA\\2008\\1-CHIEN-JEMA-08\nMD JEMA\\2008\\2-CHAT-JEMA-08\nMD JEMA\\2008\\3-POULPE-JEMA-08\nMD JEMA\\2008\\4-HIPPOCAMPE-JEMA-08\nMD JEMA\\2009\\1-CHIEN-JEMA-09\nMD JEMA\\2009\\2-CHAT-JEMA-09\nMD JEMA\\2009\\3-POULPE-JEMA-09\nMD JEMA\\2009\\4-HIPPOCAMPE-JEMA-09\nMD JEMA\\2010\\1-CHIEN-JEMA-10\nMD JEMA\\2010\\2-CHAT-JEMA-10\nMD JEMA\\2010\\3-POULPE-JEMA-10\nMD JEMA\\2010\\4-HIPPOCAMPE-JEMA-10\nMD JEMA\\2011\\1-CHIEN-JEMA-11\nMD JEMA\\2011\\2-CHAT-JEMA-11\nMD JEMA\\2011\\3-POULPE-JEMA-11\nMD JEMA\\2011\\4-HIPPOCAMPE-JEMA-11\nMD JEMA\\2012\\1-CHIEN-JEMA-12\nMD JEMA\\2012\\2-CHAT-JEMA-12\nMD JEMA\\2012\\3-POULPE-JEMA-12\nMD JEMA\\2012\\4-HIPPOCAMPE-JEMA-12\nMD NOEM\\2006\\1-CHIEN-NOEM-06\nMD NOEM\\2006\\2-CHAT-NOEM-06\nMD NOEM\\2006\\3-POULPE-NOEM-06\nMD NOEM\\2006\\4-HIPPOCAMPE-NOEM-06\nMD NOEM\\2007\\1-CHIEN-NOEM-07\nMD NOEM\\2007\\2-CHAT-NOEM-07\nMD NOEM\\2007\\3-POULPE-NOEM-07\nMD NOEM\\2007\\4-HIPPOCAMPE-NOEM-07\nMD NOEM\\2008\\1-CHIEN-NOEM-08\nMD NOEM\\2008\\2-CHAT-NOEM-08\nMD NOEM\\2008\\3-POULPE-NOEM-08\nMD NOEM\\2008\\4-HIPPOCAMPE-NOEM-08\nMD NOEM\\2009\\1-CHIEN-NOEM-09\nMD NOEM\\2009\\2-CHAT-NOEM-09\nMD NOEM\\2009\\3-POULPE-NOEM-09\nMD NOEM\\2009\\4-HIPPOCAMPE-NOEM-09\nMD NOEM\\2010\\1-CHIEN-NOEM-10\nMD NOEM\\2010\\2-CHAT-NOEM-10\nMD NOEM\\2010\\3-POULPE-NOEM-10\nMD NOEM\\2010\\4-HIPPOCAMPE-NOEM-10\nMD NOEM\\2011\\1-CHIEN-NOEM-11\nMD NOEM\\2011\\2-CHAT-NOEM-11\nMD NOEM\\2011\\3-POULPE-NOEM-11\nMD NOEM\\2011\\4-HIPPOCAMPE-NOEM-11\nMD NOEM\\2012\\1-CHIEN-NOEM-12\nMD NOEM\\2012\\2-CHAT-NOEM-12\nMD NOEM\\2012\\3-POULPE-NOEM-12\nMD NOEM\\2012\\4-HIPPOCAMPE-NOEM-12\nMD ESCH\\2006\\1-CHIEN-ESCH-06\nMD ESCH\\2006\\2-CHAT-ESCH-06\nMD ESCH\\2006\\3-POULPE-ESCH-06\nMD ESCH\\2006\\4-HIPPOCAMPE-ESCH-06\nMD ESCH\\2007\\1-CHIEN-ESCH-07\nMD ESCH\\2007\\2-CHAT-ESCH-07\nMD ESCH\\2007\\3-POULPE-ESCH-07\nMD ESCH\\2007\\4-HIPPOCAMPE-ESCH-07\nMD ESCH\\2008\\1-CHIEN-ESCH-08\nMD ESCH\\2008\\2-CHAT-ESCH-08\nMD ESCH\\2008\\3-POULPE-ESCH-08\nMD ESCH\\2008\\4-HIPPOCAMPE-ESCH-08\nMD ESCH\\2009\\1-CHIEN-ESCH-09\nMD ESCH\\2009\\2-CHAT-ESCH-09\nMD ESCH\\2009\\3-POULPE-ESCH-09\nMD ESCH\\2009\\4-HIPPOCAMPE-ESCH-09\nMD ESCH\\2010\\1-CHIEN-ESCH-10\nMD ESCH\\2010\\2-CHAT-ESCH-10\nMD ESCH\\2010\\3-POULPE-ESCH-10\nMD ESCH\\2010\\4-HIPPOCAMPE-ESCH-10\nMD ESCH\\2011\\1-CHIEN-ESCH-11\nMD ESCH\\2011\\2-CHAT-ESCH-11\nMD ESCH\\2011\\3-POULPE-ESCH-11\nMD ESCH\\2011\\4-HIPPOCAMPE-ESCH-11\nMD ESCH\\2012\\1-CHIEN-ESCH-12\nMD ESCH\\2012\\2-CHAT-ESCH-12\nMD ESCH\\2012\\3-POULPE-ESCH-12\nMD ESCH\\2012\\4-HIPPOCAMPE-ESCH-12\nMD IENS\\2006\\1-CHIEN-IENS-06\nMD IENS\\2006\\2-CHAT-IENS-06\nMD IENS\\2006\\3-POULPE-IENS-06\nMD IENS\\2006\\4-HIPPOCAMPE-IENS-06\nMD IENS\\2007\\1-CHIEN-IENS-07\nMD IENS\\2007\\2-CHAT-IENS-07\nMD IENS\\2007\\3-POULPE-IENS-07\nMD IENS\\2007\\4-HIPPOCAMPE-IENS-07\nMD IENS\\2008\\1-CHIEN-IENS-08\nMD IENS\\2008\\2-CHAT-IENS-08\nMD IENS\\2008\\3-POULPE-IENS-08\nMD IENS\\2008\\4-HIPPOCAMPE-IENS-08\nMD IENS\\2009\\1-CHIEN-IENS-09\nMD IENS\\2009\\2-CHAT-IENS-09\nMD IENS\\2009\\3-POULPE-IENS-09"}]
[{"$f":"IF(ROWS($C$20:C118)<Nb_Liste*Nb_Années*Nb_Animaux,IF(B119>=B118,A118,INDEX(Liste,MATCH(A118,Liste,0)+1)),\"\")","v":"IENS"},{"$f":"IF(ROWS($C$20:C118)<Nb_Liste*Nb_Années*Nb_Animaux,(C119=INDEX(Animaux,1))*(1-Nb_Années*(B118=Max_Années))+B118,\"\")","v":2009},{"$f":"IF(ROWS($C$20:C118)<Nb_Liste*Nb_Années*Nb_Animaux,INDEX(Animaux,MOD(MATCH(C118,Animaux,0),Nb_Animaux)+1),\"\")","v":"4-HIPPOCAMPE"},null,{"$f":"IF(ROWS($C$20:C118)<Nb_Liste*Nb_Années*Nb_Animaux,E118&CHAR(10)&\"MD \"&A119&\"\\\"&B119&\"\\\"&C119&\"-\"&A119&\"-\"&RIGHT(TEXT(B119,\"0000\"),2),\"\")","v":"CD C:\\Users\\jvdo\\Documents\\forum\\test\nMD JEMA\\2006\\1-CHIEN-JEMA-06\nMD JEMA\\2006\\2-CHAT-JEMA-06\nMD JEMA\\2006\\3-POULPE-JEMA-06\nMD JEMA\\2006\\4-HIPPOCAMPE-JEMA-06\nMD JEMA\\2007\\1-CHIEN-JEMA-07\nMD JEMA\\2007\\2-CHAT-JEMA-07\nMD JEMA\\2007\\3-POULPE-JEMA-07\nMD JEMA\\2007\\4-HIPPOCAMPE-JEMA-07\nMD JEMA\\2008\\1-CHIEN-JEMA-08\nMD JEMA\\2008\\2-CHAT-JEMA-08\nMD JEMA\\2008\\3-POULPE-JEMA-08\nMD JEMA\\2008\\4-HIPPOCAMPE-JEMA-08\nMD JEMA\\2009\\1-CHIEN-JEMA-09\nMD JEMA\\2009\\2-CHAT-JEMA-09\nMD JEMA\\2009\\3-POULPE-JEMA-09\nMD JEMA\\2009\\4-HIPPOCAMPE-JEMA-09\nMD JEMA\\2010\\1-CHIEN-JEMA-10\nMD JEMA\\2010\\2-CHAT-JEMA-10\nMD JEMA\\2010\\3-POULPE-JEMA-10\nMD JEMA\\2010\\4-HIPPOCAMPE-JEMA-10\nMD JEMA\\2011\\1-CHIEN-JEMA-11\nMD JEMA\\2011\\2-CHAT-JEMA-11\nMD JEMA\\2011\\3-POULPE-JEMA-11\nMD JEMA\\2011\\4-HIPPOCAMPE-JEMA-11\nMD JEMA\\2012\\1-CHIEN-JEMA-12\nMD JEMA\\2012\\2-CHAT-JEMA-12\nMD JEMA\\2012\\3-POULPE-JEMA-12\nMD JEMA\\2012\\4-HIPPOCAMPE-JEMA-12\nMD NOEM\\2006\\1-CHIEN-NOEM-06\nMD NOEM\\2006\\2-CHAT-NOEM-06\nMD NOEM\\2006\\3-POULPE-NOEM-06\nMD NOEM\\2006\\4-HIPPOCAMPE-NOEM-06\nMD NOEM\\2007\\1-CHIEN-NOEM-07\nMD NOEM\\2007\\2-CHAT-NOEM-07\nMD NOEM\\2007\\3-POULPE-NOEM-07\nMD NOEM\\2007\\4-HIPPOCAMPE-NOEM-07\nMD NOEM\\2008\\1-CHIEN-NOEM-08\nMD NOEM\\2008\\2-CHAT-NOEM-08\nMD NOEM\\2008\\3-POULPE-NOEM-08\nMD NOEM\\2008\\4-HIPPOCAMPE-NOEM-08\nMD NOEM\\2009\\1-CHIEN-NOEM-09\nMD NOEM\\2009\\2-CHAT-NOEM-09\nMD NOEM\\2009\\3-POULPE-NOEM-09\nMD NOEM\\2009\\4-HIPPOCAMPE-NOEM-09\nMD NOEM\\2010\\1-CHIEN-NOEM-10\nMD NOEM\\2010\\2-CHAT-NOEM-10\nMD NOEM\\2010\\3-POULPE-NOEM-10\nMD NOEM\\2010\\4-HIPPOCAMPE-NOEM-10\nMD NOEM\\2011\\1-CHIEN-NOEM-11\nMD NOEM\\2011\\2-CHAT-NOEM-11\nMD NOEM\\2011\\3-POULPE-NOEM-11\nMD NOEM\\2011\\4-HIPPOCAMPE-NOEM-11\nMD NOEM\\2012\\1-CHIEN-NOEM-12\nMD NOEM\\2012\\2-CHAT-NOEM-12\nMD NOEM\\2012\\3-POULPE-NOEM-12\nMD NOEM\\2012\\4-HIPPOCAMPE-NOEM-12\nMD ESCH\\2006\\1-CHIEN-ESCH-06\nMD ESCH\\2006\\2-CHAT-ESCH-06\nMD ESCH\\2006\\3-POULPE-ESCH-06\nMD ESCH\\2006\\4-HIPPOCAMPE-ESCH-06\nMD ESCH\\2007\\1-CHIEN-ESCH-07\nMD ESCH\\2007\\2-CHAT-ESCH-07\nMD ESCH\\2007\\3-POULPE-ESCH-07\nMD ESCH\\2007\\4-HIPPOCAMPE-ESCH-07\nMD ESCH\\2008\\1-CHIEN-ESCH-08\nMD ESCH\\2008\\2-CHAT-ESCH-08\nMD ESCH\\2008\\3-POULPE-ESCH-08\nMD ESCH\\2008\\4-HIPPOCAMPE-ESCH-08\nMD ESCH\\2009\\1-CHIEN-ESCH-09\nMD ESCH\\2009\\2-CHAT-ESCH-09\nMD ESCH\\2009\\3-POULPE-ESCH-09\nMD ESCH\\2009\\4-HIPPOCAMPE-ESCH-09\nMD ESCH\\2010\\1-CHIEN-ESCH-10\nMD ESCH\\2010\\2-CHAT-ESCH-10\nMD ESCH\\2010\\3-POULPE-ESCH-10\nMD ESCH\\2010\\4-HIPPOCAMPE-ESCH-10\nMD ESCH\\2011\\1-CHIEN-ESCH-11\nMD ESCH\\2011\\2-CHAT-ESCH-11\nMD ESCH\\2011\\3-POULPE-ESCH-11\nMD ESCH\\2011\\4-HIPPOCAMPE-ESCH-11\nMD ESCH\\2012\\1-CHIEN-ESCH-12\nMD ESCH\\2012\\2-CHAT-ESCH-12\nMD ESCH\\2012\\3-POULPE-ESCH-12\nMD ESCH\\2012\\4-HIPPOCAMPE-ESCH-12\nMD IENS\\2006\\1-CHIEN-IENS-06\nMD IENS\\2006\\2-CHAT-IENS-06\nMD IENS\\2006\\3-POULPE-IENS-06\nMD IENS\\2006\\4-HIPPOCAMPE-IENS-06\nMD IENS\\2007\\1-CHIEN-IENS-07\nMD IENS\\2007\\2-CHAT-IENS-07\nMD IENS\\2007\\3-POULPE-IENS-07\nMD IENS\\2007\\4-HIPPOCAMPE-IENS-07\nMD IENS\\2008\\1-CHIEN-IENS-08\nMD IENS\\2008\\2-CHAT-IENS-08\nMD IENS\\2008\\3-POULPE-IENS-08\nMD IENS\\2008\\4-HIPPOCAMPE-IENS-08\nMD IENS\\2009\\1-CHIEN-IENS-09\nMD IENS\\2009\\2-CHAT-IENS-09\nMD IENS\\2009\\3-POULPE-IENS-09\nMD IENS\\2009\\4-HIPPOCAMPE-IENS-09"}]
[{"$f":"IF(ROWS($C$20:C119)<Nb_Liste*Nb_Années*Nb_Animaux,IF(B120>=B119,A119,INDEX(Liste,MATCH(A119,Liste,0)+1)),\"\")","v":"IENS"},{"$f":"IF(ROWS($C$20:C119)<Nb_Liste*Nb_Années*Nb_Animaux,(C120=INDEX(Animaux,1))*(1-Nb_Années*(B119=Max_Années))+B119,\"\")","v":2010},{"$f":"IF(ROWS($C$20:C119)<Nb_Liste*Nb_Années*Nb_Animaux,INDEX(Animaux,MOD(MATCH(C119,Animaux,0),Nb_Animaux)+1),\"\")","v":"1-CHIEN"},null,{"$f":"IF(ROWS($C$20:C119)<Nb_Liste*Nb_Années*Nb_Animaux,E119&CHAR(10)&\"MD \"&A120&\"\\\"&B120&\"\\\"&C120&\"-\"&A120&\"-\"&RIGHT(TEXT(B120,\"0000\"),2),\"\")","v":"CD C:\\Users\\jvdo\\Documents\\forum\\test\nMD JEMA\\2006\\1-CHIEN-JEMA-06\nMD JEMA\\2006\\2-CHAT-JEMA-06\nMD JEMA\\2006\\3-POULPE-JEMA-06\nMD JEMA\\2006\\4-HIPPOCAMPE-JEMA-06\nMD JEMA\\2007\\1-CHIEN-JEMA-07\nMD JEMA\\2007\\2-CHAT-JEMA-07\nMD JEMA\\2007\\3-POULPE-JEMA-07\nMD JEMA\\2007\\4-HIPPOCAMPE-JEMA-07\nMD JEMA\\2008\\1-CHIEN-JEMA-08\nMD JEMA\\2008\\2-CHAT-JEMA-08\nMD JEMA\\2008\\3-POULPE-JEMA-08\nMD JEMA\\2008\\4-HIPPOCAMPE-JEMA-08\nMD JEMA\\2009\\1-CHIEN-JEMA-09\nMD JEMA\\2009\\2-CHAT-JEMA-09\nMD JEMA\\2009\\3-POULPE-JEMA-09\nMD JEMA\\2009\\4-HIPPOCAMPE-JEMA-09\nMD JEMA\\2010\\1-CHIEN-JEMA-10\nMD JEMA\\2010\\2-CHAT-JEMA-10\nMD JEMA\\2010\\3-POULPE-JEMA-10\nMD JEMA\\2010\\4-HIPPOCAMPE-JEMA-10\nMD JEMA\\2011\\1-CHIEN-JEMA-11\nMD JEMA\\2011\\2-CHAT-JEMA-11\nMD JEMA\\2011\\3-POULPE-JEMA-11\nMD JEMA\\2011\\4-HIPPOCAMPE-JEMA-11\nMD JEMA\\2012\\1-CHIEN-JEMA-12\nMD JEMA\\2012\\2-CHAT-JEMA-12\nMD JEMA\\2012\\3-POULPE-JEMA-12\nMD JEMA\\2012\\4-HIPPOCAMPE-JEMA-12\nMD NOEM\\2006\\1-CHIEN-NOEM-06\nMD NOEM\\2006\\2-CHAT-NOEM-06\nMD NOEM\\2006\\3-POULPE-NOEM-06\nMD NOEM\\2006\\4-HIPPOCAMPE-NOEM-06\nMD NOEM\\2007\\1-CHIEN-NOEM-07\nMD NOEM\\2007\\2-CHAT-NOEM-07\nMD NOEM\\2007\\3-POULPE-NOEM-07\nMD NOEM\\2007\\4-HIPPOCAMPE-NOEM-07\nMD NOEM\\2008\\1-CHIEN-NOEM-08\nMD NOEM\\2008\\2-CHAT-NOEM-08\nMD NOEM\\2008\\3-POULPE-NOEM-08\nMD NOEM\\2008\\4-HIPPOCAMPE-NOEM-08\nMD NOEM\\2009\\1-CHIEN-NOEM-09\nMD NOEM\\2009\\2-CHAT-NOEM-09\nMD NOEM\\2009\\3-POULPE-NOEM-09\nMD NOEM\\2009\\4-HIPPOCAMPE-NOEM-09\nMD NOEM\\2010\\1-CHIEN-NOEM-10\nMD NOEM\\2010\\2-CHAT-NOEM-10\nMD NOEM\\2010\\3-POULPE-NOEM-10\nMD NOEM\\2010\\4-HIPPOCAMPE-NOEM-10\nMD NOEM\\2011\\1-CHIEN-NOEM-11\nMD NOEM\\2011\\2-CHAT-NOEM-11\nMD NOEM\\2011\\3-POULPE-NOEM-11\nMD NOEM\\2011\\4-HIPPOCAMPE-NOEM-11\nMD NOEM\\2012\\1-CHIEN-NOEM-12\nMD NOEM\\2012\\2-CHAT-NOEM-12\nMD NOEM\\2012\\3-POULPE-NOEM-12\nMD NOEM\\2012\\4-HIPPOCAMPE-NOEM-12\nMD ESCH\\2006\\1-CHIEN-ESCH-06\nMD ESCH\\2006\\2-CHAT-ESCH-06\nMD ESCH\\2006\\3-POULPE-ESCH-06\nMD ESCH\\2006\\4-HIPPOCAMPE-ESCH-06\nMD ESCH\\2007\\1-CHIEN-ESCH-07\nMD ESCH\\2007\\2-CHAT-ESCH-07\nMD ESCH\\2007\\3-POULPE-ESCH-07\nMD ESCH\\2007\\4-HIPPOCAMPE-ESCH-07\nMD ESCH\\2008\\1-CHIEN-ESCH-08\nMD ESCH\\2008\\2-CHAT-ESCH-08\nMD ESCH\\2008\\3-POULPE-ESCH-08\nMD ESCH\\2008\\4-HIPPOCAMPE-ESCH-08\nMD ESCH\\2009\\1-CHIEN-ESCH-09\nMD ESCH\\2009\\2-CHAT-ESCH-09\nMD ESCH\\2009\\3-POULPE-ESCH-09\nMD ESCH\\2009\\4-HIPPOCAMPE-ESCH-09\nMD ESCH\\2010\\1-CHIEN-ESCH-10\nMD ESCH\\2010\\2-CHAT-ESCH-10\nMD ESCH\\2010\\3-POULPE-ESCH-10\nMD ESCH\\2010\\4-HIPPOCAMPE-ESCH-10\nMD ESCH\\2011\\1-CHIEN-ESCH-11\nMD ESCH\\2011\\2-CHAT-ESCH-11\nMD ESCH\\2011\\3-POULPE-ESCH-11\nMD ESCH\\2011\\4-HIPPOCAMPE-ESCH-11\nMD ESCH\\2012\\1-CHIEN-ESCH-12\nMD ESCH\\2012\\2-CHAT-ESCH-12\nMD ESCH\\2012\\3-POULPE-ESCH-12\nMD ESCH\\2012\\4-HIPPOCAMPE-ESCH-12\nMD IENS\\2006\\1-CHIEN-IENS-06\nMD IENS\\2006\\2-CHAT-IENS-06\nMD IENS\\2006\\3-POULPE-IENS-06\nMD IENS\\2006\\4-HIPPOCAMPE-IENS-06\nMD IENS\\2007\\1-CHIEN-IENS-07\nMD IENS\\2007\\2-CHAT-IENS-07\nMD IENS\\2007\\3-POULPE-IENS-07\nMD IENS\\2007\\4-HIPPOCAMPE-IENS-07\nMD IENS\\2008\\1-CHIEN-IENS-08\nMD IENS\\2008\\2-CHAT-IENS-08\nMD IENS\\2008\\3-POULPE-IENS-08\nMD IENS\\2008\\4-HIPPOCAMPE-IENS-08\nMD IENS\\2009\\1-CHIEN-IENS-09\nMD IENS\\2009\\2-CHAT-IENS-09\nMD IENS\\2009\\3-POULPE-IENS-09\nMD IENS\\2009\\4-HIPPOCAMPE-IENS-09\nMD IENS\\2010\\1-CHIEN-IENS-10"}]
[{"$f":"IF(ROWS($C$20:C120)<Nb_Liste*Nb_Années*Nb_Animaux,IF(B121>=B120,A120,INDEX(Liste,MATCH(A120,Liste,0)+1)),\"\")","v":"IENS"},{"$f":"IF(ROWS($C$20:C120)<Nb_Liste*Nb_Années*Nb_Animaux,(C121=INDEX(Animaux,1))*(1-Nb_Années*(B120=Max_Années))+B120,\"\")","v":2010},{"$f":"IF(ROWS($C$20:C120)<Nb_Liste*Nb_Années*Nb_Animaux,INDEX(Animaux,MOD(MATCH(C120,Animaux,0),Nb_Animaux)+1),\"\")","v":"2-CHAT"},null,{"$f":"IF(ROWS($C$20:C120)<Nb_Liste*Nb_Années*Nb_Animaux,E120&CHAR(10)&\"MD \"&A121&\"\\\"&B121&\"\\\"&C121&\"-\"&A121&\"-\"&RIGHT(TEXT(B121,\"0000\"),2),\"\")","v":"CD C:\\Users\\jvdo\\Documents\\forum\\test\nMD JEMA\\2006\\1-CHIEN-JEMA-06\nMD JEMA\\2006\\2-CHAT-JEMA-06\nMD JEMA\\2006\\3-POULPE-JEMA-06\nMD JEMA\\2006\\4-HIPPOCAMPE-JEMA-06\nMD JEMA\\2007\\1-CHIEN-JEMA-07\nMD JEMA\\2007\\2-CHAT-JEMA-07\nMD JEMA\\2007\\3-POULPE-JEMA-07\nMD JEMA\\2007\\4-HIPPOCAMPE-JEMA-07\nMD JEMA\\2008\\1-CHIEN-JEMA-08\nMD JEMA\\2008\\2-CHAT-JEMA-08\nMD JEMA\\2008\\3-POULPE-JEMA-08\nMD JEMA\\2008\\4-HIPPOCAMPE-JEMA-08\nMD JEMA\\2009\\1-CHIEN-JEMA-09\nMD JEMA\\2009\\2-CHAT-JEMA-09\nMD JEMA\\2009\\3-POULPE-JEMA-09\nMD JEMA\\2009\\4-HIPPOCAMPE-JEMA-09\nMD JEMA\\2010\\1-CHIEN-JEMA-10\nMD JEMA\\2010\\2-CHAT-JEMA-10\nMD JEMA\\2010\\3-POULPE-JEMA-10\nMD JEMA\\2010\\4-HIPPOCAMPE-JEMA-10\nMD JEMA\\2011\\1-CHIEN-JEMA-11\nMD JEMA\\2011\\2-CHAT-JEMA-11\nMD JEMA\\2011\\3-POULPE-JEMA-11\nMD JEMA\\2011\\4-HIPPOCAMPE-JEMA-11\nMD JEMA\\2012\\1-CHIEN-JEMA-12\nMD JEMA\\2012\\2-CHAT-JEMA-12\nMD JEMA\\2012\\3-POULPE-JEMA-12\nMD JEMA\\2012\\4-HIPPOCAMPE-JEMA-12\nMD NOEM\\2006\\1-CHIEN-NOEM-06\nMD NOEM\\2006\\2-CHAT-NOEM-06\nMD NOEM\\2006\\3-POULPE-NOEM-06\nMD NOEM\\2006\\4-HIPPOCAMPE-NOEM-06\nMD NOEM\\2007\\1-CHIEN-NOEM-07\nMD NOEM\\2007\\2-CHAT-NOEM-07\nMD NOEM\\2007\\3-POULPE-NOEM-07\nMD NOEM\\2007\\4-HIPPOCAMPE-NOEM-07\nMD NOEM\\2008\\1-CHIEN-NOEM-08\nMD NOEM\\2008\\2-CHAT-NOEM-08\nMD NOEM\\2008\\3-POULPE-NOEM-08\nMD NOEM\\2008\\4-HIPPOCAMPE-NOEM-08\nMD NOEM\\2009\\1-CHIEN-NOEM-09\nMD NOEM\\2009\\2-CHAT-NOEM-09\nMD NOEM\\2009\\3-POULPE-NOEM-09\nMD NOEM\\2009\\4-HIPPOCAMPE-NOEM-09\nMD NOEM\\2010\\1-CHIEN-NOEM-10\nMD NOEM\\2010\\2-CHAT-NOEM-10\nMD NOEM\\2010\\3-POULPE-NOEM-10\nMD NOEM\\2010\\4-HIPPOCAMPE-NOEM-10\nMD NOEM\\2011\\1-CHIEN-NOEM-11\nMD NOEM\\2011\\2-CHAT-NOEM-11\nMD NOEM\\2011\\3-POULPE-NOEM-11\nMD NOEM\\2011\\4-HIPPOCAMPE-NOEM-11\nMD NOEM\\2012\\1-CHIEN-NOEM-12\nMD NOEM\\2012\\2-CHAT-NOEM-12\nMD NOEM\\2012\\3-POULPE-NOEM-12\nMD NOEM\\2012\\4-HIPPOCAMPE-NOEM-12\nMD ESCH\\2006\\1-CHIEN-ESCH-06\nMD ESCH\\2006\\2-CHAT-ESCH-06\nMD ESCH\\2006\\3-POULPE-ESCH-06\nMD ESCH\\2006\\4-HIPPOCAMPE-ESCH-06\nMD ESCH\\2007\\1-CHIEN-ESCH-07\nMD ESCH\\2007\\2-CHAT-ESCH-07\nMD ESCH\\2007\\3-POULPE-ESCH-07\nMD ESCH\\2007\\4-HIPPOCAMPE-ESCH-07\nMD ESCH\\2008\\1-CHIEN-ESCH-08\nMD ESCH\\2008\\2-CHAT-ESCH-08\nMD ESCH\\2008\\3-POULPE-ESCH-08\nMD ESCH\\2008\\4-HIPPOCAMPE-ESCH-08\nMD ESCH\\2009\\1-CHIEN-ESCH-09\nMD ESCH\\2009\\2-CHAT-ESCH-09\nMD ESCH\\2009\\3-POULPE-ESCH-09\nMD ESCH\\2009\\4-HIPPOCAMPE-ESCH-09\nMD ESCH\\2010\\1-CHIEN-ESCH-10\nMD ESCH\\2010\\2-CHAT-ESCH-10\nMD ESCH\\2010\\3-POULPE-ESCH-10\nMD ESCH\\2010\\4-HIPPOCAMPE-ESCH-10\nMD ESCH\\2011\\1-CHIEN-ESCH-11\nMD ESCH\\2011\\2-CHAT-ESCH-11\nMD ESCH\\2011\\3-POULPE-ESCH-11\nMD ESCH\\2011\\4-HIPPOCAMPE-ESCH-11\nMD ESCH\\2012\\1-CHIEN-ESCH-12\nMD ESCH\\2012\\2-CHAT-ESCH-12\nMD ESCH\\2012\\3-POULPE-ESCH-12\nMD ESCH\\2012\\4-HIPPOCAMPE-ESCH-12\nMD IENS\\2006\\1-CHIEN-IENS-06\nMD IENS\\2006\\2-CHAT-IENS-06\nMD IENS\\2006\\3-POULPE-IENS-06\nMD IENS\\2006\\4-HIPPOCAMPE-IENS-06\nMD IENS\\2007\\1-CHIEN-IENS-07\nMD IENS\\2007\\2-CHAT-IENS-07\nMD IENS\\2007\\3-POULPE-IENS-07\nMD IENS\\2007\\4-HIPPOCAMPE-IENS-07\nMD IENS\\2008\\1-CHIEN-IENS-08\nMD IENS\\2008\\2-CHAT-IENS-08\nMD IENS\\2008\\3-POULPE-IENS-08\nMD IENS\\2008\\4-HIPPOCAMPE-IENS-08\nMD IENS\\2009\\1-CHIEN-IENS-09\nMD IENS\\2009\\2-CHAT-IENS-09\nMD IENS\\2009\\3-POULPE-IENS-09\nMD IENS\\2009\\4-HIPPOCAMPE-IENS-09\nMD IENS\\2010\\1-CHIEN-IENS-10\nMD IENS\\2010\\2-CHAT-IENS-10"}]
[{"$f":"IF(ROWS($C$20:C121)<Nb_Liste*Nb_Années*Nb_Animaux,IF(B122>=B121,A121,INDEX(Liste,MATCH(A121,Liste,0)+1)),\"\")","v":"IENS"},{"$f":"IF(ROWS($C$20:C121)<Nb_Liste*Nb_Années*Nb_Animaux,(C122=INDEX(Animaux,1))*(1-Nb_Années*(B121=Max_Années))+B121,\"\")","v":2010},{"$f":"IF(ROWS($C$20:C121)<Nb_Liste*Nb_Années*Nb_Animaux,INDEX(Animaux,MOD(MATCH(C121,Animaux,0),Nb_Animaux)+1),\"\")","v":"3-POULPE"},null,{"$f":"IF(ROWS($C$20:C121)<Nb_Liste*Nb_Années*Nb_Animaux,E121&CHAR(10)&\"MD \"&A122&\"\\\"&B122&\"\\\"&C122&\"-\"&A122&\"-\"&RIGHT(TEXT(B122,\"0000\"),2),\"\")","v":"CD C:\\Users\\jvdo\\Documents\\forum\\test\nMD JEMA\\2006\\1-CHIEN-JEMA-06\nMD JEMA\\2006\\2-CHAT-JEMA-06\nMD JEMA\\2006\\3-POULPE-JEMA-06\nMD JEMA\\2006\\4-HIPPOCAMPE-JEMA-06\nMD JEMA\\2007\\1-CHIEN-JEMA-07\nMD JEMA\\2007\\2-CHAT-JEMA-07\nMD JEMA\\2007\\3-POULPE-JEMA-07\nMD JEMA\\2007\\4-HIPPOCAMPE-JEMA-07\nMD JEMA\\2008\\1-CHIEN-JEMA-08\nMD JEMA\\2008\\2-CHAT-JEMA-08\nMD JEMA\\2008\\3-POULPE-JEMA-08\nMD JEMA\\2008\\4-HIPPOCAMPE-JEMA-08\nMD JEMA\\2009\\1-CHIEN-JEMA-09\nMD JEMA\\2009\\2-CHAT-JEMA-09\nMD JEMA\\2009\\3-POULPE-JEMA-09\nMD JEMA\\2009\\4-HIPPOCAMPE-JEMA-09\nMD JEMA\\2010\\1-CHIEN-JEMA-10\nMD JEMA\\2010\\2-CHAT-JEMA-10\nMD JEMA\\2010\\3-POULPE-JEMA-10\nMD JEMA\\2010\\4-HIPPOCAMPE-JEMA-10\nMD JEMA\\2011\\1-CHIEN-JEMA-11\nMD JEMA\\2011\\2-CHAT-JEMA-11\nMD JEMA\\2011\\3-POULPE-JEMA-11\nMD JEMA\\2011\\4-HIPPOCAMPE-JEMA-11\nMD JEMA\\2012\\1-CHIEN-JEMA-12\nMD JEMA\\2012\\2-CHAT-JEMA-12\nMD JEMA\\2012\\3-POULPE-JEMA-12\nMD JEMA\\2012\\4-HIPPOCAMPE-JEMA-12\nMD NOEM\\2006\\1-CHIEN-NOEM-06\nMD NOEM\\2006\\2-CHAT-NOEM-06\nMD NOEM\\2006\\3-POULPE-NOEM-06\nMD NOEM\\2006\\4-HIPPOCAMPE-NOEM-06\nMD NOEM\\2007\\1-CHIEN-NOEM-07\nMD NOEM\\2007\\2-CHAT-NOEM-07\nMD NOEM\\2007\\3-POULPE-NOEM-07\nMD NOEM\\2007\\4-HIPPOCAMPE-NOEM-07\nMD NOEM\\2008\\1-CHIEN-NOEM-08\nMD NOEM\\2008\\2-CHAT-NOEM-08\nMD NOEM\\2008\\3-POULPE-NOEM-08\nMD NOEM\\2008\\4-HIPPOCAMPE-NOEM-08\nMD NOEM\\2009\\1-CHIEN-NOEM-09\nMD NOEM\\2009\\2-CHAT-NOEM-09\nMD NOEM\\2009\\3-POULPE-NOEM-09\nMD NOEM\\2009\\4-HIPPOCAMPE-NOEM-09\nMD NOEM\\2010\\1-CHIEN-NOEM-10\nMD NOEM\\2010\\2-CHAT-NOEM-10\nMD NOEM\\2010\\3-POULPE-NOEM-10\nMD NOEM\\2010\\4-HIPPOCAMPE-NOEM-10\nMD NOEM\\2011\\1-CHIEN-NOEM-11\nMD NOEM\\2011\\2-CHAT-NOEM-11\nMD NOEM\\2011\\3-POULPE-NOEM-11\nMD NOEM\\2011\\4-HIPPOCAMPE-NOEM-11\nMD NOEM\\2012\\1-CHIEN-NOEM-12\nMD NOEM\\2012\\2-CHAT-NOEM-12\nMD NOEM\\2012\\3-POULPE-NOEM-12\nMD NOEM\\2012\\4-HIPPOCAMPE-NOEM-12\nMD ESCH\\2006\\1-CHIEN-ESCH-06\nMD ESCH\\2006\\2-CHAT-ESCH-06\nMD ESCH\\2006\\3-POULPE-ESCH-06\nMD ESCH\\2006\\4-HIPPOCAMPE-ESCH-06\nMD ESCH\\2007\\1-CHIEN-ESCH-07\nMD ESCH\\2007\\2-CHAT-ESCH-07\nMD ESCH\\2007\\3-POULPE-ESCH-07\nMD ESCH\\2007\\4-HIPPOCAMPE-ESCH-07\nMD ESCH\\2008\\1-CHIEN-ESCH-08\nMD ESCH\\2008\\2-CHAT-ESCH-08\nMD ESCH\\2008\\3-POULPE-ESCH-08\nMD ESCH\\2008\\4-HIPPOCAMPE-ESCH-08\nMD ESCH\\2009\\1-CHIEN-ESCH-09\nMD ESCH\\2009\\2-CHAT-ESCH-09\nMD ESCH\\2009\\3-POULPE-ESCH-09\nMD ESCH\\2009\\4-HIPPOCAMPE-ESCH-09\nMD ESCH\\2010\\1-CHIEN-ESCH-10\nMD ESCH\\2010\\2-CHAT-ESCH-10\nMD ESCH\\2010\\3-POULPE-ESCH-10\nMD ESCH\\2010\\4-HIPPOCAMPE-ESCH-10\nMD ESCH\\2011\\1-CHIEN-ESCH-11\nMD ESCH\\2011\\2-CHAT-ESCH-11\nMD ESCH\\2011\\3-POULPE-ESCH-11\nMD ESCH\\2011\\4-HIPPOCAMPE-ESCH-11\nMD ESCH\\2012\\1-CHIEN-ESCH-12\nMD ESCH\\2012\\2-CHAT-ESCH-12\nMD ESCH\\2012\\3-POULPE-ESCH-12\nMD ESCH\\2012\\4-HIPPOCAMPE-ESCH-12\nMD IENS\\2006\\1-CHIEN-IENS-06\nMD IENS\\2006\\2-CHAT-IENS-06\nMD IENS\\2006\\3-POULPE-IENS-06\nMD IENS\\2006\\4-HIPPOCAMPE-IENS-06\nMD IENS\\2007\\1-CHIEN-IENS-07\nMD IENS\\2007\\2-CHAT-IENS-07\nMD IENS\\2007\\3-POULPE-IENS-07\nMD IENS\\2007\\4-HIPPOCAMPE-IENS-07\nMD IENS\\2008\\1-CHIEN-IENS-08\nMD IENS\\2008\\2-CHAT-IENS-08\nMD IENS\\2008\\3-POULPE-IENS-08\nMD IENS\\2008\\4-HIPPOCAMPE-IENS-08\nMD IENS\\2009\\1-CHIEN-IENS-09\nMD IENS\\2009\\2-CHAT-IENS-09\nMD IENS\\2009\\3-POULPE-IENS-09\nMD IENS\\2009\\4-HIPPOCAMPE-IENS-09\nMD IENS\\2010\\1-CHIEN-IENS-10\nMD IENS\\2010\\2-CHAT-IENS-10\nMD IENS\\2010\\3-POULPE-IENS-10"}]
[{"$f":"IF(ROWS($C$20:C122)<Nb_Liste*Nb_Années*Nb_Animaux,IF(B123>=B122,A122,INDEX(Liste,MATCH(A122,Liste,0)+1)),\"\")","v":"IENS"},{"$f":"IF(ROWS($C$20:C122)<Nb_Liste*Nb_Années*Nb_Animaux,(C123=INDEX(Animaux,1))*(1-Nb_Années*(B122=Max_Années))+B122,\"\")","v":2010},{"$f":"IF(ROWS($C$20:C122)<Nb_Liste*Nb_Années*Nb_Animaux,INDEX(Animaux,MOD(MATCH(C122,Animaux,0),Nb_Animaux)+1),\"\")","v":"4-HIPPOCAMPE"},null,{"$f":"IF(ROWS($C$20:C122)<Nb_Liste*Nb_Années*Nb_Animaux,E122&CHAR(10)&\"MD \"&A123&\"\\\"&B123&\"\\\"&C123&\"-\"&A123&\"-\"&RIGHT(TEXT(B123,\"0000\"),2),\"\")","v":"CD C:\\Users\\jvdo\\Documents\\forum\\test\nMD JEMA\\2006\\1-CHIEN-JEMA-06\nMD JEMA\\2006\\2-CHAT-JEMA-06\nMD JEMA\\2006\\3-POULPE-JEMA-06\nMD JEMA\\2006\\4-HIPPOCAMPE-JEMA-06\nMD JEMA\\2007\\1-CHIEN-JEMA-07\nMD JEMA\\2007\\2-CHAT-JEMA-07\nMD JEMA\\2007\\3-POULPE-JEMA-07\nMD JEMA\\2007\\4-HIPPOCAMPE-JEMA-07\nMD JEMA\\2008\\1-CHIEN-JEMA-08\nMD JEMA\\2008\\2-CHAT-JEMA-08\nMD JEMA\\2008\\3-POULPE-JEMA-08\nMD JEMA\\2008\\4-HIPPOCAMPE-JEMA-08\nMD JEMA\\2009\\1-CHIEN-JEMA-09\nMD JEMA\\2009\\2-CHAT-JEMA-09\nMD JEMA\\2009\\3-POULPE-JEMA-09\nMD JEMA\\2009\\4-HIPPOCAMPE-JEMA-09\nMD JEMA\\2010\\1-CHIEN-JEMA-10\nMD JEMA\\2010\\2-CHAT-JEMA-10\nMD JEMA\\2010\\3-POULPE-JEMA-10\nMD JEMA\\2010\\4-HIPPOCAMPE-JEMA-10\nMD JEMA\\2011\\1-CHIEN-JEMA-11\nMD JEMA\\2011\\2-CHAT-JEMA-11\nMD JEMA\\2011\\3-POULPE-JEMA-11\nMD JEMA\\2011\\4-HIPPOCAMPE-JEMA-11\nMD JEMA\\2012\\1-CHIEN-JEMA-12\nMD JEMA\\2012\\2-CHAT-JEMA-12\nMD JEMA\\2012\\3-POULPE-JEMA-12\nMD JEMA\\2012\\4-HIPPOCAMPE-JEMA-12\nMD NOEM\\2006\\1-CHIEN-NOEM-06\nMD NOEM\\2006\\2-CHAT-NOEM-06\nMD NOEM\\2006\\3-POULPE-NOEM-06\nMD NOEM\\2006\\4-HIPPOCAMPE-NOEM-06\nMD NOEM\\2007\\1-CHIEN-NOEM-07\nMD NOEM\\2007\\2-CHAT-NOEM-07\nMD NOEM\\2007\\3-POULPE-NOEM-07\nMD NOEM\\2007\\4-HIPPOCAMPE-NOEM-07\nMD NOEM\\2008\\1-CHIEN-NOEM-08\nMD NOEM\\2008\\2-CHAT-NOEM-08\nMD NOEM\\2008\\3-POULPE-NOEM-08\nMD NOEM\\2008\\4-HIPPOCAMPE-NOEM-08\nMD NOEM\\2009\\1-CHIEN-NOEM-09\nMD NOEM\\2009\\2-CHAT-NOEM-09\nMD NOEM\\2009\\3-POULPE-NOEM-09\nMD NOEM\\2009\\4-HIPPOCAMPE-NOEM-09\nMD NOEM\\2010\\1-CHIEN-NOEM-10\nMD NOEM\\2010\\2-CHAT-NOEM-10\nMD NOEM\\2010\\3-POULPE-NOEM-10\nMD NOEM\\2010\\4-HIPPOCAMPE-NOEM-10\nMD NOEM\\2011\\1-CHIEN-NOEM-11\nMD NOEM\\2011\\2-CHAT-NOEM-11\nMD NOEM\\2011\\3-POULPE-NOEM-11\nMD NOEM\\2011\\4-HIPPOCAMPE-NOEM-11\nMD NOEM\\2012\\1-CHIEN-NOEM-12\nMD NOEM\\2012\\2-CHAT-NOEM-12\nMD NOEM\\2012\\3-POULPE-NOEM-12\nMD NOEM\\2012\\4-HIPPOCAMPE-NOEM-12\nMD ESCH\\2006\\1-CHIEN-ESCH-06\nMD ESCH\\2006\\2-CHAT-ESCH-06\nMD ESCH\\2006\\3-POULPE-ESCH-06\nMD ESCH\\2006\\4-HIPPOCAMPE-ESCH-06\nMD ESCH\\2007\\1-CHIEN-ESCH-07\nMD ESCH\\2007\\2-CHAT-ESCH-07\nMD ESCH\\2007\\3-POULPE-ESCH-07\nMD ESCH\\2007\\4-HIPPOCAMPE-ESCH-07\nMD ESCH\\2008\\1-CHIEN-ESCH-08\nMD ESCH\\2008\\2-CHAT-ESCH-08\nMD ESCH\\2008\\3-POULPE-ESCH-08\nMD ESCH\\2008\\4-HIPPOCAMPE-ESCH-08\nMD ESCH\\2009\\1-CHIEN-ESCH-09\nMD ESCH\\2009\\2-CHAT-ESCH-09\nMD ESCH\\2009\\3-POULPE-ESCH-09\nMD ESCH\\2009\\4-HIPPOCAMPE-ESCH-09\nMD ESCH\\2010\\1-CHIEN-ESCH-10\nMD ESCH\\2010\\2-CHAT-ESCH-10\nMD ESCH\\2010\\3-POULPE-ESCH-10\nMD ESCH\\2010\\4-HIPPOCAMPE-ESCH-10\nMD ESCH\\2011\\1-CHIEN-ESCH-11\nMD ESCH\\2011\\2-CHAT-ESCH-11\nMD ESCH\\2011\\3-POULPE-ESCH-11\nMD ESCH\\2011\\4-HIPPOCAMPE-ESCH-11\nMD ESCH\\2012\\1-CHIEN-ESCH-12\nMD ESCH\\2012\\2-CHAT-ESCH-12\nMD ESCH\\2012\\3-POULPE-ESCH-12\nMD ESCH\\2012\\4-HIPPOCAMPE-ESCH-12\nMD IENS\\2006\\1-CHIEN-IENS-06\nMD IENS\\2006\\2-CHAT-IENS-06\nMD IENS\\2006\\3-POULPE-IENS-06\nMD IENS\\2006\\4-HIPPOCAMPE-IENS-06\nMD IENS\\2007\\1-CHIEN-IENS-07\nMD IENS\\2007\\2-CHAT-IENS-07\nMD IENS\\2007\\3-POULPE-IENS-07\nMD IENS\\2007\\4-HIPPOCAMPE-IENS-07\nMD IENS\\2008\\1-CHIEN-IENS-08\nMD IENS\\2008\\2-CHAT-IENS-08\nMD IENS\\2008\\3-POULPE-IENS-08\nMD IENS\\2008\\4-HIPPOCAMPE-IENS-08\nMD IENS\\2009\\1-CHIEN-IENS-09\nMD IENS\\2009\\2-CHAT-IENS-09\nMD IENS\\2009\\3-POULPE-IENS-09\nMD IENS\\2009\\4-HIPPOCAMPE-IENS-09\nMD IENS\\2010\\1-CHIEN-IENS-10\nMD IENS\\2010\\2-CHAT-IENS-10\nMD IENS\\2010\\3-POULPE-IENS-10\nMD IENS\\2010\\4-HIPPOCAMPE-IENS-10"}]
[{"$f":"IF(ROWS($C$20:C123)<Nb_Liste*Nb_Années*Nb_Animaux,IF(B124>=B123,A123,INDEX(Liste,MATCH(A123,Liste,0)+1)),\"\")","v":"IENS"},{"$f":"IF(ROWS($C$20:C123)<Nb_Liste*Nb_Années*Nb_Animaux,(C124=INDEX(Animaux,1))*(1-Nb_Années*(B123=Max_Années))+B123,\"\")","v":2011},{"$f":"IF(ROWS($C$20:C123)<Nb_Liste*Nb_Années*Nb_Animaux,INDEX(Animaux,MOD(MATCH(C123,Animaux,0),Nb_Animaux)+1),\"\")","v":"1-CHIEN"},null,{"$f":"IF(ROWS($C$20:C123)<Nb_Liste*Nb_Années*Nb_Animaux,E123&CHAR(10)&\"MD \"&A124&\"\\\"&B124&\"\\\"&C124&\"-\"&A124&\"-\"&RIGHT(TEXT(B124,\"0000\"),2),\"\")","v":"CD C:\\Users\\jvdo\\Documents\\forum\\test\nMD JEMA\\2006\\1-CHIEN-JEMA-06\nMD JEMA\\2006\\2-CHAT-JEMA-06\nMD JEMA\\2006\\3-POULPE-JEMA-06\nMD JEMA\\2006\\4-HIPPOCAMPE-JEMA-06\nMD JEMA\\2007\\1-CHIEN-JEMA-07\nMD JEMA\\2007\\2-CHAT-JEMA-07\nMD JEMA\\2007\\3-POULPE-JEMA-07\nMD JEMA\\2007\\4-HIPPOCAMPE-JEMA-07\nMD JEMA\\2008\\1-CHIEN-JEMA-08\nMD JEMA\\2008\\2-CHAT-JEMA-08\nMD JEMA\\2008\\3-POULPE-JEMA-08\nMD JEMA\\2008\\4-HIPPOCAMPE-JEMA-08\nMD JEMA\\2009\\1-CHIEN-JEMA-09\nMD JEMA\\2009\\2-CHAT-JEMA-09\nMD JEMA\\2009\\3-POULPE-JEMA-09\nMD JEMA\\2009\\4-HIPPOCAMPE-JEMA-09\nMD JEMA\\2010\\1-CHIEN-JEMA-10\nMD JEMA\\2010\\2-CHAT-JEMA-10\nMD JEMA\\2010\\3-POULPE-JEMA-10\nMD JEMA\\2010\\4-HIPPOCAMPE-JEMA-10\nMD JEMA\\2011\\1-CHIEN-JEMA-11\nMD JEMA\\2011\\2-CHAT-JEMA-11\nMD JEMA\\2011\\3-POULPE-JEMA-11\nMD JEMA\\2011\\4-HIPPOCAMPE-JEMA-11\nMD JEMA\\2012\\1-CHIEN-JEMA-12\nMD JEMA\\2012\\2-CHAT-JEMA-12\nMD JEMA\\2012\\3-POULPE-JEMA-12\nMD JEMA\\2012\\4-HIPPOCAMPE-JEMA-12\nMD NOEM\\2006\\1-CHIEN-NOEM-06\nMD NOEM\\2006\\2-CHAT-NOEM-06\nMD NOEM\\2006\\3-POULPE-NOEM-06\nMD NOEM\\2006\\4-HIPPOCAMPE-NOEM-06\nMD NOEM\\2007\\1-CHIEN-NOEM-07\nMD NOEM\\2007\\2-CHAT-NOEM-07\nMD NOEM\\2007\\3-POULPE-NOEM-07\nMD NOEM\\2007\\4-HIPPOCAMPE-NOEM-07\nMD NOEM\\2008\\1-CHIEN-NOEM-08\nMD NOEM\\2008\\2-CHAT-NOEM-08\nMD NOEM\\2008\\3-POULPE-NOEM-08\nMD NOEM\\2008\\4-HIPPOCAMPE-NOEM-08\nMD NOEM\\2009\\1-CHIEN-NOEM-09\nMD NOEM\\2009\\2-CHAT-NOEM-09\nMD NOEM\\2009\\3-POULPE-NOEM-09\nMD NOEM\\2009\\4-HIPPOCAMPE-NOEM-09\nMD NOEM\\2010\\1-CHIEN-NOEM-10\nMD NOEM\\2010\\2-CHAT-NOEM-10\nMD NOEM\\2010\\3-POULPE-NOEM-10\nMD NOEM\\2010\\4-HIPPOCAMPE-NOEM-10\nMD NOEM\\2011\\1-CHIEN-NOEM-11\nMD NOEM\\2011\\2-CHAT-NOEM-11\nMD NOEM\\2011\\3-POULPE-NOEM-11\nMD NOEM\\2011\\4-HIPPOCAMPE-NOEM-11\nMD NOEM\\2012\\1-CHIEN-NOEM-12\nMD NOEM\\2012\\2-CHAT-NOEM-12\nMD NOEM\\2012\\3-POULPE-NOEM-12\nMD NOEM\\2012\\4-HIPPOCAMPE-NOEM-12\nMD ESCH\\2006\\1-CHIEN-ESCH-06\nMD ESCH\\2006\\2-CHAT-ESCH-06\nMD ESCH\\2006\\3-POULPE-ESCH-06\nMD ESCH\\2006\\4-HIPPOCAMPE-ESCH-06\nMD ESCH\\2007\\1-CHIEN-ESCH-07\nMD ESCH\\2007\\2-CHAT-ESCH-07\nMD ESCH\\2007\\3-POULPE-ESCH-07\nMD ESCH\\2007\\4-HIPPOCAMPE-ESCH-07\nMD ESCH\\2008\\1-CHIEN-ESCH-08\nMD ESCH\\2008\\2-CHAT-ESCH-08\nMD ESCH\\2008\\3-POULPE-ESCH-08\nMD ESCH\\2008\\4-HIPPOCAMPE-ESCH-08\nMD ESCH\\2009\\1-CHIEN-ESCH-09\nMD ESCH\\2009\\2-CHAT-ESCH-09\nMD ESCH\\2009\\3-POULPE-ESCH-09\nMD ESCH\\2009\\4-HIPPOCAMPE-ESCH-09\nMD ESCH\\2010\\1-CHIEN-ESCH-10\nMD ESCH\\2010\\2-CHAT-ESCH-10\nMD ESCH\\2010\\3-POULPE-ESCH-10\nMD ESCH\\2010\\4-HIPPOCAMPE-ESCH-10\nMD ESCH\\2011\\1-CHIEN-ESCH-11\nMD ESCH\\2011\\2-CHAT-ESCH-11\nMD ESCH\\2011\\3-POULPE-ESCH-11\nMD ESCH\\2011\\4-HIPPOCAMPE-ESCH-11\nMD ESCH\\2012\\1-CHIEN-ESCH-12\nMD ESCH\\2012\\2-CHAT-ESCH-12\nMD ESCH\\2012\\3-POULPE-ESCH-12\nMD ESCH\\2012\\4-HIPPOCAMPE-ESCH-12\nMD IENS\\2006\\1-CHIEN-IENS-06\nMD IENS\\2006\\2-CHAT-IENS-06\nMD IENS\\2006\\3-POULPE-IENS-06\nMD IENS\\2006\\4-HIPPOCAMPE-IENS-06\nMD IENS\\2007\\1-CHIEN-IENS-07\nMD IENS\\2007\\2-CHAT-IENS-07\nMD IENS\\2007\\3-POULPE-IENS-07\nMD IENS\\2007\\4-HIPPOCAMPE-IENS-07\nMD IENS\\2008\\1-CHIEN-IENS-08\nMD IENS\\2008\\2-CHAT-IENS-08\nMD IENS\\2008\\3-POULPE-IENS-08\nMD IENS\\2008\\4-HIPPOCAMPE-IENS-08\nMD IENS\\2009\\1-CHIEN-IENS-09\nMD IENS\\2009\\2-CHAT-IENS-09\nMD IENS\\2009\\3-POULPE-IENS-09\nMD IENS\\2009\\4-HIPPOCAMPE-IENS-09\nMD IENS\\2010\\1-CHIEN-IENS-10\nMD IENS\\2010\\2-CHAT-IENS-10\nMD IENS\\2010\\3-POULPE-IENS-10\nMD IENS\\2010\\4-HIPPOCAMPE-IENS-10\nMD IENS\\2011\\1-CHIEN-IENS-11"}]
[{"$f":"IF(ROWS($C$20:C124)<Nb_Liste*Nb_Années*Nb_Animaux,IF(B125>=B124,A124,INDEX(Liste,MATCH(A124,Liste,0)+1)),\"\")","v":"IENS"},{"$f":"IF(ROWS($C$20:C124)<Nb_Liste*Nb_Années*Nb_Animaux,(C125=INDEX(Animaux,1))*(1-Nb_Années*(B124=Max_Années))+B124,\"\")","v":2011},{"$f":"IF(ROWS($C$20:C124)<Nb_Liste*Nb_Années*Nb_Animaux,INDEX(Animaux,MOD(MATCH(C124,Animaux,0),Nb_Animaux)+1),\"\")","v":"2-CHAT"},null,{"$f":"IF(ROWS($C$20:C124)<Nb_Liste*Nb_Années*Nb_Animaux,E124&CHAR(10)&\"MD \"&A125&\"\\\"&B125&\"\\\"&C125&\"-\"&A125&\"-\"&RIGHT(TEXT(B125,\"0000\"),2),\"\")","v":"CD C:\\Users\\jvdo\\Documents\\forum\\test\nMD JEMA\\2006\\1-CHIEN-JEMA-06\nMD JEMA\\2006\\2-CHAT-JEMA-06\nMD JEMA\\2006\\3-POULPE-JEMA-06\nMD JEMA\\2006\\4-HIPPOCAMPE-JEMA-06\nMD JEMA\\2007\\1-CHIEN-JEMA-07\nMD JEMA\\2007\\2-CHAT-JEMA-07\nMD JEMA\\2007\\3-POULPE-JEMA-07\nMD JEMA\\2007\\4-HIPPOCAMPE-JEMA-07\nMD JEMA\\2008\\1-CHIEN-JEMA-08\nMD JEMA\\2008\\2-CHAT-JEMA-08\nMD JEMA\\2008\\3-POULPE-JEMA-08\nMD JEMA\\2008\\4-HIPPOCAMPE-JEMA-08\nMD JEMA\\2009\\1-CHIEN-JEMA-09\nMD JEMA\\2009\\2-CHAT-JEMA-09\nMD JEMA\\2009\\3-POULPE-JEMA-09\nMD JEMA\\2009\\4-HIPPOCAMPE-JEMA-09\nMD JEMA\\2010\\1-CHIEN-JEMA-10\nMD JEMA\\2010\\2-CHAT-JEMA-10\nMD JEMA\\2010\\3-POULPE-JEMA-10\nMD JEMA\\2010\\4-HIPPOCAMPE-JEMA-10\nMD JEMA\\2011\\1-CHIEN-JEMA-11\nMD JEMA\\2011\\2-CHAT-JEMA-11\nMD JEMA\\2011\\3-POULPE-JEMA-11\nMD JEMA\\2011\\4-HIPPOCAMPE-JEMA-11\nMD JEMA\\2012\\1-CHIEN-JEMA-12\nMD JEMA\\2012\\2-CHAT-JEMA-12\nMD JEMA\\2012\\3-POULPE-JEMA-12\nMD JEMA\\2012\\4-HIPPOCAMPE-JEMA-12\nMD NOEM\\2006\\1-CHIEN-NOEM-06\nMD NOEM\\2006\\2-CHAT-NOEM-06\nMD NOEM\\2006\\3-POULPE-NOEM-06\nMD NOEM\\2006\\4-HIPPOCAMPE-NOEM-06\nMD NOEM\\2007\\1-CHIEN-NOEM-07\nMD NOEM\\2007\\2-CHAT-NOEM-07\nMD NOEM\\2007\\3-POULPE-NOEM-07\nMD NOEM\\2007\\4-HIPPOCAMPE-NOEM-07\nMD NOEM\\2008\\1-CHIEN-NOEM-08\nMD NOEM\\2008\\2-CHAT-NOEM-08\nMD NOEM\\2008\\3-POULPE-NOEM-08\nMD NOEM\\2008\\4-HIPPOCAMPE-NOEM-08\nMD NOEM\\2009\\1-CHIEN-NOEM-09\nMD NOEM\\2009\\2-CHAT-NOEM-09\nMD NOEM\\2009\\3-POULPE-NOEM-09\nMD NOEM\\2009\\4-HIPPOCAMPE-NOEM-09\nMD NOEM\\2010\\1-CHIEN-NOEM-10\nMD NOEM\\2010\\2-CHAT-NOEM-10\nMD NOEM\\2010\\3-POULPE-NOEM-10\nMD NOEM\\2010\\4-HIPPOCAMPE-NOEM-10\nMD NOEM\\2011\\1-CHIEN-NOEM-11\nMD NOEM\\2011\\2-CHAT-NOEM-11\nMD NOEM\\2011\\3-POULPE-NOEM-11\nMD NOEM\\2011\\4-HIPPOCAMPE-NOEM-11\nMD NOEM\\2012\\1-CHIEN-NOEM-12\nMD NOEM\\2012\\2-CHAT-NOEM-12\nMD NOEM\\2012\\3-POULPE-NOEM-12\nMD NOEM\\2012\\4-HIPPOCAMPE-NOEM-12\nMD ESCH\\2006\\1-CHIEN-ESCH-06\nMD ESCH\\2006\\2-CHAT-ESCH-06\nMD ESCH\\2006\\3-POULPE-ESCH-06\nMD ESCH\\2006\\4-HIPPOCAMPE-ESCH-06\nMD ESCH\\2007\\1-CHIEN-ESCH-07\nMD ESCH\\2007\\2-CHAT-ESCH-07\nMD ESCH\\2007\\3-POULPE-ESCH-07\nMD ESCH\\2007\\4-HIPPOCAMPE-ESCH-07\nMD ESCH\\2008\\1-CHIEN-ESCH-08\nMD ESCH\\2008\\2-CHAT-ESCH-08\nMD ESCH\\2008\\3-POULPE-ESCH-08\nMD ESCH\\2008\\4-HIPPOCAMPE-ESCH-08\nMD ESCH\\2009\\1-CHIEN-ESCH-09\nMD ESCH\\2009\\2-CHAT-ESCH-09\nMD ESCH\\2009\\3-POULPE-ESCH-09\nMD ESCH\\2009\\4-HIPPOCAMPE-ESCH-09\nMD ESCH\\2010\\1-CHIEN-ESCH-10\nMD ESCH\\2010\\2-CHAT-ESCH-10\nMD ESCH\\2010\\3-POULPE-ESCH-10\nMD ESCH\\2010\\4-HIPPOCAMPE-ESCH-10\nMD ESCH\\2011\\1-CHIEN-ESCH-11\nMD ESCH\\2011\\2-CHAT-ESCH-11\nMD ESCH\\2011\\3-POULPE-ESCH-11\nMD ESCH\\2011\\4-HIPPOCAMPE-ESCH-11\nMD ESCH\\2012\\1-CHIEN-ESCH-12\nMD ESCH\\2012\\2-CHAT-ESCH-12\nMD ESCH\\2012\\3-POULPE-ESCH-12\nMD ESCH\\2012\\4-HIPPOCAMPE-ESCH-12\nMD IENS\\2006\\1-CHIEN-IENS-06\nMD IENS\\2006\\2-CHAT-IENS-06\nMD IENS\\2006\\3-POULPE-IENS-06\nMD IENS\\2006\\4-HIPPOCAMPE-IENS-06\nMD IENS\\2007\\1-CHIEN-IENS-07\nMD IENS\\2007\\2-CHAT-IENS-07\nMD IENS\\2007\\3-POULPE-IENS-07\nMD IENS\\2007\\4-HIPPOCAMPE-IENS-07\nMD IENS\\2008\\1-CHIEN-IENS-08\nMD IENS\\2008\\2-CHAT-IENS-08\nMD IENS\\2008\\3-POULPE-IENS-08\nMD IENS\\2008\\4-HIPPOCAMPE-IENS-08\nMD IENS\\2009\\1-CHIEN-IENS-09\nMD IENS\\2009\\2-CHAT-IENS-09\nMD IENS\\2009\\3-POULPE-IENS-09\nMD IENS\\2009\\4-HIPPOCAMPE-IENS-09\nMD IENS\\2010\\1-CHIEN-IENS-10\nMD IENS\\2010\\2-CHAT-IENS-10\nMD IENS\\2010\\3-POULPE-IENS-10\nMD IENS\\2010\\4-HIPPOCAMPE-IENS-10\nMD IENS\\2011\\1-CHIEN-IENS-11\nMD IENS\\2011\\2-CHAT-IENS-11"}]
[{"$f":"IF(ROWS($C$20:C125)<Nb_Liste*Nb_Années*Nb_Animaux,IF(B126>=B125,A125,INDEX(Liste,MATCH(A125,Liste,0)+1)),\"\")","v":"IENS"},{"$f":"IF(ROWS($C$20:C125)<Nb_Liste*Nb_Années*Nb_Animaux,(C126=INDEX(Animaux,1))*(1-Nb_Années*(B125=Max_Années))+B125,\"\")","v":2011},{"$f":"IF(ROWS($C$20:C125)<Nb_Liste*Nb_Années*Nb_Animaux,INDEX(Animaux,MOD(MATCH(C125,Animaux,0),Nb_Animaux)+1),\"\")","v":"3-POULPE"},null,{"$f":"IF(ROWS($C$20:C125)<Nb_Liste*Nb_Années*Nb_Animaux,E125&CHAR(10)&\"MD \"&A126&\"\\\"&B126&\"\\\"&C126&\"-\"&A126&\"-\"&RIGHT(TEXT(B126,\"0000\"),2),\"\")","v":"CD C:\\Users\\jvdo\\Documents\\forum\\test\nMD JEMA\\2006\\1-CHIEN-JEMA-06\nMD JEMA\\2006\\2-CHAT-JEMA-06\nMD JEMA\\2006\\3-POULPE-JEMA-06\nMD JEMA\\2006\\4-HIPPOCAMPE-JEMA-06\nMD JEMA\\2007\\1-CHIEN-JEMA-07\nMD JEMA\\2007\\2-CHAT-JEMA-07\nMD JEMA\\2007\\3-POULPE-JEMA-07\nMD JEMA\\2007\\4-HIPPOCAMPE-JEMA-07\nMD JEMA\\2008\\1-CHIEN-JEMA-08\nMD JEMA\\2008\\2-CHAT-JEMA-08\nMD JEMA\\2008\\3-POULPE-JEMA-08\nMD JEMA\\2008\\4-HIPPOCAMPE-JEMA-08\nMD JEMA\\2009\\1-CHIEN-JEMA-09\nMD JEMA\\2009\\2-CHAT-JEMA-09\nMD JEMA\\2009\\3-POULPE-JEMA-09\nMD JEMA\\2009\\4-HIPPOCAMPE-JEMA-09\nMD JEMA\\2010\\1-CHIEN-JEMA-10\nMD JEMA\\2010\\2-CHAT-JEMA-10\nMD JEMA\\2010\\3-POULPE-JEMA-10\nMD JEMA\\2010\\4-HIPPOCAMPE-JEMA-10\nMD JEMA\\2011\\1-CHIEN-JEMA-11\nMD JEMA\\2011\\2-CHAT-JEMA-11\nMD JEMA\\2011\\3-POULPE-JEMA-11\nMD JEMA\\2011\\4-HIPPOCAMPE-JEMA-11\nMD JEMA\\2012\\1-CHIEN-JEMA-12\nMD JEMA\\2012\\2-CHAT-JEMA-12\nMD JEMA\\2012\\3-POULPE-JEMA-12\nMD JEMA\\2012\\4-HIPPOCAMPE-JEMA-12\nMD NOEM\\2006\\1-CHIEN-NOEM-06\nMD NOEM\\2006\\2-CHAT-NOEM-06\nMD NOEM\\2006\\3-POULPE-NOEM-06\nMD NOEM\\2006\\4-HIPPOCAMPE-NOEM-06\nMD NOEM\\2007\\1-CHIEN-NOEM-07\nMD NOEM\\2007\\2-CHAT-NOEM-07\nMD NOEM\\2007\\3-POULPE-NOEM-07\nMD NOEM\\2007\\4-HIPPOCAMPE-NOEM-07\nMD NOEM\\2008\\1-CHIEN-NOEM-08\nMD NOEM\\2008\\2-CHAT-NOEM-08\nMD NOEM\\2008\\3-POULPE-NOEM-08\nMD NOEM\\2008\\4-HIPPOCAMPE-NOEM-08\nMD NOEM\\2009\\1-CHIEN-NOEM-09\nMD NOEM\\2009\\2-CHAT-NOEM-09\nMD NOEM\\2009\\3-POULPE-NOEM-09\nMD NOEM\\2009\\4-HIPPOCAMPE-NOEM-09\nMD NOEM\\2010\\1-CHIEN-NOEM-10\nMD NOEM\\2010\\2-CHAT-NOEM-10\nMD NOEM\\2010\\3-POULPE-NOEM-10\nMD NOEM\\2010\\4-HIPPOCAMPE-NOEM-10\nMD NOEM\\2011\\1-CHIEN-NOEM-11\nMD NOEM\\2011\\2-CHAT-NOEM-11\nMD NOEM\\2011\\3-POULPE-NOEM-11\nMD NOEM\\2011\\4-HIPPOCAMPE-NOEM-11\nMD NOEM\\2012\\1-CHIEN-NOEM-12\nMD NOEM\\2012\\2-CHAT-NOEM-12\nMD NOEM\\2012\\3-POULPE-NOEM-12\nMD NOEM\\2012\\4-HIPPOCAMPE-NOEM-12\nMD ESCH\\2006\\1-CHIEN-ESCH-06\nMD ESCH\\2006\\2-CHAT-ESCH-06\nMD ESCH\\2006\\3-POULPE-ESCH-06\nMD ESCH\\2006\\4-HIPPOCAMPE-ESCH-06\nMD ESCH\\2007\\1-CHIEN-ESCH-07\nMD ESCH\\2007\\2-CHAT-ESCH-07\nMD ESCH\\2007\\3-POULPE-ESCH-07\nMD ESCH\\2007\\4-HIPPOCAMPE-ESCH-07\nMD ESCH\\2008\\1-CHIEN-ESCH-08\nMD ESCH\\2008\\2-CHAT-ESCH-08\nMD ESCH\\2008\\3-POULPE-ESCH-08\nMD ESCH\\2008\\4-HIPPOCAMPE-ESCH-08\nMD ESCH\\2009\\1-CHIEN-ESCH-09\nMD ESCH\\2009\\2-CHAT-ESCH-09\nMD ESCH\\2009\\3-POULPE-ESCH-09\nMD ESCH\\2009\\4-HIPPOCAMPE-ESCH-09\nMD ESCH\\2010\\1-CHIEN-ESCH-10\nMD ESCH\\2010\\2-CHAT-ESCH-10\nMD ESCH\\2010\\3-POULPE-ESCH-10\nMD ESCH\\2010\\4-HIPPOCAMPE-ESCH-10\nMD ESCH\\2011\\1-CHIEN-ESCH-11\nMD ESCH\\2011\\2-CHAT-ESCH-11\nMD ESCH\\2011\\3-POULPE-ESCH-11\nMD ESCH\\2011\\4-HIPPOCAMPE-ESCH-11\nMD ESCH\\2012\\1-CHIEN-ESCH-12\nMD ESCH\\2012\\2-CHAT-ESCH-12\nMD ESCH\\2012\\3-POULPE-ESCH-12\nMD ESCH\\2012\\4-HIPPOCAMPE-ESCH-12\nMD IENS\\2006\\1-CHIEN-IENS-06\nMD IENS\\2006\\2-CHAT-IENS-06\nMD IENS\\2006\\3-POULPE-IENS-06\nMD IENS\\2006\\4-HIPPOCAMPE-IENS-06\nMD IENS\\2007\\1-CHIEN-IENS-07\nMD IENS\\2007\\2-CHAT-IENS-07\nMD IENS\\2007\\3-POULPE-IENS-07\nMD IENS\\2007\\4-HIPPOCAMPE-IENS-07\nMD IENS\\2008\\1-CHIEN-IENS-08\nMD IENS\\2008\\2-CHAT-IENS-08\nMD IENS\\2008\\3-POULPE-IENS-08\nMD IENS\\2008\\4-HIPPOCAMPE-IENS-08\nMD IENS\\2009\\1-CHIEN-IENS-09\nMD IENS\\2009\\2-CHAT-IENS-09\nMD IENS\\2009\\3-POULPE-IENS-09\nMD IENS\\2009\\4-HIPPOCAMPE-IENS-09\nMD IENS\\2010\\1-CHIEN-IENS-10\nMD IENS\\2010\\2-CHAT-IENS-10\nMD IENS\\2010\\3-POULPE-IENS-10\nMD IENS\\2010\\4-HIPPOCAMPE-IENS-10\nMD IENS\\2011\\1-CHIEN-IENS-11\nMD IENS\\2011\\2-CHAT-IENS-11\nMD IENS\\2011\\3-POULPE-IENS-11"}]
[{"$f":"IF(ROWS($C$20:C126)<Nb_Liste*Nb_Années*Nb_Animaux,IF(B127>=B126,A126,INDEX(Liste,MATCH(A126,Liste,0)+1)),\"\")","v":"IENS"},{"$f":"IF(ROWS($C$20:C126)<Nb_Liste*Nb_Années*Nb_Animaux,(C127=INDEX(Animaux,1))*(1-Nb_Années*(B126=Max_Années))+B126,\"\")","v":2011},{"$f":"IF(ROWS($C$20:C126)<Nb_Liste*Nb_Années*Nb_Animaux,INDEX(Animaux,MOD(MATCH(C126,Animaux,0),Nb_Animaux)+1),\"\")","v":"4-HIPPOCAMPE"},null,{"$f":"IF(ROWS($C$20:C126)<Nb_Liste*Nb_Années*Nb_Animaux,E126&CHAR(10)&\"MD \"&A127&\"\\\"&B127&\"\\\"&C127&\"-\"&A127&\"-\"&RIGHT(TEXT(B127,\"0000\"),2),\"\")","v":"CD C:\\Users\\jvdo\\Documents\\forum\\test\nMD JEMA\\2006\\1-CHIEN-JEMA-06\nMD JEMA\\2006\\2-CHAT-JEMA-06\nMD JEMA\\2006\\3-POULPE-JEMA-06\nMD JEMA\\2006\\4-HIPPOCAMPE-JEMA-06\nMD JEMA\\2007\\1-CHIEN-JEMA-07\nMD JEMA\\2007\\2-CHAT-JEMA-07\nMD JEMA\\2007\\3-POULPE-JEMA-07\nMD JEMA\\2007\\4-HIPPOCAMPE-JEMA-07\nMD JEMA\\2008\\1-CHIEN-JEMA-08\nMD JEMA\\2008\\2-CHAT-JEMA-08\nMD JEMA\\2008\\3-POULPE-JEMA-08\nMD JEMA\\2008\\4-HIPPOCAMPE-JEMA-08\nMD JEMA\\2009\\1-CHIEN-JEMA-09\nMD JEMA\\2009\\2-CHAT-JEMA-09\nMD JEMA\\2009\\3-POULPE-JEMA-09\nMD JEMA\\2009\\4-HIPPOCAMPE-JEMA-09\nMD JEMA\\2010\\1-CHIEN-JEMA-10\nMD JEMA\\2010\\2-CHAT-JEMA-10\nMD JEMA\\2010\\3-POULPE-JEMA-10\nMD JEMA\\2010\\4-HIPPOCAMPE-JEMA-10\nMD JEMA\\2011\\1-CHIEN-JEMA-11\nMD JEMA\\2011\\2-CHAT-JEMA-11\nMD JEMA\\2011\\3-POULPE-JEMA-11\nMD JEMA\\2011\\4-HIPPOCAMPE-JEMA-11\nMD JEMA\\2012\\1-CHIEN-JEMA-12\nMD JEMA\\2012\\2-CHAT-JEMA-12\nMD JEMA\\2012\\3-POULPE-JEMA-12\nMD JEMA\\2012\\4-HIPPOCAMPE-JEMA-12\nMD NOEM\\2006\\1-CHIEN-NOEM-06\nMD NOEM\\2006\\2-CHAT-NOEM-06\nMD NOEM\\2006\\3-POULPE-NOEM-06\nMD NOEM\\2006\\4-HIPPOCAMPE-NOEM-06\nMD NOEM\\2007\\1-CHIEN-NOEM-07\nMD NOEM\\2007\\2-CHAT-NOEM-07\nMD NOEM\\2007\\3-POULPE-NOEM-07\nMD NOEM\\2007\\4-HIPPOCAMPE-NOEM-07\nMD NOEM\\2008\\1-CHIEN-NOEM-08\nMD NOEM\\2008\\2-CHAT-NOEM-08\nMD NOEM\\2008\\3-POULPE-NOEM-08\nMD NOEM\\2008\\4-HIPPOCAMPE-NOEM-08\nMD NOEM\\2009\\1-CHIEN-NOEM-09\nMD NOEM\\2009\\2-CHAT-NOEM-09\nMD NOEM\\2009\\3-POULPE-NOEM-09\nMD NOEM\\2009\\4-HIPPOCAMPE-NOEM-09\nMD NOEM\\2010\\1-CHIEN-NOEM-10\nMD NOEM\\2010\\2-CHAT-NOEM-10\nMD NOEM\\2010\\3-POULPE-NOEM-10\nMD NOEM\\2010\\4-HIPPOCAMPE-NOEM-10\nMD NOEM\\2011\\1-CHIEN-NOEM-11\nMD NOEM\\2011\\2-CHAT-NOEM-11\nMD NOEM\\2011\\3-POULPE-NOEM-11\nMD NOEM\\2011\\4-HIPPOCAMPE-NOEM-11\nMD NOEM\\2012\\1-CHIEN-NOEM-12\nMD NOEM\\2012\\2-CHAT-NOEM-12\nMD NOEM\\2012\\3-POULPE-NOEM-12\nMD NOEM\\2012\\4-HIPPOCAMPE-NOEM-12\nMD ESCH\\2006\\1-CHIEN-ESCH-06\nMD ESCH\\2006\\2-CHAT-ESCH-06\nMD ESCH\\2006\\3-POULPE-ESCH-06\nMD ESCH\\2006\\4-HIPPOCAMPE-ESCH-06\nMD ESCH\\2007\\1-CHIEN-ESCH-07\nMD ESCH\\2007\\2-CHAT-ESCH-07\nMD ESCH\\2007\\3-POULPE-ESCH-07\nMD ESCH\\2007\\4-HIPPOCAMPE-ESCH-07\nMD ESCH\\2008\\1-CHIEN-ESCH-08\nMD ESCH\\2008\\2-CHAT-ESCH-08\nMD ESCH\\2008\\3-POULPE-ESCH-08\nMD ESCH\\2008\\4-HIPPOCAMPE-ESCH-08\nMD ESCH\\2009\\1-CHIEN-ESCH-09\nMD ESCH\\2009\\2-CHAT-ESCH-09\nMD ESCH\\2009\\3-POULPE-ESCH-09\nMD ESCH\\2009\\4-HIPPOCAMPE-ESCH-09\nMD ESCH\\2010\\1-CHIEN-ESCH-10\nMD ESCH\\2010\\2-CHAT-ESCH-10\nMD ESCH\\2010\\3-POULPE-ESCH-10\nMD ESCH\\2010\\4-HIPPOCAMPE-ESCH-10\nMD ESCH\\2011\\1-CHIEN-ESCH-11\nMD ESCH\\2011\\2-CHAT-ESCH-11\nMD ESCH\\2011\\3-POULPE-ESCH-11\nMD ESCH\\2011\\4-HIPPOCAMPE-ESCH-11\nMD ESCH\\2012\\1-CHIEN-ESCH-12\nMD ESCH\\2012\\2-CHAT-ESCH-12\nMD ESCH\\2012\\3-POULPE-ESCH-12\nMD ESCH\\2012\\4-HIPPOCAMPE-ESCH-12\nMD IENS\\2006\\1-CHIEN-IENS-06\nMD IENS\\2006\\2-CHAT-IENS-06\nMD IENS\\2006\\3-POULPE-IENS-06\nMD IENS\\2006\\4-HIPPOCAMPE-IENS-06\nMD IENS\\2007\\1-CHIEN-IENS-07\nMD IENS\\2007\\2-CHAT-IENS-07\nMD IENS\\2007\\3-POULPE-IENS-07\nMD IENS\\2007\\4-HIPPOCAMPE-IENS-07\nMD IENS\\2008\\1-CHIEN-IENS-08\nMD IENS\\2008\\2-CHAT-IENS-08\nMD IENS\\2008\\3-POULPE-IENS-08\nMD IENS\\2008\\4-HIPPOCAMPE-IENS-08\nMD IENS\\2009\\1-CHIEN-IENS-09\nMD IENS\\2009\\2-CHAT-IENS-09\nMD IENS\\2009\\3-POULPE-IENS-09\nMD IENS\\2009\\4-HIPPOCAMPE-IENS-09\nMD IENS\\2010\\1-CHIEN-IENS-10\nMD IENS\\2010\\2-CHAT-IENS-10\nMD IENS\\2010\\3-POULPE-IENS-10\nMD IENS\\2010\\4-HIPPOCAMPE-IENS-10\nMD IENS\\2011\\1-CHIEN-IENS-11\nMD IENS\\2011\\2-CHAT-IENS-11\nMD IENS\\2011\\3-POULPE-IENS-11\nMD IENS\\2011\\4-HIPPOCAMPE-IENS-11"}]
[{"$f":"IF(ROWS($C$20:C127)<Nb_Liste*Nb_Années*Nb_Animaux,IF(B128>=B127,A127,INDEX(Liste,MATCH(A127,Liste,0)+1)),\"\")","v":"IENS"},{"$f":"IF(ROWS($C$20:C127)<Nb_Liste*Nb_Années*Nb_Animaux,(C128=INDEX(Animaux,1))*(1-Nb_Années*(B127=Max_Années))+B127,\"\")","v":2012},{"$f":"IF(ROWS($C$20:C127)<Nb_Liste*Nb_Années*Nb_Animaux,INDEX(Animaux,MOD(MATCH(C127,Animaux,0),Nb_Animaux)+1),\"\")","v":"1-CHIEN"},null,{"$f":"IF(ROWS($C$20:C127)<Nb_Liste*Nb_Années*Nb_Animaux,E127&CHAR(10)&\"MD \"&A128&\"\\\"&B128&\"\\\"&C128&\"-\"&A128&\"-\"&RIGHT(TEXT(B128,\"0000\"),2),\"\")","v":"CD C:\\Users\\jvdo\\Documents\\forum\\test\nMD JEMA\\2006\\1-CHIEN-JEMA-06\nMD JEMA\\2006\\2-CHAT-JEMA-06\nMD JEMA\\2006\\3-POULPE-JEMA-06\nMD JEMA\\2006\\4-HIPPOCAMPE-JEMA-06\nMD JEMA\\2007\\1-CHIEN-JEMA-07\nMD JEMA\\2007\\2-CHAT-JEMA-07\nMD JEMA\\2007\\3-POULPE-JEMA-07\nMD JEMA\\2007\\4-HIPPOCAMPE-JEMA-07\nMD JEMA\\2008\\1-CHIEN-JEMA-08\nMD JEMA\\2008\\2-CHAT-JEMA-08\nMD JEMA\\2008\\3-POULPE-JEMA-08\nMD JEMA\\2008\\4-HIPPOCAMPE-JEMA-08\nMD JEMA\\2009\\1-CHIEN-JEMA-09\nMD JEMA\\2009\\2-CHAT-JEMA-09\nMD JEMA\\2009\\3-POULPE-JEMA-09\nMD JEMA\\2009\\4-HIPPOCAMPE-JEMA-09\nMD JEMA\\2010\\1-CHIEN-JEMA-10\nMD JEMA\\2010\\2-CHAT-JEMA-10\nMD JEMA\\2010\\3-POULPE-JEMA-10\nMD JEMA\\2010\\4-HIPPOCAMPE-JEMA-10\nMD JEMA\\2011\\1-CHIEN-JEMA-11\nMD JEMA\\2011\\2-CHAT-JEMA-11\nMD JEMA\\2011\\3-POULPE-JEMA-11\nMD JEMA\\2011\\4-HIPPOCAMPE-JEMA-11\nMD JEMA\\2012\\1-CHIEN-JEMA-12\nMD JEMA\\2012\\2-CHAT-JEMA-12\nMD JEMA\\2012\\3-POULPE-JEMA-12\nMD JEMA\\2012\\4-HIPPOCAMPE-JEMA-12\nMD NOEM\\2006\\1-CHIEN-NOEM-06\nMD NOEM\\2006\\2-CHAT-NOEM-06\nMD NOEM\\2006\\3-POULPE-NOEM-06\nMD NOEM\\2006\\4-HIPPOCAMPE-NOEM-06\nMD NOEM\\2007\\1-CHIEN-NOEM-07\nMD NOEM\\2007\\2-CHAT-NOEM-07\nMD NOEM\\2007\\3-POULPE-NOEM-07\nMD NOEM\\2007\\4-HIPPOCAMPE-NOEM-07\nMD NOEM\\2008\\1-CHIEN-NOEM-08\nMD NOEM\\2008\\2-CHAT-NOEM-08\nMD NOEM\\2008\\3-POULPE-NOEM-08\nMD NOEM\\2008\\4-HIPPOCAMPE-NOEM-08\nMD NOEM\\2009\\1-CHIEN-NOEM-09\nMD NOEM\\2009\\2-CHAT-NOEM-09\nMD NOEM\\2009\\3-POULPE-NOEM-09\nMD NOEM\\2009\\4-HIPPOCAMPE-NOEM-09\nMD NOEM\\2010\\1-CHIEN-NOEM-10\nMD NOEM\\2010\\2-CHAT-NOEM-10\nMD NOEM\\2010\\3-POULPE-NOEM-10\nMD NOEM\\2010\\4-HIPPOCAMPE-NOEM-10\nMD NOEM\\2011\\1-CHIEN-NOEM-11\nMD NOEM\\2011\\2-CHAT-NOEM-11\nMD NOEM\\2011\\3-POULPE-NOEM-11\nMD NOEM\\2011\\4-HIPPOCAMPE-NOEM-11\nMD NOEM\\2012\\1-CHIEN-NOEM-12\nMD NOEM\\2012\\2-CHAT-NOEM-12\nMD NOEM\\2012\\3-POULPE-NOEM-12\nMD NOEM\\2012\\4-HIPPOCAMPE-NOEM-12\nMD ESCH\\2006\\1-CHIEN-ESCH-06\nMD ESCH\\2006\\2-CHAT-ESCH-06\nMD ESCH\\2006\\3-POULPE-ESCH-06\nMD ESCH\\2006\\4-HIPPOCAMPE-ESCH-06\nMD ESCH\\2007\\1-CHIEN-ESCH-07\nMD ESCH\\2007\\2-CHAT-ESCH-07\nMD ESCH\\2007\\3-POULPE-ESCH-07\nMD ESCH\\2007\\4-HIPPOCAMPE-ESCH-07\nMD ESCH\\2008\\1-CHIEN-ESCH-08\nMD ESCH\\2008\\2-CHAT-ESCH-08\nMD ESCH\\2008\\3-POULPE-ESCH-08\nMD ESCH\\2008\\4-HIPPOCAMPE-ESCH-08\nMD ESCH\\2009\\1-CHIEN-ESCH-09\nMD ESCH\\2009\\2-CHAT-ESCH-09\nMD ESCH\\2009\\3-POULPE-ESCH-09\nMD ESCH\\2009\\4-HIPPOCAMPE-ESCH-09\nMD ESCH\\2010\\1-CHIEN-ESCH-10\nMD ESCH\\2010\\2-CHAT-ESCH-10\nMD ESCH\\2010\\3-POULPE-ESCH-10\nMD ESCH\\2010\\4-HIPPOCAMPE-ESCH-10\nMD ESCH\\2011\\1-CHIEN-ESCH-11\nMD ESCH\\2011\\2-CHAT-ESCH-11\nMD ESCH\\2011\\3-POULPE-ESCH-11\nMD ESCH\\2011\\4-HIPPOCAMPE-ESCH-11\nMD ESCH\\2012\\1-CHIEN-ESCH-12\nMD ESCH\\2012\\2-CHAT-ESCH-12\nMD ESCH\\2012\\3-POULPE-ESCH-12\nMD ESCH\\2012\\4-HIPPOCAMPE-ESCH-12\nMD IENS\\2006\\1-CHIEN-IENS-06\nMD IENS\\2006\\2-CHAT-IENS-06\nMD IENS\\2006\\3-POULPE-IENS-06\nMD IENS\\2006\\4-HIPPOCAMPE-IENS-06\nMD IENS\\2007\\1-CHIEN-IENS-07\nMD IENS\\2007\\2-CHAT-IENS-07\nMD IENS\\2007\\3-POULPE-IENS-07\nMD IENS\\2007\\4-HIPPOCAMPE-IENS-07\nMD IENS\\2008\\1-CHIEN-IENS-08\nMD IENS\\2008\\2-CHAT-IENS-08\nMD IENS\\2008\\3-POULPE-IENS-08\nMD IENS\\2008\\4-HIPPOCAMPE-IENS-08\nMD IENS\\2009\\1-CHIEN-IENS-09\nMD IENS\\2009\\2-CHAT-IENS-09\nMD IENS\\2009\\3-POULPE-IENS-09\nMD IENS\\2009\\4-HIPPOCAMPE-IENS-09\nMD IENS\\2010\\1-CHIEN-IENS-10\nMD IENS\\2010\\2-CHAT-IENS-10\nMD IENS\\2010\\3-POULPE-IENS-10\nMD IENS\\2010\\4-HIPPOCAMPE-IENS-10\nMD IENS\\2011\\1-CHIEN-IENS-11\nMD IENS\\2011\\2-CHAT-IENS-11\nMD IENS\\2011\\3-POULPE-IENS-11\nMD IENS\\2011\\4-HIPPOCAMPE-IENS-11\nMD IENS\\2012\\1-CHIEN-IENS-12"}]
[{"$f":"IF(ROWS($C$20:C128)<Nb_Liste*Nb_Années*Nb_Animaux,IF(B129>=B128,A128,INDEX(Liste,MATCH(A128,Liste,0)+1)),\"\")","v":"IENS"},{"$f":"IF(ROWS($C$20:C128)<Nb_Liste*Nb_Années*Nb_Animaux,(C129=INDEX(Animaux,1))*(1-Nb_Années*(B128=Max_Années))+B128,\"\")","v":2012},{"$f":"IF(ROWS($C$20:C128)<Nb_Liste*Nb_Années*Nb_Animaux,INDEX(Animaux,MOD(MATCH(C128,Animaux,0),Nb_Animaux)+1),\"\")","v":"2-CHAT"},null,{"$f":"IF(ROWS($C$20:C128)<Nb_Liste*Nb_Années*Nb_Animaux,E128&CHAR(10)&\"MD \"&A129&\"\\\"&B129&\"\\\"&C129&\"-\"&A129&\"-\"&RIGHT(TEXT(B129,\"0000\"),2),\"\")","v":"CD C:\\Users\\jvdo\\Documents\\forum\\test\nMD JEMA\\2006\\1-CHIEN-JEMA-06\nMD JEMA\\2006\\2-CHAT-JEMA-06\nMD JEMA\\2006\\3-POULPE-JEMA-06\nMD JEMA\\2006\\4-HIPPOCAMPE-JEMA-06\nMD JEMA\\2007\\1-CHIEN-JEMA-07\nMD JEMA\\2007\\2-CHAT-JEMA-07\nMD JEMA\\2007\\3-POULPE-JEMA-07\nMD JEMA\\2007\\4-HIPPOCAMPE-JEMA-07\nMD JEMA\\2008\\1-CHIEN-JEMA-08\nMD JEMA\\2008\\2-CHAT-JEMA-08\nMD JEMA\\2008\\3-POULPE-JEMA-08\nMD JEMA\\2008\\4-HIPPOCAMPE-JEMA-08\nMD JEMA\\2009\\1-CHIEN-JEMA-09\nMD JEMA\\2009\\2-CHAT-JEMA-09\nMD JEMA\\2009\\3-POULPE-JEMA-09\nMD JEMA\\2009\\4-HIPPOCAMPE-JEMA-09\nMD JEMA\\2010\\1-CHIEN-JEMA-10\nMD JEMA\\2010\\2-CHAT-JEMA-10\nMD JEMA\\2010\\3-POULPE-JEMA-10\nMD JEMA\\2010\\4-HIPPOCAMPE-JEMA-10\nMD JEMA\\2011\\1-CHIEN-JEMA-11\nMD JEMA\\2011\\2-CHAT-JEMA-11\nMD JEMA\\2011\\3-POULPE-JEMA-11\nMD JEMA\\2011\\4-HIPPOCAMPE-JEMA-11\nMD JEMA\\2012\\1-CHIEN-JEMA-12\nMD JEMA\\2012\\2-CHAT-JEMA-12\nMD JEMA\\2012\\3-POULPE-JEMA-12\nMD JEMA\\2012\\4-HIPPOCAMPE-JEMA-12\nMD NOEM\\2006\\1-CHIEN-NOEM-06\nMD NOEM\\2006\\2-CHAT-NOEM-06\nMD NOEM\\2006\\3-POULPE-NOEM-06\nMD NOEM\\2006\\4-HIPPOCAMPE-NOEM-06\nMD NOEM\\2007\\1-CHIEN-NOEM-07\nMD NOEM\\2007\\2-CHAT-NOEM-07\nMD NOEM\\2007\\3-POULPE-NOEM-07\nMD NOEM\\2007\\4-HIPPOCAMPE-NOEM-07\nMD NOEM\\2008\\1-CHIEN-NOEM-08\nMD NOEM\\2008\\2-CHAT-NOEM-08\nMD NOEM\\2008\\3-POULPE-NOEM-08\nMD NOEM\\2008\\4-HIPPOCAMPE-NOEM-08\nMD NOEM\\2009\\1-CHIEN-NOEM-09\nMD NOEM\\2009\\2-CHAT-NOEM-09\nMD NOEM\\2009\\3-POULPE-NOEM-09\nMD NOEM\\2009\\4-HIPPOCAMPE-NOEM-09\nMD NOEM\\2010\\1-CHIEN-NOEM-10\nMD NOEM\\2010\\2-CHAT-NOEM-10\nMD NOEM\\2010\\3-POULPE-NOEM-10\nMD NOEM\\2010\\4-HIPPOCAMPE-NOEM-10\nMD NOEM\\2011\\1-CHIEN-NOEM-11\nMD NOEM\\2011\\2-CHAT-NOEM-11\nMD NOEM\\2011\\3-POULPE-NOEM-11\nMD NOEM\\2011\\4-HIPPOCAMPE-NOEM-11\nMD NOEM\\2012\\1-CHIEN-NOEM-12\nMD NOEM\\2012\\2-CHAT-NOEM-12\nMD NOEM\\2012\\3-POULPE-NOEM-12\nMD NOEM\\2012\\4-HIPPOCAMPE-NOEM-12\nMD ESCH\\2006\\1-CHIEN-ESCH-06\nMD ESCH\\2006\\2-CHAT-ESCH-06\nMD ESCH\\2006\\3-POULPE-ESCH-06\nMD ESCH\\2006\\4-HIPPOCAMPE-ESCH-06\nMD ESCH\\2007\\1-CHIEN-ESCH-07\nMD ESCH\\2007\\2-CHAT-ESCH-07\nMD ESCH\\2007\\3-POULPE-ESCH-07\nMD ESCH\\2007\\4-HIPPOCAMPE-ESCH-07\nMD ESCH\\2008\\1-CHIEN-ESCH-08\nMD ESCH\\2008\\2-CHAT-ESCH-08\nMD ESCH\\2008\\3-POULPE-ESCH-08\nMD ESCH\\2008\\4-HIPPOCAMPE-ESCH-08\nMD ESCH\\2009\\1-CHIEN-ESCH-09\nMD ESCH\\2009\\2-CHAT-ESCH-09\nMD ESCH\\2009\\3-POULPE-ESCH-09\nMD ESCH\\2009\\4-HIPPOCAMPE-ESCH-09\nMD ESCH\\2010\\1-CHIEN-ESCH-10\nMD ESCH\\2010\\2-CHAT-ESCH-10\nMD ESCH\\2010\\3-POULPE-ESCH-10\nMD ESCH\\2010\\4-HIPPOCAMPE-ESCH-10\nMD ESCH\\2011\\1-CHIEN-ESCH-11\nMD ESCH\\2011\\2-CHAT-ESCH-11\nMD ESCH\\2011\\3-POULPE-ESCH-11\nMD ESCH\\2011\\4-HIPPOCAMPE-ESCH-11\nMD ESCH\\2012\\1-CHIEN-ESCH-12\nMD ESCH\\2012\\2-CHAT-ESCH-12\nMD ESCH\\2012\\3-POULPE-ESCH-12\nMD ESCH\\2012\\4-HIPPOCAMPE-ESCH-12\nMD IENS\\2006\\1-CHIEN-IENS-06\nMD IENS\\2006\\2-CHAT-IENS-06\nMD IENS\\2006\\3-POULPE-IENS-06\nMD IENS\\2006\\4-HIPPOCAMPE-IENS-06\nMD IENS\\2007\\1-CHIEN-IENS-07\nMD IENS\\2007\\2-CHAT-IENS-07\nMD IENS\\2007\\3-POULPE-IENS-07\nMD IENS\\2007\\4-HIPPOCAMPE-IENS-07\nMD IENS\\2008\\1-CHIEN-IENS-08\nMD IENS\\2008\\2-CHAT-IENS-08\nMD IENS\\2008\\3-POULPE-IENS-08\nMD IENS\\2008\\4-HIPPOCAMPE-IENS-08\nMD IENS\\2009\\1-CHIEN-IENS-09\nMD IENS\\2009\\2-CHAT-IENS-09\nMD IENS\\2009\\3-POULPE-IENS-09\nMD IENS\\2009\\4-HIPPOCAMPE-IENS-09\nMD IENS\\2010\\1-CHIEN-IENS-10\nMD IENS\\2010\\2-CHAT-IENS-10\nMD IENS\\2010\\3-POULPE-IENS-10\nMD IENS\\2010\\4-HIPPOCAMPE-IENS-10\nMD IENS\\2011\\1-CHIEN-IENS-11\nMD IENS\\2011\\2-CHAT-IENS-11\nMD IENS\\2011\\3-POULPE-IENS-11\nMD IENS\\2011\\4-HIPPOCAMPE-IENS-11\nMD IENS\\2012\\1-CHIEN-IENS-12\nMD IENS\\2012\\2-CHAT-IENS-12"}]
[{"$f":"IF(ROWS($C$20:C129)<Nb_Liste*Nb_Années*Nb_Animaux,IF(B130>=B129,A129,INDEX(Liste,MATCH(A129,Liste,0)+1)),\"\")","v":"IENS"},{"$f":"IF(ROWS($C$20:C129)<Nb_Liste*Nb_Années*Nb_Animaux,(C130=INDEX(Animaux,1))*(1-Nb_Années*(B129=Max_Années))+B129,\"\")","v":2012},{"$f":"IF(ROWS($C$20:C129)<Nb_Liste*Nb_Années*Nb_Animaux,INDEX(Animaux,MOD(MATCH(C129,Animaux,0),Nb_Animaux)+1),\"\")","v":"3-POULPE"},null,{"$f":"IF(ROWS($C$20:C129)<Nb_Liste*Nb_Années*Nb_Animaux,E129&CHAR(10)&\"MD \"&A130&\"\\\"&B130&\"\\\"&C130&\"-\"&A130&\"-\"&RIGHT(TEXT(B130,\"0000\"),2),\"\")","v":"CD C:\\Users\\jvdo\\Documents\\forum\\test\nMD JEMA\\2006\\1-CHIEN-JEMA-06\nMD JEMA\\2006\\2-CHAT-JEMA-06\nMD JEMA\\2006\\3-POULPE-JEMA-06\nMD JEMA\\2006\\4-HIPPOCAMPE-JEMA-06\nMD JEMA\\2007\\1-CHIEN-JEMA-07\nMD JEMA\\2007\\2-CHAT-JEMA-07\nMD JEMA\\2007\\3-POULPE-JEMA-07\nMD JEMA\\2007\\4-HIPPOCAMPE-JEMA-07\nMD JEMA\\2008\\1-CHIEN-JEMA-08\nMD JEMA\\2008\\2-CHAT-JEMA-08\nMD JEMA\\2008\\3-POULPE-JEMA-08\nMD JEMA\\2008\\4-HIPPOCAMPE-JEMA-08\nMD JEMA\\2009\\1-CHIEN-JEMA-09\nMD JEMA\\2009\\2-CHAT-JEMA-09\nMD JEMA\\2009\\3-POULPE-JEMA-09\nMD JEMA\\2009\\4-HIPPOCAMPE-JEMA-09\nMD JEMA\\2010\\1-CHIEN-JEMA-10\nMD JEMA\\2010\\2-CHAT-JEMA-10\nMD JEMA\\2010\\3-POULPE-JEMA-10\nMD JEMA\\2010\\4-HIPPOCAMPE-JEMA-10\nMD JEMA\\2011\\1-CHIEN-JEMA-11\nMD JEMA\\2011\\2-CHAT-JEMA-11\nMD JEMA\\2011\\3-POULPE-JEMA-11\nMD JEMA\\2011\\4-HIPPOCAMPE-JEMA-11\nMD JEMA\\2012\\1-CHIEN-JEMA-12\nMD JEMA\\2012\\2-CHAT-JEMA-12\nMD JEMA\\2012\\3-POULPE-JEMA-12\nMD JEMA\\2012\\4-HIPPOCAMPE-JEMA-12\nMD NOEM\\2006\\1-CHIEN-NOEM-06\nMD NOEM\\2006\\2-CHAT-NOEM-06\nMD NOEM\\2006\\3-POULPE-NOEM-06\nMD NOEM\\2006\\4-HIPPOCAMPE-NOEM-06\nMD NOEM\\2007\\1-CHIEN-NOEM-07\nMD NOEM\\2007\\2-CHAT-NOEM-07\nMD NOEM\\2007\\3-POULPE-NOEM-07\nMD NOEM\\2007\\4-HIPPOCAMPE-NOEM-07\nMD NOEM\\2008\\1-CHIEN-NOEM-08\nMD NOEM\\2008\\2-CHAT-NOEM-08\nMD NOEM\\2008\\3-POULPE-NOEM-08\nMD NOEM\\2008\\4-HIPPOCAMPE-NOEM-08\nMD NOEM\\2009\\1-CHIEN-NOEM-09\nMD NOEM\\2009\\2-CHAT-NOEM-09\nMD NOEM\\2009\\3-POULPE-NOEM-09\nMD NOEM\\2009\\4-HIPPOCAMPE-NOEM-09\nMD NOEM\\2010\\1-CHIEN-NOEM-10\nMD NOEM\\2010\\2-CHAT-NOEM-10\nMD NOEM\\2010\\3-POULPE-NOEM-10\nMD NOEM\\2010\\4-HIPPOCAMPE-NOEM-10\nMD NOEM\\2011\\1-CHIEN-NOEM-11\nMD NOEM\\2011\\2-CHAT-NOEM-11\nMD NOEM\\2011\\3-POULPE-NOEM-11\nMD NOEM\\2011\\4-HIPPOCAMPE-NOEM-11\nMD NOEM\\2012\\1-CHIEN-NOEM-12\nMD NOEM\\2012\\2-CHAT-NOEM-12\nMD NOEM\\2012\\3-POULPE-NOEM-12\nMD NOEM\\2012\\4-HIPPOCAMPE-NOEM-12\nMD ESCH\\2006\\1-CHIEN-ESCH-06\nMD ESCH\\2006\\2-CHAT-ESCH-06\nMD ESCH\\2006\\3-POULPE-ESCH-06\nMD ESCH\\2006\\4-HIPPOCAMPE-ESCH-06\nMD ESCH\\2007\\1-CHIEN-ESCH-07\nMD ESCH\\2007\\2-CHAT-ESCH-07\nMD ESCH\\2007\\3-POULPE-ESCH-07\nMD ESCH\\2007\\4-HIPPOCAMPE-ESCH-07\nMD ESCH\\2008\\1-CHIEN-ESCH-08\nMD ESCH\\2008\\2-CHAT-ESCH-08\nMD ESCH\\2008\\3-POULPE-ESCH-08\nMD ESCH\\2008\\4-HIPPOCAMPE-ESCH-08\nMD ESCH\\2009\\1-CHIEN-ESCH-09\nMD ESCH\\2009\\2-CHAT-ESCH-09\nMD ESCH\\2009\\3-POULPE-ESCH-09\nMD ESCH\\2009\\4-HIPPOCAMPE-ESCH-09\nMD ESCH\\2010\\1-CHIEN-ESCH-10\nMD ESCH\\2010\\2-CHAT-ESCH-10\nMD ESCH\\2010\\3-POULPE-ESCH-10\nMD ESCH\\2010\\4-HIPPOCAMPE-ESCH-10\nMD ESCH\\2011\\1-CHIEN-ESCH-11\nMD ESCH\\2011\\2-CHAT-ESCH-11\nMD ESCH\\2011\\3-POULPE-ESCH-11\nMD ESCH\\2011\\4-HIPPOCAMPE-ESCH-11\nMD ESCH\\2012\\1-CHIEN-ESCH-12\nMD ESCH\\2012\\2-CHAT-ESCH-12\nMD ESCH\\2012\\3-POULPE-ESCH-12\nMD ESCH\\2012\\4-HIPPOCAMPE-ESCH-12\nMD IENS\\2006\\1-CHIEN-IENS-06\nMD IENS\\2006\\2-CHAT-IENS-06\nMD IENS\\2006\\3-POULPE-IENS-06\nMD IENS\\2006\\4-HIPPOCAMPE-IENS-06\nMD IENS\\2007\\1-CHIEN-IENS-07\nMD IENS\\2007\\2-CHAT-IENS-07\nMD IENS\\2007\\3-POULPE-IENS-07\nMD IENS\\2007\\4-HIPPOCAMPE-IENS-07\nMD IENS\\2008\\1-CHIEN-IENS-08\nMD IENS\\2008\\2-CHAT-IENS-08\nMD IENS\\2008\\3-POULPE-IENS-08\nMD IENS\\2008\\4-HIPPOCAMPE-IENS-08\nMD IENS\\2009\\1-CHIEN-IENS-09\nMD IENS\\2009\\2-CHAT-IENS-09\nMD IENS\\2009\\3-POULPE-IENS-09\nMD IENS\\2009\\4-HIPPOCAMPE-IENS-09\nMD IENS\\2010\\1-CHIEN-IENS-10\nMD IENS\\2010\\2-CHAT-IENS-10\nMD IENS\\2010\\3-POULPE-IENS-10\nMD IENS\\2010\\4-HIPPOCAMPE-IENS-10\nMD IENS\\2011\\1-CHIEN-IENS-11\nMD IENS\\2011\\2-CHAT-IENS-11\nMD IENS\\2011\\3-POULPE-IENS-11\nMD IENS\\2011\\4-HIPPOCAMPE-IENS-11\nMD IENS\\2012\\1-CHIEN-IENS-12\nMD IENS\\2012\\2-CHAT-IENS-12\nMD IENS\\2012\\3-POULPE-IENS-12"}]
[{"$f":"IF(ROWS($C$20:C130)<Nb_Liste*Nb_Années*Nb_Animaux,IF(B131>=B130,A130,INDEX(Liste,MATCH(A130,Liste,0)+1)),\"\")","v":"IENS"},{"$f":"IF(ROWS($C$20:C130)<Nb_Liste*Nb_Années*Nb_Animaux,(C131=INDEX(Animaux,1))*(1-Nb_Années*(B130=Max_Années))+B130,\"\")","v":2012},{"$f":"IF(ROWS($C$20:C130)<Nb_Liste*Nb_Années*Nb_Animaux,INDEX(Animaux,MOD(MATCH(C130,Animaux,0),Nb_Animaux)+1),\"\")","v":"4-HIPPOCAMPE"},null,{"$f":"IF(ROWS($C$20:C130)<Nb_Liste*Nb_Années*Nb_Animaux,E130&CHAR(10)&\"MD \"&A131&\"\\\"&B131&\"\\\"&C131&\"-\"&A131&\"-\"&RIGHT(TEXT(B131,\"0000\"),2),\"\")","v":"CD C:\\Users\\jvdo\\Documents\\forum\\test\nMD JEMA\\2006\\1-CHIEN-JEMA-06\nMD JEMA\\2006\\2-CHAT-JEMA-06\nMD JEMA\\2006\\3-POULPE-JEMA-06\nMD JEMA\\2006\\4-HIPPOCAMPE-JEMA-06\nMD JEMA\\2007\\1-CHIEN-JEMA-07\nMD JEMA\\2007\\2-CHAT-JEMA-07\nMD JEMA\\2007\\3-POULPE-JEMA-07\nMD JEMA\\2007\\4-HIPPOCAMPE-JEMA-07\nMD JEMA\\2008\\1-CHIEN-JEMA-08\nMD JEMA\\2008\\2-CHAT-JEMA-08\nMD JEMA\\2008\\3-POULPE-JEMA-08\nMD JEMA\\2008\\4-HIPPOCAMPE-JEMA-08\nMD JEMA\\2009\\1-CHIEN-JEMA-09\nMD JEMA\\2009\\2-CHAT-JEMA-09\nMD JEMA\\2009\\3-POULPE-JEMA-09\nMD JEMA\\2009\\4-HIPPOCAMPE-JEMA-09\nMD JEMA\\2010\\1-CHIEN-JEMA-10\nMD JEMA\\2010\\2-CHAT-JEMA-10\nMD JEMA\\2010\\3-POULPE-JEMA-10\nMD JEMA\\2010\\4-HIPPOCAMPE-JEMA-10\nMD JEMA\\2011\\1-CHIEN-JEMA-11\nMD JEMA\\2011\\2-CHAT-JEMA-11\nMD JEMA\\2011\\3-POULPE-JEMA-11\nMD JEMA\\2011\\4-HIPPOCAMPE-JEMA-11\nMD JEMA\\2012\\1-CHIEN-JEMA-12\nMD JEMA\\2012\\2-CHAT-JEMA-12\nMD JEMA\\2012\\3-POULPE-JEMA-12\nMD JEMA\\2012\\4-HIPPOCAMPE-JEMA-12\nMD NOEM\\2006\\1-CHIEN-NOEM-06\nMD NOEM\\2006\\2-CHAT-NOEM-06\nMD NOEM\\2006\\3-POULPE-NOEM-06\nMD NOEM\\2006\\4-HIPPOCAMPE-NOEM-06\nMD NOEM\\2007\\1-CHIEN-NOEM-07\nMD NOEM\\2007\\2-CHAT-NOEM-07\nMD NOEM\\2007\\3-POULPE-NOEM-07\nMD NOEM\\2007\\4-HIPPOCAMPE-NOEM-07\nMD NOEM\\2008\\1-CHIEN-NOEM-08\nMD NOEM\\2008\\2-CHAT-NOEM-08\nMD NOEM\\2008\\3-POULPE-NOEM-08\nMD NOEM\\2008\\4-HIPPOCAMPE-NOEM-08\nMD NOEM\\2009\\1-CHIEN-NOEM-09\nMD NOEM\\2009\\2-CHAT-NOEM-09\nMD NOEM\\2009\\3-POULPE-NOEM-09\nMD NOEM\\2009\\4-HIPPOCAMPE-NOEM-09\nMD NOEM\\2010\\1-CHIEN-NOEM-10\nMD NOEM\\2010\\2-CHAT-NOEM-10\nMD NOEM\\2010\\3-POULPE-NOEM-10\nMD NOEM\\2010\\4-HIPPOCAMPE-NOEM-10\nMD NOEM\\2011\\1-CHIEN-NOEM-11\nMD NOEM\\2011\\2-CHAT-NOEM-11\nMD NOEM\\2011\\3-POULPE-NOEM-11\nMD NOEM\\2011\\4-HIPPOCAMPE-NOEM-11\nMD NOEM\\2012\\1-CHIEN-NOEM-12\nMD NOEM\\2012\\2-CHAT-NOEM-12\nMD NOEM\\2012\\3-POULPE-NOEM-12\nMD NOEM\\2012\\4-HIPPOCAMPE-NOEM-12\nMD ESCH\\2006\\1-CHIEN-ESCH-06\nMD ESCH\\2006\\2-CHAT-ESCH-06\nMD ESCH\\2006\\3-POULPE-ESCH-06\nMD ESCH\\2006\\4-HIPPOCAMPE-ESCH-06\nMD ESCH\\2007\\1-CHIEN-ESCH-07\nMD ESCH\\2007\\2-CHAT-ESCH-07\nMD ESCH\\2007\\3-POULPE-ESCH-07\nMD ESCH\\2007\\4-HIPPOCAMPE-ESCH-07\nMD ESCH\\2008\\1-CHIEN-ESCH-08\nMD ESCH\\2008\\2-CHAT-ESCH-08\nMD ESCH\\2008\\3-POULPE-ESCH-08\nMD ESCH\\2008\\4-HIPPOCAMPE-ESCH-08\nMD ESCH\\2009\\1-CHIEN-ESCH-09\nMD ESCH\\2009\\2-CHAT-ESCH-09\nMD ESCH\\2009\\3-POULPE-ESCH-09\nMD ESCH\\2009\\4-HIPPOCAMPE-ESCH-09\nMD ESCH\\2010\\1-CHIEN-ESCH-10\nMD ESCH\\2010\\2-CHAT-ESCH-10\nMD ESCH\\2010\\3-POULPE-ESCH-10\nMD ESCH\\2010\\4-HIPPOCAMPE-ESCH-10\nMD ESCH\\2011\\1-CHIEN-ESCH-11\nMD ESCH\\2011\\2-CHAT-ESCH-11\nMD ESCH\\2011\\3-POULPE-ESCH-11\nMD ESCH\\2011\\4-HIPPOCAMPE-ESCH-11\nMD ESCH\\2012\\1-CHIEN-ESCH-12\nMD ESCH\\2012\\2-CHAT-ESCH-12\nMD ESCH\\2012\\3-POULPE-ESCH-12\nMD ESCH\\2012\\4-HIPPOCAMPE-ESCH-12\nMD IENS\\2006\\1-CHIEN-IENS-06\nMD IENS\\2006\\2-CHAT-IENS-06\nMD IENS\\2006\\3-POULPE-IENS-06\nMD IENS\\2006\\4-HIPPOCAMPE-IENS-06\nMD IENS\\2007\\1-CHIEN-IENS-07\nMD IENS\\2007\\2-CHAT-IENS-07\nMD IENS\\2007\\3-POULPE-IENS-07\nMD IENS\\2007\\4-HIPPOCAMPE-IENS-07\nMD IENS\\2008\\1-CHIEN-IENS-08\nMD IENS\\2008\\2-CHAT-IENS-08\nMD IENS\\2008\\3-POULPE-IENS-08\nMD IENS\\2008\\4-HIPPOCAMPE-IENS-08\nMD IENS\\2009\\1-CHIEN-IENS-09\nMD IENS\\2009\\2-CHAT-IENS-09\nMD IENS\\2009\\3-POULPE-IENS-09\nMD IENS\\2009\\4-HIPPOCAMPE-IENS-09\nMD IENS\\2010\\1-CHIEN-IENS-10\nMD IENS\\2010\\2-CHAT-IENS-10\nMD IENS\\2010\\3-POULPE-IENS-10\nMD IENS\\2010\\4-HIPPOCAMPE-IENS-10\nMD IENS\\2011\\1-CHIEN-IENS-11\nMD IENS\\2011\\2-CHAT-IENS-11\nMD IENS\\2011\\3-POULPE-IENS-11\nMD IENS\\2011\\4-HIPPOCAMPE-IENS-11\nMD IENS\\2012\\1-CHIEN-IENS-12\nMD IENS\\2012\\2-CHAT-IENS-12\nMD IENS\\2012\\3-POULPE-IENS-12\nMD IENS\\2012\\4-HIPPOCAMPE-IENS-12"}]
[{"$f":"IF(ROWS($C$20:C131)<Nb_Liste*Nb_Années*Nb_Animaux,IF(B132>=B131,A131,INDEX(Liste,MATCH(A131,Liste,0)+1)),\"\")","v":""},{"$f":"IF(ROWS($C$20:C131)<Nb_Liste*Nb_Années*Nb_Animaux,(C132=INDEX(Animaux,1))*(1-Nb_Années*(B131=Max_Années))+B131,\"\")","v":""},{"$f":"IF(ROWS($C$20:C131)<Nb_Liste*Nb_Années*Nb_Animaux,INDEX(Animaux,MOD(MATCH(C131,Animaux,0),Nb_Animaux)+1),\"\")","v":""},null,{"$f":"IF(ROWS($C$20:C131)<Nb_Liste*Nb_Années*Nb_Animaux,E131&CHAR(10)&\"MD \"&A132&\"\\\"&B132&\"\\\"&C132&\"-\"&A132&\"-\"&RIGHT(TEXT(B132,\"0000\"),2),\"\")","v":""}]
[{"$f":"IF(ROWS($C$20:C132)<Nb_Liste*Nb_Années*Nb_Animaux,IF(B133>=B132,A132,INDEX(Liste,MATCH(A132,Liste,0)+1)),\"\")","v":""},{"$f":"IF(ROWS($C$20:C132)<Nb_Liste*Nb_Années*Nb_Animaux,(C133=INDEX(Animaux,1))*(1-Nb_Années*(B132=Max_Années))+B132,\"\")","v":""},{"$f":"IF(ROWS($C$20:C132)<Nb_Liste*Nb_Années*Nb_Animaux,INDEX(Animaux,MOD(MATCH(C132,Animaux,0),Nb_Animaux)+1),\"\")","v":""},null,{"$f":"IF(ROWS($C$20:C132)<Nb_Liste*Nb_Années*Nb_Animaux,E132&CHAR(10)&\"MD \"&A133&\"\\\"&B133&\"\\\"&C133&\"-\"&A133&\"-\"&RIGHT(TEXT(B133,\"0000\"),2),\"\")","v":""}]
[{"$f":"IF(ROWS($C$20:C133)<Nb_Liste*Nb_Années*Nb_Animaux,IF(B134>=B133,A133,INDEX(Liste,MATCH(A133,Liste,0)+1)),\"\")","v":""},{"$f":"IF(ROWS($C$20:C133)<Nb_Liste*Nb_Années*Nb_Animaux,(C134=INDEX(Animaux,1))*(1-Nb_Années*(B133=Max_Années))+B133,\"\")","v":""},{"$f":"IF(ROWS($C$20:C133)<Nb_Liste*Nb_Années*Nb_Animaux,INDEX(Animaux,MOD(MATCH(C133,Animaux,0),Nb_Animaux)+1),\"\")","v":""},null,{"$f":"IF(ROWS($C$20:C133)<Nb_Liste*Nb_Années*Nb_Animaux,E133&CHAR(10)&\"MD \"&A134&\"\\\"&B134&\"\\\"&C134&\"-\"&A134&\"-\"&RIGHT(TEXT(B134,\"0000\"),2),\"\")","v":""}]
[{"$f":"IF(ROWS($C$20:C134)<Nb_Liste*Nb_Années*Nb_Animaux,IF(B135>=B134,A134,INDEX(Liste,MATCH(A134,Liste,0)+1)),\"\")","v":""},{"$f":"IF(ROWS($C$20:C134)<Nb_Liste*Nb_Années*Nb_Animaux,(C135=INDEX(Animaux,1))*(1-Nb_Années*(B134=Max_Années))+B134,\"\")","v":""},{"$f":"IF(ROWS($C$20:C134)<Nb_Liste*Nb_Années*Nb_Animaux,INDEX(Animaux,MOD(MATCH(C134,Animaux,0),Nb_Animaux)+1),\"\")","v":""},null,{"$f":"IF(ROWS($C$20:C134)<Nb_Liste*Nb_Années*Nb_Animaux,E134&CHAR(10)&\"MD \"&A135&\"\\\"&B135&\"\\\"&C135&\"-\"&A135&\"-\"&RIGHT(TEXT(B135,\"0000\"),2),\"\")","v":""}]